Workbook

Sheet Lector de tramas manual
A2: 01h 1 | B2: ID TRAMA | C2: ID Estación | E2: Nro de Paquete | G2: Fecha | K2: Longitud Total de la Trama | M2: Grupo de tramas de cada Equipo | N2: Checksum | O2: 1 | P2: 2 | Q2: 3 | R2: 4 | S2: 5 | T2: 6 | U2: 7 | V2: 8 | W2: 9 | X2: 10 | Y2: 11 | Z2: 12
A3: Unidad | B3: Id de la Trama | C3: Id de la Estación | E3: Contador | G3: DDMMAAhhmm | K3: Longitud desde el byte 12 hasta antes del *del checksum | M3: Definido en la configuración de cada sensor | N3: Suma de todos los bytes | O3: =K133 -> CTD Datos | P3: =K134 ->  | Q3: =K135 ->  | R3: =K136 ->  | S3: =K137 ->  | T3: =K138 ->  | U3: =K139 ->  | V3: =K140 ->  | W3: =K141 ->  | X3: =K142 ->  | Y3: =K143 ->  | Z3: =K144 -> 
B4: 1 | C4: 2 | D4: 3 | E4: 4 | F4: 5 | G4: 6 | H4: 7 | I4: 8 | J4: 9 | K4: 10 | L4: 11 | M4: 12 | N4: 13 | O4: 14 | P4: 15 | Q4: 16 | R4: 17 | S4: 18 | T4: 19 | U4: 20 | V4: 21 | W4: 22 | X4: 23 | Y4: 24 | Z4: 25 | AA4: 26 | AB4: 27 | AC4: 28 | AD4: 29 | AE4: 30 | AF4: 31 | AG4: 32 | AH4: 33 | AI4: 34 | AJ4: 35 | AK4: 36 | AL4: 37 | AM4: 38 | AN4: 39 | AO4: 40 | AP4: 41 | AQ4: 42 | AR4: 43 | AS4: 44 | AT4: 45 | AU4: 46 | AV4: 47 | AW4: 48 | AX4: 49 | AY4: 50 | AZ4: 51 | BA4: 52 | BB4: 53 | BC4: 54 | BD4: 55 | BE4: 56 | BF4: 57 | BG4: 58 | BH4: 59 | BI4: 60 | BJ4: 61 | BK4: 62 | BL4: 63 | BM4: 64 | BN4: 65 | BO4: 66 | BP4: 67 | BQ4: 68 | BR4: 69 | BS4: 70 | BT4: 71 | BU4: 72 | BV4: 73 | BW4: 74 | BX4: 75 | BY4: 76 | BZ4: 77 | CA4: 78 | CB4: 79 | CC4: 80 | CD4: 81 | CE4: 82 | CF4: 83 | CG4: 84 | CH4: 85 | CI4: 86 | CJ4: 87 | CK4: 88 | CL4: 89 | CM4: 90 | CN4: 91 | CO4: 92 | CP4: 93 | CQ4: 94 | CR4: 95 | CS4: 96 | CT4: 97 | CU4: 98 | CV4: 99 | CW4: 100 | CX4: 101 | CY4: 102 | CZ4: 103 | DA4: 104 | DB4: 105 | DC4: 106 | DD4: 107 | DE4: 108 | DF4: 109 | DG4: 110 | DH4: 111 | DI4: 112 | DJ4: 113 | DK4: 114 | DL4: 115 | DM4: 116 | DN4: 117 | DO4: 118 | DP4: 119 | DQ4: 120 | DR4: 121 | DS4: 122 | DT4: 123 | DU4: 124 | DV4: 125 | DW4: 126 | DX4: 127 | DY4: 128 | DZ4: 129 | EA4: 130 | EB4: 131 | EC4: 132 | ED4: 133 | EE4: 134 | EF4: 135 | EG4: 136 | EH4: 137 | EI4: 138 | EJ4: 139 | EK4: 140 | EL4: 141 | EM4: 142 | EN4: 143 | EO4: 144 | EP4: 145 | EQ4: 146 | ER4: 147 | ES4: 148 | ET4: 149 | EU4: 150 | EV4: 151 | EW4: 152 | EX4: 153 | EY4: 154 | EZ4: 155 | FA4: 156 | FB4: 157 | FC4: 158 | FD4: 159 | FE4: 160 | FF4: 161 | FG4: 162 | FH4: 163 | FI4: 164 | FJ4: 165 | FK4: 166 | FL4: 167 | FM4: 168 | FN4: 169 | FO4: 170 | FP4: 171 | FQ4: 172 | FR4: 173 | FS4: 174 | FT4: 175 | FU4: 176 | FV4: 177 | FW4: 178 | FX4: 179 | FY4: 180 | FZ4: 181 | GA4: 182 | GB4: 183 | GC4: 184 | GD4: 185 | GE4: 186 | GF4: 187 | GG4: 188 | GH4: 189 | GI4: 190 | GJ4: 191 | GK4: 192 | GL4: 193 | GM4: 194 | GN4: 195 | GO4: 196 | GP4: 197 | GQ4: 198 | GR4: 199 | GS4: 200 | GT4: 201 | GU4: 202 | GV4: 203 | GW4: 204 | GX4: 205 | GY4: 206 | GZ4: 207 | HA4: 208 | HB4: 209 | HC4: 210 | HD4: 211 | HE4: 212 | HF4: 213 | HG4: 214 | HH4: 215 | HI4: 216 | HJ4: 217 | HK4: 218 | HL4: 219 | HM4: 220 | HN4: 221 | HO4: 222 | HP4: 223 | HQ4: 224 | HR4: 225 | HS4: 226 | HT4: 227 | HU4: 228 | HV4: 229 | HW4: 230 | HX4: 231 | HY4: 232 | HZ4: 233 | IA4: 234 | IB4: 235 | IC4: 236 | ID4: 237 | IE4: 238 | IF4: 239 | IG4: 240 | IH4: 241 | II4: 242 | IJ4: 243 | IK4: 244 | IL4: 245 | IM4: 246 | IN4: 247 | IO4: 248 | IP4: 249 | IQ4: 250 | IR4: 251 | IS4: 252 | IT4: 253 | IU4: 254 | IV4: 255 | IW4: 256 | IX4: 257 | IY4: 258 | IZ4: 259 | JA4: 260 | JB4: 261 | JC4: 262 | JD4: 263 | JE4: 264 | JF4: 265 | JG4: 266 | JH4: 267 | JI4: 268 | JJ4: 269 | JK4: 270 | JL4: 271 | JM4: 272 | JN4: 273 | JO4: 274 | JP4: 275 | JQ4: 276 | JR4: 277 | JS4: 278 | JT4: 279 | JU4: 280 | JV4: 281 | JW4: 282 | JX4: 283 | JY4: 284 | JZ4: 285 | KA4: 286 | KB4: 287 | KC4: 288 | KD4: 289 | KE4: 290 | KF4: 291 | KG4: 292 | KH4: 293 | KI4: 294 | KJ4: 295 | KK4: 296 | KL4: 297 | KM4: 298
A5: 01 | B5: 1 | C5: 0 | D5: 5 | E5: 6 | F5: 1E | G5: 71 | H5: AE | I5: 9 | J5: 1A | K5: 0 | L5: 68 | M5: 1E | N5: 1B | O5: 0 | P5: 0 | Q5: 3D | R5: 50 | S5: 19 | T5: 1 | U5: 5 | V5: 1 | W5: 8E | X5: 0 | Y5: FD | Z5: FF | AA5: C3 | AB5: 0 | AC5: 9 | AD5: FF | AE5: AD | AF5: FF | AG5: C9 | AH5: 1 | AI5: FC | AJ5: 2 | AK5: 30 | AL5: FD | AM5: D1 | AN5: FF | AO5: 58 | AP5: 0 | AQ5: 31 | AR5: FD | AS5: E3 | AT5: 0 | AU5: C9 | AV5: 2 | AW5: 3C | AX5: 0 | AY5: E3 | AZ5: FE | BA5: 2A | BB5: 0 | BC5: CB | BD5: FE | BE5: 92 | BF5: 1 | BG5: 1C | BH5: 0C | BI5: 31 | BJ5: 7A | BK5: 1C | BL5: 0 | BM5: B3 | BN5: 0 | BO5: 3B | BP5: 0 | BQ5: C9 | BR5: 0 | BS5: D4 | BT5: 27 | BU5: C5 | BV5: 1 | BW5: 73 | BX5: A0 | BY5: 1C | BZ5: 0 | CA5: 18 | CB5: 0 | CC5: 2 | CD5: 0 | CE5: 2 | CF5: 0 | CG5: 2 | CH5: 0 | CI5: 2 | CJ5: 1 | CK5: 0E | CL5: 0 | CM5: 50 | CN5: 0 | CO5: 70 | CP5: 0 | CQ5: 9B | CR5: 0 | CS5: A5 | CT5: 7 | CU5: 8E | CV5: 2 | CW5: A1 | CX5: 64 | CY5: 64 | CZ5: 1F | DA5: 1C
A6: HEX | B6: =TEXT(B5,"00") -> 01 | C6: =CONCATENATE(TEXT(C5,"00"),TEXT(D5,"00")) -> 0005 | E6: =CONCATENATE(TEXT(E5,"00"),TEXT(F5,"00")) -> 061E | G6: =CONCATENATE(TEXT(G5,"00"),TEXT(H5,"00"),TEXT(I5,"00"),TEXT(J5,"00")) -> 71AE091A | K6: =CONCATENATE(TEXT(K5,"00"),TEXT(L5,"00")) -> 0068 | M6: =TEXT(M5,"00") -> 1E | N6: =TEXT(N5,"00") -> 1B | O6: =CONCATENATE(O5,P5) -> 00 | Q6: =CONCATENATE(Q5,R5) -> 3D50 | S6: =CONCATENATE(S5,T5) -> 191 | U6: =CONCATENATE(U5,V5) -> 51 | W6: =CONCATENATE(W5,X5) -> 8E0
A7: DEC | B7: =HEX2DEC(B6) -> 1 | C7: =HEX2DEC(C6) -> 5 | E7: =HEX2DEC(E6) -> 1566 | G7: =TEXT(HEX2DEC(G6),"0000000000") -> 1907231002 | K7: =HEX2DEC(K6) -> 104 | M7: =HEX2DEC(M6) -> 30 | N7: =HEX2DEC(N6) -> 27 | O7: =HEX2DEC(O6) -> 0 | Q7: =HEX2DEC(Q6) -> 15696 | S7: =HEX2DEC(S6) -> 401 | U7: =HEX2DEC(U6) -> 81 | W7: =HEX2DEC(W6) -> 2272
B8: =B7 -> 1 | C8: =C7 -> 5 | E8: =E7 -> 1566 | G8: =DATE(MID(G7,5,2)+100,MID(G7,3,2),MID(G7,1,2)) -> 2023-07-19 | I8: =TIME(LEFT(RIGHT(G7,4),2),RIGHT(RIGHT(G7,4),2),) -> 10:02:00 | K8: =K7 -> 104 | M8: =M7 -> 30 | N8: =N7 -> 27 | O8: =O7 -> 0 | Q8: =Q7 -> 15696 | S8: =S7 -> 401 | U8: =U7 -> 81 | W8: =W7 -> 2272
A12: 0Ah 10 | B12: MMB03 ESTADO | G12: Volt.Batería | I12: V1 | K12: V2 | M12: V3 | O12: I.Total | Q12: Alarmas | T12: Estado de las Entradas | V12: Estado Sinc | X12: Memoria | Y12: Latitud | AC12: Longitud | AG12: Radio de Borneo | AI12: Checksum (solo cuando es un telemando individual)
A13: Unidad | B13: Id de la Trama | C13: DDMMAAhhmm | G13: Definido en la configuración | I13: Definido en la configuración | K13: Definido en la configuración | M13: Definido en la configuración | O13: Definido en la configuración | Q13: B0=Bateria Baja B1=Tensión V1 B2=Tensión V2 B3=Tensión V3 B4=Corriente I B5=Intrusión B6=MFGPS B7=Impacto Leve | R13: B8=Impacto Grave B9=COM1 B10=COM2 B11=COM3 B12=COM4 B13=COM5 B14=COM6 B15=COM7 | S13: B16=COM8 B17=COM9 B18=COM10 B19=Offposition B20= B21= B22= B23= | T13: B0 =Ent.ext.2 (Edo. MF12) 0= Alarma 1= Vivo B1 =Ent.ext. 1 (Día/Noc.MF12) 0= Noche 1= Día B2 =Ent.ext.3 B3 =Ent.ext.4 B4 =Ent.ext.5 | U13: B5 =Ent.ext.6 B6 =Ent.ext.7 B7 =Ent.ext.8 B8 =Ent.ext.9 B9 =Ent.ext.10 B10 =Ent.ext.11 B11 =Ent.ext.12 B12 =Ent.ext.13 MMB viva B13 =Ent.ext.14 B14 =Ent.ext.15 B15 =Ent.ext.16 | V13: B0,B1 = Modo sincronizacion: 0 =No sincronizada 1 =Sincr. por Waves 2 =Sincr. por MFSINCLOC 3 =Sincr. por Telemando 4 =Sincr. por EMA 5 =Sincr. por AIS B2 =Enable/Disable Intrusion (1= Enable / 0= Disable) | X13: % SD Usada (0-100) Si no hay tarjeta =255 | Y13: Definido en la configuración | AC13: Definido en la configuración | AG13: Definido en la configuración | AI13: Cantidad
A14: Valor Min. | B14: 10 | C14: 0101200000 | G14: 0 | I14: 0 | K14: 0 | M14: 0 | O14: 0 | Q14: 0 | T14: 0 | V14: 0 | X14: 0 | Y14: -900000000 | AC14: -1799999999 | AG14: 0
A15: Valor Max. | B15: 29 | C15: 3112992359 | G15: 65535 | I15: 65535 | K15: 65535 | M15: 65535 | O15: 65535 | Q15: 65535 | T15: 65535 | V15: 65535 | X15: 65535 | Y15: 900000000 | AC15: 1800000000 | AG15: 65534
A16: Posición trama a tx | B16: 1 | C16: =B16+B17 -> 2 | G16: =C16+C17 -> 6 | I16: =G17+G16 -> 8 | K16: =I17+I16 -> 10 | M16: =K17+K16 -> 12 | O16: =M17+M16 -> 14 | Q16: =O17+O16 -> 16 | T16: =Q17+Q16 -> 19 | V16: =T17+T16 -> 21 | X16: =V17+V16 -> 23 | Y16: =X16+X17 -> 24 | AC16: =Y17+Y16 -> 28 | AG16: =AC16+AC17 -> 32 | AI16: =AG16+AG17 -> 34
A17: bytes a tx | B17: 1 | C17: 4 | G17: 2 | I17: 2 | K17: 2 | M17: 2 | O17: 2 | Q17: 3 | T17: 2 | V17: 2 | X17: 1 | Y17: 4 | AC17: 4 | AG17: 2
A18: Ejm. completo | B18: 10 | C18: 3103221345 | G18: 1235 | I18: 1244 | K18: 1253 | M18: 1262 | O18: 1234 | Q18: 001000000010000000010000 | T18: 0010000100110111 | V18: 100000111 | X18: 99 | Y18: 4587765432 | AC18: -15612345678 | AG18: 1234 | AI18: 4F
A19: Posición byte | B19: 1 | C19: 2 | D19: 3 | E19: 4 | F19: 5 | G19: 6 | H19: 7 | I19: 8 | J19: 9 | K19: 10 | L19: 11 | M19: 12 | N19: 13 | O19: 14 | P19: 15 | Q19: 16 | R19: 17 | S19: 18 | T19: 19 | U19: 20 | V19: 21 | W19: 22 | X19: 23 | Y19: 24 | Z19: 25 | AA19: 26 | AB19: 27 | AC19: 28 | AD19: 29 | AE19: 30 | AF19: 31 | AG19: 32 | AH19: 33 | AI19: 34
A20: 0A
A21: HEX | B21: =TEXT(B20,"00") -> 00 | C21: =CONCATENATE(TEXT(C20,"00"),TEXT(D20,"00"),TEXT(E20,"00"),TEXT(F20,"00")) -> 00000000 | G21: =CONCATENATE(TEXT(G20,"00"),TEXT(H20,"00")) -> 0000 | I21: =CONCATENATE(TEXT(I20,"00"),TEXT(J20,"00")) -> 0000 | K21: =CONCATENATE(TEXT(K20,"00"),TEXT(L20,"00")) -> 0000 | M21: =CONCATENATE(TEXT(M20,"00"),TEXT(N20,"00")) -> 0000 | O21: =CONCATENATE(TEXT(O20,"00"),TEXT(P20,"00")) -> 0000 | Q21: =CONCATENATE(TEXT(Q20,"00"),TEXT(R20,"00"),TEXT(S20,"00")) -> 000000 | T21: =CONCATENATE(TEXT(T20,"00"),TEXT(U20,"00")) -> 0000 | V21: =CONCATENATE(TEXT(V20,"00"),TEXT(W20,"00")) -> 0000 | X21: =TEXT(X20,"00") -> 00 | Y21: =CONCATENATE(TEXT(Y20,"00"),TEXT(Z20,"00"),TEXT(AA20,"00"),TEXT(AB20,"00")) -> 00000000 | AC21: =CONCATENATE(TEXT(AC20,"00"),TEXT(AD20,"00"),TEXT(AE20,"00"),TEXT(AF20,"00")) -> 00000000 | AG21: =CONCATENATE(TEXT(AG20,"00"),TEXT(AH20,"00")) -> 0000
A22: DEC | B22: =HEX2DEC(B21) -> 0 | C22: =TEXT(HEX2DEC(C21),"0000000000") -> 0000000000 | G22: =HEX2DEC(G21) -> 0 | I22: =IF(HEX2DEC(I21)>(32769),HEX2DEC(I21)-65536,HEX2DEC(I21)) -> 0 | K22: =IF(HEX2DEC(K21)>(32769),HEX2DEC(K21)-65536,HEX2DEC(K21)) -> 0 | M22: =IF(HEX2DEC(M21)>(32769),HEX2DEC(M21)-65536,HEX2DEC(M21)) -> 0 | O22: =IF(HEX2DEC(O21)>(32769),HEX2DEC(O21)-65536,HEX2DEC(O21)) -> 0 | Q22: =HEX2DEC(Q21) -> 0 | T22: =IF(HEX2DEC(T21)>(32769),HEX2DEC(T21)-65536,HEX2DEC(T21)) -> 0 | V22: =IF(HEX2DEC(V21)>(32769),HEX2DEC(V21)-65536,HEX2DEC(V21)) -> 0 | X22: =HEX2DEC(X21) -> 0 | Y22: =TEXT(HEX2DEC(Y21),"0000000000") -> 0000000000 | AC22: =TEXT(HEX2DEC(AC21),"0000000000") -> 0000000000 | AG22: =IF(HEX2DEC(AG21)>(32767),HEX2DEC(AG21)-65536,HEX2DEC(AG21)) -> 0
B23: =B22 -> 0 | C23: =DATE(MID(C22,5,2)+100,MID(C22,3,2),MID(C22,1,2)) -> 1999-11-30 | E23: =(RIGHT(C22,4)) -> 0000 | G23: =G22/100 -> 0 | I23: =I22/100 -> 0 | K23: =K22/100 -> 0 | M23: =M22/100 -> 0 | O23: =O22/100 -> 0 | X23: =X22 -> 0 | Y23: =(IF(HEX2DEC(Y21)>(2147483647),HEX2DEC(Y21)-4294967296,HEX2DEC(Y21)))*10^-5 -> 0 | AC23: =(IF(HEX2DEC(AC21)>(2147483647),HEX2DEC(AC21)-4294967296,HEX2DEC(AC21)))*10^-7 -> 0 | AG23: =AG22 -> 0
Q24: =DEC2BIN(QUOTIENT(Q22,256^2),8)&DEC2BIN(QUOTIENT(MOD(Q22,256^2),256),8)&DEC2BIN(MOD(Q22,256),8) -> 000000000000000000000000 | T24: =DEC2BIN(T22/256,8)&DEC2BIN(MOD(T22,256),8) -> 0000000000000000 | V24: =DEC2BIN(V22/256,8)&DEC2BIN(MOD(V22,256),8) -> 0000000000000000 | Y24: =TRUNC(Y23,0) -> 0 | AA24: =(Y23-Y24)*60 -> 0 | AC24: =TRUNC(AC23,0) -> 0 | AE24: =(AC23-AC24)*60 -> 0
A28: 1Eh | B28: CTD | D28: TURB
A29: 30
A30: Unidad | B30: Id de la Trama | C30: minutos (pos.y neg.) | D30: Turbidez NTU
A31: Posición byte | B31: 1 | C31: 2 | D31: 3 | E31: 4 | F31: 5
A32: 1E | B32: 1E | C32: 1B | D32: 0 | E32: 0 | F32: 3D | G32: 50 | H32: 19 | I32: 1 | J32: 5 | K32: 1 | L32: 8E | M32: 0 | N32: FD | O32: FF | P32: C3 | Q32: 0 | R32: 9 | S32: FF | T32: AD | U32: FF | V32: C9 | W32: 1 | X32: FC | Y32: 2 | Z32: 30 | AA32: FD | AB32: D1 | AC32: FF | AD32: 58 | AE32: 0 | AF32: 31 | AG32: FD | AH32: E3 | AI32: 0 | AJ32: C9 | AK32: 2 | AL32: 3C | AM32: 0 | AN32: E3 | AO32: FE | AP32: 2A | AQ32: 0 | AR32: CB | AS32: FE | AT32: 92 | AU32: 1 | AV32: 1C | AW32: 0C | AX32: 31 | AY32: 7A | AZ32: 1C | BA32: 0 | BB32: B3 | BC32: 0 | BD32: 3B | BE32: 0 | BF32: C9 | BG32: 0 | BH32: D4 | BI32: 27 | BJ32: C5 | BK32: 1 | BL32: 73 | BM32: A0 | BN32: 1C | BO32: 0 | BP32: 18 | BQ32: 0 | BR32: 2 | BS32: 0 | BT32: 2 | BU32: 0 | BV32: 2 | BW32: 0 | BX32: 2 | BY32: 1 | BZ32: 0E | CA32: 0 | CB32: 50 | CC32: 0 | CD32: 70 | CE32: 0 | CF32: 9B | CG32: 0 | CH32: A5 | CI32: 7 | CJ32: 8E | CK32: 2 | CL32: A1 | CM32: 64 | CN32: 64 | CO32: 1F | CP32: 1C
A33: HEX | B33: =TEXT(B32,"00") -> 1E | C33: =TEXT(C32,"00") -> 1B | D33: =CONCATENATE(TEXT(D32,"00"),TEXT(E32,"00"),TEXT(F32,"00")) -> 00003D
A34: DEC | B34: =HEX2DEC(B33) -> 30 | C34: =IF(HEX2DEC(C33)>(127),HEX2DEC(C33)-256,HEX2DEC(C33)) -> 27 | D34: =HEX2DEC(D33) -> 61
B35: =$G$8 -> 2023-07-19 | C35: =($I$8+C34/24/60) -> 10:29:00 | D35: =D34/100 -> 0.61
A38: 1F 31 | B38: ID TRAMA | C38: Fecha CTD | G38: V1 | I38: V2 | K38: Cant.Sensores | L38: Ocupación SD | M38: Archivos en memoria
A39: Unidad | B39: Id de la Trama | C39: DDMMAAhhmm (Telemandos date y time) | G39: Line V | I39: Bat V | K39: AD | L39: % | M39: AD
A40: Posición byte | B40: 1 | C40: 2 | D40: 3 | E40: 4 | F40: 5 | G40: 6 | H40: 7 | I40: 8 | J40: 9 | K40: 10 | L40: 11 | M40: 12 | N40: 13
A41: 1F
A42: HEX | B42: =TEXT(B41,"00") -> 00 | C42: =CONCATENATE(TEXT(C41,"00"),TEXT(D41,"00"),TEXT(E41,"00"),TEXT(F41,"00")) -> 00000000 | G42: =CONCATENATE(TEXT(G41,"00"),TEXT(H41,"00")) -> 0000 | I42: =CONCATENATE(TEXT(I41,"00"),TEXT(J41,"00")) -> 0000 | K42: =TEXT(K41,"00") -> 00 | L42: =TEXT(L41,"00") -> 00 | M42: =TEXT(M41,"00") -> 00 | N42: =TEXT(N41,"00") -> 00
A43: DEC | B43: =HEX2DEC(B42) -> 0 | C43: =TEXT(HEX2DEC(C42),"0000000000") -> 0000000000 | G43: =HEX2DEC(G42) -> 0 | I43: =HEX2DEC(I42) -> 0 | K43: =HEX2DEC(K42) -> 0 | L43: =HEX2DEC(L42) -> 0 | M43: =HEX2DEC(M42) -> 0 | N43: =HEX2DEC(N42) -> 0
B44: =B43 -> 0 | C44: =DATE(MID(C43,5,2)+100,MID(C43,3,2),MID(C43,1,2)) -> 1999-11-30 | E44: =(RIGHT(C43,4)) -> 0000 | G44: =G43*10^-2 -> 0 | I44: =I43*10^-2 -> 0 | K44: =K43 -> 0 | L44: =L43 -> 0 | M44: =M43 -> 0 | N44: =N43 -> 0
D47: 1 | H47: 2 | L47: 3 | P47: 4 | T47: 5 | X47: 6 | AB47: 7 | AF47: 8 | AJ47: 9 | AN47: 10 | AR47: 11 | AV47: 12 | AZ47: 13 | BD47: 14 | BH47: 15 | BL47: 16 | BP47: 17 | BT47: 18 | BX47: 19 | CB47: 20
A48: 50h | B48: ADCP | D48: EWCT | F48: NSCT | H48: EWCT | J48: NSCT | L48: EWCT | N48: NSCT | P48: EWCT | R48: NSCT | T48: EWCT | V48: NSCT | X48: EWCT | Z48: NSCT | AB48: EWCT | AD48: NSCT | AF48: EWCT | AH48: NSCT | AJ48: EWCT | AL48: NSCT | AN48: EWCT | AP48: NSCT | AR48: EWCT | AT48: NSCT | AV48: EWCT | AX48: NSCT | AZ48: EWCT | BB48: NSCT | BD48: EWCT | BF48: NSCT | BH48: EWCT | BJ48: NSCT | BL48: EWCT | BN48: NSCT | BP48: EWCT | BR48: NSCT | BT48: EWCT | BV48: NSCT | BX48: EWCT | BZ48: NSCT | CB48: EWCT | CD48: NSCT | CF48: TEMP
A49: 80 | D49: Vel. Este celda | F49: Vel. Norte celda | H49: Vel. Este celda | J49: Vel. Norte celda | L49: Vel. Este celda | N49: Vel. Norte celda | P49: Vel. Este celda | R49: Vel. Norte celda | T49: Vel. Este celda | V49: Vel. Norte celda | X49: Vel. Este celda | Z49: Vel. Norte celda | AB49: Vel. Este celda | AD49: Vel. Norte celda | AF49: Vel. Este celda | AH49: Vel. Norte celda | AJ49: Vel. Este celda | AL49: Vel. Norte celda | AN49: Vel. Este celda | AP49: Vel. Norte celda | AR49: Vel. Este celda | AT49: Vel. Norte celda | AV49: Vel. Este celda | AX49: Vel. Norte celda | AZ49: Vel. Este celda | BB49: Vel. Norte celda | BD49: Vel. Este celda | BF49: Vel. Norte celda | BH49: Vel. Este celda | BJ49: Vel. Norte celda | BL49: Vel. Este celda | BN49: Vel. Norte celda | BP49: Vel. Este celda | BR49: Vel. Norte celda | BT49: Vel. Este celda | BV49: Vel. Norte celda | BX49: Vel. Este celda | BZ49: Vel. Norte celda | CB49: Vel. Este celda | CD49: Vel. Norte celda | CF49: Temperatura | CH49: Checksum
A50: Unidad | B50: Id de la Trama | C50: minutos (pos.y neg.) | D50: mm/s (pos.y neg.) | F50: mm/s (pos.y neg.) | H50: mm/s (pos.y neg.) | J50: mm/s (pos.y neg.) | L50: mm/s (pos.y neg.) | N50: mm/s (pos.y neg.) | P50: mm/s (pos.y neg.) | R50: mm/s (pos.y neg.) | T50: mm/s (pos.y neg.) | V50: mm/s (pos.y neg.) | X50: mm/s (pos.y neg.) | Z50: mm/s (pos.y neg.) | AB50: mm/s (pos.y neg.) | AD50: mm/s (pos.y neg.) | AF50: mm/s (pos.y neg.) | AH50: mm/s (pos.y neg.) | AJ50: mm/s (pos.y neg.) | AL50: mm/s (pos.y neg.) | AN50: mm/s (pos.y neg.) | AP50: mm/s (pos.y neg.) | AR50: mm/s (pos.y neg.) | AT50: mm/s (pos.y neg.) | AV50: mm/s (pos.y neg.) | AX50: mm/s (pos.y neg.) | AZ50: mm/s (pos.y neg.) | BB50: mm/s (pos.y neg.) | BD50: mm/s (pos.y neg.) | BF50: mm/s (pos.y neg.) | BH50: mm/s (pos.y neg.) | BJ50: mm/s (pos.y neg.) | BL50: mm/s (pos.y neg.) | BN50: mm/s (pos.y neg.) | BP50: mm/s (pos.y neg.) | BR50: mm/s (pos.y neg.) | BT50: mm/s (pos.y neg.) | BV50: mm/s (pos.y neg.) | BX50: mm/s (pos.y neg.) | BZ50: mm/s (pos.y neg.) | CB50: mm/s (pos.y neg.) | CD50: mm/s (pos.y neg.) | CF50: ºC x10-2 | CH50: Suma de todos los bytes
A51: Posición byte | B51: 1 | C51: 2 | D51: 3 | E51: 4 | F51: 5 | G51: 6 | H51: 7 | I51: 8 | J51: 9 | K51: 10 | L51: 11 | M51: 12 | N51: 13 | O51: 14 | P51: 15 | Q51: 16 | R51: 17 | S51: 18 | T51: 19 | U51: 20 | V51: 21 | W51: 22 | X51: 23 | Y51: 24 | Z51: 25 | AA51: 26 | AB51: 27 | AC51: 28 | AD51: 29 | AE51: 30 | AF51: 31 | AG51: 32 | AH51: 33 | AI51: 34 | AJ51: 35 | AK51: 36 | AL51: 37 | AM51: 38 | AN51: 39 | AO51: 40 | AP51: 41 | AQ51: 42 | AR51: 43 | AS51: 44 | AT51: 45 | AU51: 46 | AV51: 47 | AW51: 48 | AX51: 49 | AY51: 50 | AZ51: 51 | BA51: 52 | BB51: 53 | BC51: 54 | BD51: 55 | BE51: 56 | BF51: 57 | BG51: 58 | BH51: 59 | BI51: 60 | BJ51: 61 | BK51: 62 | BL51: 63 | BM51: 64 | BN51: 65 | BO51: 66 | BP51: 67 | BQ51: 68 | BR51: 69 | BS51: 70 | BT51: 71 | BU51: 72 | BV51: 73 | BW51: 74 | BX51: 75 | BY51: 76 | BZ51: 77 | CA51: 78 | CB51: 79 | CC51: 80 | CD51: 81 | CE51: 82 | CF51: 83 | CG51: 84
A52: 50 | B52: 50 | C52: 19 | D52: 1 | E52: 5 | F52: 1 | G52: 8E | H52: 0 | I52: FD | J52: FF | K52: C3 | L52: 0 | M52: 9 | N52: FF | O52: AD | P52: FF | Q52: C9 | R52: 1 | S52: FC | T52: 2 | U52: 30 | V52: FD | W52: D1 | X52: FF | Y52: 58 | Z52: 0 | AA52: 31 | AB52: FD | AC52: E3 | AD52: 0 | AE52: C9 | AF52: 2 | AG52: 3C | AH52: 0 | AI52: E3 | AJ52: FE | AK52: 2A | AL52: 0 | AM52: CB | AN52: FE | AO52: 92 | AP52: 1 | AQ52: 1C | AR52: 0C | AS52: 31 | AT52: 7A | AU52: 1C | AV52: 0 | AW52: B3 | AX52: 0 | AY52: 3B | AZ52: 0 | BA52: C9 | BB52: 0 | BC52: D4 | BD52: 27 | BE52: C5 | BF52: 1 | BG52: 73 | BH52: A0 | BI52: 1C | BJ52: 0 | BK52: 18 | BL52: 0 | BM52: 2 | BN52: 0 | BO52: 2 | BP52: 0 | BQ52: 2 | BR52: 0 | BS52: 2 | BT52: 1 | BU52: 0E | BV52: 0 | BW52: 50 | BX52: 0 | BY52: 70 | BZ52: 0 | CA52: 9B | CB52: 0 | CC52: A5 | CD52: 7 | CE52: 8E | CF52: 2 | CG52: A1 | CH52: 64 | CI52: 64 | CJ52: 1F | CK52: 1C
A53: HEX | B53: =TEXT(B52,"00") -> 50 | C53: =TEXT(C52,"00") -> 19 | D53: =CONCATENATE(TEXT(D52,"00"),TEXT(E52,"00")) -> 0105 | F53: =CONCATENATE(TEXT(F52,"00"),TEXT(G52,"00")) -> 018E | H53: =CONCATENATE(TEXT(H52,"00"),TEXT(I52,"00")) -> 00FD | J53: =CONCATENATE(TEXT(J52,"00"),TEXT(K52,"00")) -> FFC3 | L53: =CONCATENATE(TEXT(L52,"00"),TEXT(M52,"00")) -> 0009 | N53: =CONCATENATE(TEXT(N52,"00"),TEXT(O52,"00")) -> FFAD | P53: =CONCATENATE(TEXT(P52,"00"),TEXT(Q52,"00")) -> FFC9 | R53: =CONCATENATE(TEXT(R52,"00"),TEXT(S52,"00")) -> 01FC | T53: =CONCATENATE(TEXT(T52,"00"),TEXT(U52,"00")) -> 0230 | V53: =CONCATENATE(TEXT(V52,"00"),TEXT(W52,"00")) -> FDD1 | X53: =CONCATENATE(TEXT(X52,"00"),TEXT(Y52,"00")) -> FF58 | Z53: =CONCATENATE(TEXT(Z52,"00"),TEXT(AA52,"00")) -> 0031 | AB53: =CONCATENATE(TEXT(AB52,"00"),TEXT(AC52,"00")) -> FDE3 | AD53: =CONCATENATE(TEXT(AD52,"00"),TEXT(AE52,"00")) -> 00C9 | AF53: =CONCATENATE(TEXT(AF52,"00"),TEXT(AG52,"00")) -> 023C | AH53: =CONCATENATE(TEXT(AH52,"00"),TEXT(AI52,"00")) -> 00E3 | AJ53: =CONCATENATE(TEXT(AJ52,"00"),TEXT(AK52,"00")) -> FE2A | AL53: =CONCATENATE(TEXT(AL52,"00"),TEXT(AM52,"00")) -> 00CB | AN53: =CONCATENATE(TEXT(AN52,"00"),TEXT(AO52,"00")) -> FE92 | AP53: =CONCATENATE(TEXT(AP52,"00"),TEXT(AQ52,"00")) -> 011C | AR53: =CONCATENATE(TEXT(AR52,"00"),TEXT(AS52,"00")) -> 0C31 | AT53: =CONCATENATE(TEXT(AT52,"00"),TEXT(AU52,"00")) -> 7A1C | AV53: =CONCATENATE(TEXT(AV52,"00"),TEXT(AW52,"00")) -> 00B3 | AX53: =CONCATENATE(TEXT(AX52,"00"),TEXT(AY52,"00")) -> 003B | AZ53: =CONCATENATE(TEXT(AZ52,"00"),TEXT(BA52,"00")) -> 00C9 | BB53: =CONCATENATE(TEXT(BB52,"00"),TEXT(BC52,"00")) -> 00D4 | BD53: =CONCATENATE(TEXT(BD52,"00"),TEXT(BE52,"00")) -> 27C5 | BF53: =CONCATENATE(TEXT(BF52,"00"),TEXT(BG52,"00")) -> 0173 | BH53: =CONCATENATE(TEXT(BH52,"00"),TEXT(BI52,"00")) -> A01C | BJ53: =CONCATENATE(TEXT(BJ52,"00"),TEXT(BK52,"00")) -> 0018 | BL53: =CONCATENATE(TEXT(BL52,"00"),TEXT(BM52,"00")) -> 0002 | BN53: =CONCATENATE(TEXT(BN52,"00"),TEXT(BO52,"00")) -> 0002 | BP53: =CONCATENATE(TEXT(BP52,"00"),TEXT(BQ52,"00")) -> 0002 | BR53: =CONCATENATE(TEXT(BR52,"00"),TEXT(BS52,"00")) -> 0002 | BT53: =CONCATENATE(TEXT(BT52,"00"),TEXT(BU52,"00")) -> 010E | BV53: =CONCATENATE(TEXT(BV52,"00"),TEXT(BW52,"00")) -> 0050 | BX53: =CONCATENATE(TEXT(BX52,"00"),TEXT(BY52,"00")) -> 0070 | BZ53: =CONCATENATE(TEXT(BZ52,"00"),TEXT(CA52,"00")) -> 009B | CB53: =CONCATENATE(TEXT(CB52,"00"),TEXT(CC52,"00")) -> 00A5 | CD53: =CONCATENATE(TEXT(CD52,"00"),TEXT(CE52,"00")) -> 078E | CF53: =CONCATENATE(TEXT(CF52,"00"),TEXT(CG52,"00")) -> 02A1
A54: DEC | B54: =HEX2DEC(B53) -> 80 | C54: =IF(HEX2DEC(C53)>(127),HEX2DEC(C53)-256,HEX2DEC(C53)) -> 25 | D54: =IF(HEX2DEC(D53)>(32767),HEX2DEC(D53)-65536,HEX2DEC(D53)) -> 261 | F54: =IF(HEX2DEC(F53)>(32767),HEX2DEC(F53)-65536,HEX2DEC(F53)) -> 398 | H54: =IF(HEX2DEC(H53)>(32767),HEX2DEC(H53)-65536,HEX2DEC(H53)) -> 253 | J54: =IF(HEX2DEC(J53)>(32767),HEX2DEC(J53)-65536,HEX2DEC(J53)) -> -61 | L54: =IF(HEX2DEC(L53)>(32767),HEX2DEC(L53)-65536,HEX2DEC(L53)) -> 9 | N54: =IF(HEX2DEC(N53)>(32767),HEX2DEC(N53)-65536,HEX2DEC(N53)) -> -83 | P54: =IF(HEX2DEC(P53)>(32767),HEX2DEC(P53)-65536,HEX2DEC(P53)) -> -55 | R54: =IF(HEX2DEC(R53)>(32767),HEX2DEC(R53)-65536,HEX2DEC(R53)) -> 508 | T54: =IF(HEX2DEC(T53)>(32767),HEX2DEC(T53)-65536,HEX2DEC(T53)) -> 560 | V54: =IF(HEX2DEC(V53)>(32767),HEX2DEC(V53)-65536,HEX2DEC(V53)) -> -559 | X54: =IF(HEX2DEC(X53)>(32767),HEX2DEC(X53)-65536,HEX2DEC(X53)) -> -168 | Z54: =IF(HEX2DEC(Z53)>(32767),HEX2DEC(Z53)-65536,HEX2DEC(Z53)) -> 49 | AB54: =IF(HEX2DEC(AB53)>(32767),HEX2DEC(AB53)-65536,HEX2DEC(AB53)) -> -541 | AD54: =IF(HEX2DEC(AD53)>(32767),HEX2DEC(AD53)-65536,HEX2DEC(AD53)) -> 201 | AF54: =IF(HEX2DEC(AF53)>(32767),HEX2DEC(AF53)-65536,HEX2DEC(AF53)) -> 572 | AH54: =IF(HEX2DEC(AH53)>(32767),HEX2DEC(AH53)-65536,HEX2DEC(AH53)) -> 227 | AJ54: =IF(HEX2DEC(AJ53)>(32767),HEX2DEC(AJ53)-65536,HEX2DEC(AJ53)) -> -470 | AL54: =IF(HEX2DEC(AL53)>(32767),HEX2DEC(AL53)-65536,HEX2DEC(AL53)) -> 203 | AN54: =IF(HEX2DEC(AN53)>(32767),HEX2DEC(AN53)-65536,HEX2DEC(AN53)) -> -366 | AP54: =IF(HEX2DEC(AP53)>(32767),HEX2DEC(AP53)-65536,HEX2DEC(AP53)) -> 284 | AR54: =IF(HEX2DEC(AR53)>(32767),HEX2DEC(AR53)-65536,HEX2DEC(AR53)) -> 3121 | AT54: =IF(HEX2DEC(AT53)>(32767),HEX2DEC(AT53)-65536,HEX2DEC(AT53)) -> 31260 | AV54: =IF(HEX2DEC(AV53)>(32767),HEX2DEC(AV53)-65536,HEX2DEC(AV53)) -> 179 | AX54: =IF(HEX2DEC(AX53)>(32767),HEX2DEC(AX53)-65536,HEX2DEC(AX53)) -> 59 | AZ54: =IF(HEX2DEC(AZ53)>(32767),HEX2DEC(AZ53)-65536,HEX2DEC(AZ53)) -> 201 | BB54: =IF(HEX2DEC(BB53)>(32767),HEX2DEC(BB53)-65536,HEX2DEC(BB53)) -> 212 | BD54: =IF(HEX2DEC(BD53)>(32767),HEX2DEC(BD53)-65536,HEX2DEC(BD53)) -> 10181 | BF54: =IF(HEX2DEC(BF53)>(32767),HEX2DEC(BF53)-65536,HEX2DEC(BF53)) -> 371 | BH54: =IF(HEX2DEC(BH53)>(32767),HEX2DEC(BH53)-65536,HEX2DEC(BH53)) -> -24548 | BJ54: =IF(HEX2DEC(BJ53)>(32767),HEX2DEC(BJ53)-65536,HEX2DEC(BJ53)) -> 24 | BL54: =IF(HEX2DEC(BL53)>(32767),HEX2DEC(BL53)-65536,HEX2DEC(BL53)) -> 2 | BN54: =IF(HEX2DEC(BN53)>(32767),HEX2DEC(BN53)-65536,HEX2DEC(BN53)) -> 2 | BP54: =IF(HEX2DEC(BP53)>(32767),HEX2DEC(BP53)-65536,HEX2DEC(BP53)) -> 2 | BR54: =IF(HEX2DEC(BR53)>(32767),HEX2DEC(BR53)-65536,HEX2DEC(BR53)) -> 2 | BT54: =IF(HEX2DEC(BT53)>(32767),HEX2DEC(BT53)-65536,HEX2DEC(BT53)) -> 270 | BV54: =IF(HEX2DEC(BV53)>(32767),HEX2DEC(BV53)-65536,HEX2DEC(BV53)) -> 80 | BX54: =IF(HEX2DEC(BX53)>(32767),HEX2DEC(BX53)-65536,HEX2DEC(BX53)) -> 112 | BZ54: =IF(HEX2DEC(BZ53)>(32767),HEX2DEC(BZ53)-65536,HEX2DEC(BZ53)) -> 155 | CB54: =IF(HEX2DEC(CB53)>(32767),HEX2DEC(CB53)-65536,HEX2DEC(CB53)) -> 165 | CD54: =IF(HEX2DEC(CD53)>(32767),HEX2DEC(CD53)-65536,HEX2DEC(CD53)) -> 1934 | CF54: =IF(HEX2DEC(CF53)>(32767),HEX2DEC(CF53)-65536,HEX2DEC(CF53)) -> 673
B55: =$G$8 -> 2023-07-19 | C55: =($I$8+C54/24/60) -> 10:27:00 | D55: =(((D54^2)+(F54^2)+(H54^2))^0.5)/1000 -> 0.5390120592 | F55: =IF(AND(F54>0,D54>0),DEGREES(ATAN(ABS(D54)/ABS(F54))),(IF(AND(F54<0,D54>0),180-DEGREES(ATAN(ABS(D54)/ABS(F54))),((IF(AND(F54>0,D54<0),360-DEGREES(ATAN(ABS(D54)/ABS(F54))),180+DEGREES(ATAN(ABS(D54)/ABS(F54))))))))) -> 33.25601689 | H55: =(((H54^2)+(J54^2)+(L54^2))^0.5)/1000 -> 0.2604054531 | J55: =IF(AND(J54>0,H54>0),DEGREES(ATAN(ABS(H54)/ABS(J54))),(IF(AND(J54<0,H54>0),180-DEGREES(ATAN(ABS(H54)/ABS(J54))),((IF(AND(J54>0,H54<0),360-DEGREES(ATAN(ABS(H54)/ABS(J54))),180+DEGREES(ATAN(ABS(H54)/ABS(J54))))))))) -> 103.555675 | L55: =(((L54^2)+(N54^2)+(P54^2))^0.5)/1000 -> 0.09997499687 | N55: =IF(AND(N54>0,L54>0),DEGREES(ATAN(ABS(L54)/ABS(N54))),(IF(AND(N54<0,L54>0),180-DEGREES(ATAN(ABS(L54)/ABS(N54))),((IF(AND(N54>0,L54<0),360-DEGREES(ATAN(ABS(L54)/ABS(N54))),180+DEGREES(ATAN(ABS(L54)/ABS(N54))))))))) -> 173.811384 | P55: =(((P54^2)+(R54^2)+(T54^2))^0.5)/1000 -> 0.7580824493 | R55: =IF(AND(R54>0,P54>0),DEGREES(ATAN(ABS(P54)/ABS(R54))),(IF(AND(R54<0,P54>0),180-DEGREES(ATAN(ABS(P54)/ABS(R54))),((IF(AND(R54>0,P54<0),360-DEGREES(ATAN(ABS(P54)/ABS(R54))),180+DEGREES(ATAN(ABS(P54)/ABS(R54))))))))) -> 353.8207858 | T55: =(((T54^2)+(V54^2)+(X54^2))^0.5)/1000 -> 0.8088912164 | V55: =IF(AND(V54>0,T54>0),DEGREES(ATAN(ABS(T54)/ABS(V54))),(IF(AND(V54<0,T54>0),180-DEGREES(ATAN(ABS(T54)/ABS(V54))),((IF(AND(V54>0,T54<0),360-DEGREES(ATAN(ABS(T54)/ABS(V54))),180+DEGREES(ATAN(ABS(T54)/ABS(V54))))))))) -> 134.9487974 | X55: =(((X54^2)+(Z54^2)+(AB54^2))^0.5)/1000 -> 0.5686000352 | Z55: =IF(AND(Z54>0,X54>0),DEGREES(ATAN(ABS(X54)/ABS(Z54))),(IF(AND(Z54<0,X54>0),180-DEGREES(ATAN(ABS(X54)/ABS(Z54))),((IF(AND(Z54>0,X54<0),360-DEGREES(ATAN(ABS(X54)/ABS(Z54))),180+DEGREES(ATAN(ABS(X54)/ABS(Z54))))))))) -> 286.2602047 | AB55: =(((AB54^2)+(AD54^2)+(AF54^2))^0.5)/1000 -> 0.8125675357 | AD55: =IF(AND(AD54>0,AB54>0),DEGREES(ATAN(ABS(AB54)/ABS(AD54))),(IF(AND(AD54<0,AB54>0),180-DEGREES(ATAN(ABS(AB54)/ABS(AD54))),((IF(AND(AD54>0,AB54<0),360-DEGREES(ATAN(ABS(AB54)/ABS(AD54))),180+DEGREES(ATAN(ABS(AB54)/ABS(AD54))))))))) -> 290.3817532 | AF55: =(((AF54^2)+(AH54^2)+(AJ54^2))^0.5)/1000 -> 0.7743468215 | AH55: =IF(AND(AH54>0,AF54>0),DEGREES(ATAN(ABS(AF54)/ABS(AH54))),(IF(AND(AH54<0,AF54>0),180-DEGREES(ATAN(ABS(AF54)/ABS(AH54))),((IF(AND(AH54>0,AF54<0),360-DEGREES(ATAN(ABS(AF54)/ABS(AH54))),180+DEGREES(ATAN(ABS(AF54)/ABS(AH54))))))))) -> 68.35419122 | AJ55: =(((AJ54^2)+(AL54^2)+(AN54^2))^0.5)/1000 -> 0.6293369527 | AL55: =IF(AND(AL54>0,AJ54>0),DEGREES(ATAN(ABS(AJ54)/ABS(AL54))),(IF(AND(AL54<0,AJ54>0),180-DEGREES(ATAN(ABS(AJ54)/ABS(AL54))),((IF(AND(AL54>0,AJ54<0),360-DEGREES(ATAN(ABS(AJ54)/ABS(AL54))),180+DEGREES(ATAN(ABS(AJ54)/ABS(AL54))))))))) -> 293.360235 | AN55: =(((AN54^2)+(AP54^2)+(AR54^2))^0.5)/1000 -> 3.155194606 | AP55: =IF(AND(AP54>0,AN54>0),DEGREES(ATAN(ABS(AN54)/ABS(AP54))),(IF(AND(AP54<0,AN54>0),180-DEGREES(ATAN(ABS(AN54)/ABS(AP54))),((IF(AND(AP54>0,AN54<0),360-DEGREES(ATAN(ABS(AN54)/ABS(AP54))),180+DEGREES(ATAN(ABS(AN54)/ABS(AP54))))))))) -> 307.8098995 | AR55: =(((AR54^2)+(AT54^2)+(AV54^2))^0.5)/1000 -> 31.41592402 | AT55: =IF(AND(AT54>0,AR54>0),DEGREES(ATAN(ABS(AR54)/ABS(AT54))),(IF(AND(AT54<0,AR54>0),180-DEGREES(ATAN(ABS(AR54)/ABS(AT54))),((IF(AND(AT54>0,AR54<0),360-DEGREES(ATAN(ABS(AR54)/ABS(AT54))),180+DEGREES(ATAN(ABS(AR54)/ABS(AT54))))))))) -> 5.701519338 | AV55: =(((AV54^2)+(AX54^2)+(AZ54^2))^0.5)/1000 -> 0.2755412855 | AX55: =IF(AND(AX54>0,AV54>0),DEGREES(ATAN(ABS(AV54)/ABS(AX54))),(IF(AND(AX54<0,AV54>0),180-DEGREES(ATAN(ABS(AV54)/ABS(AX54))),((IF(AND(AX54>0,AV54<0),360-DEGREES(ATAN(ABS(AV54)/ABS(AX54))),180+DEGREES(ATAN(ABS(AV54)/ABS(AX54))))))))) -> 71.75731817 | AZ55: =(((AZ54^2)+(BB54^2)+(BD54^2))^0.5)/1000 -> 10.18519052 | BB55: =IF(AND(BB54>0,AZ54>0),DEGREES(ATAN(ABS(AZ54)/ABS(BB54))),(IF(AND(BB54<0,AZ54>0),180-DEGREES(ATAN(ABS(AZ54)/ABS(BB54))),((IF(AND(BB54>0,AZ54<0),360-DEGREES(ATAN(ABS(AZ54)/ABS(BB54))),180+DEGREES(ATAN(ABS(AZ54)/ABS(BB54))))))))) -> 43.47432299 | BD55: =(((BD54^2)+(BF54^2)+(BH54^2))^0.5)/1000 -> 26.57808695 | BF55: =IF(AND(BF54>0,BD54>0),DEGREES(ATAN(ABS(BD54)/ABS(BF54))),(IF(AND(BF54<0,BD54>0),180-DEGREES(ATAN(ABS(BD54)/ABS(BF54))),((IF(AND(BF54>0,BD54<0),360-DEGREES(ATAN(ABS(BD54)/ABS(BF54))),180+DEGREES(ATAN(ABS(BD54)/ABS(BF54))))))))) -> 87.91304069 | BH55: =(((BH54^2)+(BJ54^2)+(BL54^2))^0.5)/1000 -> 24.54801181 | BJ55: =IF(AND(BJ54>0,BH54>0),DEGREES(ATAN(ABS(BH54)/ABS(BJ54))),(IF(AND(BJ54<0,BH54>0),180-DEGREES(ATAN(ABS(BH54)/ABS(BJ54))),((IF(AND(BJ54>0,BH54<0),360-DEGREES(ATAN(ABS(BH54)/ABS(BJ54))),180+DEGREES(ATAN(ABS(BH54)/ABS(BJ54))))))))) -> 270.0560167 | BL55: =(((BL54^2)+(BN54^2)+(BP54^2))^0.5)/1000 -> 0.003464101615 | BN55: =IF(AND(BN54>0,BL54>0),DEGREES(ATAN(ABS(BL54)/ABS(BN54))),(IF(AND(BN54<0,BL54>0),180-DEGREES(ATAN(ABS(BL54)/ABS(BN54))),((IF(AND(BN54>0,BL54<0),360-DEGREES(ATAN(ABS(BL54)/ABS(BN54))),180+DEGREES(ATAN(ABS(BL54)/ABS(BN54))))))))) -> 45 | BP55: =(((BP54^2)+(BR54^2)+(BT54^2))^0.5)/1000 -> 0.2700148144 | BR55: =IF(AND(BR54>0,BP54>0),DEGREES(ATAN(ABS(BP54)/ABS(BR54))),(IF(AND(BR54<0,BP54>0),180-DEGREES(ATAN(ABS(BP54)/ABS(BR54))),((IF(AND(BR54>0,BP54<0),360-DEGREES(ATAN(ABS(BP54)/ABS(BR54))),180+DEGREES(ATAN(ABS(BP54)/ABS(BR54))))))))) -> 45 | BT55: =(((BT54^2)+(BV54^2)+(BX54^2))^0.5)/1000 -> 0.3030577503 | BV55: =IF(AND(BV54>0,BT54>0),DEGREES(ATAN(ABS(BT54)/ABS(BV54))),(IF(AND(BV54<0,BT54>0),180-DEGREES(ATAN(ABS(BT54)/ABS(BV54))),((IF(AND(BV54>0,BT54<0),360-DEGREES(ATAN(ABS(BT54)/ABS(BV54))),180+DEGREES(ATAN(ABS(BT54)/ABS(BV54))))))))) -> 73.49563862 | BX55: =(((BX54^2)+(BZ54^2)+(CB54^2))^0.5)/1000 -> 0.2525747414 | BZ55: =IF(AND(BZ54>0,BX54>0),DEGREES(ATAN(ABS(BX54)/ABS(BZ54))),(IF(AND(BZ54<0,BX54>0),180-DEGREES(ATAN(ABS(BX54)/ABS(BZ54))),((IF(AND(BZ54>0,BX54<0),360-DEGREES(ATAN(ABS(BX54)/ABS(BZ54))),180+DEGREES(ATAN(ABS(BX54)/ABS(BZ54))))))))) -> 35.85114701 | CB55: =(((CB54^2)+(CD54^2)+(CF54^2))^0.5)/1000 -> 2.054387987 | CD55: =IF(AND(CD54>0,CB54>0),DEGREES(ATAN(ABS(CB54)/ABS(CD54))),(IF(AND(CD54<0,CB54>0),180-DEGREES(ATAN(ABS(CB54)/ABS(CD54))),((IF(AND(CD54>0,CB54<0),360-DEGREES(ATAN(ABS(CB54)/ABS(CD54))),180+DEGREES(ATAN(ABS(CB54)/ABS(CD54))))))))) -> 4.876404385 | CF55: =CF54/100 -> 6.73
A58: 51h 81 | B58: ID TRAMA | C58: Fecha ADCP | G58: V1 | I58: Presion | K58: Compass heading | M58: Compass Pitch | O58: Compass Roll
A59: Unidad | B59: Id de la Trama | C59: DDMMAAhhmm (Telemando RC) | G59: Line V (Telemando BV) | I59: dBar | K59: º | M59: º | O59: º
A60: Posición byte | B60: 1 | C60: 2 | D60: 3 | E60: 4 | F60: 5 | G60: 6 | H60: 7 | I60: 8 | J60: 9 | K60: 10 | L60: 11 | M60: 12 | N60: 13 | O60: 14 | P60: 15
A61: 51
A62: HEX | B62: =TEXT(B61,"00") -> 00 | C62: =CONCATENATE(TEXT(C61,"00"),TEXT(D61,"00"),TEXT(E61,"00"),TEXT(F61,"00")) -> 00000000 | G62: =CONCATENATE(TEXT(G61,"00"),TEXT(H61,"00")) -> 0000 | I62: =CONCATENATE(TEXT(I61,"00"),TEXT(J61,"00")) -> 0000 | K62: =CONCATENATE(TEXT(K61,"00"),TEXT(L61,"00")) -> 0000 | M62: =CONCATENATE(TEXT(M61,"00"),TEXT(N61,"00")) -> 0000 | O62: =CONCATENATE(TEXT(O61,"00"),TEXT(P61,"00")) -> 0000
A63: DEC | B63: =HEX2DEC(B62) -> 0 | C63: =TEXT(HEX2DEC(C62),"0000000000") -> 0000000000 | G63: =HEX2DEC(G62) -> 0 | I63: =HEX2DEC(I62) -> 0 | K63: =IF(HEX2DEC(K62)>(32767),HEX2DEC(K62)-65536,HEX2DEC(K62)) -> 0 | M63: =IF(HEX2DEC(M62)>(32767),HEX2DEC(M62)-65536,HEX2DEC(M62)) -> 0 | O63: =IF(HEX2DEC(O62)>(32767),HEX2DEC(O62)-65536,HEX2DEC(O62)) -> 0
B64: =B63 -> 0 | C64: =DATE(MID(C63,5,2)+100,MID(C63,3,2),MID(C63,1,2)) -> 1999-11-30 | E64: =(RIGHT(C63,4)) -> 0000 | G64: =G63/1000 -> 0 | I64: =I63/1000 -> 0 | K64: =K63/10 -> 0 | M64: =M63/10 -> 0 | O64: =O63/10 -> 0
A68: A0h | B68: WAVE | D68: VQTY | F68: VMXL | H68: VH110 | J68: VAVH | L68: VHM0 | N68: VTMX | P68: VTPK | R68: VT110 | T68: VAVT | V68: VGTA | X68: VDIR | Z68: VPSP | AB68: VFL1 | AC68: VFL2
A69: 160 | B69: ID TRAMA | C69: DIF FECHA | D69: NRO DE OLAS | F69: H.MAX. | H69: HSIG/10 | J69: HSIG/3 | L69: HMED | N69: TMAX | P69: TPICO | R69: TSIG/10 | T69: TSIG/3 | V69: TMED | X69: DIR | Z69: DESV | AB69: FLAG1 | AC69: FLAG2
A70: Unidad | B70: Id de la Trama | C70: minutos (pos.y neg.) | D70: Definido en la configuración | F70: Altura Máxima cm | H70: Altura Significativa H/10 cm | J70: Altura Significativa H/3 cm | L70: Altura Media cm | N70: Período Máximo seg x 10-1 | P70: Período Pico seg x 10-1 | R70: Período Significativo H/10 seg x 10-1 | T70: Período Significativo H/3 seg x 10-1 | V70: Período Medio seg x 10-1 | X70: Dirección grados x 10-1 | Z70: Disperción grados x 10-2 | AB70: Definido en la configuración | AC70: Definido en la configuración
A71: Posición byte | B71: 1 | C71: 2 | D71: 3 | E71: 4 | F71: 5 | G71: 6 | H71: 7 | I71: 8 | J71: 9 | K71: 10 | L71: 11 | M71: 12 | N71: 13 | O71: 14 | P71: 15 | Q71: 16 | R71: 17 | S71: 18 | T71: 19 | U71: 20 | V71: 21 | W71: 22 | X71: 23 | Y71: 24 | Z71: 25 | AA71: 26 | AB71: 27 | AC71: 28
A72: A0 | B72: A0 | C72: 1C | D72: 0 | E72: 18 | F72: 0 | G72: 2 | H72: 0 | I72: 2 | J72: 0 | K72: 2 | L72: 0 | M72: 2 | N72: 1 | O72: 0E | P72: 0 | Q72: 50 | R72: 0 | S72: 70 | T72: 0 | U72: 9B | V72: 0 | W72: A5 | X72: 7 | Y72: 8E | Z72: 2 | AA72: A1 | AB72: 64 | AC72: 64 | AD72: 1F | AE72: 1C
A73: HEX | B73: =TEXT(B72,"00") -> A0 | C73: =TEXT(C72,"00") -> 1C | D73: =CONCATENATE(TEXT(D72,"00"),TEXT(E72,"00")) -> 0018 | F73: =CONCATENATE(TEXT(F72,"00"),TEXT(G72,"00")) -> 0002 | H73: =CONCATENATE(TEXT(H72,"00"),TEXT(I72,"00")) -> 0002 | J73: =CONCATENATE(TEXT(J72,"00"),TEXT(K72,"00")) -> 0002 | L73: =CONCATENATE(TEXT(L72,"00"),TEXT(M72,"00")) -> 0002 | N73: =CONCATENATE(TEXT(N72,"00"),TEXT(O72,"00")) -> 010E | P73: =CONCATENATE(TEXT(P72,"00"),TEXT(Q72,"00")) -> 0050 | R73: =CONCATENATE(TEXT(R72,"00"),TEXT(S72,"00")) -> 0070 | T73: =CONCATENATE(TEXT(T72,"00"),TEXT(U72,"00")) -> 009B | V73: =CONCATENATE(TEXT(V72,"00"),TEXT(W72,"00")) -> 00A5 | X73: =CONCATENATE(TEXT(X72,"00"),TEXT(Y72,"00")) -> 078E | Z73: =CONCATENATE(TEXT(Z72,"00"),TEXT(AA72,"00")) -> 02A1 | AB73: =TEXT(AB72,"00") -> 64 | AC73: =TEXT(AC72,"00") -> 64
A74: DEC | B74: =HEX2DEC(B73) -> 160 | C74: =IF(HEX2DEC(C73)>(127),HEX2DEC(C73)-256,HEX2DEC(C73)) -> 28 | D74: =IF(HEX2DEC(D73)>(32767),HEX2DEC(D73)-65536,HEX2DEC(D73)) -> 24 | F74: =IF(HEX2DEC(F73)>(32769),HEX2DEC(F73)-65536,HEX2DEC(F73)) -> 2 | H74: =IF(HEX2DEC(H73)>(32769),HEX2DEC(H73)-65536,HEX2DEC(H73)) -> 2 | J74: =IF(HEX2DEC(J73)>(32769),HEX2DEC(J73)-65536,HEX2DEC(J73)) -> 2 | L74: =IF(HEX2DEC(L73)>(32769),HEX2DEC(L73)-65536,HEX2DEC(L73)) -> 2 | N74: =IF(HEX2DEC(N73)>(32769),HEX2DEC(N73)-65536,HEX2DEC(N73)) -> 270 | P74: =IF(HEX2DEC(P73)>(32769),HEX2DEC(P73)-65536,HEX2DEC(P73)) -> 80 | R74: =IF(HEX2DEC(R73)>(32769),HEX2DEC(R73)-65536,HEX2DEC(R73)) -> 112 | T74: =IF(HEX2DEC(T73)>(32769),HEX2DEC(T73)-65536,HEX2DEC(T73)) -> 155 | V74: =IF(HEX2DEC(V73)>(32769),HEX2DEC(V73)-65536,HEX2DEC(V73)) -> 165 | X74: =IF(HEX2DEC(X73)>(32769),HEX2DEC(X73)-65536,HEX2DEC(X73)) -> 1934 | Z74: =IF(HEX2DEC(Z73)>(32769),HEX2DEC(Z73)-65536,HEX2DEC(Z73)) -> 673 | AB74: =HEX2DEC(AB73) -> 100 | AC74: =HEX2DEC(AC73) -> 100
B75: =$G$8 -> 2023-07-19 | C75: =($I$8+C74/24/60) -> 10:30:00
A78: A1h 161 | B78: ID TRAMA | C78: Fecha MBW3 (última ola) | G78: Ocupación SD | H78: Nro. Reinicios | I78: SBG/SD OK
A79: Unidad | B79: Id de la Trama | C79: DDMMAAhhmm | G79: % | H79: Num | I79: Estado del SBG y de la SD B0= Edo. SBG B1= Edo. SD | J79: Cantidad
A80: Valor Min. | B80: 161 | C80: 0101200000 | G80: 0 | H80: 0 | I80: 0
A81: Valor Max. | B81: 161 | C81: 3112992359 | G81: 100 | H81: 255 | I81: 3
A82: Posición trama a tx | B82: 1 | C82: =B82+B83 -> 2 | G82: =C82+C83 -> 6 | H82: =G82+G83 -> 7 | I82: =H82+H83 -> 8 | J82: =I82+I83 -> 9
A83: bytes a tx | B83: 1 | C83: 4 | G83: 1 | H83: 1 | I83: 1
A84: Ejm. completo | B84: 161 | C84: 3103221345 | G84: 61 | H84: 4 | I84: 3 | J84: 4F
A86: EJEMPLO: | B86: A1 3B EA 75 52 00 40 02 CF
A87: Unidad | B87: Id de la Trama | C87: DDMMAAhhmm | G87: % 111= no se puede mirar el % 112=no se tiene acceso a la SD (SD no presente) | H87: Num | I87: Estado del SBG y de la SD B0= Edo. SBG B1= Edo. SD
A89: Posición byte | B89: 1 | C89: 2 | D89: 3 | E89: 4 | F89: 5 | G89: 10 | H89: 11 | I89: 12 | J89: 13
A90: A1
A91: HEX | B91: =TEXT(B90,"00") -> 00 | C91: =CONCATENATE(TEXT(C90,"00"),TEXT(D90,"00"),TEXT(E90,"00"),TEXT(F90,"00")) -> 00000000 | G91: =TEXT(G90,"00") -> 00 | H91: =TEXT(H90,"00") -> 00 | I91: =TEXT(I90,"00") -> 00 | J91: =TEXT(J90,"00") -> 00
A92: DEC | B92: =HEX2DEC(B91) -> 0 | C92: =TEXT(HEX2DEC(C91),"0000000000") -> 0000000000 | G92: =HEX2DEC(G91) -> 0 | H92: =HEX2DEC(H91) -> 0 | I92: =HEX2DEC(I91) -> 0 | J92: =HEX2DEC(J91) -> 0
B93: =B92 -> 0 | C93: =DATE(MID(C92,5,2)+100,MID(C92,3,2),MID(C92,1,2)) -> 1999-11-30 | E93: =(RIGHT(C92,4)) -> 0000 | G93: =G92 -> 0 | H93: =H92 -> 0 | I93: =DEC2BIN(I92) -> 0 | J93: =J92 -> 0
A96: A2h 162 | B96: ID TRAMA | C96: Fecha GPS MBW3 | G96: Latitud | K96: Longitud | O96: Cant. Sat. | P96: PDOP
A97: Unidad | B97: Id de la Trama | C97: DDMMAAhhmm | G97: Definido en la configuración | K97: Definido en la configuración | O97: Cantidad de Satélites | P97: Calidad Posición
A98: Posición byte | B98: 1 | C98: 2 | D98: 3 | E98: 4 | F98: 5 | G98: 6 | H98: 7 | I98: 8 | J98: 9 | K98: 10 | L98: 11 | M98: 12 | N98: 13 | O98: 14 | P98: 15 | Q98: 16
A99: A2
A100: HEX | B100: =TEXT(B99,"00") -> 00 | C100: =CONCATENATE(TEXT(C99,"00"),TEXT(D99,"00"),TEXT(E99,"00"),TEXT(F99,"00")) -> 00000000 | G100: =CONCATENATE(TEXT(G99,"00"),TEXT(H99,"00"),TEXT(I99,"00"),TEXT(J99,"00")) -> 00000000 | K100: =CONCATENATE(TEXT(K99,"00"),TEXT(L99,"00"),TEXT(M99,"00"),TEXT(N99,"00")) -> 00000000 | O100: =TEXT(O99,"00") -> 00 | P100: =TEXT(P99,"00") -> 00 | Q100: =TEXT(Q99,"00") -> 00 | R100: =TEXT(R99,"00") -> 00 | S100: =TEXT(S99,"00") -> 00 | T100: =TEXT(T99,"00") -> 00
A101: DEC | B101: =HEX2DEC(B100) -> 0 | C101: =TEXT(HEX2DEC(C100),"0000000000") -> 0000000000 | G101: =TEXT(HEX2DEC(G100),"0000000000") -> 0000000000 | K101: =TEXT(HEX2DEC(K100),"0000000000") -> 0000000000 | O101: =HEX2DEC(O100) -> 0 | P101: =HEX2DEC(P100) -> 0 | Q101: =HEX2DEC(Q100) -> 0 | R101: =HEX2DEC(R100) -> 0 | S101: =HEX2DEC(S100) -> 0 | T101: =HEX2DEC(T100) -> 0
B102: =B101 -> 0 | C102: =DATE(MID(C101,5,2)+100,MID(C101,3,2),MID(C101,1,2)) -> 1999-11-30 | E102: =(RIGHT(C101,4)) -> 0000 | G102: =(IF(HEX2DEC(G100)>(2147483647),HEX2DEC(G100)-4294967296,HEX2DEC(G100)))*10^-7 -> 0 | K102: =(IF(HEX2DEC(K100)>(2147483647),HEX2DEC(K100)-4294967296,HEX2DEC(K100)))*10^-7 -> 0 | O102: =O101 -> 0 | P102: =P101 -> 0 | Q102: =Q101 -> 0 | R102: =R101 -> 0 | S102: =S101 -> 0 | T102: =T101 -> 0
G103: =TRUNC(G102,0) -> 0 | I103: =(G102-G103)*60 -> 0 | K103: =TRUNC(K102,0) -> 0 | M103: =(K102-K103)*60 -> 0
B110: EMA | D110: WDIR | F110: WSPD | H110: GDIR | J110: GSPD | L110: ATMS | N110: DRYT
A111: 7Ah 122 | B111: ID TRAMA | C111: DIF FECHA | D111: Dirección del Viento | F111: Velocidad del Viento | H111: Dirección del Viento Ráfaga | J111: Velocidad del Viento Ráfaga | L111: Presión Atmosférica | N111: Temperatura
A112: Unidad | B112: Id de la Trama | C112: minutos (pos.y neg.) | D112: º (pos) | F112: m/s x 10-2 (pos) | H112: º (pos) | J112: m/s x 10-2 (pos) | L112: hPa x 10-1 (pos) | N112: ºC x 10-1 (pos.y neg.)
A113: bytes a tx | B113: 1 | C113: 1 | D113: 2 | F113: 2 | H113: 2 | J113: 2 | L113: 2 | N113: 2
A114: Posición byte | B114: 1 | C114: 2 | D114: 3 | E114: 4 | F114: 5 | G114: 6 | H114: 7 | I114: 8 | J114: 9 | K114: 10 | L114: 11 | M114: 12 | N114: 13 | O114: 14
A115: 7A | B115: 7A | C115: 1C | D115: 0 | E115: B3 | F115: 0 | G115: 3B | H115: 0 | I115: C9 | J115: 0 | K115: D4 | L115: 27 | M115: C5 | N115: 1 | O115: 73 | P115: A0 | Q115: 1C | R115: 0 | S115: 18 | T115: 0 | U115: 2 | V115: 0 | W115: 2 | X115: 0 | Y115: 2 | Z115: 0 | AA115: 2 | AB115: 1 | AC115: 0E | AD115: 0 | AE115: 50 | AF115: 0 | AG115: 70 | AH115: 0 | AI115: 9B | AJ115: 0 | AK115: A5 | AL115: 7 | AM115: 8E | AN115: 2 | AO115: A1 | AP115: 64 | AQ115: 64 | AR115: 1F | AS115: 1C
A116: HEX | B116: =TEXT(B115,"00") -> 7A | C116: =TEXT(C115,"00") -> 1C | D116: =CONCATENATE(TEXT(D115,"00"),TEXT(E115,"00")) -> 00B3 | F116: =CONCATENATE(TEXT(F115,"00"),TEXT(G115,"00")) -> 003B | H116: =CONCATENATE(TEXT(H115,"00"),TEXT(I115,"00")) -> 00C9 | J116: =CONCATENATE(TEXT(J115,"00"),TEXT(K115,"00")) -> 00D4 | L116: =CONCATENATE(TEXT(L115,"00"),TEXT(M115,"00")) -> 27C5 | N116: =CONCATENATE(TEXT(N115,"00"),TEXT(O115,"00")) -> 0173
A117: DEC | B117: =HEX2DEC(B116) -> 122 | C117: =IF(HEX2DEC(C116)>(127),HEX2DEC(C116)-256,HEX2DEC(C116)) -> 28 | D117: =HEX2DEC(D116) -> 179 | F117: =HEX2DEC(F116) -> 59 | H117: =HEX2DEC(H116) -> 201 | J117: =HEX2DEC(J116) -> 212 | L117: =HEX2DEC(L116) -> 10181 | N117: =IF(HEX2DEC(N116)>(32767),HEX2DEC(N116)-65536,HEX2DEC(N116)) -> 371
B118: =$G$8 -> 2023-07-19 | C118: =($I$8+C117/24/60) -> 10:30:00 | D118: =D117/1 -> 179 | F118: =F117/100 -> 0.59 | H118: =H117/1 -> 201 | J118: =J117/100 -> 2.12 | L118: =L117/10 -> 1018.1 | N118: =N117/10 -> 37.1
A120: 7Bh 123 | B120: ID TRAMA | C120: Fecha GPS MBW3 | G120: Latitud | K120: Longitud | O120: Cant. Sat. | P120: PDOP | Q120: Checksum (solo cuando es un telemando individual)
A121: Unidad | B121: Id de la Trama | C121: DDMMAAhhmm | G121: Definido en la configuración | K121: Definido en la configuración | O121: Cantidad de Satélites | P121: Calidad Posición | Q121: Cantidad
A122: Posición byte | B122: 1 | C122: 2 | D122: 3 | E122: 4 | F122: 5 | G122: 6 | H122: 7 | I122: 8 | J122: 9 | K122: 10 | L122: 11 | M122: 12 | N122: 13 | O122: 14 | P122: 15 | Q122: 16
A123: 7B
A124: HEX | B124: =TEXT(B123,"00") -> 00 | C124: =CONCATENATE(TEXT(C123,"00"),TEXT(D123,"00"),TEXT(E123,"00"),TEXT(F123,"00")) -> 00000000 | G124: =CONCATENATE(TEXT(G123,"00"),TEXT(H123,"00"),TEXT(I123,"00"),TEXT(J123,"00")) -> 00000000 | K124: =CONCATENATE(TEXT(K123,"00"),TEXT(L123,"00"),TEXT(M123,"00"),TEXT(N123,"00")) -> 00000000 | O124: =TEXT(O123,"00") -> 00 | P124: =TEXT(P123,"00") -> 00 | Q124: =TEXT(Q123,"00") -> 00 | R124: =TEXT(R123,"00") -> 00 | S124: =TEXT(S123,"00") -> 00 | T124: =TEXT(T123,"00") -> 00
A125: DEC | B125: =HEX2DEC(B124) -> 0 | C125: =TEXT(HEX2DEC(C124),"0000000000") -> 0000000000 | G125: =TEXT(HEX2DEC(G124),"0000000000") -> 0000000000 | K125: =TEXT(HEX2DEC(K124),"0000000000") -> 0000000000 | O125: =HEX2DEC(O124) -> 0 | P125: =HEX2DEC(P124) -> 0 | Q125: =HEX2DEC(Q124) -> 0 | R125: =HEX2DEC(R124) -> 0 | S125: =HEX2DEC(S124) -> 0 | T125: =HEX2DEC(T124) -> 0
B126: =B125 -> 0 | C126: =DATE(MID(C125,5,2)+100,MID(C125,3,2),MID(C125,1,2)) -> 1999-11-30 | E126: =(RIGHT(C125,4)) -> 0000 | G126: =(IF(HEX2DEC(G124)>(2147483647),HEX2DEC(G124)-4294967296,HEX2DEC(G124)))*10^-7 -> 0 | K126: =(IF(HEX2DEC(K124)>(2147483647),HEX2DEC(K124)-4294967296,HEX2DEC(K124)))*10^-7 -> 0 | O126: =O125 -> 0 | P126: =P125 -> 0 | Q126: =Q125 -> 0 | R126: =R125 -> 0 | S126: =S125 -> 0 | T126: =T125 -> 0
G127: =TRUNC(G126,0) -> 0 | I127: =(G126-G127)*60 -> 0 | K127: =TRUNC(K126,0) -> 0 | M127: =(K126-K127)*60 -> 0
A131: Longitudes de tramas | J131: Longitud total | K131: =COUNTA(B5:xfd5) -> 104
A132: Nro (Dec) | B132: Nro (Hex) | C132: Longitud | D132: Trama | G132: Nro (Hex) | H132: Longitud | I132: Ubicación | J132: Trama | K132: Equipo | L132: ID Trama | M132: Celda inicio | N132: Col. de inicio | O132: Longitud | P132: Col de fin | Q132: Destino
A133: 1 | B133: =DEC2HEX(A133,2) -> 01 | D133: Tx de datos desde la estación | G133: 01 | J133: 1 | K133: =_xlfn.xlookup(L133,G133:G147,D133:D147) -> CTD Datos | L133: =M5 -> 1E | M133: =ADDRESS(5,N133) -> $M$5 | N133: =COLUMN(M5) -> 13 | O133: =_xlfn.xlookup(L133,$G$133:$G$147,$H$133:$H$147) -> 5 | P133: =O133+N133 -> 18 | Q133: =_xlfn.xlookup(L133,G133:G147,I133:I147) -> B32 | R133: =COUNTIF(L133:Q133,"#N/D") -> 0
A134: 2 | B134: =DEC2HEX(A134,2) -> 02 | D134: Telemando desde el Servidor | G134: 02 | J134: 2 | K134: =_xlfn.xlookup(L134,G134:G148,D134:D148) ->  | L134: =INDIRECT(M134) -> 50 | M134: =ADDRESS(5,P133) -> $R$5 | N134: =P133 -> 18 | O134: =_xlfn.xlookup(L134,$G$133:$G$147,$H$133:$H$147) ->  | P134: =O134+N134 ->  | Q134: =_xlfn.xlookup(L134,G134:G148,I134:I148) ->  | R134: =COUNTIF(L134:Q134,"#N/D") -> 0
A135: 3 | B135: =DEC2HEX(A135,2) -> 03 | D135: Respuesta de telemando desde la Estación | G135: 03 | J135: 3 | K135: =_xlfn.xlookup(L135,G135:G149,D135:D149) ->  | L135: =INDIRECT(M135) ->  | M135: =ADDRESS(5,P134) ->  | N135: =P134 ->  | O135: =_xlfn.xlookup(L135,$G$133:$G$147,$H$133:$H$147) ->  | P135: =O135+N135 ->  | Q135: =_xlfn.xlookup(L135,G135:G149,I135:I149) ->  | R135: =COUNTIF(L135:Q135,"#N/D") -> 0
A136: 10 | B136: =DEC2HEX(A136,2) -> 0A | C136: ='Edo.MMB03'!D6 -> 33 | D136: MMB03 Estado | G136: 0A | H136: 33 | I136: B20 | J136: 4 | K136: =_xlfn.xlookup(L136,G136:G150,D136:D150) ->  | L136: =INDIRECT(M136) ->  | M136: =ADDRESS(5,P135) ->  | N136: =P135 ->  | O136: =_xlfn.xlookup(L136,$G$133:$G$147,$H$133:$H$147) ->  | P136: =O136+N136 ->  | Q136: =_xlfn.xlookup(L136,G136:G150,I136:I150) ->  | R136: =COUNTIF(L136:Q136,"#N/D") -> 0
A137: 30 | B137: =DEC2HEX(A137,2) -> 1E | C137: ='CTD Trimeter'!D8 -> 5 | D137: CTD Datos | G137: 1E | H137: 5 | I137: B32 | J137: 5 | K137: =_xlfn.xlookup(L137,G137:G151,D137:D151) ->  | L137: =INDIRECT(M137) ->  | M137: =ADDRESS(5,P136) ->  | N137: =P136 ->  | O137: =_xlfn.xlookup(L137,$G$133:$G$147,$H$133:$H$147) ->  | P137: =O137+N137 ->  | Q137: =_xlfn.xlookup(L137,G137:G151,I137:I151) ->  | R137: =COUNTIF(L137:Q137,"#N/D") -> 0
A138: 31 | B138: =DEC2HEX(A138,2) -> 1F | C138: ='Edo.CTD'!D3 -> 12 | D138: CTD Estado | G138: 1F | H138: 12 | I138: B41 | J138: 6 | K138: =_xlfn.xlookup(L138,G138:G152,D138:D152) ->  | L138: =INDIRECT(M138) ->  | M138: =ADDRESS(5,P137) ->  | N138: =P137 ->  | O138: =_xlfn.xlookup(L138,$G$133:$G$147,$H$133:$H$147) ->  | P138: =O138+N138 ->  | Q138: =_xlfn.xlookup(L138,G138:G152,I138:I152) ->  | R138: =COUNTIF(L138:Q138,"#N/D") -> 0
A139: 80 | B139: =DEC2HEX(A139,2) -> 50 | C139: =ADCP!D17 -> 44 | D139: ADCP Datos | G139: 50 | H139: 84 | I139: B52 | J139: 7 | K139: =_xlfn.xlookup(L139,G139:G153,D139:D153) ->  | L139: =INDIRECT(M139) ->  | M139: =ADDRESS(5,P138) ->  | N139: =P138 ->  | O139: =_xlfn.xlookup(L139,$G$133:$G$147,$H$133:$H$147) ->  | P139: =O139+N139 ->  | Q139: =_xlfn.xlookup(L139,G139:G153,I139:I153) ->  | R139: =COUNTIF(L139:Q139,"#N/D") -> 0
A140: 81 | B140: =DEC2HEX(A140,2) -> 51 | C140: ='ADCP Estado'!D3 -> 15 | D140: ADCP Estado | G140: 51 | H140: 15 | I140: B61 | J140: 8 | K140: =_xlfn.xlookup(L140,G140:G154,D140:D154) ->  | L140: =INDIRECT(M140) ->  | M140: =ADDRESS(5,P139) ->  | N140: =P139 ->  | O140: =_xlfn.xlookup(L140,$G$133:$G$147,$H$133:$H$147) ->  | P140: =O140+N140 ->  | Q140: =_xlfn.xlookup(L140,G140:G154,I140:I154) ->  | R140: =COUNTIF(L140:Q140,"#N/D") -> 0
A141: 120 | B141: =DEC2HEX(A141,2) -> 78 | D141: EMA Gill Datos | G141: 78 | J141: 9 | K141: =_xlfn.xlookup(L141,G141:G155,D141:D155) ->  | L141: =INDIRECT(M141) ->  | M141: =ADDRESS(5,P140) ->  | N141: =P140 ->  | O141: =_xlfn.xlookup(L141,$G$133:$G$147,$H$133:$H$147) ->  | P141: =O141+N141 ->  | Q141: =_xlfn.xlookup(L141,G141:G155,I141:I155) ->  | R141: =COUNTIF(L141:Q141,"#N/D") -> 0
A142: 121 | B142: =DEC2HEX(A142,2) -> 79 | D142: EMA Gill Estado | G142: 79 | J142: 10 | K142: =_xlfn.xlookup(L142,G142:G156,D142:D156) ->  | L142: =INDIRECT(M142) ->  | M142: =ADDRESS(5,P141) ->  | N142: =P141 ->  | O142: =_xlfn.xlookup(L142,$G$133:$G$147,$H$133:$H$147) ->  | P142: =O142+N142 ->  | Q142: =_xlfn.xlookup(L142,G142:G156,I142:I156) ->  | R142: =COUNTIF(L142:Q142,"#N/D") -> 0
A143: 122 | B143: =DEC2HEX(A143,2) -> 7A | C143: =EMA!D8 -> 14 | D143: EMA AIRMAR Datos | G143: 7A | H143: 14 | I143: B115 | J143: 11 | K143: =_xlfn.xlookup(L143,G143:G157,D143:D157) ->  | L143: =INDIRECT(M143) ->  | M143: =ADDRESS(5,P142) ->  | N143: =P142 ->  | O143: =_xlfn.xlookup(L143,$G$133:$G$147,$H$133:$H$147) ->  | P143: =O143+N143 ->  | Q143: =_xlfn.xlookup(L143,G143:G157,I143:I157) ->  | R143: =COUNTIF(L143:Q143,"#N/D") -> 0
A144: 123 | B144: =DEC2HEX(A144,2) -> 7B | C144: ='Edo.EMA'!D3 -> 15 | D144: EMA AIRMAR Estado | G144: 7B | H144: 15 | I144: B123 | J144: 12 | K144: =_xlfn.xlookup(L144,G144:G158,D144:D158) ->  | L144: =INDIRECT(M144) ->  | M144: =ADDRESS(5,P143) ->  | N144: =P143 ->  | O144: =_xlfn.xlookup(L144,$G$133:$G$147,$H$133:$H$147) ->  | P144: =O144+N144 ->  | Q144: =_xlfn.xlookup(L144,G144:G158,I144:I158) ->  | R144: =COUNTIF(L144:Q144,"#N/D") -> 0
A145: 160 | B145: =DEC2HEX(A145,2) -> A0 | C145: =Waves!D12 -> 28 | D145: MBW3 Datos | G145: A0 | H145: 28 | I145: B72
A146: 161 | B146: =DEC2HEX(A146,2) -> A1 | C146: ='Edo.Wave'!D3 -> 8 | D146: MBW3 Estado | G146: A1 | H146: 8 | I146: B90
A147: 162 | B147: =DEC2HEX(A147,2) -> A2 | C147: ='Edo.GPS-Wave'!D3 -> 15 | D147: MBW3 GPS Estado | G147: A2 | H147: 15 | I147: B99
K149: Posición byte | L149: 1 | M149: 2 | N149: 3 | O149: 4 | P149: 5 | Q149: 6 | R149: 7
K150: 50 | L150: 50 | M150: FE | N150: 0 | O150: 0C | P150: FE | Q150: A0 | R150: FD
L151: =IF(_xlfn.xlookup($K$150,$L$133:$L$144,$R$133:$R$144)=0,INDEX(K150:R150,1,3)) -> 
L153: =INDEX(K150:R150,1,3) -> FE

Sheet Lector de tramas auto
F1: =TRANSPOSE(K131:K142) -> 145 | O1: 1 | P1: 2 | Q1: 3 | R1: 4 | S1: 5 | T1: 6 | U1: 7 | V1: 8 | W1: 9 | X1: 10 | Y1: 11 | Z1: 12
A2: 01h 1 | B2: ID TRAMA | C2: ID Estación | E2: Nro de Paquete | G2: Fecha | K2: Longitud Total de la Trama | M2: Grupo de tramas de cada Equipo | N2: Checksum | O2: =K133 -> CTD Datos | P2: =K134 ->  | Q2: =K135 ->  | R2: =K136 ->  | S2: =K137 ->  | T2: =K138 ->  | U2: =K139 ->  | V2: =K140 ->  | W2: =K141 ->  | X2: =K142 ->  | Y2: =K143 ->  | Z2: =K144 -> 
A3: Unidad | B3: Id de la Trama | C3: Id de la Estación | E3: Contador | G3: DDMMAAhhmm | K3: Longitud desde el byte 12 hasta antes del *del checksum | M3: Definido en la configuración de cada sensor | N3: Suma de todos los bytes | O3: =TRANSPOSE(T133:T144) -> 05:59:00
B4: 1 | C4: 2 | D4: 3 | E4: 4 | F4: 5 | G4: 6 | H4: 7 | I4: 8 | J4: 9 | K4: 10 | L4: 11 | M4: 12 | N4: 13 | O4: 14 | P4: 15 | Q4: 16 | R4: 17 | S4: 18 | T4: 19 | U4: 20 | V4: 21 | W4: 22 | X4: 23 | Y4: 24 | Z4: 25 | AA4: 26 | AB4: 27 | AC4: 28 | AD4: 29 | AE4: 30 | AF4: 31 | AG4: 32 | AH4: 33 | AI4: 34 | AJ4: 35 | AK4: 36 | AL4: 37 | AM4: 38 | AN4: 39 | AO4: 40 | AP4: 41 | AQ4: 42 | AR4: 43 | AS4: 44 | AT4: 45 | AU4: 46 | AV4: 47 | AW4: 48 | AX4: 49 | AY4: 50 | AZ4: 51 | BA4: 52 | BB4: 53 | BC4: 54 | BD4: 55 | BE4: 56 | BF4: 57 | BG4: 58 | BH4: 59 | BI4: 60 | BJ4: 61 | BK4: 62 | BL4: 63 | BM4: 64 | BN4: 65 | BO4: 66 | BP4: 67 | BQ4: 68 | BR4: 69 | BS4: 70 | BT4: 71 | BU4: 72 | BV4: 73 | BW4: 74 | BX4: 75 | BY4: 76 | BZ4: 77 | CA4: 78 | CB4: 79 | CC4: 80 | CD4: 81 | CE4: 82 | CF4: 83 | CG4: 84 | CH4: 85 | CI4: 86 | CJ4: 87 | CK4: 88 | CL4: 89 | CM4: 90 | CN4: 91 | CO4: 92 | CP4: 93 | CQ4: 94 | CR4: 95 | CS4: 96 | CT4: 97 | CU4: 98 | CV4: 99 | CW4: 100 | CX4: 101 | CY4: 102 | CZ4: 103 | DA4: 104 | DB4: 105 | DC4: 106 | DD4: 107 | DE4: 108 | DF4: 109 | DG4: 110 | DH4: 111 | DI4: 112 | DJ4: 113 | DK4: 114 | DL4: 115 | DM4: 116 | DN4: 117 | DO4: 118 | DP4: 119 | DQ4: 120 | DR4: 121 | DS4: 122 | DT4: 123 | DU4: 124 | DV4: 125 | DW4: 126 | DX4: 127 | DY4: 128 | DZ4: 129 | EA4: 130 | EB4: 131 | EC4: 132 | ED4: 133 | EE4: 134 | EF4: 135 | EG4: 136 | EH4: 137 | EI4: 138 | EJ4: 139 | EK4: 140 | EL4: 141 | EM4: 142 | EN4: 143 | EO4: 144 | EP4: 145 | EQ4: 146 | ER4: 147 | ES4: 148 | ET4: 149 | EU4: 150 | EV4: 151 | EW4: 152 | EX4: 153 | EY4: 154 | EZ4: 155 | FA4: 156 | FB4: 157 | FC4: 158 | FD4: 159 | FE4: 160 | FF4: 161 | FG4: 162 | FH4: 163 | FI4: 164 | FJ4: 165 | FK4: 166 | FL4: 167 | FM4: 168 | FN4: 169 | FO4: 170 | FP4: 171 | FQ4: 172 | FR4: 173 | FS4: 174 | FT4: 175 | FU4: 176 | FV4: 177 | FW4: 178 | FX4: 179 | FY4: 180 | FZ4: 181 | GA4: 182 | GB4: 183 | GC4: 184 | GD4: 185 | GE4: 186 | GF4: 187 | GG4: 188 | GH4: 189 | GI4: 190 | GJ4: 191 | GK4: 192 | GL4: 193 | GM4: 194 | GN4: 195 | GO4: 196 | GP4: 197 | GQ4: 198 | GR4: 199 | GS4: 200 | GT4: 201 | GU4: 202 | GV4: 203 | GW4: 204 | GX4: 205 | GY4: 206 | GZ4: 207 | HA4: 208 | HB4: 209 | HC4: 210 | HD4: 211 | HE4: 212 | HF4: 213 | HG4: 214 | HH4: 215 | HI4: 216 | HJ4: 217 | HK4: 218 | HL4: 219 | HM4: 220 | HN4: 221 | HO4: 222 | HP4: 223 | HQ4: 224 | HR4: 225 | HS4: 226 | HT4: 227 | HU4: 228 | HV4: 229 | HW4: 230 | HX4: 231 | HY4: 232 | HZ4: 233 | IA4: 234 | IB4: 235 | IC4: 236 | ID4: 237 | IE4: 238 | IF4: 239 | IG4: 240 | IH4: 241 | II4: 242 | IJ4: 243 | IK4: 244 | IL4: 245 | IM4: 246 | IN4: 247 | IO4: 248 | IP4: 249 | IQ4: 250 | IR4: 251 | IS4: 252 | IT4: 253 | IU4: 254 | IV4: 255 | IW4: 256 | IX4: 257 | IY4: 258 | IZ4: 259 | JA4: 260 | JB4: 261 | JC4: 262 | JD4: 263 | JE4: 264 | JF4: 265 | JG4: 266 | JH4: 267 | JI4: 268 | JJ4: 269 | JK4: 270 | JL4: 271 | JM4: 272 | JN4: 273 | JO4: 274 | JP4: 275 | JQ4: 276 | JR4: 277 | JS4: 278 | JT4: 279 | JU4: 280 | JV4: 281 | JW4: 282 | JX4: 283 | JY4: 284 | JZ4: 285 | KA4: 286 | KB4: 287 | KC4: 288 | KD4: 289 | KE4: 290 | KF4: 291 | KG4: 292 | KH4: 293 | KI4: 294 | KJ4: 295 | KK4: 296 | KL4: 297 | KM4: 298
A5: 01 | B5: 1 | C5: 0 | D5: 5 | E5: 0 | F5: 24 | G5: 77 | H5: A3 | I5: E8 | J5: 44 | K5: 0 | L5: 90 | M5: 1E | N5: 1B | O5: 0 | P5: 0 | Q5: 0C | R5: 50 | S5: 1B | T5: 1 | U5: 79 | V5: 0 | W5: FF | X5: 1 | Y5: 56 | Z5: FF | AA5: C0 | AB5: 2 | AC5: D9 | AD5: FE | AE5: 74 | AF5: FE | AG5: 2B | AH5: FB | AI5: AA | AJ5: FF | AK5: 82 | AL5: FE | AM5: 8D | AN5: FF | AO5: F9 | AP5: FE | AQ5: B8 | AR5: 0 | AS5: 53 | AT5: FE | AU5: B0 | AV5: 0 | AW5: 8F | AX5: 0 | AY5: 56 | AZ5: FE | BA5: E6 | BB5: FE | BC5: C8 | BD5: 1 | BE5: 70 | BF5: FD | BG5: 18 | BH5: 0 | BI5: 1D | BJ5: FF | BK5: AC | BL5: 0 | BM5: 6 | BN5: FF | BO5: 0 | BP5: FF | BQ5: FA | BR5: FD | BS5: 55 | BT5: FF | BU5: 75 | BV5: FE | BW5: 8 | BX5: 1 | BY5: BE | BZ5: FE | CA5: 8A | CB5: 2 | CC5: C2 | CD5: FD | CE5: AB | CF5: 0 | CG5: D9 | CH5: FC | CI5: 94 | CJ5: 1 | CK5: 69 | CL5: FE | CM5: 45 | CN5: 2 | CO5: 83 | CP5: FD | CQ5: 8C | CR5: 1 | CS5: 5 | CT5: FD | CU5: 7B | CV5: 0B | CW5: 2D | CX5: 7A | CY5: 1C | CZ5: 0 | DA5: 8D | DB5: 0 | DC5: 16 | DD5: 0 | DE5: 98 | DF5: 0 | DG5: 2E | DH5: 27 | DI5: B3 | DJ5: 1 | DK5: 29 | DL5: A0 | DM5: 1C | DN5: 0 | DO5: 15 | DP5: 0 | DQ5: 2 | DR5: 0 | DS5: 2 | DT5: 0 | DU5: 2 | DV5: 0 | DW5: 2 | DX5: 1 | DY5: 21 | DZ5: 1 | EA5: 0 | EB5: 0 | EC5: 8E | ED5: 0 | EE5: 98 | EF5: 0 | EG5: AE | EH5: 0C | EI5: D5 | EJ5: 2 | EK5: C0 | EL5: 64 | EM5: 64 | EN5: 38 | EO5: 87 | EP5: <CR><LF>
A6: HEX | B6: =TEXT(B5,"00") -> 01 | C6: =CONCATENATE(TEXT(C5,"00"),TEXT(D5,"00")) -> 0005 | E6: =CONCATENATE(TEXT(E5,"00"),TEXT(F5,"00")) -> 0024 | G6: =CONCATENATE(TEXT(G5,"00"),TEXT(H5,"00"),TEXT(I5,"00"),TEXT(J5,"00")) -> 77A3E844 | K6: =CONCATENATE(TEXT(K5,"00"),TEXT(L5,"00")) -> 0090 | M6: =TEXT(M5,"00") -> 1E | N6: =TEXT(N5,"00") -> 1B | O6: =CONCATENATE(O5,P5) -> 00 | Q6: =CONCATENATE(Q5,R5) -> 0C50 | S6: =CONCATENATE(S5,T5) -> 1B1 | U6: =CONCATENATE(U5,V5) -> 790 | W6: =CONCATENATE(W5,X5) -> FF1
A7: DEC | B7: =HEX2DEC(B6) -> 1 | C7: =HEX2DEC(C6) -> 5 | E7: =HEX2DEC(E6) -> 36 | G7: =TEXT(HEX2DEC(G6),"0000000000") -> 2007230532 | K7: =HEX2DEC(K6) -> 144 | M7: =HEX2DEC(M6) -> 30 | N7: =HEX2DEC(N6) -> 27 | O7: =HEX2DEC(O6) -> 0 | Q7: =HEX2DEC(Q6) -> 3152 | S7: =HEX2DEC(S6) -> 433 | U7: =HEX2DEC(U6) -> 1936 | W7: =HEX2DEC(W6) -> 4081
B8: =B7 -> 1 | C8: =C7 -> 5 | E8: =E7 -> 36 | G8: =DATE(MID(G7,5,2)+100,MID(G7,3,2),MID(G7,1,2)) -> 2023-07-20 | I8: =TIME(LEFT(RIGHT(G7,4),2),RIGHT(RIGHT(G7,4),2),) -> 05:32:00 | K8: =K7 -> 144 | M8: =M7 -> 30 | N8: =N7 -> 27 | O8: =O7 -> 0 | Q8: =Q7 -> 3152 | S8: =S7 -> 433 | U8: =U7 -> 1936 | W8: =W7 -> 4081
A12: 0Ah 10 | B12: MMB03 ESTADO | G12: Volt.Batería | I12: V1 | K12: V2 | M12: V3 | O12: I.Total | Q12: Alarmas | T12: Estado de las Entradas | V12: Estado Sinc | X12: Memoria | Y12: Latitud | AC12: Longitud | AG12: Radio de Borneo | AI12: Checksum (solo cuando es un telemando individual)
A13: Unidad | B13: Id de la Trama | C13: DDMMAAhhmm | G13: Definido en la configuración | I13: Definido en la configuración | K13: Definido en la configuración | M13: Definido en la configuración | O13: Definido en la configuración | Q13: B0=Bat. Baja B1=Tensión V1 B2=Tensión V2 B3=Tensión V3 B4=Corriente I B5=Intrusión B6=MFGPS B7=Impacto Leve | R13: B8=Impacto Grave B9=COM1 MTX B10=COM2 CTD B11=COM3 MBW3 B12=COM4 EMA B13=COM5 B14=COM6 ADCP B15=COM7 | S13: B16=COM8 B17=COM9 B18=COM10 B19=Offposition B20= B21= B22= B23= | T13: B0 =Ent.ext.2 (Edo. MF12) 0= Alarma 1= Vivo B1 =Ent.ext. 1 (Día/Noc.MF12) 0= Noche 1= Día B2 =Ent.ext.3 B3 =Ent.ext.4 B4 =Ent.ext.5 | U13: B5 =Ent.ext.6 B6 =Ent.ext.7 B7 =Ent.ext.8 B8 =Ent.ext.9 B9 =Ent.ext.10 B10 =Ent.ext.11 B11 =Ent.ext.12 B12 =Ent.ext.13 MMB viva B13 =Ent.ext.14 B14 =Ent.ext.15 B15 =Ent.ext.16 | V13: Byte 21= Modo sincronizacion: 0 =No sincronizada 1 =Sincr. por Waves 2 =Sincr. por MFSINCLOC 3 =Sincr. por Telemando 4 =Sincr. por EMA 5 =Sincr. por AIS Byte 22=Enable/Disable Intrusion (1= Enable / 0= Disable) | X13: % SD Usada (0-100) Si no hay tarjeta =255 | Y13: Definido en la configuración | AC13: Definido en la configuración | AG13: Definido en la configuración | AI13: Cantidad
A14: Valor Min. | B14: 10 | C14: 0101200000 | G14: 0 | I14: 0 | K14: 0 | M14: 0 | O14: 0 | Q14: 0 | T14: 0 | V14: 0 | X14: 0 | Y14: -900000000 | AC14: -1799999999 | AG14: 0
A15: Valor Max. | B15: 29 | C15: 3112992359 | G15: 65535 | I15: 65535 | K15: 65535 | M15: 65535 | O15: 65535 | Q15: 65535 | T15: 65535 | V15: 65535 | X15: 65535 | Y15: 900000000 | AC15: 1800000000 | AG15: 65534
A16: Posición trama a tx | B16: 1 | C16: =B16+B17 -> 2 | G16: =C16+C17 -> 6 | I16: =G17+G16 -> 8 | K16: =I17+I16 -> 10 | M16: =K17+K16 -> 12 | O16: =M17+M16 -> 14 | Q16: =O17+O16 -> 16 | T16: =Q17+Q16 -> 19 | V16: =T17+T16 -> 21 | X16: =V17+V16 -> 23 | Y16: =X16+X17 -> 24 | AC16: =Y17+Y16 -> 28 | AG16: =AC16+AC17 -> 32 | AI16: =AG16+AG17 -> 34
A17: bytes a tx | B17: 1 | C17: 4 | G17: 2 | I17: 2 | K17: 2 | M17: 2 | O17: 2 | Q17: 3 | T17: 2 | V17: 2 | X17: 1 | Y17: 4 | AC17: 4 | AG17: 2
A18: Ejm. completo | B18: 10 | C18: 3103221345 | G18: 1235 | I18: 1244 | K18: 1253 | M18: 1262 | O18: 1234 | Q18: =Q24 ->  | T18: =T24 ->  | X18: 99 | Y18: 4587765432 | AC18: -15612345678 | AG18: 1234 | AI18: 4F
A19: Posición byte | B19: 1 | C19: 2 | D19: 3 | E19: 4 | F19: 5 | G19: 6 | H19: 7 | I19: 8 | J19: 9 | K19: 10 | L19: 11 | M19: 12 | N19: 13 | O19: 14 | P19: 15 | Q19: 16 | R19: 17 | S19: 18 | T19: 19 | U19: 20 | V19: 21 | W19: 22 | X19: 23 | Y19: 24 | Z19: 25 | AA19: 26 | AB19: 27 | AC19: 28 | AD19: 29 | AE19: 30 | AF19: 31 | AG19: 32 | AH19: 33 | AI19: 34
A20: 0A | B20: =IF(_xlfn.xlookup($A20,$L$133:$L$144,$R$133:$R$144)=0,INDEX($A$5:$ZZ$5,1,_xlfn.xlookup($A20,$L$133:$L$144,$N$133:$N$144)+B19-1)) ->  | C20: =IF(_xlfn.xlookup($A20,$L$133:$L$144,$R$133:$R$144)=0,INDEX($A$5:$ZZ$5,1,_xlfn.xlookup($A20,$L$133:$L$144,$N$133:$N$144)+C19-1)) ->  | D20: =IF(_xlfn.xlookup($A20,$L$133:$L$144,$R$133:$R$144)=0,INDEX($A$5:$ZZ$5,1,_xlfn.xlookup($A20,$L$133:$L$144,$N$133:$N$144)+D19-1)) ->  | E20: =IF(_xlfn.xlookup($A20,$L$133:$L$144,$R$133:$R$144)=0,INDEX($A$5:$ZZ$5,1,_xlfn.xlookup($A20,$L$133:$L$144,$N$133:$N$144)+E19-1)) ->  | F20: =IF(_xlfn.xlookup($A20,$L$133:$L$144,$R$133:$R$144)=0,INDEX($A$5:$ZZ$5,1,_xlfn.xlookup($A20,$L$133:$L$144,$N$133:$N$144)+F19-1)) ->  | G20: =IF(_xlfn.xlookup($A20,$L$133:$L$144,$R$133:$R$144)=0,INDEX($A$5:$ZZ$5,1,_xlfn.xlookup($A20,$L$133:$L$144,$N$133:$N$144)+G19-1)) ->  | H20: =IF(_xlfn.xlookup($A20,$L$133:$L$144,$R$133:$R$144)=0,INDEX($A$5:$ZZ$5,1,_xlfn.xlookup($A20,$L$133:$L$144,$N$133:$N$144)+H19-1)) ->  | I20: =IF(_xlfn.xlookup($A20,$L$133:$L$144,$R$133:$R$144)=0,INDEX($A$5:$ZZ$5,1,_xlfn.xlookup($A20,$L$133:$L$144,$N$133:$N$144)+I19-1)) ->  | J20: =IF(_xlfn.xlookup($A20,$L$133:$L$144,$R$133:$R$144)=0,INDEX($A$5:$ZZ$5,1,_xlfn.xlookup($A20,$L$133:$L$144,$N$133:$N$144)+J19-1)) ->  | K20: =IF(_xlfn.xlookup($A20,$L$133:$L$144,$R$133:$R$144)=0,INDEX($A$5:$ZZ$5,1,_xlfn.xlookup($A20,$L$133:$L$144,$N$133:$N$144)+K19-1)) ->  | L20: =IF(_xlfn.xlookup($A20,$L$133:$L$144,$R$133:$R$144)=0,INDEX($A$5:$ZZ$5,1,_xlfn.xlookup($A20,$L$133:$L$144,$N$133:$N$144)+L19-1)) ->  | M20: =IF(_xlfn.xlookup($A20,$L$133:$L$144,$R$133:$R$144)=0,INDEX($A$5:$ZZ$5,1,_xlfn.xlookup($A20,$L$133:$L$144,$N$133:$N$144)+M19-1)) ->  | N20: =IF(_xlfn.xlookup($A20,$L$133:$L$144,$R$133:$R$144)=0,INDEX($A$5:$ZZ$5,1,_xlfn.xlookup($A20,$L$133:$L$144,$N$133:$N$144)+N19-1)) ->  | O20: =IF(_xlfn.xlookup($A20,$L$133:$L$144,$R$133:$R$144)=0,INDEX($A$5:$ZZ$5,1,_xlfn.xlookup($A20,$L$133:$L$144,$N$133:$N$144)+O19-1)) ->  | P20: =IF(_xlfn.xlookup($A20,$L$133:$L$144,$R$133:$R$144)=0,INDEX($A$5:$ZZ$5,1,_xlfn.xlookup($A20,$L$133:$L$144,$N$133:$N$144)+P19-1)) ->  | Q20: =IF(_xlfn.xlookup($A20,$L$133:$L$144,$R$133:$R$144)=0,INDEX($A$5:$ZZ$5,1,_xlfn.xlookup($A20,$L$133:$L$144,$N$133:$N$144)+Q19-1)) ->  | R20: =IF(_xlfn.xlookup($A20,$L$133:$L$144,$R$133:$R$144)=0,INDEX($A$5:$ZZ$5,1,_xlfn.xlookup($A20,$L$133:$L$144,$N$133:$N$144)+R19-1)) ->  | S20: =IF(_xlfn.xlookup($A20,$L$133:$L$144,$R$133:$R$144)=0,INDEX($A$5:$ZZ$5,1,_xlfn.xlookup($A20,$L$133:$L$144,$N$133:$N$144)+S19-1)) ->  | T20: =IF(_xlfn.xlookup($A20,$L$133:$L$144,$R$133:$R$144)=0,INDEX($A$5:$ZZ$5,1,_xlfn.xlookup($A20,$L$133:$L$144,$N$133:$N$144)+T19-1)) ->  | U20: =IF(_xlfn.xlookup($A20,$L$133:$L$144,$R$133:$R$144)=0,INDEX($A$5:$ZZ$5,1,_xlfn.xlookup($A20,$L$133:$L$144,$N$133:$N$144)+U19-1)) ->  | V20: =IF(_xlfn.xlookup($A20,$L$133:$L$144,$R$133:$R$144)=0,INDEX($A$5:$ZZ$5,1,_xlfn.xlookup($A20,$L$133:$L$144,$N$133:$N$144)+V19-1)) ->  | W20: =IF(_xlfn.xlookup($A20,$L$133:$L$144,$R$133:$R$144)=0,INDEX($A$5:$ZZ$5,1,_xlfn.xlookup($A20,$L$133:$L$144,$N$133:$N$144)+W19-1)) ->  | X20: =IF(_xlfn.xlookup($A20,$L$133:$L$144,$R$133:$R$144)=0,INDEX($A$5:$ZZ$5,1,_xlfn.xlookup($A20,$L$133:$L$144,$N$133:$N$144)+X19-1)) ->  | Y20: =IF(_xlfn.xlookup($A20,$L$133:$L$144,$R$133:$R$144)=0,INDEX($A$5:$ZZ$5,1,_xlfn.xlookup($A20,$L$133:$L$144,$N$133:$N$144)+Y19-1)) ->  | Z20: =IF(_xlfn.xlookup($A20,$L$133:$L$144,$R$133:$R$144)=0,INDEX($A$5:$ZZ$5,1,_xlfn.xlookup($A20,$L$133:$L$144,$N$133:$N$144)+Z19-1)) ->  | AA20: =IF(_xlfn.xlookup($A20,$L$133:$L$144,$R$133:$R$144)=0,INDEX($A$5:$ZZ$5,1,_xlfn.xlookup($A20,$L$133:$L$144,$N$133:$N$144)+AA19-1)) ->  | AB20: =IF(_xlfn.xlookup($A20,$L$133:$L$144,$R$133:$R$144)=0,INDEX($A$5:$ZZ$5,1,_xlfn.xlookup($A20,$L$133:$L$144,$N$133:$N$144)+AB19-1)) ->  | AC20: =IF(_xlfn.xlookup($A20,$L$133:$L$144,$R$133:$R$144)=0,INDEX($A$5:$ZZ$5,1,_xlfn.xlookup($A20,$L$133:$L$144,$N$133:$N$144)+AC19-1)) ->  | AD20: =IF(_xlfn.xlookup($A20,$L$133:$L$144,$R$133:$R$144)=0,INDEX($A$5:$ZZ$5,1,_xlfn.xlookup($A20,$L$133:$L$144,$N$133:$N$144)+AD19-1)) ->  | AE20: =IF(_xlfn.xlookup($A20,$L$133:$L$144,$R$133:$R$144)=0,INDEX($A$5:$ZZ$5,1,_xlfn.xlookup($A20,$L$133:$L$144,$N$133:$N$144)+AE19-1)) ->  | AF20: =IF(_xlfn.xlookup($A20,$L$133:$L$144,$R$133:$R$144)=0,INDEX($A$5:$ZZ$5,1,_xlfn.xlookup($A20,$L$133:$L$144,$N$133:$N$144)+AF19-1)) ->  | AG20: =IF(_xlfn.xlookup($A20,$L$133:$L$144,$R$133:$R$144)=0,INDEX($A$5:$ZZ$5,1,_xlfn.xlookup($A20,$L$133:$L$144,$N$133:$N$144)+AG19-1)) ->  | AH20: =IF(_xlfn.xlookup($A20,$L$133:$L$144,$R$133:$R$144)=0,INDEX($A$5:$ZZ$5,1,_xlfn.xlookup($A20,$L$133:$L$144,$N$133:$N$144)+AH19-1)) -> 
A21: HEX | B21: =TEXT(B20,"00") ->  | C21: =CONCATENATE(TEXT(C20,"00"),TEXT(D20,"00"),TEXT(E20,"00"),TEXT(F20,"00")) ->  | G21: =CONCATENATE(TEXT(G20,"00"),TEXT(H20,"00")) ->  | I21: =CONCATENATE(TEXT(I20,"00"),TEXT(J20,"00")) ->  | K21: =CONCATENATE(TEXT(K20,"00"),TEXT(L20,"00")) ->  | M21: =CONCATENATE(TEXT(M20,"00"),TEXT(N20,"00")) ->  | O21: =CONCATENATE(TEXT(O20,"00"),TEXT(P20,"00")) ->  | Q21: =CONCATENATE(TEXT(Q20,"00"),TEXT(R20,"00"),TEXT(S20,"00")) ->  | T21: =CONCATENATE(TEXT(T20,"00"),TEXT(U20,"00")) ->  | V21: =CONCATENATE(TEXT(V20,"00"),TEXT(W20,"00")) ->  | X21: =TEXT(X20,"00") ->  | Y21: =CONCATENATE(TEXT(Y20,"00"),TEXT(Z20,"00"),TEXT(AA20,"00"),TEXT(AB20,"00")) ->  | AC21: =CONCATENATE(TEXT(AC20,"00"),TEXT(AD20,"00"),TEXT(AE20,"00"),TEXT(AF20,"00")) ->  | AG21: =CONCATENATE(TEXT(AG20,"00"),TEXT(AH20,"00")) -> 
A22: DEC | B22: =HEX2DEC(B21) ->  | C22: =TEXT(HEX2DEC(C21),"0000000000") ->  | G22: =HEX2DEC(G21) ->  | I22: =IF(HEX2DEC(I21)>(32769),HEX2DEC(I21)-65536,HEX2DEC(I21)) ->  | K22: =IF(HEX2DEC(K21)>(32769),HEX2DEC(K21)-65536,HEX2DEC(K21)) ->  | M22: =IF(HEX2DEC(M21)>(32769),HEX2DEC(M21)-65536,HEX2DEC(M21)) ->  | O22: =IF(HEX2DEC(O21)>(32769),HEX2DEC(O21)-65536,HEX2DEC(O21)) ->  | Q22: =HEX2DEC(Q21) ->  | T22: =IF(HEX2DEC(T21)>(32769),HEX2DEC(T21)-65536,HEX2DEC(T21)) ->  | V22: =IF(HEX2DEC(V21)>(32769),HEX2DEC(V21)-65536,HEX2DEC(V21)) ->  | X22: =HEX2DEC(X21) ->  | Y22: =(IF(HEX2DEC(Y21)>(2147483647),HEX2DEC(Y21)-4294967296,HEX2DEC(Y21))) ->  | AC22: =(IF(HEX2DEC(AC21)>(2147483647),HEX2DEC(AC21)-4294967296,HEX2DEC(AC21))) ->  | AG22: =IF(HEX2DEC(AG21)>(32767),HEX2DEC(AG21)-65536,HEX2DEC(AG21)) -> 
B23: =B22 ->  | C23: =DATE(MID(C22,5,2)+100,MID(C22,3,2),MID(C22,1,2)) ->  | E23: =(RIGHT(C22,4)) ->  | G23: =G22/100 ->  | I23: =I22/100 ->  | K23: =K22/100 ->  | M23: =M22/100 ->  | O23: =O22/100 ->  | X23: =X22 ->  | Y23: =(IF(HEX2DEC(Y21)>(2147483647),HEX2DEC(Y21)-4294967296,HEX2DEC(Y21)))*10^-7 ->  | AC23: =(IF(HEX2DEC(AC21)>(2147483647),HEX2DEC(AC21)-4294967296,HEX2DEC(AC21)))*10^-7 ->  | AG23: =AG22 -> 
Q24: =TEXT(DEC2BIN(QUOTIENT(Q22,256^2),8)&DEC2BIN(QUOTIENT(MOD(Q22,256^2),256),8)&DEC2BIN(MOD(Q22,256),8),"00000000 00000000 00000000") ->  | T24: =TEXT(DEC2BIN(T22/256,8)&DEC2BIN(MOD(T22,256),8),"00000000 00000000") ->  | Y24: =TRUNC(Y23,0) ->  | AA24: =(Y23-Y24)*60 ->  | AC24: =TRUNC(AC23,0) ->  | AE24: =(AC23-AC24)*60 -> 
A28: 1Eh | B28: CTD (N/A) | D28: TURB
A29: 30
A30: Unidad | B30: Id de la Trama | C30: minutos (pos.y neg.) | D30: Turbidez NTU
A31: Posición byte | B31: 1 | C31: 2 | D31: 3 | E31: 4 | F31: 5
A32: 1E | B32: =IF(_xlfn.xlookup($A32,$L$133:$L$144,$R$133:$R$144)=0,INDEX($A$5:$ZZ$5,1,_xlfn.xlookup($A32,$L$133:$L$144,$N$133:$N$144)+B31-1)) ->  | C32: =IF(_xlfn.xlookup($A32,$L$133:$L$144,$R$133:$R$144)=0,INDEX($A$5:$ZZ$5,1,_xlfn.xlookup($A32,$L$133:$L$144,$N$133:$N$144)+C31-1)) ->  | D32: =IF(_xlfn.xlookup($A32,$L$133:$L$144,$R$133:$R$144)=0,INDEX($A$5:$ZZ$5,1,_xlfn.xlookup($A32,$L$133:$L$144,$N$133:$N$144)+D31-1)) ->  | E32: =IF(_xlfn.xlookup($A32,$L$133:$L$144,$R$133:$R$144)=0,INDEX($A$5:$ZZ$5,1,_xlfn.xlookup($A32,$L$133:$L$144,$N$133:$N$144)+E31-1)) ->  | F32: =IF(_xlfn.xlookup($A32,$L$133:$L$144,$R$133:$R$144)=0,INDEX($A$5:$ZZ$5,1,_xlfn.xlookup($A32,$L$133:$L$144,$N$133:$N$144)+F31-1)) -> 
A33: HEX | B33: =TEXT(B32,"00") ->  | C33: =TEXT(C32,"00") ->  | D33: =CONCATENATE(TEXT(D32,"00"),TEXT(E32,"00"),TEXT(F32,"00")) -> 
A34: DEC | B34: =HEX2DEC(B33) ->  | C34: =IF(HEX2DEC(C33)>(127),HEX2DEC(C33)-256,HEX2DEC(C33)) ->  | D34: =HEX2DEC(D33) -> 
B35: =$G$8 -> 2023-07-20 | C35: =($I$8+C34/24/60) ->  | D35: =D34/100 -> 
A38: 1F 31 | B38: ID TRAMA | C38: Fecha CTD | G38: V1 | I38: V2 | K38: Cant.Sensores | L38: Ocupación SD | M38: Archivos en memoria
A39: Unidad | B39: Id de la Trama | C39: DDMMAAhhmm (Telemandos date y time) | G39: Line V | I39: Bat V | K39: AD | L39: % | M39: AD
A40: Posición byte | B40: 1 | C40: 2 | D40: 3 | E40: 4 | F40: 5 | G40: 6 | H40: 7 | I40: 8 | J40: 9 | K40: 10 | L40: 11 | M40: 12 | N40: 13
A41: 1F | B41: =IF(_xlfn.xlookup($A41,$L$133:$L$144,$R$133:$R$144)=0,INDEX($A$5:$ZZ$5,1,_xlfn.xlookup($A41,$L$133:$L$144,$N$133:$N$144)+B40-1)) ->  | C41: =IF(_xlfn.xlookup($A41,$L$133:$L$144,$R$133:$R$144)=0,INDEX($A$5:$ZZ$5,1,_xlfn.xlookup($A41,$L$133:$L$144,$N$133:$N$144)+C40-1)) ->  | D41: =IF(_xlfn.xlookup($A41,$L$133:$L$144,$R$133:$R$144)=0,INDEX($A$5:$ZZ$5,1,_xlfn.xlookup($A41,$L$133:$L$144,$N$133:$N$144)+D40-1)) ->  | E41: =IF(_xlfn.xlookup($A41,$L$133:$L$144,$R$133:$R$144)=0,INDEX($A$5:$ZZ$5,1,_xlfn.xlookup($A41,$L$133:$L$144,$N$133:$N$144)+E40-1)) ->  | F41: =IF(_xlfn.xlookup($A41,$L$133:$L$144,$R$133:$R$144)=0,INDEX($A$5:$ZZ$5,1,_xlfn.xlookup($A41,$L$133:$L$144,$N$133:$N$144)+F40-1)) ->  | G41: =IF(_xlfn.xlookup($A41,$L$133:$L$144,$R$133:$R$144)=0,INDEX($A$5:$ZZ$5,1,_xlfn.xlookup($A41,$L$133:$L$144,$N$133:$N$144)+G40-1)) ->  | H41: =IF(_xlfn.xlookup($A41,$L$133:$L$144,$R$133:$R$144)=0,INDEX($A$5:$ZZ$5,1,_xlfn.xlookup($A41,$L$133:$L$144,$N$133:$N$144)+H40-1)) ->  | I41: =IF(_xlfn.xlookup($A41,$L$133:$L$144,$R$133:$R$144)=0,INDEX($A$5:$ZZ$5,1,_xlfn.xlookup($A41,$L$133:$L$144,$N$133:$N$144)+I40-1)) ->  | J41: =IF(_xlfn.xlookup($A41,$L$133:$L$144,$R$133:$R$144)=0,INDEX($A$5:$ZZ$5,1,_xlfn.xlookup($A41,$L$133:$L$144,$N$133:$N$144)+J40-1)) ->  | K41: =IF(_xlfn.xlookup($A41,$L$133:$L$144,$R$133:$R$144)=0,INDEX($A$5:$ZZ$5,1,_xlfn.xlookup($A41,$L$133:$L$144,$N$133:$N$144)+K40-1)) ->  | L41: =IF(_xlfn.xlookup($A41,$L$133:$L$144,$R$133:$R$144)=0,INDEX($A$5:$ZZ$5,1,_xlfn.xlookup($A41,$L$133:$L$144,$N$133:$N$144)+L40-1)) ->  | M41: =IF(_xlfn.xlookup($A41,$L$133:$L$144,$R$133:$R$144)=0,INDEX($A$5:$ZZ$5,1,_xlfn.xlookup($A41,$L$133:$L$144,$N$133:$N$144)+M40-1)) -> 
A42: HEX | B42: =TEXT(B41,"00") ->  | C42: =CONCATENATE(TEXT(C41,"00"),TEXT(D41,"00"),TEXT(E41,"00"),TEXT(F41,"00")) ->  | G42: =CONCATENATE(TEXT(G41,"00"),TEXT(H41,"00")) ->  | I42: =CONCATENATE(TEXT(I41,"00"),TEXT(J41,"00")) ->  | K42: =TEXT(K41,"00") ->  | L42: =TEXT(L41,"00") ->  | M42: =TEXT(M41,"00") ->  | N42: =TEXT(N41,"00") -> 00
A43: DEC | B43: =HEX2DEC(B42) ->  | C43: =TEXT(HEX2DEC(C42),"0000000000") ->  | G43: =HEX2DEC(G42) ->  | I43: =HEX2DEC(I42) ->  | K43: =HEX2DEC(K42) ->  | L43: =HEX2DEC(L42) ->  | M43: =HEX2DEC(M42) ->  | N43: =HEX2DEC(N42) -> 0
B44: =B43 ->  | C44: =DATE(MID(C43,5,2)+100,MID(C43,3,2),MID(C43,1,2)) ->  | E44: =(RIGHT(C43,4)) ->  | G44: =G43*10^-2 ->  | I44: =I43*10^-2 ->  | K44: =K43 ->  | L44: =L43 ->  | M44: =M43 ->  | N44: =N43 -> 0
D47: 1 | H47: 2 | L47: 3 | P47: 4 | T47: 5 | X47: 6 | AB47: 7 | AF47: 8 | AJ47: 9 | AN47: 10 | AR47: 11 | AV47: 12 | AZ47: 13 | BD47: 14 | BH47: 15 | BL47: 16 | BP47: 17 | BT47: 18 | BX47: 19 | CB47: 20
A48: 50h | B48: ADCP (N/A) | D48: EWCT | F48: NSCT | H48: EWCT | J48: NSCT | L48: EWCT | N48: NSCT | P48: EWCT | R48: NSCT | T48: EWCT | V48: NSCT | X48: EWCT | Z48: NSCT | AB48: EWCT | AD48: NSCT | AF48: EWCT | AH48: NSCT | AJ48: EWCT | AL48: NSCT | AN48: EWCT | AP48: NSCT | AR48: EWCT | AT48: NSCT | AV48: EWCT | AX48: NSCT | AZ48: EWCT | BB48: NSCT | BD48: EWCT | BF48: NSCT | BH48: EWCT | BJ48: NSCT | BL48: EWCT | BN48: NSCT | BP48: EWCT | BR48: NSCT | BT48: EWCT | BV48: NSCT | BX48: EWCT | BZ48: NSCT | CB48: EWCT | CD48: NSCT | CF48: TEMP
A49: 80 | D49: Vel. Este celda | F49: Vel. Norte celda | H49: Vel. Este celda | J49: Vel. Norte celda | L49: Vel. Este celda | N49: Vel. Norte celda | P49: Vel. Este celda | R49: Vel. Norte celda | T49: Vel. Este celda | V49: Vel. Norte celda | X49: Vel. Este celda | Z49: Vel. Norte celda | AB49: Vel. Este celda | AD49: Vel. Norte celda | AF49: Vel. Este celda | AH49: Vel. Norte celda | AJ49: Vel. Este celda | AL49: Vel. Norte celda | AN49: Vel. Este celda | AP49: Vel. Norte celda | AR49: Vel. Este celda | AT49: Vel. Norte celda | AV49: Vel. Este celda | AX49: Vel. Norte celda | AZ49: Vel. Este celda | BB49: Vel. Norte celda | BD49: Vel. Este celda | BF49: Vel. Norte celda | BH49: Vel. Este celda | BJ49: Vel. Norte celda | BL49: Vel. Este celda | BN49: Vel. Norte celda | BP49: Vel. Este celda | BR49: Vel. Norte celda | BT49: Vel. Este celda | BV49: Vel. Norte celda | BX49: Vel. Este celda | BZ49: Vel. Norte celda | CB49: Vel. Este celda | CD49: Vel. Norte celda | CF49: Temperatura | CH49: Checksum
A50: Unidad | B50: Id de la Trama | C50: minutos (pos.y neg.) | D50: mm/s (pos.y neg.) | F50: mm/s (pos.y neg.) | H50: mm/s (pos.y neg.) | J50: mm/s (pos.y neg.) | L50: mm/s (pos.y neg.) | N50: mm/s (pos.y neg.) | P50: mm/s (pos.y neg.) | R50: mm/s (pos.y neg.) | T50: mm/s (pos.y neg.) | V50: mm/s (pos.y neg.) | X50: mm/s (pos.y neg.) | Z50: mm/s (pos.y neg.) | AB50: mm/s (pos.y neg.) | AD50: mm/s (pos.y neg.) | AF50: mm/s (pos.y neg.) | AH50: mm/s (pos.y neg.) | AJ50: mm/s (pos.y neg.) | AL50: mm/s (pos.y neg.) | AN50: mm/s (pos.y neg.) | AP50: mm/s (pos.y neg.) | AR50: mm/s (pos.y neg.) | AT50: mm/s (pos.y neg.) | AV50: mm/s (pos.y neg.) | AX50: mm/s (pos.y neg.) | AZ50: mm/s (pos.y neg.) | BB50: mm/s (pos.y neg.) | BD50: mm/s (pos.y neg.) | BF50: mm/s (pos.y neg.) | BH50: mm/s (pos.y neg.) | BJ50: mm/s (pos.y neg.) | BL50: mm/s (pos.y neg.) | BN50: mm/s (pos.y neg.) | BP50: mm/s (pos.y neg.) | BR50: mm/s (pos.y neg.) | BT50: mm/s (pos.y neg.) | BV50: mm/s (pos.y neg.) | BX50: mm/s (pos.y neg.) | BZ50: mm/s (pos.y neg.) | CB50: mm/s (pos.y neg.) | CD50: mm/s (pos.y neg.) | CF50: ºC x10-2 | CH50: Suma de todos los bytes
A51: Posición byte | B51: 1 | C51: 2 | D51: 3 | E51: 4 | F51: 5 | G51: 6 | H51: 7 | I51: 8 | J51: 9 | K51: 10 | L51: 11 | M51: 12 | N51: 13 | O51: 14 | P51: 15 | Q51: 16 | R51: 17 | S51: 18 | T51: 19 | U51: 20 | V51: 21 | W51: 22 | X51: 23 | Y51: 24 | Z51: 25 | AA51: 26 | AB51: 27 | AC51: 28 | AD51: 29 | AE51: 30 | AF51: 31 | AG51: 32 | AH51: 33 | AI51: 34 | AJ51: 35 | AK51: 36 | AL51: 37 | AM51: 38 | AN51: 39 | AO51: 40 | AP51: 41 | AQ51: 42 | AR51: 43 | AS51: 44 | AT51: 45 | AU51: 46 | AV51: 47 | AW51: 48 | AX51: 49 | AY51: 50 | AZ51: 51 | BA51: 52 | BB51: 53 | BC51: 54 | BD51: 55 | BE51: 56 | BF51: 57 | BG51: 58 | BH51: 59 | BI51: 60 | BJ51: 61 | BK51: 62 | BL51: 63 | BM51: 64 | BN51: 65 | BO51: 66 | BP51: 67 | BQ51: 68 | BR51: 69 | BS51: 70 | BT51: 71 | BU51: 72 | BV51: 73 | BW51: 74 | BX51: 75 | BY51: 76 | BZ51: 77 | CA51: 78 | CB51: 79 | CC51: 80 | CD51: 81 | CE51: 82 | CF51: 83 | CG51: 84
A52: 50 | B52: =IF(_xlfn.xlookup($A52,$L$133:$L$144,$R$133:$R$144)=0,INDEX($A$5:$ZZ$5,1,_xlfn.xlookup($A52,$L$133:$L$144,$N$133:$N$144)+B51-1)) ->  | C52: =IF(_xlfn.xlookup($A52,$L$133:$L$144,$R$133:$R$144)=0,INDEX($A$5:$ZZ$5,1,_xlfn.xlookup($A52,$L$133:$L$144,$N$133:$N$144)+C51-1)) ->  | D52: =IF(_xlfn.xlookup($A52,$L$133:$L$144,$R$133:$R$144)=0,INDEX($A$5:$ZZ$5,1,_xlfn.xlookup($A52,$L$133:$L$144,$N$133:$N$144)+D51-1)) ->  | E52: =IF(_xlfn.xlookup($A52,$L$133:$L$144,$R$133:$R$144)=0,INDEX($A$5:$ZZ$5,1,_xlfn.xlookup($A52,$L$133:$L$144,$N$133:$N$144)+E51-1)) ->  | F52: =IF(_xlfn.xlookup($A52,$L$133:$L$144,$R$133:$R$144)=0,INDEX($A$5:$ZZ$5,1,_xlfn.xlookup($A52,$L$133:$L$144,$N$133:$N$144)+F51-1)) ->  | G52: =IF(_xlfn.xlookup($A52,$L$133:$L$144,$R$133:$R$144)=0,INDEX($A$5:$ZZ$5,1,_xlfn.xlookup($A52,$L$133:$L$144,$N$133:$N$144)+G51-1)) ->  | H52: =IF(_xlfn.xlookup($A52,$L$133:$L$144,$R$133:$R$144)=0,INDEX($A$5:$ZZ$5,1,_xlfn.xlookup($A52,$L$133:$L$144,$N$133:$N$144)+H51-1)) ->  | I52: =IF(_xlfn.xlookup($A52,$L$133:$L$144,$R$133:$R$144)=0,INDEX($A$5:$ZZ$5,1,_xlfn.xlookup($A52,$L$133:$L$144,$N$133:$N$144)+I51-1)) ->  | J52: =IF(_xlfn.xlookup($A52,$L$133:$L$144,$R$133:$R$144)=0,INDEX($A$5:$ZZ$5,1,_xlfn.xlookup($A52,$L$133:$L$144,$N$133:$N$144)+J51-1)) ->  | K52: =IF(_xlfn.xlookup($A52,$L$133:$L$144,$R$133:$R$144)=0,INDEX($A$5:$ZZ$5,1,_xlfn.xlookup($A52,$L$133:$L$144,$N$133:$N$144)+K51-1)) ->  | L52: =IF(_xlfn.xlookup($A52,$L$133:$L$144,$R$133:$R$144)=0,INDEX($A$5:$ZZ$5,1,_xlfn.xlookup($A52,$L$133:$L$144,$N$133:$N$144)+L51-1)) ->  | M52: =IF(_xlfn.xlookup($A52,$L$133:$L$144,$R$133:$R$144)=0,INDEX($A$5:$ZZ$5,1,_xlfn.xlookup($A52,$L$133:$L$144,$N$133:$N$144)+M51-1)) ->  | N52: =IF(_xlfn.xlookup($A52,$L$133:$L$144,$R$133:$R$144)=0,INDEX($A$5:$ZZ$5,1,_xlfn.xlookup($A52,$L$133:$L$144,$N$133:$N$144)+N51-1)) ->  | O52: =IF(_xlfn.xlookup($A52,$L$133:$L$144,$R$133:$R$144)=0,INDEX($A$5:$ZZ$5,1,_xlfn.xlookup($A52,$L$133:$L$144,$N$133:$N$144)+O51-1)) ->  | P52: =IF(_xlfn.xlookup($A52,$L$133:$L$144,$R$133:$R$144)=0,INDEX($A$5:$ZZ$5,1,_xlfn.xlookup($A52,$L$133:$L$144,$N$133:$N$144)+P51-1)) ->  | Q52: =IF(_xlfn.xlookup($A52,$L$133:$L$144,$R$133:$R$144)=0,INDEX($A$5:$ZZ$5,1,_xlfn.xlookup($A52,$L$133:$L$144,$N$133:$N$144)+Q51-1)) ->  | R52: =IF(_xlfn.xlookup($A52,$L$133:$L$144,$R$133:$R$144)=0,INDEX($A$5:$ZZ$5,1,_xlfn.xlookup($A52,$L$133:$L$144,$N$133:$N$144)+R51-1)) ->  | S52: =IF(_xlfn.xlookup($A52,$L$133:$L$144,$R$133:$R$144)=0,INDEX($A$5:$ZZ$5,1,_xlfn.xlookup($A52,$L$133:$L$144,$N$133:$N$144)+S51-1)) ->  | T52: =IF(_xlfn.xlookup($A52,$L$133:$L$144,$R$133:$R$144)=0,INDEX($A$5:$ZZ$5,1,_xlfn.xlookup($A52,$L$133:$L$144,$N$133:$N$144)+T51-1)) ->  | U52: =IF(_xlfn.xlookup($A52,$L$133:$L$144,$R$133:$R$144)=0,INDEX($A$5:$ZZ$5,1,_xlfn.xlookup($A52,$L$133:$L$144,$N$133:$N$144)+U51-1)) ->  | V52: =IF(_xlfn.xlookup($A52,$L$133:$L$144,$R$133:$R$144)=0,INDEX($A$5:$ZZ$5,1,_xlfn.xlookup($A52,$L$133:$L$144,$N$133:$N$144)+V51-1)) ->  | W52: =IF(_xlfn.xlookup($A52,$L$133:$L$144,$R$133:$R$144)=0,INDEX($A$5:$ZZ$5,1,_xlfn.xlookup($A52,$L$133:$L$144,$N$133:$N$144)+W51-1)) ->  | X52: =IF(_xlfn.xlookup($A52,$L$133:$L$144,$R$133:$R$144)=0,INDEX($A$5:$ZZ$5,1,_xlfn.xlookup($A52,$L$133:$L$144,$N$133:$N$144)+X51-1)) ->  | Y52: =IF(_xlfn.xlookup($A52,$L$133:$L$144,$R$133:$R$144)=0,INDEX($A$5:$ZZ$5,1,_xlfn.xlookup($A52,$L$133:$L$144,$N$133:$N$144)+Y51-1)) ->  | Z52: =IF(_xlfn.xlookup($A52,$L$133:$L$144,$R$133:$R$144)=0,INDEX($A$5:$ZZ$5,1,_xlfn.xlookup($A52,$L$133:$L$144,$N$133:$N$144)+Z51-1)) ->  | AA52: =IF(_xlfn.xlookup($A52,$L$133:$L$144,$R$133:$R$144)=0,INDEX($A$5:$ZZ$5,1,_xlfn.xlookup($A52,$L$133:$L$144,$N$133:$N$144)+AA51-1)) ->  | AB52: =IF(_xlfn.xlookup($A52,$L$133:$L$144,$R$133:$R$144)=0,INDEX($A$5:$ZZ$5,1,_xlfn.xlookup($A52,$L$133:$L$144,$N$133:$N$144)+AB51-1)) ->  | AC52: =IF(_xlfn.xlookup($A52,$L$133:$L$144,$R$133:$R$144)=0,INDEX($A$5:$ZZ$5,1,_xlfn.xlookup($A52,$L$133:$L$144,$N$133:$N$144)+AC51-1)) ->  | AD52: =IF(_xlfn.xlookup($A52,$L$133:$L$144,$R$133:$R$144)=0,INDEX($A$5:$ZZ$5,1,_xlfn.xlookup($A52,$L$133:$L$144,$N$133:$N$144)+AD51-1)) ->  | AE52: =IF(_xlfn.xlookup($A52,$L$133:$L$144,$R$133:$R$144)=0,INDEX($A$5:$ZZ$5,1,_xlfn.xlookup($A52,$L$133:$L$144,$N$133:$N$144)+AE51-1)) ->  | AF52: =IF(_xlfn.xlookup($A52,$L$133:$L$144,$R$133:$R$144)=0,INDEX($A$5:$ZZ$5,1,_xlfn.xlookup($A52,$L$133:$L$144,$N$133:$N$144)+AF51-1)) ->  | AG52: =IF(_xlfn.xlookup($A52,$L$133:$L$144,$R$133:$R$144)=0,INDEX($A$5:$ZZ$5,1,_xlfn.xlookup($A52,$L$133:$L$144,$N$133:$N$144)+AG51-1)) ->  | AH52: =IF(_xlfn.xlookup($A52,$L$133:$L$144,$R$133:$R$144)=0,INDEX($A$5:$ZZ$5,1,_xlfn.xlookup($A52,$L$133:$L$144,$N$133:$N$144)+AH51-1)) ->  | AI52: =IF(_xlfn.xlookup($A52,$L$133:$L$144,$R$133:$R$144)=0,INDEX($A$5:$ZZ$5,1,_xlfn.xlookup($A52,$L$133:$L$144,$N$133:$N$144)+AI51-1)) ->  | AJ52: =IF(_xlfn.xlookup($A52,$L$133:$L$144,$R$133:$R$144)=0,INDEX($A$5:$ZZ$5,1,_xlfn.xlookup($A52,$L$133:$L$144,$N$133:$N$144)+AJ51-1)) ->  | AK52: =IF(_xlfn.xlookup($A52,$L$133:$L$144,$R$133:$R$144)=0,INDEX($A$5:$ZZ$5,1,_xlfn.xlookup($A52,$L$133:$L$144,$N$133:$N$144)+AK51-1)) ->  | AL52: =IF(_xlfn.xlookup($A52,$L$133:$L$144,$R$133:$R$144)=0,INDEX($A$5:$ZZ$5,1,_xlfn.xlookup($A52,$L$133:$L$144,$N$133:$N$144)+AL51-1)) ->  | AM52: =IF(_xlfn.xlookup($A52,$L$133:$L$144,$R$133:$R$144)=0,INDEX($A$5:$ZZ$5,1,_xlfn.xlookup($A52,$L$133:$L$144,$N$133:$N$144)+AM51-1)) ->  | AN52: =IF(_xlfn.xlookup($A52,$L$133:$L$144,$R$133:$R$144)=0,INDEX($A$5:$ZZ$5,1,_xlfn.xlookup($A52,$L$133:$L$144,$N$133:$N$144)+AN51-1)) ->  | AO52: =IF(_xlfn.xlookup($A52,$L$133:$L$144,$R$133:$R$144)=0,INDEX($A$5:$ZZ$5,1,_xlfn.xlookup($A52,$L$133:$L$144,$N$133:$N$144)+AO51-1)) ->  | AP52: =IF(_xlfn.xlookup($A52,$L$133:$L$144,$R$133:$R$144)=0,INDEX($A$5:$ZZ$5,1,_xlfn.xlookup($A52,$L$133:$L$144,$N$133:$N$144)+AP51-1)) ->  | AQ52: =IF(_xlfn.xlookup($A52,$L$133:$L$144,$R$133:$R$144)=0,INDEX($A$5:$ZZ$5,1,_xlfn.xlookup($A52,$L$133:$L$144,$N$133:$N$144)+AQ51-1)) ->  | AR52: =IF(_xlfn.xlookup($A52,$L$133:$L$144,$R$133:$R$144)=0,INDEX($A$5:$ZZ$5,1,_xlfn.xlookup($A52,$L$133:$L$144,$N$133:$N$144)+AR51-1)) ->  | AS52: =IF(_xlfn.xlookup($A52,$L$133:$L$144,$R$133:$R$144)=0,INDEX($A$5:$ZZ$5,1,_xlfn.xlookup($A52,$L$133:$L$144,$N$133:$N$144)+AS51-1)) ->  | AT52: =IF(_xlfn.xlookup($A52,$L$133:$L$144,$R$133:$R$144)=0,INDEX($A$5:$ZZ$5,1,_xlfn.xlookup($A52,$L$133:$L$144,$N$133:$N$144)+AT51-1)) ->  | AU52: =IF(_xlfn.xlookup($A52,$L$133:$L$144,$R$133:$R$144)=0,INDEX($A$5:$ZZ$5,1,_xlfn.xlookup($A52,$L$133:$L$144,$N$133:$N$144)+AU51-1)) ->  | AV52: =IF(_xlfn.xlookup($A52,$L$133:$L$144,$R$133:$R$144)=0,INDEX($A$5:$ZZ$5,1,_xlfn.xlookup($A52,$L$133:$L$144,$N$133:$N$144)+AV51-1)) ->  | AW52: =IF(_xlfn.xlookup($A52,$L$133:$L$144,$R$133:$R$144)=0,INDEX($A$5:$ZZ$5,1,_xlfn.xlookup($A52,$L$133:$L$144,$N$133:$N$144)+AW51-1)) ->  | AX52: =IF(_xlfn.xlookup($A52,$L$133:$L$144,$R$133:$R$144)=0,INDEX($A$5:$ZZ$5,1,_xlfn.xlookup($A52,$L$133:$L$144,$N$133:$N$144)+AX51-1)) ->  | AY52: =IF(_xlfn.xlookup($A52,$L$133:$L$144,$R$133:$R$144)=0,INDEX($A$5:$ZZ$5,1,_xlfn.xlookup($A52,$L$133:$L$144,$N$133:$N$144)+AY51-1)) ->  | AZ52: =IF(_xlfn.xlookup($A52,$L$133:$L$144,$R$133:$R$144)=0,INDEX($A$5:$ZZ$5,1,_xlfn.xlookup($A52,$L$133:$L$144,$N$133:$N$144)+AZ51-1)) ->  | BA52: =IF(_xlfn.xlookup($A52,$L$133:$L$144,$R$133:$R$144)=0,INDEX($A$5:$ZZ$5,1,_xlfn.xlookup($A52,$L$133:$L$144,$N$133:$N$144)+BA51-1)) ->  | BB52: =IF(_xlfn.xlookup($A52,$L$133:$L$144,$R$133:$R$144)=0,INDEX($A$5:$ZZ$5,1,_xlfn.xlookup($A52,$L$133:$L$144,$N$133:$N$144)+BB51-1)) ->  | BC52: =IF(_xlfn.xlookup($A52,$L$133:$L$144,$R$133:$R$144)=0,INDEX($A$5:$ZZ$5,1,_xlfn.xlookup($A52,$L$133:$L$144,$N$133:$N$144)+BC51-1)) ->  | BD52: =IF(_xlfn.xlookup($A52,$L$133:$L$144,$R$133:$R$144)=0,INDEX($A$5:$ZZ$5,1,_xlfn.xlookup($A52,$L$133:$L$144,$N$133:$N$144)+BD51-1)) ->  | BE52: =IF(_xlfn.xlookup($A52,$L$133:$L$144,$R$133:$R$144)=0,INDEX($A$5:$ZZ$5,1,_xlfn.xlookup($A52,$L$133:$L$144,$N$133:$N$144)+BE51-1)) ->  | BF52: =IF(_xlfn.xlookup($A52,$L$133:$L$144,$R$133:$R$144)=0,INDEX($A$5:$ZZ$5,1,_xlfn.xlookup($A52,$L$133:$L$144,$N$133:$N$144)+BF51-1)) ->  | BG52: =IF(_xlfn.xlookup($A52,$L$133:$L$144,$R$133:$R$144)=0,INDEX($A$5:$ZZ$5,1,_xlfn.xlookup($A52,$L$133:$L$144,$N$133:$N$144)+BG51-1)) ->  | BH52: =IF(_xlfn.xlookup($A52,$L$133:$L$144,$R$133:$R$144)=0,INDEX($A$5:$ZZ$5,1,_xlfn.xlookup($A52,$L$133:$L$144,$N$133:$N$144)+BH51-1)) ->  | BI52: =IF(_xlfn.xlookup($A52,$L$133:$L$144,$R$133:$R$144)=0,INDEX($A$5:$ZZ$5,1,_xlfn.xlookup($A52,$L$133:$L$144,$N$133:$N$144)+BI51-1)) ->  | BJ52: =IF(_xlfn.xlookup($A52,$L$133:$L$144,$R$133:$R$144)=0,INDEX($A$5:$ZZ$5,1,_xlfn.xlookup($A52,$L$133:$L$144,$N$133:$N$144)+BJ51-1)) ->  | BK52: =IF(_xlfn.xlookup($A52,$L$133:$L$144,$R$133:$R$144)=0,INDEX($A$5:$ZZ$5,1,_xlfn.xlookup($A52,$L$133:$L$144,$N$133:$N$144)+BK51-1)) ->  | BL52: =IF(_xlfn.xlookup($A52,$L$133:$L$144,$R$133:$R$144)=0,INDEX($A$5:$ZZ$5,1,_xlfn.xlookup($A52,$L$133:$L$144,$N$133:$N$144)+BL51-1)) ->  | BM52: =IF(_xlfn.xlookup($A52,$L$133:$L$144,$R$133:$R$144)=0,INDEX($A$5:$ZZ$5,1,_xlfn.xlookup($A52,$L$133:$L$144,$N$133:$N$144)+BM51-1)) ->  | BN52: =IF(_xlfn.xlookup($A52,$L$133:$L$144,$R$133:$R$144)=0,INDEX($A$5:$ZZ$5,1,_xlfn.xlookup($A52,$L$133:$L$144,$N$133:$N$144)+BN51-1)) ->  | BO52: =IF(_xlfn.xlookup($A52,$L$133:$L$144,$R$133:$R$144)=0,INDEX($A$5:$ZZ$5,1,_xlfn.xlookup($A52,$L$133:$L$144,$N$133:$N$144)+BO51-1)) ->  | BP52: =IF(_xlfn.xlookup($A52,$L$133:$L$144,$R$133:$R$144)=0,INDEX($A$5:$ZZ$5,1,_xlfn.xlookup($A52,$L$133:$L$144,$N$133:$N$144)+BP51-1)) ->  | BQ52: =IF(_xlfn.xlookup($A52,$L$133:$L$144,$R$133:$R$144)=0,INDEX($A$5:$ZZ$5,1,_xlfn.xlookup($A52,$L$133:$L$144,$N$133:$N$144)+BQ51-1)) ->  | BR52: =IF(_xlfn.xlookup($A52,$L$133:$L$144,$R$133:$R$144)=0,INDEX($A$5:$ZZ$5,1,_xlfn.xlookup($A52,$L$133:$L$144,$N$133:$N$144)+BR51-1)) ->  | BS52: =IF(_xlfn.xlookup($A52,$L$133:$L$144,$R$133:$R$144)=0,INDEX($A$5:$ZZ$5,1,_xlfn.xlookup($A52,$L$133:$L$144,$N$133:$N$144)+BS51-1)) ->  | BT52: =IF(_xlfn.xlookup($A52,$L$133:$L$144,$R$133:$R$144)=0,INDEX($A$5:$ZZ$5,1,_xlfn.xlookup($A52,$L$133:$L$144,$N$133:$N$144)+BT51-1)) ->  | BU52: =IF(_xlfn.xlookup($A52,$L$133:$L$144,$R$133:$R$144)=0,INDEX($A$5:$ZZ$5,1,_xlfn.xlookup($A52,$L$133:$L$144,$N$133:$N$144)+BU51-1)) ->  | BV52: =IF(_xlfn.xlookup($A52,$L$133:$L$144,$R$133:$R$144)=0,INDEX($A$5:$ZZ$5,1,_xlfn.xlookup($A52,$L$133:$L$144,$N$133:$N$144)+BV51-1)) ->  | BW52: =IF(_xlfn.xlookup($A52,$L$133:$L$144,$R$133:$R$144)=0,INDEX($A$5:$ZZ$5,1,_xlfn.xlookup($A52,$L$133:$L$144,$N$133:$N$144)+BW51-1)) ->  | BX52: =IF(_xlfn.xlookup($A52,$L$133:$L$144,$R$133:$R$144)=0,INDEX($A$5:$ZZ$5,1,_xlfn.xlookup($A52,$L$133:$L$144,$N$133:$N$144)+BX51-1)) ->  | BY52: =IF(_xlfn.xlookup($A52,$L$133:$L$144,$R$133:$R$144)=0,INDEX($A$5:$ZZ$5,1,_xlfn.xlookup($A52,$L$133:$L$144,$N$133:$N$144)+BY51-1)) ->  | BZ52: =IF(_xlfn.xlookup($A52,$L$133:$L$144,$R$133:$R$144)=0,INDEX($A$5:$ZZ$5,1,_xlfn.xlookup($A52,$L$133:$L$144,$N$133:$N$144)+BZ51-1)) ->  | CA52: =IF(_xlfn.xlookup($A52,$L$133:$L$144,$R$133:$R$144)=0,INDEX($A$5:$ZZ$5,1,_xlfn.xlookup($A52,$L$133:$L$144,$N$133:$N$144)+CA51-1)) ->  | CB52: =IF(_xlfn.xlookup($A52,$L$133:$L$144,$R$133:$R$144)=0,INDEX($A$5:$ZZ$5,1,_xlfn.xlookup($A52,$L$133:$L$144,$N$133:$N$144)+CB51-1)) ->  | CC52: =IF(_xlfn.xlookup($A52,$L$133:$L$144,$R$133:$R$144)=0,INDEX($A$5:$ZZ$5,1,_xlfn.xlookup($A52,$L$133:$L$144,$N$133:$N$144)+CC51-1)) ->  | CD52: =IF(_xlfn.xlookup($A52,$L$133:$L$144,$R$133:$R$144)=0,INDEX($A$5:$ZZ$5,1,_xlfn.xlookup($A52,$L$133:$L$144,$N$133:$N$144)+CD51-1)) ->  | CE52: =IF(_xlfn.xlookup($A52,$L$133:$L$144,$R$133:$R$144)=0,INDEX($A$5:$ZZ$5,1,_xlfn.xlookup($A52,$L$133:$L$144,$N$133:$N$144)+CE51-1)) ->  | CF52: =IF(_xlfn.xlookup($A52,$L$133:$L$144,$R$133:$R$144)=0,INDEX($A$5:$ZZ$5,1,_xlfn.xlookup($A52,$L$133:$L$144,$N$133:$N$144)+CF51-1)) ->  | CG52: =IF(_xlfn.xlookup($A52,$L$133:$L$144,$R$133:$R$144)=0,INDEX($A$5:$ZZ$5,1,_xlfn.xlookup($A52,$L$133:$L$144,$N$133:$N$144)+CG51-1)) -> 
A53: HEX | B53: =TEXT(B52,"00") ->  | C53: =TEXT(C52,"00") ->  | D53: =CONCATENATE(TEXT(D52,"00"),TEXT(E52,"00")) ->  | F53: =CONCATENATE(TEXT(F52,"00"),TEXT(G52,"00")) ->  | H53: =CONCATENATE(TEXT(H52,"00"),TEXT(I52,"00")) ->  | J53: =CONCATENATE(TEXT(J52,"00"),TEXT(K52,"00")) ->  | L53: =CONCATENATE(TEXT(L52,"00"),TEXT(M52,"00")) ->  | N53: =CONCATENATE(TEXT(N52,"00"),TEXT(O52,"00")) ->  | P53: =CONCATENATE(TEXT(P52,"00"),TEXT(Q52,"00")) ->  | R53: =CONCATENATE(TEXT(R52,"00"),TEXT(S52,"00")) ->  | T53: =CONCATENATE(TEXT(T52,"00"),TEXT(U52,"00")) ->  | V53: =CONCATENATE(TEXT(V52,"00"),TEXT(W52,"00")) ->  | X53: =CONCATENATE(TEXT(X52,"00"),TEXT(Y52,"00")) ->  | Z53: =CONCATENATE(TEXT(Z52,"00"),TEXT(AA52,"00")) ->  | AB53: =CONCATENATE(TEXT(AB52,"00"),TEXT(AC52,"00")) ->  | AD53: =CONCATENATE(TEXT(AD52,"00"),TEXT(AE52,"00")) ->  | AF53: =CONCATENATE(TEXT(AF52,"00"),TEXT(AG52,"00")) ->  | AH53: =CONCATENATE(TEXT(AH52,"00"),TEXT(AI52,"00")) ->  | AJ53: =CONCATENATE(TEXT(AJ52,"00"),TEXT(AK52,"00")) ->  | AL53: =CONCATENATE(TEXT(AL52,"00"),TEXT(AM52,"00")) ->  | AN53: =CONCATENATE(TEXT(AN52,"00"),TEXT(AO52,"00")) ->  | AP53: =CONCATENATE(TEXT(AP52,"00"),TEXT(AQ52,"00")) ->  | AR53: =CONCATENATE(TEXT(AR52,"00"),TEXT(AS52,"00")) ->  | AT53: =CONCATENATE(TEXT(AT52,"00"),TEXT(AU52,"00")) ->  | AV53: =CONCATENATE(TEXT(AV52,"00"),TEXT(AW52,"00")) ->  | AX53: =CONCATENATE(TEXT(AX52,"00"),TEXT(AY52,"00")) ->  | AZ53: =CONCATENATE(TEXT(AZ52,"00"),TEXT(BA52,"00")) ->  | BB53: =CONCATENATE(TEXT(BB52,"00"),TEXT(BC52,"00")) ->  | BD53: =CONCATENATE(TEXT(BD52,"00"),TEXT(BE52,"00")) ->  | BF53: =CONCATENATE(TEXT(BF52,"00"),TEXT(BG52,"00")) ->  | BH53: =CONCATENATE(TEXT(BH52,"00"),TEXT(BI52,"00")) ->  | BJ53: =CONCATENATE(TEXT(BJ52,"00"),TEXT(BK52,"00")) ->  | BL53: =CONCATENATE(TEXT(BL52,"00"),TEXT(BM52,"00")) ->  | BN53: =CONCATENATE(TEXT(BN52,"00"),TEXT(BO52,"00")) ->  | BP53: =CONCATENATE(TEXT(BP52,"00"),TEXT(BQ52,"00")) ->  | BR53: =CONCATENATE(TEXT(BR52,"00"),TEXT(BS52,"00")) ->  | BT53: =CONCATENATE(TEXT(BT52,"00"),TEXT(BU52,"00")) ->  | BV53: =CONCATENATE(TEXT(BV52,"00"),TEXT(BW52,"00")) ->  | BX53: =CONCATENATE(TEXT(BX52,"00"),TEXT(BY52,"00")) ->  | BZ53: =CONCATENATE(TEXT(BZ52,"00"),TEXT(CA52,"00")) ->  | CB53: =CONCATENATE(TEXT(CB52,"00"),TEXT(CC52,"00")) ->  | CD53: =CONCATENATE(TEXT(CD52,"00"),TEXT(CE52,"00")) ->  | CF53: =CONCATENATE(TEXT(CF52,"00"),TEXT(CG52,"00")) -> 
A54: DEC | B54: =HEX2DEC(B53) ->  | C54: =IF(HEX2DEC(C53)>(127),HEX2DEC(C53)-256,HEX2DEC(C53)) ->  | D54: =IF(HEX2DEC(D53)>(32767),HEX2DEC(D53)-65536,HEX2DEC(D53)) ->  | F54: =IF(HEX2DEC(F53)>(32767),HEX2DEC(F53)-65536,HEX2DEC(F53)) ->  | H54: =IF(HEX2DEC(H53)>(32767),HEX2DEC(H53)-65536,HEX2DEC(H53)) ->  | J54: =IF(HEX2DEC(J53)>(32767),HEX2DEC(J53)-65536,HEX2DEC(J53)) ->  | L54: =IF(HEX2DEC(L53)>(32767),HEX2DEC(L53)-65536,HEX2DEC(L53)) ->  | N54: =IF(HEX2DEC(N53)>(32767),HEX2DEC(N53)-65536,HEX2DEC(N53)) ->  | P54: =IF(HEX2DEC(P53)>(32767),HEX2DEC(P53)-65536,HEX2DEC(P53)) ->  | R54: =IF(HEX2DEC(R53)>(32767),HEX2DEC(R53)-65536,HEX2DEC(R53)) ->  | T54: =IF(HEX2DEC(T53)>(32767),HEX2DEC(T53)-65536,HEX2DEC(T53)) ->  | V54: =IF(HEX2DEC(V53)>(32767),HEX2DEC(V53)-65536,HEX2DEC(V53)) ->  | X54: =IF(HEX2DEC(X53)>(32767),HEX2DEC(X53)-65536,HEX2DEC(X53)) ->  | Z54: =IF(HEX2DEC(Z53)>(32767),HEX2DEC(Z53)-65536,HEX2DEC(Z53)) ->  | AB54: =IF(HEX2DEC(AB53)>(32767),HEX2DEC(AB53)-65536,HEX2DEC(AB53)) ->  | AD54: =IF(HEX2DEC(AD53)>(32767),HEX2DEC(AD53)-65536,HEX2DEC(AD53)) ->  | AF54: =IF(HEX2DEC(AF53)>(32767),HEX2DEC(AF53)-65536,HEX2DEC(AF53)) ->  | AH54: =IF(HEX2DEC(AH53)>(32767),HEX2DEC(AH53)-65536,HEX2DEC(AH53)) ->  | AJ54: =IF(HEX2DEC(AJ53)>(32767),HEX2DEC(AJ53)-65536,HEX2DEC(AJ53)) ->  | AL54: =IF(HEX2DEC(AL53)>(32767),HEX2DEC(AL53)-65536,HEX2DEC(AL53)) ->  | AN54: =IF(HEX2DEC(AN53)>(32767),HEX2DEC(AN53)-65536,HEX2DEC(AN53)) ->  | AP54: =IF(HEX2DEC(AP53)>(32767),HEX2DEC(AP53)-65536,HEX2DEC(AP53)) ->  | AR54: =IF(HEX2DEC(AR53)>(32767),HEX2DEC(AR53)-65536,HEX2DEC(AR53)) ->  | AT54: =IF(HEX2DEC(AT53)>(32767),HEX2DEC(AT53)-65536,HEX2DEC(AT53)) ->  | AV54: =IF(HEX2DEC(AV53)>(32767),HEX2DEC(AV53)-65536,HEX2DEC(AV53)) ->  | AX54: =IF(HEX2DEC(AX53)>(32767),HEX2DEC(AX53)-65536,HEX2DEC(AX53)) ->  | AZ54: =IF(HEX2DEC(AZ53)>(32767),HEX2DEC(AZ53)-65536,HEX2DEC(AZ53)) ->  | BB54: =IF(HEX2DEC(BB53)>(32767),HEX2DEC(BB53)-65536,HEX2DEC(BB53)) ->  | BD54: =IF(HEX2DEC(BD53)>(32767),HEX2DEC(BD53)-65536,HEX2DEC(BD53)) ->  | BF54: =IF(HEX2DEC(BF53)>(32767),HEX2DEC(BF53)-65536,HEX2DEC(BF53)) ->  | BH54: =IF(HEX2DEC(BH53)>(32767),HEX2DEC(BH53)-65536,HEX2DEC(BH53)) ->  | BJ54: =IF(HEX2DEC(BJ53)>(32767),HEX2DEC(BJ53)-65536,HEX2DEC(BJ53)) ->  | BL54: =IF(HEX2DEC(BL53)>(32767),HEX2DEC(BL53)-65536,HEX2DEC(BL53)) ->  | BN54: =IF(HEX2DEC(BN53)>(32767),HEX2DEC(BN53)-65536,HEX2DEC(BN53)) ->  | BP54: =IF(HEX2DEC(BP53)>(32767),HEX2DEC(BP53)-65536,HEX2DEC(BP53)) ->  | BR54: =IF(HEX2DEC(BR53)>(32767),HEX2DEC(BR53)-65536,HEX2DEC(BR53)) ->  | BT54: =IF(HEX2DEC(BT53)>(32767),HEX2DEC(BT53)-65536,HEX2DEC(BT53)) ->  | BV54: =IF(HEX2DEC(BV53)>(32767),HEX2DEC(BV53)-65536,HEX2DEC(BV53)) ->  | BX54: =IF(HEX2DEC(BX53)>(32767),HEX2DEC(BX53)-65536,HEX2DEC(BX53)) ->  | BZ54: =IF(HEX2DEC(BZ53)>(32767),HEX2DEC(BZ53)-65536,HEX2DEC(BZ53)) ->  | CB54: =IF(HEX2DEC(CB53)>(32767),HEX2DEC(CB53)-65536,HEX2DEC(CB53)) ->  | CD54: =IF(HEX2DEC(CD53)>(32767),HEX2DEC(CD53)-65536,HEX2DEC(CD53)) ->  | CF54: =IF(HEX2DEC(CF53)>(32767),HEX2DEC(CF53)-65536,HEX2DEC(CF53)) -> 
B55: =$G$8 -> 2023-07-20 | C55: =($I$8+C54/24/60) ->  | D55: =(((D54^2)+(F54^2))^0.5)/1000 ->  | F55: =IF(AND(F54>0,D54>0),DEGREES(ATAN(ABS(D54)/ABS(F54))),(IF(AND(F54<0,D54>0),180-DEGREES(ATAN(ABS(D54)/ABS(F54))),((IF(AND(F54>0,D54<0),360-DEGREES(ATAN(ABS(D54)/ABS(F54))),180+DEGREES(ATAN(ABS(D54)/ABS(F54))))))))) ->  | H55: =(((H54^2)+(J54^2))^0.5)/1000 ->  | J55: =IF(AND(J54>0,H54>0),DEGREES(ATAN(ABS(H54)/ABS(J54))),(IF(AND(J54<0,H54>0),180-DEGREES(ATAN(ABS(H54)/ABS(J54))),((IF(AND(J54>0,H54<0),360-DEGREES(ATAN(ABS(H54)/ABS(J54))),180+DEGREES(ATAN(ABS(H54)/ABS(J54))))))))) ->  | L55: =(((L54^2)+(N54^2))^0.5)/1000 ->  | N55: =IF(AND(N54>0,L54>0),DEGREES(ATAN(ABS(L54)/ABS(N54))),(IF(AND(N54<0,L54>0),180-DEGREES(ATAN(ABS(L54)/ABS(N54))),((IF(AND(N54>0,L54<0),360-DEGREES(ATAN(ABS(L54)/ABS(N54))),180+DEGREES(ATAN(ABS(L54)/ABS(N54))))))))) ->  | P55: =(((P54^2)+(R54^2))^0.5)/1000 ->  | R55: =IF(AND(R54>0,P54>0),DEGREES(ATAN(ABS(P54)/ABS(R54))),(IF(AND(R54<0,P54>0),180-DEGREES(ATAN(ABS(P54)/ABS(R54))),((IF(AND(R54>0,P54<0),360-DEGREES(ATAN(ABS(P54)/ABS(R54))),180+DEGREES(ATAN(ABS(P54)/ABS(R54))))))))) ->  | T55: =(((T54^2)+(V54^2))^0.5)/1000 ->  | V55: =IF(AND(V54>0,T54>0),DEGREES(ATAN(ABS(T54)/ABS(V54))),(IF(AND(V54<0,T54>0),180-DEGREES(ATAN(ABS(T54)/ABS(V54))),((IF(AND(V54>0,T54<0),360-DEGREES(ATAN(ABS(T54)/ABS(V54))),180+DEGREES(ATAN(ABS(T54)/ABS(V54))))))))) ->  | X55: =(((X54^2)+(Z54^2))^0.5)/1000 ->  | Z55: =IF(AND(Z54>0,X54>0),DEGREES(ATAN(ABS(X54)/ABS(Z54))),(IF(AND(Z54<0,X54>0),180-DEGREES(ATAN(ABS(X54)/ABS(Z54))),((IF(AND(Z54>0,X54<0),360-DEGREES(ATAN(ABS(X54)/ABS(Z54))),180+DEGREES(ATAN(ABS(X54)/ABS(Z54))))))))) ->  | AB55: =(((AB54^2)+(AD54^2))^0.5)/1000 ->  | AD55: =IF(AND(AD54>0,AB54>0),DEGREES(ATAN(ABS(AB54)/ABS(AD54))),(IF(AND(AD54<0,AB54>0),180-DEGREES(ATAN(ABS(AB54)/ABS(AD54))),((IF(AND(AD54>0,AB54<0),360-DEGREES(ATAN(ABS(AB54)/ABS(AD54))),180+DEGREES(ATAN(ABS(AB54)/ABS(AD54))))))))) ->  | AF55: =(((AF54^2)+(AH54^2))^0.5)/1000 ->  | AH55: =IF(AND(AH54>0,AF54>0),DEGREES(ATAN(ABS(AF54)/ABS(AH54))),(IF(AND(AH54<0,AF54>0),180-DEGREES(ATAN(ABS(AF54)/ABS(AH54))),((IF(AND(AH54>0,AF54<0),360-DEGREES(ATAN(ABS(AF54)/ABS(AH54))),180+DEGREES(ATAN(ABS(AF54)/ABS(AH54))))))))) ->  | AJ55: =(((AJ54^2)+(AL54^2))^0.5)/1000 ->  | AL55: =IF(AND(AL54>0,AJ54>0),DEGREES(ATAN(ABS(AJ54)/ABS(AL54))),(IF(AND(AL54<0,AJ54>0),180-DEGREES(ATAN(ABS(AJ54)/ABS(AL54))),((IF(AND(AL54>0,AJ54<0),360-DEGREES(ATAN(ABS(AJ54)/ABS(AL54))),180+DEGREES(ATAN(ABS(AJ54)/ABS(AL54))))))))) ->  | AN55: =(((AN54^2)+(AP54^2))^0.5)/1000 ->  | AP55: =IF(AND(AP54>0,AN54>0),DEGREES(ATAN(ABS(AN54)/ABS(AP54))),(IF(AND(AP54<0,AN54>0),180-DEGREES(ATAN(ABS(AN54)/ABS(AP54))),((IF(AND(AP54>0,AN54<0),360-DEGREES(ATAN(ABS(AN54)/ABS(AP54))),180+DEGREES(ATAN(ABS(AN54)/ABS(AP54))))))))) ->  | AR55: =(((AR54^2)+(AT54^2))^0.5)/1000 ->  | AT55: =IF(AND(AT54>0,AR54>0),DEGREES(ATAN(ABS(AR54)/ABS(AT54))),(IF(AND(AT54<0,AR54>0),180-DEGREES(ATAN(ABS(AR54)/ABS(AT54))),((IF(AND(AT54>0,AR54<0),360-DEGREES(ATAN(ABS(AR54)/ABS(AT54))),180+DEGREES(ATAN(ABS(AR54)/ABS(AT54))))))))) ->  | AV55: =(((AV54^2)+(AX54^2))^0.5)/1000 ->  | AX55: =IF(AND(AX54>0,AV54>0),DEGREES(ATAN(ABS(AV54)/ABS(AX54))),(IF(AND(AX54<0,AV54>0),180-DEGREES(ATAN(ABS(AV54)/ABS(AX54))),((IF(AND(AX54>0,AV54<0),360-DEGREES(ATAN(ABS(AV54)/ABS(AX54))),180+DEGREES(ATAN(ABS(AV54)/ABS(AX54))))))))) ->  | AZ55: =(((AZ54^2)+(BB54^2))^0.5)/1000 ->  | BB55: =IF(AND(BB54>0,AZ54>0),DEGREES(ATAN(ABS(AZ54)/ABS(BB54))),(IF(AND(BB54<0,AZ54>0),180-DEGREES(ATAN(ABS(AZ54)/ABS(BB54))),((IF(AND(BB54>0,AZ54<0),360-DEGREES(ATAN(ABS(AZ54)/ABS(BB54))),180+DEGREES(ATAN(ABS(AZ54)/ABS(BB54))))))))) ->  | BD55: =(((BD54^2)+(BF54^2))^0.5)/1000 ->  | BF55: =IF(AND(BF54>0,BD54>0),DEGREES(ATAN(ABS(BD54)/ABS(BF54))),(IF(AND(BF54<0,BD54>0),180-DEGREES(ATAN(ABS(BD54)/ABS(BF54))),((IF(AND(BF54>0,BD54<0),360-DEGREES(ATAN(ABS(BD54)/ABS(BF54))),180+DEGREES(ATAN(ABS(BD54)/ABS(BF54))))))))) ->  | BH55: =(((BH54^2)+(BJ54^2))^0.5)/1000 ->  | BJ55: =IF(AND(BJ54>0,BH54>0),DEGREES(ATAN(ABS(BH54)/ABS(BJ54))),(IF(AND(BJ54<0,BH54>0),180-DEGREES(ATAN(ABS(BH54)/ABS(BJ54))),((IF(AND(BJ54>0,BH54<0),360-DEGREES(ATAN(ABS(BH54)/ABS(BJ54))),180+DEGREES(ATAN(ABS(BH54)/ABS(BJ54))))))))) ->  | BL55: =(((BL54^2)+(BN54^2))^0.5)/1000 ->  | BN55: =IF(AND(BN54>0,BL54>0),DEGREES(ATAN(ABS(BL54)/ABS(BN54))),(IF(AND(BN54<0,BL54>0),180-DEGREES(ATAN(ABS(BL54)/ABS(BN54))),((IF(AND(BN54>0,BL54<0),360-DEGREES(ATAN(ABS(BL54)/ABS(BN54))),180+DEGREES(ATAN(ABS(BL54)/ABS(BN54))))))))) ->  | BP55: =(((BP54^2)+(BR54^2))^0.5)/1000 ->  | BR55: =IF(AND(BR54>0,BP54>0),DEGREES(ATAN(ABS(BP54)/ABS(BR54))),(IF(AND(BR54<0,BP54>0),180-DEGREES(ATAN(ABS(BP54)/ABS(BR54))),((IF(AND(BR54>0,BP54<0),360-DEGREES(ATAN(ABS(BP54)/ABS(BR54))),180+DEGREES(ATAN(ABS(BP54)/ABS(BR54))))))))) ->  | BT55: =(((BT54^2)+(BV54^2))^0.5)/1000 ->  | BV55: =IF(AND(BV54>0,BT54>0),DEGREES(ATAN(ABS(BT54)/ABS(BV54))),(IF(AND(BV54<0,BT54>0),180-DEGREES(ATAN(ABS(BT54)/ABS(BV54))),((IF(AND(BV54>0,BT54<0),360-DEGREES(ATAN(ABS(BT54)/ABS(BV54))),180+DEGREES(ATAN(ABS(BT54)/ABS(BV54))))))))) ->  | BX55: =(((BX54^2)+(BZ54^2))^0.5)/1000 ->  | BZ55: =IF(AND(BZ54>0,BX54>0),DEGREES(ATAN(ABS(BX54)/ABS(BZ54))),(IF(AND(BZ54<0,BX54>0),180-DEGREES(ATAN(ABS(BX54)/ABS(BZ54))),((IF(AND(BZ54>0,BX54<0),360-DEGREES(ATAN(ABS(BX54)/ABS(BZ54))),180+DEGREES(ATAN(ABS(BX54)/ABS(BZ54))))))))) ->  | CB55: =(((CB54^2)+(CD54^2))^0.5)/1000 ->  | CD55: =IF(AND(CD54>0,CB54>0),DEGREES(ATAN(ABS(CB54)/ABS(CD54))),(IF(AND(CD54<0,CB54>0),180-DEGREES(ATAN(ABS(CB54)/ABS(CD54))),((IF(AND(CD54>0,CB54<0),360-DEGREES(ATAN(ABS(CB54)/ABS(CD54))),180+DEGREES(ATAN(ABS(CB54)/ABS(CD54))))))))) ->  | CF55: =CF54/100 -> 
A58: 51h 81 | B58: ID TRAMA | C58: Fecha ADCP | G58: V1 | I58: Presion | K58: Compass heading | M58: Compass Pitch | O58: Compass Roll
A59: Unidad | B59: Id de la Trama | C59: DDMMAAhhmm (Telemando RC) | G59: Line V (Telemando BV) | I59: dBar | K59: º | M59: º | O59: º
A60: Posición byte | B60: 1 | C60: 2 | D60: 3 | E60: 4 | F60: 5 | G60: 6 | H60: 7 | I60: 8 | J60: 9 | K60: 10 | L60: 11 | M60: 12 | N60: 13 | O60: 14 | P60: 15
A61: 51 | B61: =IF(_xlfn.xlookup($A61,$L$133:$L$144,$R$133:$R$144)=0,INDEX($A$5:$ZZ$5,1,_xlfn.xlookup($A61,$L$133:$L$144,$N$133:$N$144)+B60-1)) ->  | C61: =IF(_xlfn.xlookup($A61,$L$133:$L$144,$R$133:$R$144)=0,INDEX($A$5:$ZZ$5,1,_xlfn.xlookup($A61,$L$133:$L$144,$N$133:$N$144)+C60-1)) ->  | D61: =IF(_xlfn.xlookup($A61,$L$133:$L$144,$R$133:$R$144)=0,INDEX($A$5:$ZZ$5,1,_xlfn.xlookup($A61,$L$133:$L$144,$N$133:$N$144)+D60-1)) ->  | E61: =IF(_xlfn.xlookup($A61,$L$133:$L$144,$R$133:$R$144)=0,INDEX($A$5:$ZZ$5,1,_xlfn.xlookup($A61,$L$133:$L$144,$N$133:$N$144)+E60-1)) ->  | F61: =IF(_xlfn.xlookup($A61,$L$133:$L$144,$R$133:$R$144)=0,INDEX($A$5:$ZZ$5,1,_xlfn.xlookup($A61,$L$133:$L$144,$N$133:$N$144)+F60-1)) ->  | G61: =IF(_xlfn.xlookup($A61,$L$133:$L$144,$R$133:$R$144)=0,INDEX($A$5:$ZZ$5,1,_xlfn.xlookup($A61,$L$133:$L$144,$N$133:$N$144)+G60-1)) ->  | H61: =IF(_xlfn.xlookup($A61,$L$133:$L$144,$R$133:$R$144)=0,INDEX($A$5:$ZZ$5,1,_xlfn.xlookup($A61,$L$133:$L$144,$N$133:$N$144)+H60-1)) ->  | I61: =IF(_xlfn.xlookup($A61,$L$133:$L$144,$R$133:$R$144)=0,INDEX($A$5:$ZZ$5,1,_xlfn.xlookup($A61,$L$133:$L$144,$N$133:$N$144)+I60-1)) ->  | J61: =IF(_xlfn.xlookup($A61,$L$133:$L$144,$R$133:$R$144)=0,INDEX($A$5:$ZZ$5,1,_xlfn.xlookup($A61,$L$133:$L$144,$N$133:$N$144)+J60-1)) ->  | K61: =IF(_xlfn.xlookup($A61,$L$133:$L$144,$R$133:$R$144)=0,INDEX($A$5:$ZZ$5,1,_xlfn.xlookup($A61,$L$133:$L$144,$N$133:$N$144)+K60-1)) ->  | L61: =IF(_xlfn.xlookup($A61,$L$133:$L$144,$R$133:$R$144)=0,INDEX($A$5:$ZZ$5,1,_xlfn.xlookup($A61,$L$133:$L$144,$N$133:$N$144)+L60-1)) ->  | M61: =IF(_xlfn.xlookup($A61,$L$133:$L$144,$R$133:$R$144)=0,INDEX($A$5:$ZZ$5,1,_xlfn.xlookup($A61,$L$133:$L$144,$N$133:$N$144)+M60-1)) ->  | N61: =IF(_xlfn.xlookup($A61,$L$133:$L$144,$R$133:$R$144)=0,INDEX($A$5:$ZZ$5,1,_xlfn.xlookup($A61,$L$133:$L$144,$N$133:$N$144)+N60-1)) ->  | O61: =IF(_xlfn.xlookup($A61,$L$133:$L$144,$R$133:$R$144)=0,INDEX($A$5:$ZZ$5,1,_xlfn.xlookup($A61,$L$133:$L$144,$N$133:$N$144)+O60-1)) ->  | P61: =IF(_xlfn.xlookup($A61,$L$133:$L$144,$R$133:$R$144)=0,INDEX($A$5:$ZZ$5,1,_xlfn.xlookup($A61,$L$133:$L$144,$N$133:$N$144)+P60-1)) -> 
A62: HEX | B62: =TEXT(B61,"00") ->  | C62: =CONCATENATE(TEXT(C61,"00"),TEXT(D61,"00"),TEXT(E61,"00"),TEXT(F61,"00")) ->  | G62: =CONCATENATE(TEXT(G61,"00"),TEXT(H61,"00")) ->  | I62: =CONCATENATE(TEXT(I61,"00"),TEXT(J61,"00")) ->  | K62: =CONCATENATE(TEXT(K61,"00"),TEXT(L61,"00")) ->  | M62: =CONCATENATE(TEXT(M61,"00"),TEXT(N61,"00")) ->  | O62: =CONCATENATE(TEXT(O61,"00"),TEXT(P61,"00")) -> 
A63: DEC | B63: =HEX2DEC(B62) ->  | C63: =TEXT(HEX2DEC(C62),"0000000000") ->  | G63: =HEX2DEC(G62) ->  | I63: =HEX2DEC(I62) ->  | K63: =IF(HEX2DEC(K62)>(32767),HEX2DEC(K62)-65536,HEX2DEC(K62)) ->  | M63: =IF(HEX2DEC(M62)>(32767),HEX2DEC(M62)-65536,HEX2DEC(M62)) ->  | O63: =IF(HEX2DEC(O62)>(32767),HEX2DEC(O62)-65536,HEX2DEC(O62)) -> 
B64: =B63 ->  | C64: =DATE(MID(C63,5,2)+100,MID(C63,3,2),MID(C63,1,2)) ->  | E64: =(RIGHT(C63,4)) ->  | G64: =G63/1000 ->  | I64: =I63/1000 ->  | K64: =K63/10 ->  | M64: =M63/10 ->  | O64: =O63/10 -> 
A68: A0h | B68: WAVE | D68: VQTY | F68: VMXL | H68: VH110 | J68: VAVH | L68: VHM0 | N68: VTMX | P68: VTPK | R68: VT110 | T68: VAVT | V68: VGTA | X68: VDIR | Z68: VPSP | AB68: VFL1 | AC68: VFL2
A69: 160 | B69: ID TRAMA | C69: DIF FECHA | D69: NRO DE OLAS | F69: H.MAX. | H69: HSIG/10 | J69: HSIG/3 | L69: HMED | N69: TMAX | P69: TPICO | R69: TSIG/10 | T69: TSIG/3 | V69: TMED | X69: DIR | Z69: DESV | AB69: FLAG1 | AC69: FLAG2
A70: Unidad | B70: Id de la Trama | C70: minutos (pos.y neg.) | D70: Definido en la configuración | F70: Altura Máxima cm | H70: Altura Significativa H/10 cm | J70: Altura Significativa H/3 cm | L70: Altura Media cm | N70: Período Máximo seg x 10-1 | P70: Período Pico seg x 10-1 | R70: Período Significativo H/10 seg x 10-1 | T70: Período Significativo H/3 seg x 10-1 | V70: Período Medio seg x 10-1 | X70: Dirección grados x 10-1 | Z70: Disperción grados x 10-2 | AB70: Definido en la configuración | AC70: Definido en la configuración
A71: Posición byte | B71: 1 | C71: 2 | D71: 3 | E71: 4 | F71: 5 | G71: 6 | H71: 7 | I71: 8 | J71: 9 | K71: 10 | L71: 11 | M71: 12 | N71: 13 | O71: 14 | P71: 15 | Q71: 16 | R71: 17 | S71: 18 | T71: 19 | U71: 20 | V71: 21 | W71: 22 | X71: 23 | Y71: 24 | Z71: 25 | AA71: 26 | AB71: 27 | AC71: 28
A72: A0 | B72: =IF(_xlfn.xlookup($A72,$L$133:$L$144,$R$133:$R$144)=0,INDEX($A$5:$ZZ$5,1,_xlfn.xlookup($A72,$L$133:$L$144,$N$133:$N$144)+B71-1)) ->  | C72: =IF(_xlfn.xlookup($A72,$L$133:$L$144,$R$133:$R$144)=0,INDEX($A$5:$ZZ$5,1,_xlfn.xlookup($A72,$L$133:$L$144,$N$133:$N$144)+C71-1)) ->  | D72: =IF(_xlfn.xlookup($A72,$L$133:$L$144,$R$133:$R$144)=0,INDEX($A$5:$ZZ$5,1,_xlfn.xlookup($A72,$L$133:$L$144,$N$133:$N$144)+D71-1)) ->  | E72: =IF(_xlfn.xlookup($A72,$L$133:$L$144,$R$133:$R$144)=0,INDEX($A$5:$ZZ$5,1,_xlfn.xlookup($A72,$L$133:$L$144,$N$133:$N$144)+E71-1)) ->  | F72: =IF(_xlfn.xlookup($A72,$L$133:$L$144,$R$133:$R$144)=0,INDEX($A$5:$ZZ$5,1,_xlfn.xlookup($A72,$L$133:$L$144,$N$133:$N$144)+F71-1)) ->  | G72: =IF(_xlfn.xlookup($A72,$L$133:$L$144,$R$133:$R$144)=0,INDEX($A$5:$ZZ$5,1,_xlfn.xlookup($A72,$L$133:$L$144,$N$133:$N$144)+G71-1)) ->  | H72: =IF(_xlfn.xlookup($A72,$L$133:$L$144,$R$133:$R$144)=0,INDEX($A$5:$ZZ$5,1,_xlfn.xlookup($A72,$L$133:$L$144,$N$133:$N$144)+H71-1)) ->  | I72: =IF(_xlfn.xlookup($A72,$L$133:$L$144,$R$133:$R$144)=0,INDEX($A$5:$ZZ$5,1,_xlfn.xlookup($A72,$L$133:$L$144,$N$133:$N$144)+I71-1)) ->  | J72: =IF(_xlfn.xlookup($A72,$L$133:$L$144,$R$133:$R$144)=0,INDEX($A$5:$ZZ$5,1,_xlfn.xlookup($A72,$L$133:$L$144,$N$133:$N$144)+J71-1)) ->  | K72: =IF(_xlfn.xlookup($A72,$L$133:$L$144,$R$133:$R$144)=0,INDEX($A$5:$ZZ$5,1,_xlfn.xlookup($A72,$L$133:$L$144,$N$133:$N$144)+K71-1)) ->  | L72: =IF(_xlfn.xlookup($A72,$L$133:$L$144,$R$133:$R$144)=0,INDEX($A$5:$ZZ$5,1,_xlfn.xlookup($A72,$L$133:$L$144,$N$133:$N$144)+L71-1)) ->  | M72: =IF(_xlfn.xlookup($A72,$L$133:$L$144,$R$133:$R$144)=0,INDEX($A$5:$ZZ$5,1,_xlfn.xlookup($A72,$L$133:$L$144,$N$133:$N$144)+M71-1)) ->  | N72: =IF(_xlfn.xlookup($A72,$L$133:$L$144,$R$133:$R$144)=0,INDEX($A$5:$ZZ$5,1,_xlfn.xlookup($A72,$L$133:$L$144,$N$133:$N$144)+N71-1)) ->  | O72: =IF(_xlfn.xlookup($A72,$L$133:$L$144,$R$133:$R$144)=0,INDEX($A$5:$ZZ$5,1,_xlfn.xlookup($A72,$L$133:$L$144,$N$133:$N$144)+O71-1)) ->  | P72: =IF(_xlfn.xlookup($A72,$L$133:$L$144,$R$133:$R$144)=0,INDEX($A$5:$ZZ$5,1,_xlfn.xlookup($A72,$L$133:$L$144,$N$133:$N$144)+P71-1)) ->  | Q72: =IF(_xlfn.xlookup($A72,$L$133:$L$144,$R$133:$R$144)=0,INDEX($A$5:$ZZ$5,1,_xlfn.xlookup($A72,$L$133:$L$144,$N$133:$N$144)+Q71-1)) ->  | R72: =IF(_xlfn.xlookup($A72,$L$133:$L$144,$R$133:$R$144)=0,INDEX($A$5:$ZZ$5,1,_xlfn.xlookup($A72,$L$133:$L$144,$N$133:$N$144)+R71-1)) ->  | S72: =IF(_xlfn.xlookup($A72,$L$133:$L$144,$R$133:$R$144)=0,INDEX($A$5:$ZZ$5,1,_xlfn.xlookup($A72,$L$133:$L$144,$N$133:$N$144)+S71-1)) ->  | T72: =IF(_xlfn.xlookup($A72,$L$133:$L$144,$R$133:$R$144)=0,INDEX($A$5:$ZZ$5,1,_xlfn.xlookup($A72,$L$133:$L$144,$N$133:$N$144)+T71-1)) ->  | U72: =IF(_xlfn.xlookup($A72,$L$133:$L$144,$R$133:$R$144)=0,INDEX($A$5:$ZZ$5,1,_xlfn.xlookup($A72,$L$133:$L$144,$N$133:$N$144)+U71-1)) ->  | V72: =IF(_xlfn.xlookup($A72,$L$133:$L$144,$R$133:$R$144)=0,INDEX($A$5:$ZZ$5,1,_xlfn.xlookup($A72,$L$133:$L$144,$N$133:$N$144)+V71-1)) ->  | W72: =IF(_xlfn.xlookup($A72,$L$133:$L$144,$R$133:$R$144)=0,INDEX($A$5:$ZZ$5,1,_xlfn.xlookup($A72,$L$133:$L$144,$N$133:$N$144)+W71-1)) ->  | X72: =IF(_xlfn.xlookup($A72,$L$133:$L$144,$R$133:$R$144)=0,INDEX($A$5:$ZZ$5,1,_xlfn.xlookup($A72,$L$133:$L$144,$N$133:$N$144)+X71-1)) ->  | Y72: =IF(_xlfn.xlookup($A72,$L$133:$L$144,$R$133:$R$144)=0,INDEX($A$5:$ZZ$5,1,_xlfn.xlookup($A72,$L$133:$L$144,$N$133:$N$144)+Y71-1)) ->  | Z72: =IF(_xlfn.xlookup($A72,$L$133:$L$144,$R$133:$R$144)=0,INDEX($A$5:$ZZ$5,1,_xlfn.xlookup($A72,$L$133:$L$144,$N$133:$N$144)+Z71-1)) ->  | AA72: =IF(_xlfn.xlookup($A72,$L$133:$L$144,$R$133:$R$144)=0,INDEX($A$5:$ZZ$5,1,_xlfn.xlookup($A72,$L$133:$L$144,$N$133:$N$144)+AA71-1)) ->  | AB72: =IF(_xlfn.xlookup($A72,$L$133:$L$144,$R$133:$R$144)=0,INDEX($A$5:$ZZ$5,1,_xlfn.xlookup($A72,$L$133:$L$144,$N$133:$N$144)+AB71-1)) ->  | AC72: =IF(_xlfn.xlookup($A72,$L$133:$L$144,$R$133:$R$144)=0,INDEX($A$5:$ZZ$5,1,_xlfn.xlookup($A72,$L$133:$L$144,$N$133:$N$144)+AC71-1)) -> 
A73: HEX | B73: =TEXT(B72,"00") ->  | C73: =TEXT(C72,"00") ->  | D73: =CONCATENATE(TEXT(D72,"00"),TEXT(E72,"00")) ->  | F73: =CONCATENATE(TEXT(F72,"00"),TEXT(G72,"00")) ->  | H73: =CONCATENATE(TEXT(H72,"00"),TEXT(I72,"00")) ->  | J73: =CONCATENATE(TEXT(J72,"00"),TEXT(K72,"00")) ->  | L73: =CONCATENATE(TEXT(L72,"00"),TEXT(M72,"00")) ->  | N73: =CONCATENATE(TEXT(N72,"00"),TEXT(O72,"00")) ->  | P73: =CONCATENATE(TEXT(P72,"00"),TEXT(Q72,"00")) ->  | R73: =CONCATENATE(TEXT(R72,"00"),TEXT(S72,"00")) ->  | T73: =CONCATENATE(TEXT(T72,"00"),TEXT(U72,"00")) ->  | V73: =CONCATENATE(TEXT(V72,"00"),TEXT(W72,"00")) ->  | X73: =CONCATENATE(TEXT(X72,"00"),TEXT(Y72,"00")) ->  | Z73: =CONCATENATE(TEXT(Z72,"00"),TEXT(AA72,"00")) ->  | AB73: =TEXT(AB72,"00") ->  | AC73: =TEXT(AC72,"00") -> 
A74: DEC | B74: =HEX2DEC(B73) ->  | C74: =IF(HEX2DEC(C73)>(127),HEX2DEC(C73)-256,HEX2DEC(C73)) ->  | D74: =IF(HEX2DEC(D73)>(32767),HEX2DEC(D73)-65536,HEX2DEC(D73)) ->  | F74: =IF(HEX2DEC(F73)>(32769),HEX2DEC(F73)-65536,HEX2DEC(F73)) ->  | H74: =IF(HEX2DEC(H73)>(32769),HEX2DEC(H73)-65536,HEX2DEC(H73)) ->  | J74: =IF(HEX2DEC(J73)>(32769),HEX2DEC(J73)-65536,HEX2DEC(J73)) ->  | L74: =IF(HEX2DEC(L73)>(32769),HEX2DEC(L73)-65536,HEX2DEC(L73)) ->  | N74: =IF(HEX2DEC(N73)>(32769),HEX2DEC(N73)-65536,HEX2DEC(N73)) ->  | P74: =IF(HEX2DEC(P73)>(32769),HEX2DEC(P73)-65536,HEX2DEC(P73)) ->  | R74: =IF(HEX2DEC(R73)>(32769),HEX2DEC(R73)-65536,HEX2DEC(R73)) ->  | T74: =IF(HEX2DEC(T73)>(32769),HEX2DEC(T73)-65536,HEX2DEC(T73)) ->  | V74: =IF(HEX2DEC(V73)>(32769),HEX2DEC(V73)-65536,HEX2DEC(V73)) ->  | X74: =IF(HEX2DEC(X73)>(32769),HEX2DEC(X73)-65536,HEX2DEC(X73)) ->  | Z74: =IF(HEX2DEC(Z73)>(32769),HEX2DEC(Z73)-65536,HEX2DEC(Z73)) ->  | AB74: =HEX2DEC(AB73) ->  | AC74: =HEX2DEC(AC73) -> 
B75: =$G$8 -> 2023-07-20 | C75: =($I$8+C74/24/60) -> 
A78: A1h 161 | B78: ID TRAMA | C78: Fecha MBW3 (última ola) | G78: Ocupación SD | H78: Nro. Reinicios | I78: SBG/SD OK
A79: Unidad | B79: Id de la Trama | C79: DDMMAAhhmm | G79: % | H79: Num | I79: Estado del SBG y de la SD B0= Edo. SBG B1= Edo. SD | J79: Cantidad
A80: Valor Min. | B80: 161 | C80: 0101200000 | G80: 0 | H80: 0 | I80: 0
A81: Valor Max. | B81: 161 | C81: 3112992359 | G81: 100 | H81: 255 | I81: 3
A82: Posición trama a tx | B82: 1 | C82: =B82+B83 -> 2 | G82: =C82+C83 -> 6 | H82: =G82+G83 -> 7 | I82: =H82+H83 -> 8 | J82: =I82+I83 -> 9
A83: bytes a tx | B83: 1 | C83: 4 | G83: 1 | H83: 1 | I83: 1
A84: Ejm. completo | B84: 161 | C84: 3103221345 | G84: 61 | H84: 4 | I84: 3 | J84: 4F
A86: EJEMPLO: | B86: A1 3B EA 75 52 00 40 02 CF
A87: Unidad | B87: Id de la Trama | C87: DDMMAAhhmm | G87: % 111= no se puede mirar el % 112=no se tiene acceso a la SD (SD no presente) 255= SD no inicializada | H87: Num | I87: Estado del SBG y de la SD B0 SBG: 0 = no genera tramas. 1 = Genera tramas B1 SD: 0 = No se están escribiendo datos 1 = Se están escribiendo datos
B88: A1 | C88: 4D | D88: AD | E88: B9 | F88: 73 | G88: FF | H88: 3F | I88: 2 | J88: A2 | K88: 4D | L88: AD | M88: B9 | N88: 74 | O88: 0 | P88: 3C | Q88: 67 | R88: 14 | S88: FF | T88: FF | U88: 30 | V88: 4C | W88: 5 | X88: 3 | Y88: 0D | Z88: 31
A89: Posición byte | B89: 1 | C89: 2 | D89: 3 | E89: 4 | F89: 5 | G89: 6 | H89: 7 | I89: 8 | AI89: 0 | AJ89: 64 | AK89: 64 | AL89: 1D | AM89: D9 | AN89: FA | AO89: EC | AP89: FD | AQ89: BD | AR89: FF | AS89: 17 | AT89: FF | AU89: 8C | AV89: FB | AW89: 91 | AX89: 2 | AY89: 7A | AZ89: 9 | BA89: F4 | BB89: 1E | BC89: 1 | BD89: 0 | BE89: 5F | BF89: 9 | BG89: F6 | BH89: 0 | BI89: 1 | BJ89: 0 | BK89: 1 | BL89: 0 | BM89: 0 | BN89: A0 | BO89: 0A | BP89: 0 | BQ89: 2 | BR89: 0 | BS89: 2 | BT89: 0 | BU89: 2 | BV89: 0 | BW89: 2 | BX89: 0 | BY89: 2 | BZ89: 1 | CA89: 16 | CB89: 0 | CC89: E0 | CD89: 1 | CE89: 16 | CF89: 1 | CG89: 16 | CH89: 0 | CI89: FB | CJ89: 0A | CK89: 9 | CL89: 0 | CM89: 82 | CN89: 64 | CO89: 64 | CP89: 2C | CQ89: A6
A90: A1 | B90: =IF(_xlfn.xlookup($A90,$L$133:$L$144,$R$133:$R$144)=0,INDEX($A$5:$ZZ$5,1,_xlfn.xlookup($A90,$L$133:$L$144,$N$133:$N$144)+B89-1)) ->  | C90: =IF(_xlfn.xlookup($A90,$L$133:$L$144,$R$133:$R$144)=0,INDEX($A$5:$ZZ$5,1,_xlfn.xlookup($A90,$L$133:$L$144,$N$133:$N$144)+C89-1)) ->  | D90: =IF(_xlfn.xlookup($A90,$L$133:$L$144,$R$133:$R$144)=0,INDEX($A$5:$ZZ$5,1,_xlfn.xlookup($A90,$L$133:$L$144,$N$133:$N$144)+D89-1)) ->  | E90: =IF(_xlfn.xlookup($A90,$L$133:$L$144,$R$133:$R$144)=0,INDEX($A$5:$ZZ$5,1,_xlfn.xlookup($A90,$L$133:$L$144,$N$133:$N$144)+E89-1)) ->  | F90: =IF(_xlfn.xlookup($A90,$L$133:$L$144,$R$133:$R$144)=0,INDEX($A$5:$ZZ$5,1,_xlfn.xlookup($A90,$L$133:$L$144,$N$133:$N$144)+F89-1)) ->  | G90: =IF(_xlfn.xlookup($A90,$L$133:$L$144,$R$133:$R$144)=0,INDEX($A$5:$ZZ$5,1,_xlfn.xlookup($A90,$L$133:$L$144,$N$133:$N$144)+G89-1)) ->  | H90: =IF(_xlfn.xlookup($A90,$L$133:$L$144,$R$133:$R$144)=0,INDEX($A$5:$ZZ$5,1,_xlfn.xlookup($A90,$L$133:$L$144,$N$133:$N$144)+H89-1)) ->  | I90: =IF(_xlfn.xlookup($A90,$L$133:$L$144,$R$133:$R$144)=0,INDEX($A$5:$ZZ$5,1,_xlfn.xlookup($A90,$L$133:$L$144,$N$133:$N$144)+I89-1)) -> 
A91: HEX | B91: =TEXT(B90,"00") ->  | C91: =CONCATENATE(TEXT(C90,"00"),TEXT(D90,"00"),TEXT(E90,"00"),TEXT(F90,"00")) ->  | G91: =TEXT(G90,"00") ->  | H91: =TEXT(H90,"00") ->  | I91: =TEXT(I90,"00") ->  | J91: =TEXT(J90,"00") -> 00
A92: DEC | B92: =HEX2DEC(B91) ->  | C92: =TEXT(HEX2DEC(C91),"0000000000") ->  | G92: =HEX2DEC(G91) ->  | H92: =HEX2DEC(H91) ->  | I92: =HEX2DEC(I91) ->  | J92: =HEX2DEC(J91) -> 0
B93: =B92 ->  | C93: =DATE(MID(C92,5,2)+100,MID(C92,3,2),MID(C92,1,2)) ->  | E93: =(RIGHT(C92,4)) ->  | H93: =H92 ->  | I93: =DEC2BIN(I92) ->  | J93: =J92 -> 0
A96: A2h 162 | B96: ID TRAMA | C96: Fecha GPS MBW3 | G96: Latitud | K96: Longitud | O96: Cant. Sat. | P96: PDOP
A97: Unidad | B97: Id de la Trama | C97: DDMMAAhhmm | G97: Definido en la configuración | K97: Definido en la configuración | O97: Cantidad de Satélites | P97: Calidad Posición
A98: Posición byte | B98: 1 | C98: 2 | D98: 3 | E98: 4 | F98: 5 | G98: 6 | H98: 7 | I98: 8 | J98: 9 | K98: 10 | L98: 11 | M98: 12 | N98: 13 | O98: 14 | P98: 15 | Q98: 16 | AI98: 0 | AJ98: 2 | AK98: 0 | AL98: C8 | AM98: 0 | AN98: C8 | AO98: 0 | AP98: C8 | AQ98: 0 | AR98: C8 | AS98: 0 | AT98: C8 | AU98: 0A | AV98: 5E | AW98: 0 | AX98: 0 | AY98: 64 | AZ98: 64 | BA98: 1D | BB98: D9 | BC98: FA | BD98: EC | BE98: FD | BF98: BD | BG98: FF | BH98: 17 | BI98: FF | BJ98: 8C | BK98: FB | BL98: 91 | BM98: 2 | BN98: 7A | BO98: 9 | BP98: F4 | BQ98: 1E | BR98: 1 | BS98: 0 | BT98: 5F | BU98: 9 | BV98: F6 | BW98: 0 | BX98: 1 | BY98: 0 | BZ98: 1 | CA98: 0 | CB98: 0 | CC98: A0 | CD98: 0A | CE98: 0 | CF98: 2 | CG98: 0 | CH98: 2 | CI98: 0 | CJ98: 2 | CK98: 0 | CL98: 2 | CM98: 0 | CN98: 2 | CO98: 1 | CP98: 16 | CQ98: 0 | CR98: E0 | CS98: 1 | CT98: 16 | CU98: 1 | CV98: 16 | CW98: 0 | CX98: FB | CY98: 0A | CZ98: 9 | DA98: 0 | DB98: 82 | DC98: 64 | DD98: 64 | DE98: 2C | DF98: A6
A99: A2 | B99: =IF(_xlfn.xlookup($A99,$L$133:$L$144,$R$133:$R$144)=0,INDEX($A$5:$ZZ$5,1,_xlfn.xlookup($A99,$L$133:$L$144,$N$133:$N$144)+B98-1)) ->  | C99: =IF(_xlfn.xlookup($A99,$L$133:$L$144,$R$133:$R$144)=0,INDEX($A$5:$ZZ$5,1,_xlfn.xlookup($A99,$L$133:$L$144,$N$133:$N$144)+C98-1)) ->  | D99: =IF(_xlfn.xlookup($A99,$L$133:$L$144,$R$133:$R$144)=0,INDEX($A$5:$ZZ$5,1,_xlfn.xlookup($A99,$L$133:$L$144,$N$133:$N$144)+D98-1)) ->  | E99: =IF(_xlfn.xlookup($A99,$L$133:$L$144,$R$133:$R$144)=0,INDEX($A$5:$ZZ$5,1,_xlfn.xlookup($A99,$L$133:$L$144,$N$133:$N$144)+E98-1)) ->  | F99: =IF(_xlfn.xlookup($A99,$L$133:$L$144,$R$133:$R$144)=0,INDEX($A$5:$ZZ$5,1,_xlfn.xlookup($A99,$L$133:$L$144,$N$133:$N$144)+F98-1)) ->  | G99: =IF(_xlfn.xlookup($A99,$L$133:$L$144,$R$133:$R$144)=0,INDEX($A$5:$ZZ$5,1,_xlfn.xlookup($A99,$L$133:$L$144,$N$133:$N$144)+G98-1)) ->  | H99: =IF(_xlfn.xlookup($A99,$L$133:$L$144,$R$133:$R$144)=0,INDEX($A$5:$ZZ$5,1,_xlfn.xlookup($A99,$L$133:$L$144,$N$133:$N$144)+H98-1)) ->  | I99: =IF(_xlfn.xlookup($A99,$L$133:$L$144,$R$133:$R$144)=0,INDEX($A$5:$ZZ$5,1,_xlfn.xlookup($A99,$L$133:$L$144,$N$133:$N$144)+I98-1)) ->  | J99: =IF(_xlfn.xlookup($A99,$L$133:$L$144,$R$133:$R$144)=0,INDEX($A$5:$ZZ$5,1,_xlfn.xlookup($A99,$L$133:$L$144,$N$133:$N$144)+J98-1)) ->  | K99: =IF(_xlfn.xlookup($A99,$L$133:$L$144,$R$133:$R$144)=0,INDEX($A$5:$ZZ$5,1,_xlfn.xlookup($A99,$L$133:$L$144,$N$133:$N$144)+K98-1)) ->  | L99: =IF(_xlfn.xlookup($A99,$L$133:$L$144,$R$133:$R$144)=0,INDEX($A$5:$ZZ$5,1,_xlfn.xlookup($A99,$L$133:$L$144,$N$133:$N$144)+L98-1)) ->  | M99: =IF(_xlfn.xlookup($A99,$L$133:$L$144,$R$133:$R$144)=0,INDEX($A$5:$ZZ$5,1,_xlfn.xlookup($A99,$L$133:$L$144,$N$133:$N$144)+M98-1)) ->  | N99: =IF(_xlfn.xlookup($A99,$L$133:$L$144,$R$133:$R$144)=0,INDEX($A$5:$ZZ$5,1,_xlfn.xlookup($A99,$L$133:$L$144,$N$133:$N$144)+N98-1)) ->  | O99: =IF(_xlfn.xlookup($A99,$L$133:$L$144,$R$133:$R$144)=0,INDEX($A$5:$ZZ$5,1,_xlfn.xlookup($A99,$L$133:$L$144,$N$133:$N$144)+O98-1)) ->  | P99: =IF(_xlfn.xlookup($A99,$L$133:$L$144,$R$133:$R$144)=0,INDEX($A$5:$ZZ$5,1,_xlfn.xlookup($A99,$L$133:$L$144,$N$133:$N$144)+P98-1)) -> 
A100: HEX | B100: =TEXT(B99,"00") ->  | C100: =CONCATENATE(TEXT(C99,"00"),TEXT(D99,"00"),TEXT(E99,"00"),TEXT(F99,"00")) ->  | G100: =CONCATENATE(TEXT(G99,"00"),TEXT(H99,"00"),TEXT(I99,"00"),TEXT(J99,"00")) ->  | K100: =CONCATENATE(TEXT(K99,"00"),TEXT(L99,"00"),TEXT(M99,"00"),TEXT(N99,"00")) ->  | O100: =TEXT(O99,"00") ->  | P100: =TEXT(P99,"00") ->  | Q100: =TEXT(Q99,"00") -> 00 | R100: =TEXT(R99,"00") -> 00 | S100: =TEXT(S99,"00") -> 00 | T100: =TEXT(T99,"00") -> 00
A101: DEC | B101: =HEX2DEC(B100) ->  | C101: =TEXT(HEX2DEC(C100),"0000000000") ->  | G101: =TEXT(HEX2DEC(G100),"0000000000") ->  | K101: =TEXT(HEX2DEC(K100),"0000000000") ->  | O101: =HEX2DEC(O100) ->  | P101: =HEX2DEC(P100) ->  | Q101: =HEX2DEC(Q100) -> 0 | R101: =HEX2DEC(R100) -> 0 | S101: =HEX2DEC(S100) -> 0 | T101: =HEX2DEC(T100) -> 0
B102: =B101 ->  | C102: =DATE(MID(C101,5,2)+100,MID(C101,3,2),MID(C101,1,2)) ->  | E102: =(RIGHT(C101,4)) ->  | G102: =(IF(HEX2DEC(G100)>(2147483647),HEX2DEC(G100)-4294967296,HEX2DEC(G100)))*10^-7 ->  | K102: =(IF(HEX2DEC(K100)>(2147483647),HEX2DEC(K100)-4294967296,HEX2DEC(K100)))*10^-7 ->  | O102: =O101 ->  | P102: =P101 ->  | Q102: =Q101 -> 0 | R102: =R101 -> 0 | S102: =S101 -> 0 | T102: =T101 -> 0
G103: =TRUNC(G102,0) ->  | I103: =(G102-G103)*60 ->  | K103: =TRUNC(K102,0) ->  | M103: =(K102-K103)*60 -> 
B110: EMA | D110: WDIR | F110: WSPD | H110: GDIR | J110: GSPD | L110: ATMS | N110: DRYT
A111: 7Ah 122 | B111: ID TRAMA | C111: DIF FECHA | D111: Dirección del Viento | F111: Velocidad del Viento | H111: Dirección del Viento Ráfaga | J111: Velocidad del Viento Ráfaga | L111: Presión Atmosférica | N111: Temperatura
A112: Unidad | B112: Id de la Trama | C112: minutos (pos.y neg.) | D112: º (pos) | F112: m/s x 10-2 (pos) | H112: º (pos) | J112: m/s x 10-2 (pos) | L112: hPa x 10-1 (pos) | N112: ºC x 10-1 (pos.y neg.)
A113: bytes a tx | B113: 1 | C113: 1 | D113: 2 | F113: 2 | H113: 2 | J113: 2 | L113: 2 | N113: 2
A114: Posición byte | B114: 1 | C114: 2 | D114: 3 | E114: 4 | F114: 5 | G114: 6 | H114: 7 | I114: 8 | J114: 9 | K114: 10 | L114: 11 | M114: 12 | N114: 13 | O114: 14
A115: 7A | B115: =IF(_xlfn.xlookup($A115,$L$133:$L$144,$R$133:$R$144)=0,INDEX($A$5:$ZZ$5,1,_xlfn.xlookup($A115,$L$133:$L$144,$N$133:$N$144)+B114-1)) ->  | C115: =IF(_xlfn.xlookup($A115,$L$133:$L$144,$R$133:$R$144)=0,INDEX($A$5:$ZZ$5,1,_xlfn.xlookup($A115,$L$133:$L$144,$N$133:$N$144)+C114-1)) ->  | D115: =IF(_xlfn.xlookup($A115,$L$133:$L$144,$R$133:$R$144)=0,INDEX($A$5:$ZZ$5,1,_xlfn.xlookup($A115,$L$133:$L$144,$N$133:$N$144)+D114-1)) ->  | E115: =IF(_xlfn.xlookup($A115,$L$133:$L$144,$R$133:$R$144)=0,INDEX($A$5:$ZZ$5,1,_xlfn.xlookup($A115,$L$133:$L$144,$N$133:$N$144)+E114-1)) ->  | F115: =IF(_xlfn.xlookup($A115,$L$133:$L$144,$R$133:$R$144)=0,INDEX($A$5:$ZZ$5,1,_xlfn.xlookup($A115,$L$133:$L$144,$N$133:$N$144)+F114-1)) ->  | G115: =IF(_xlfn.xlookup($A115,$L$133:$L$144,$R$133:$R$144)=0,INDEX($A$5:$ZZ$5,1,_xlfn.xlookup($A115,$L$133:$L$144,$N$133:$N$144)+G114-1)) ->  | H115: =IF(_xlfn.xlookup($A115,$L$133:$L$144,$R$133:$R$144)=0,INDEX($A$5:$ZZ$5,1,_xlfn.xlookup($A115,$L$133:$L$144,$N$133:$N$144)+H114-1)) ->  | I115: =IF(_xlfn.xlookup($A115,$L$133:$L$144,$R$133:$R$144)=0,INDEX($A$5:$ZZ$5,1,_xlfn.xlookup($A115,$L$133:$L$144,$N$133:$N$144)+I114-1)) ->  | J115: =IF(_xlfn.xlookup($A115,$L$133:$L$144,$R$133:$R$144)=0,INDEX($A$5:$ZZ$5,1,_xlfn.xlookup($A115,$L$133:$L$144,$N$133:$N$144)+J114-1)) ->  | K115: =IF(_xlfn.xlookup($A115,$L$133:$L$144,$R$133:$R$144)=0,INDEX($A$5:$ZZ$5,1,_xlfn.xlookup($A115,$L$133:$L$144,$N$133:$N$144)+K114-1)) ->  | L115: =IF(_xlfn.xlookup($A115,$L$133:$L$144,$R$133:$R$144)=0,INDEX($A$5:$ZZ$5,1,_xlfn.xlookup($A115,$L$133:$L$144,$N$133:$N$144)+L114-1)) ->  | M115: =IF(_xlfn.xlookup($A115,$L$133:$L$144,$R$133:$R$144)=0,INDEX($A$5:$ZZ$5,1,_xlfn.xlookup($A115,$L$133:$L$144,$N$133:$N$144)+M114-1)) ->  | N115: =IF(_xlfn.xlookup($A115,$L$133:$L$144,$R$133:$R$144)=0,INDEX($A$5:$ZZ$5,1,_xlfn.xlookup($A115,$L$133:$L$144,$N$133:$N$144)+N114-1)) ->  | O115: =IF(_xlfn.xlookup($A115,$L$133:$L$144,$R$133:$R$144)=0,INDEX($A$5:$ZZ$5,1,_xlfn.xlookup($A115,$L$133:$L$144,$N$133:$N$144)+O114-1)) -> 
A116: HEX | B116: =TEXT(B115,"00") ->  | C116: =TEXT(C115,"00") ->  | D116: =CONCATENATE(TEXT(D115,"00"),TEXT(E115,"00")) ->  | F116: =CONCATENATE(TEXT(F115,"00"),TEXT(G115,"00")) ->  | H116: =CONCATENATE(TEXT(H115,"00"),TEXT(I115,"00")) ->  | J116: =CONCATENATE(TEXT(J115,"00"),TEXT(K115,"00")) ->  | L116: =CONCATENATE(TEXT(L115,"00"),TEXT(M115,"00")) ->  | N116: =CONCATENATE(TEXT(N115,"00"),TEXT(O115,"00")) -> 
A117: DEC | B117: =HEX2DEC(B116) ->  | C117: =IF(HEX2DEC(C116)>(127),HEX2DEC(C116)-256,HEX2DEC(C116)) ->  | D117: =HEX2DEC(D116) ->  | F117: =HEX2DEC(F116) ->  | H117: =HEX2DEC(H116) ->  | J117: =HEX2DEC(J116) ->  | L117: =HEX2DEC(L116) ->  | N117: =IF(HEX2DEC(N116)>(32767),HEX2DEC(N116)-65536,HEX2DEC(N116)) -> 
B118: =$G$8 -> 2023-07-20 | C118: =($I$8+C117/24/60) ->  | D118: =D117/1 ->  | F118: =F117/100 ->  | H118: =H117/1 ->  | J118: =J117/100 ->  | L118: =L117/10 ->  | N118: =N117/10 -> 
A120: 7Bh 123 | B120: ID TRAMA | C120: Fecha GPS MBW3 | G120: Latitud | K120: Longitud | O120: Cant. Sat. | P120: PDOP | Q120: Checksum (solo cuando es un telemando individual)
A121: Unidad | B121: Id de la Trama | C121: DDMMAAhhmm | G121: Definido en la configuración | K121: Definido en la configuración | O121: Cantidad de Satélites | P121: Calidad Posición | Q121: Cantidad
A122: Posición byte | B122: 1 | C122: 2 | D122: 3 | E122: 4 | F122: 5 | G122: 6 | H122: 7 | I122: 8 | J122: 9 | K122: 10 | L122: 11 | M122: 12 | N122: 13 | O122: 14 | P122: 15 | Q122: 16
A123: 7B | B123: =IF(_xlfn.xlookup($A123,$L$133:$L$144,$R$133:$R$144)=0,INDEX($A$5:$ZZ$5,1,_xlfn.xlookup($A123,$L$133:$L$144,$N$133:$N$144)+B122-1)) ->  | C123: =IF(_xlfn.xlookup($A123,$L$133:$L$144,$R$133:$R$144)=0,INDEX($A$5:$ZZ$5,1,_xlfn.xlookup($A123,$L$133:$L$144,$N$133:$N$144)+C122-1)) ->  | D123: =IF(_xlfn.xlookup($A123,$L$133:$L$144,$R$133:$R$144)=0,INDEX($A$5:$ZZ$5,1,_xlfn.xlookup($A123,$L$133:$L$144,$N$133:$N$144)+D122-1)) ->  | E123: =IF(_xlfn.xlookup($A123,$L$133:$L$144,$R$133:$R$144)=0,INDEX($A$5:$ZZ$5,1,_xlfn.xlookup($A123,$L$133:$L$144,$N$133:$N$144)+E122-1)) ->  | F123: =IF(_xlfn.xlookup($A123,$L$133:$L$144,$R$133:$R$144)=0,INDEX($A$5:$ZZ$5,1,_xlfn.xlookup($A123,$L$133:$L$144,$N$133:$N$144)+F122-1)) ->  | G123: =IF(_xlfn.xlookup($A123,$L$133:$L$144,$R$133:$R$144)=0,INDEX($A$5:$ZZ$5,1,_xlfn.xlookup($A123,$L$133:$L$144,$N$133:$N$144)+G122-1)) ->  | H123: =IF(_xlfn.xlookup($A123,$L$133:$L$144,$R$133:$R$144)=0,INDEX($A$5:$ZZ$5,1,_xlfn.xlookup($A123,$L$133:$L$144,$N$133:$N$144)+H122-1)) ->  | I123: =IF(_xlfn.xlookup($A123,$L$133:$L$144,$R$133:$R$144)=0,INDEX($A$5:$ZZ$5,1,_xlfn.xlookup($A123,$L$133:$L$144,$N$133:$N$144)+I122-1)) ->  | J123: =IF(_xlfn.xlookup($A123,$L$133:$L$144,$R$133:$R$144)=0,INDEX($A$5:$ZZ$5,1,_xlfn.xlookup($A123,$L$133:$L$144,$N$133:$N$144)+J122-1)) ->  | K123: =IF(_xlfn.xlookup($A123,$L$133:$L$144,$R$133:$R$144)=0,INDEX($A$5:$ZZ$5,1,_xlfn.xlookup($A123,$L$133:$L$144,$N$133:$N$144)+K122-1)) ->  | L123: =IF(_xlfn.xlookup($A123,$L$133:$L$144,$R$133:$R$144)=0,INDEX($A$5:$ZZ$5,1,_xlfn.xlookup($A123,$L$133:$L$144,$N$133:$N$144)+L122-1)) ->  | M123: =IF(_xlfn.xlookup($A123,$L$133:$L$144,$R$133:$R$144)=0,INDEX($A$5:$ZZ$5,1,_xlfn.xlookup($A123,$L$133:$L$144,$N$133:$N$144)+M122-1)) ->  | N123: =IF(_xlfn.xlookup($A123,$L$133:$L$144,$R$133:$R$144)=0,INDEX($A$5:$ZZ$5,1,_xlfn.xlookup($A123,$L$133:$L$144,$N$133:$N$144)+N122-1)) ->  | O123: =IF(_xlfn.xlookup($A123,$L$133:$L$144,$R$133:$R$144)=0,INDEX($A$5:$ZZ$5,1,_xlfn.xlookup($A123,$L$133:$L$144,$N$133:$N$144)+O122-1)) ->  | P123: =IF(_xlfn.xlookup($A123,$L$133:$L$144,$R$133:$R$144)=0,INDEX($A$5:$ZZ$5,1,_xlfn.xlookup($A123,$L$133:$L$144,$N$133:$N$144)+P122-1)) ->  | Q123: =IF(_xlfn.xlookup($A123,$L$133:$L$144,$R$133:$R$144)=0,INDEX($A$5:$ZZ$5,1,_xlfn.xlookup($A123,$L$133:$L$144,$N$133:$N$144)+Q122-1)) -> 
A124: HEX | B124: =TEXT(B123,"00") ->  | C124: =CONCATENATE(TEXT(C123,"00"),TEXT(D123,"00"),TEXT(E123,"00"),TEXT(F123,"00")) ->  | G124: =CONCATENATE(TEXT(G123,"00"),TEXT(H123,"00"),TEXT(I123,"00"),TEXT(J123,"00")) ->  | K124: =CONCATENATE(TEXT(K123,"00"),TEXT(L123,"00"),TEXT(M123,"00"),TEXT(N123,"00")) ->  | O124: =TEXT(O123,"00") ->  | P124: =TEXT(P123,"00") ->  | Q124: =TEXT(Q123,"00") ->  | R124: =TEXT(R123,"00") -> 00 | S124: =TEXT(S123,"00") -> 00 | T124: =TEXT(T123,"00") -> 00
A125: DEC | B125: =HEX2DEC(B124) ->  | C125: =TEXT(HEX2DEC(C124),"0000000000") ->  | G125: =TEXT(HEX2DEC(G124),"0000000000") ->  | K125: =TEXT(HEX2DEC(K124),"0000000000") ->  | O125: =HEX2DEC(O124) ->  | P125: =HEX2DEC(P124) ->  | Q125: =HEX2DEC(Q124) ->  | R125: =HEX2DEC(R124) -> 0 | S125: =HEX2DEC(S124) -> 0 | T125: =HEX2DEC(T124) -> 0
B126: =B125 ->  | C126: =DATE(MID(C125,5,2)+100,MID(C125,3,2),MID(C125,1,2)) ->  | E126: =(RIGHT(C125,4)) ->  | G126: =(IF(HEX2DEC(G124)>(2147483647),HEX2DEC(G124)-4294967296,HEX2DEC(G124)))*10^-7 ->  | K126: =(IF(HEX2DEC(K124)>(2147483647),HEX2DEC(K124)-4294967296,HEX2DEC(K124)))*10^-7 ->  | O126: =O125 ->  | P126: =P125 ->  | Q126: =Q125 ->  | R126: =R125 -> 0 | S126: =S125 -> 0 | T126: =T125 -> 0
G127: =TRUNC(G126,0) ->  | I127: =(G126-G127)*60 ->  | K127: =TRUNC(K126,0) ->  | M127: =(K126-K127)*60 -> 
A131: Longitudes de tramas | J131: Longitud total | K131: =COUNTA(B5:xfd5) -> 145 | W131: =DATE(MID(W133,5,2)+100,MID(W133,3,2),MID(W133,1,2)) -> 
A132: Nro (Dec) | B132: Nro (Hex) | C132: Longitud | D132: Trama | G132: Nro (Hex) | H132: Longitud | I132: Ubicación | J132: Trama | K132: Equipo | L132: ID Trama | M132: Celda inicio | N132: Col. de inicio | O132: Longitud | P132: Col de fin | Q132: Destino
A133: 1 | B133: =DEC2HEX(A133,2) -> 01 | D133: Tx de datos desde la estación | G133: 01 | J133: 1 | K133: =_xlfn.xlookup(L133,$G$133:$G$147,$D$133:$D$147) -> CTD Datos | L133: =M5 -> 1E | M133: =ADDRESS(5,N133) -> $M$5 | N133: =COLUMN(M5) -> 13 | O133: =_xlfn.xlookup(L133,$G$133:$G$147,$H$133:$H$147) -> 5 | P133: =O133+N133 -> 18 | Q133: =_xlfn.xlookup(L133,$G$133:$G$147,$I$133:$I$147) -> B32 | R133: =COUNTIF(L133:Q133,"#N/D") -> 0 | S133: =IF(RIGHT(K133,6)="Estado",LEFT(TEXT(HEX2DEC(_xlfn.CONCAT((INDIRECT(ADDRESS(5,N133+1))),(INDIRECT(ADDRESS(5,N133+2))),(INDIRECT(ADDRESS(5,N133+3))),(INDIRECT(ADDRESS(5,N133+4))))),"0000000000"),6),$G$8) -> 2023-07-20 | T133: =IF(RIGHT(K133,6)="Estado",RIGHT(TEXT(HEX2DEC(_xlfn.CONCAT((INDIRECT(ADDRESS(5,N133+1))),(INDIRECT(ADDRESS(5,N133+2))),(INDIRECT(ADDRESS(5,N133+3))),(INDIRECT(ADDRESS(5,N133+4))))),"0000000000"),4),IF(K133="#N/D",#N/A,($I$8+U133/24/60))) -> 05:59:00 | U133: =IF(HEX2DEC(V133)>(127),HEX2DEC(V133)-256,HEX2DEC(V133)) -> 27 | V133: =(INDIRECT(ADDRESS(5,N133+1))) -> 1B | W133: =TEXT(HEX2DEC(_xlfn.CONCAT((INDIRECT(ADDRESS(5,N133+1))),(INDIRECT(ADDRESS(5,N133+2))),(INDIRECT(ADDRESS(5,N133+3))),(INDIRECT(ADDRESS(5,N133+4))))),0) -> 1769484
A134: 2 | B134: =DEC2HEX(A134,2) -> 02 | D134: Telemando desde el Servidor | G134: 02 | J134: 2 | K134: =_xlfn.xlookup(L134,$G$133:$G$147,$D$133:$D$147) ->  | L134: =INDIRECT(M134) -> 50 | M134: =ADDRESS(5,P133) -> $R$5 | N134: =P133 -> 18 | O134: =_xlfn.xlookup(L134,$G$133:$G$147,$H$133:$H$147) ->  | P134: =O134+N134 ->  | Q134: =_xlfn.xlookup(L134,$G$133:$G$147,$I$133:$I$147) ->  | R134: =COUNTIF(L134:Q134,"#N/D") -> 0 | S134: =IF(RIGHT(K134,6)="Estado",LEFT(TEXT(HEX2DEC(_xlfn.CONCAT((INDIRECT(ADDRESS(5,N134+1))),(INDIRECT(ADDRESS(5,N134+2))),(INDIRECT(ADDRESS(5,N134+3))),(INDIRECT(ADDRESS(5,N134+4))))),"0000000000"),6),$G$8) ->  | T134: =IF(RIGHT(K134,6)="Estado",RIGHT(TEXT(HEX2DEC(_xlfn.CONCAT((INDIRECT(ADDRESS(5,N134+1))),(INDIRECT(ADDRESS(5,N134+2))),(INDIRECT(ADDRESS(5,N134+3))),(INDIRECT(ADDRESS(5,N134+4))))),"0000000000"),4),IF(K134="#N/D",#N/A,($I$8+U134/24/60))) ->  | U134: =IF(HEX2DEC(V134)>(127),HEX2DEC(V134)-256,HEX2DEC(V134)) -> 27 | V134: =(INDIRECT(ADDRESS(5,N134+1))) -> 1B | W134: =TEXT(HEX2DEC(_xlfn.CONCAT((INDIRECT(ADDRESS(5,N134+1))),(INDIRECT(ADDRESS(5,N134+2))),(INDIRECT(ADDRESS(5,N134+3))),(INDIRECT(ADDRESS(5,N134+4))))),0) -> 1775504
A135: 3 | B135: =DEC2HEX(A135,2) -> 03 | D135: Respuesta de telemando desde la Estación | G135: 03 | J135: 3 | K135: =_xlfn.xlookup(L135,$G$133:$G$147,$D$133:$D$147) ->  | L135: =INDIRECT(M135) ->  | M135: =ADDRESS(5,P134) ->  | N135: =P134 ->  | O135: =_xlfn.xlookup(L135,$G$133:$G$147,$H$133:$H$147) ->  | P135: =O135+N135 ->  | Q135: =_xlfn.xlookup(L135,$G$133:$G$147,$I$133:$I$147) ->  | R135: =COUNTIF(L135:Q135,"#N/D") -> 0 | S135: =IF(RIGHT(K135,6)="Estado",LEFT(TEXT(HEX2DEC(_xlfn.CONCAT((INDIRECT(ADDRESS(5,N135+1))),(INDIRECT(ADDRESS(5,N135+2))),(INDIRECT(ADDRESS(5,N135+3))),(INDIRECT(ADDRESS(5,N135+4))))),"0000000000"),6),$G$8) ->  | T135: =IF(RIGHT(K135,6)="Estado",RIGHT(TEXT(HEX2DEC(_xlfn.CONCAT((INDIRECT(ADDRESS(5,N135+1))),(INDIRECT(ADDRESS(5,N135+2))),(INDIRECT(ADDRESS(5,N135+3))),(INDIRECT(ADDRESS(5,N135+4))))),"0000000000"),4),IF(K135="#N/D",#N/A,($I$8+U135/24/60))) ->  | U135: =IF(HEX2DEC(V135)>(127),HEX2DEC(V135)-256,HEX2DEC(V135)) ->  | V135: =(INDIRECT(ADDRESS(5,N135+1))) ->  | W135: =TEXT(HEX2DEC(_xlfn.CONCAT((INDIRECT(ADDRESS(5,N135+1))),(INDIRECT(ADDRESS(5,N135+2))),(INDIRECT(ADDRESS(5,N135+3))),(INDIRECT(ADDRESS(5,N135+4))))),0) -> 
A136: 10 | B136: =DEC2HEX(A136,2) -> 0A | C136: ='Edo.MMB03'!D6 -> 33 | D136: MMB03 Estado | G136: 0A | H136: 33 | I136: B20 | J136: 4 | K136: =_xlfn.xlookup(L136,$G$133:$G$147,$D$133:$D$147) ->  | L136: =INDIRECT(M136) ->  | M136: =ADDRESS(5,P135) ->  | N136: =P135 ->  | O136: =_xlfn.xlookup(L136,$G$133:$G$147,$H$133:$H$147) ->  | P136: =O136+N136 ->  | Q136: =_xlfn.xlookup(L136,$G$133:$G$147,$I$133:$I$147) ->  | R136: =COUNTIF(L136:Q136,"#N/D") -> 0 | S136: =IF(RIGHT(K136,6)="Estado",LEFT(TEXT(HEX2DEC(_xlfn.CONCAT((INDIRECT(ADDRESS(5,N136+1))),(INDIRECT(ADDRESS(5,N136+2))),(INDIRECT(ADDRESS(5,N136+3))),(INDIRECT(ADDRESS(5,N136+4))))),"0000000000"),6),$G$8) ->  | T136: =IF(RIGHT(K136,6)="Estado",RIGHT(TEXT(HEX2DEC(_xlfn.CONCAT((INDIRECT(ADDRESS(5,N136+1))),(INDIRECT(ADDRESS(5,N136+2))),(INDIRECT(ADDRESS(5,N136+3))),(INDIRECT(ADDRESS(5,N136+4))))),"0000000000"),4),IF(K136="#N/D",#N/A,($I$8+U136/24/60))) ->  | U136: =IF(HEX2DEC(V136)>(127),HEX2DEC(V136)-256,HEX2DEC(V136)) ->  | V136: =(INDIRECT(ADDRESS(5,N136+1))) ->  | W136: =TEXT(HEX2DEC(_xlfn.CONCAT((INDIRECT(ADDRESS(5,N136+1))),(INDIRECT(ADDRESS(5,N136+2))),(INDIRECT(ADDRESS(5,N136+3))),(INDIRECT(ADDRESS(5,N136+4))))),0) -> 
A137: 30 | B137: =DEC2HEX(A137,2) -> 1E | C137: ='CTD Trimeter'!D8 -> 5 | D137: CTD Datos | G137: 1E | H137: 5 | I137: B32 | J137: 5 | K137: =_xlfn.xlookup(L137,$G$133:$G$147,$D$133:$D$147) ->  | L137: =INDIRECT(M137) ->  | M137: =ADDRESS(5,P136) ->  | N137: =P136 ->  | O137: =_xlfn.xlookup(L137,$G$133:$G$147,$H$133:$H$147) ->  | P137: =O137+N137 ->  | Q137: =_xlfn.xlookup(L137,$G$133:$G$147,$I$133:$I$147) ->  | R137: =COUNTIF(L137:Q137,"#N/D") -> 0 | S137: =IF(RIGHT(K137,6)="Estado",LEFT(TEXT(HEX2DEC(_xlfn.CONCAT((INDIRECT(ADDRESS(5,N137+1))),(INDIRECT(ADDRESS(5,N137+2))),(INDIRECT(ADDRESS(5,N137+3))),(INDIRECT(ADDRESS(5,N137+4))))),"0000000000"),6),$G$8) ->  | T137: =IF(RIGHT(K137,6)="Estado",TEXT(HEX2DEC(_xlfn.CONCAT((INDIRECT(ADDRESS(5,N137+1))),(INDIRECT(ADDRESS(5,N137+2))),(INDIRECT(ADDRESS(5,N137+3))),(INDIRECT(ADDRESS(5,N137+4))))),0),IF(K137="#N/D",#N/A,($I$8+U137/24/60))) ->  | U137: =IF(HEX2DEC(V137)>(127),HEX2DEC(V137)-256,HEX2DEC(V137)) ->  | V137: =(INDIRECT(ADDRESS(5,N137+1))) ->  | W137: =IF(RIGHT(K137,6)="Estado",1,0) -> 
A138: 31 | B138: =DEC2HEX(A138,2) -> 1F | C138: ='Edo.CTD'!D3 -> 12 | D138: CTD Estado | G138: 1F | H138: 12 | I138: B41 | J138: 6 | K138: =_xlfn.xlookup(L138,$G$133:$G$147,$D$133:$D$147) ->  | L138: =INDIRECT(M138) ->  | M138: =ADDRESS(5,P137) ->  | N138: =P137 ->  | O138: =_xlfn.xlookup(L138,$G$133:$G$147,$H$133:$H$147) ->  | P138: =O138+N138 ->  | Q138: =_xlfn.xlookup(L138,$G$133:$G$147,$I$133:$I$147) ->  | R138: =COUNTIF(L138:Q138,"#N/D") -> 0 | S138: =IF(RIGHT(K138,6)="Estado",LEFT(TEXT(HEX2DEC(_xlfn.CONCAT((INDIRECT(ADDRESS(5,N138+1))),(INDIRECT(ADDRESS(5,N138+2))),(INDIRECT(ADDRESS(5,N138+3))),(INDIRECT(ADDRESS(5,N138+4))))),"0000000000"),6),$G$8) ->  | T138: =IF(RIGHT(K138,6)="Estado",TEXT(HEX2DEC(_xlfn.CONCAT((INDIRECT(ADDRESS(5,N138+1))),(INDIRECT(ADDRESS(5,N138+2))),(INDIRECT(ADDRESS(5,N138+3))),(INDIRECT(ADDRESS(5,N138+4))))),0),IF(K138="#N/D",#N/A,($I$8+U138/24/60))) ->  | U138: =IF(HEX2DEC(V138)>(127),HEX2DEC(V138)-256,HEX2DEC(V138)) ->  | V138: =(INDIRECT(ADDRESS(5,N138+1))) ->  | W138: =IF(RIGHT(K138,6)="Estado",1,0) -> 
A139: 80 | B139: =DEC2HEX(A139,2) -> 50 | C139: =ADCP!D17 -> 44 | D139: ADCP Datos | G139: 50 | H139: 84 | I139: B52 | J139: 7 | K139: =_xlfn.xlookup(L139,$G$133:$G$147,$D$133:$D$147) ->  | L139: =INDIRECT(M139) ->  | M139: =ADDRESS(5,P138) ->  | N139: =P138 ->  | O139: =_xlfn.xlookup(L139,$G$133:$G$147,$H$133:$H$147) ->  | P139: =O139+N139 ->  | Q139: =_xlfn.xlookup(L139,$G$133:$G$147,$I$133:$I$147) ->  | R139: =COUNTIF(L139:Q139,"#N/D") -> 0 | S139: =IF(RIGHT(K139,6)="Estado",LEFT(TEXT(HEX2DEC(_xlfn.CONCAT((INDIRECT(ADDRESS(5,N139+1))),(INDIRECT(ADDRESS(5,N139+2))),(INDIRECT(ADDRESS(5,N139+3))),(INDIRECT(ADDRESS(5,N139+4))))),"0000000000"),6),$G$8) ->  | T139: =IF(RIGHT(K139,6)="Estado",TEXT(HEX2DEC(_xlfn.CONCAT((INDIRECT(ADDRESS(5,N139+1))),(INDIRECT(ADDRESS(5,N139+2))),(INDIRECT(ADDRESS(5,N139+3))),(INDIRECT(ADDRESS(5,N139+4))))),0),IF(K139="#N/D",#N/A,($I$8+U139/24/60))) ->  | U139: =IF(HEX2DEC(V139)>(127),HEX2DEC(V139)-256,HEX2DEC(V139)) ->  | V139: =(INDIRECT(ADDRESS(5,N139+1))) ->  | W139: =IF(RIGHT(K139,6)="Estado",1,0) -> 
A140: 81 | B140: =DEC2HEX(A140,2) -> 51 | C140: ='ADCP Estado'!D3 -> 15 | D140: ADCP Estado | G140: 51 | H140: 15 | I140: B61 | J140: 8 | K140: =_xlfn.xlookup(L140,$G$133:$G$147,$D$133:$D$147) ->  | L140: =INDIRECT(M140) ->  | M140: =ADDRESS(5,P139) ->  | N140: =P139 ->  | O140: =_xlfn.xlookup(L140,$G$133:$G$147,$H$133:$H$147) ->  | P140: =O140+N140 ->  | Q140: =_xlfn.xlookup(L140,$G$133:$G$147,$I$133:$I$147) ->  | R140: =COUNTIF(L140:Q140,"#N/D") -> 0 | S140: =IF(RIGHT(K140,6)="Estado",LEFT(TEXT(HEX2DEC(_xlfn.CONCAT((INDIRECT(ADDRESS(5,N140+1))),(INDIRECT(ADDRESS(5,N140+2))),(INDIRECT(ADDRESS(5,N140+3))),(INDIRECT(ADDRESS(5,N140+4))))),"0000000000"),6),$G$8) ->  | T140: =IF(RIGHT(K140,6)="Estado",TEXT(HEX2DEC(_xlfn.CONCAT((INDIRECT(ADDRESS(5,N140+1))),(INDIRECT(ADDRESS(5,N140+2))),(INDIRECT(ADDRESS(5,N140+3))),(INDIRECT(ADDRESS(5,N140+4))))),0),IF(K140="#N/D",#N/A,($I$8+U140/24/60))) ->  | U140: =IF(HEX2DEC(V140)>(127),HEX2DEC(V140)-256,HEX2DEC(V140)) ->  | V140: =(INDIRECT(ADDRESS(5,N140+1))) ->  | W140: =IF(RIGHT(K140,6)="Estado",1,0) -> 
A141: 120 | B141: =DEC2HEX(A141,2) -> 78 | D141: EMA Gill Datos | G141: 78 | J141: 9 | K141: =_xlfn.xlookup(L141,$G$133:$G$147,$D$133:$D$147) ->  | L141: =INDIRECT(M141) ->  | M141: =ADDRESS(5,P140) ->  | N141: =P140 ->  | O141: =_xlfn.xlookup(L141,$G$133:$G$147,$H$133:$H$147) ->  | P141: =O141+N141 ->  | Q141: =_xlfn.xlookup(L141,$G$133:$G$147,$I$133:$I$147) ->  | R141: =COUNTIF(L141:Q141,"#N/D") -> 0 | S141: =IF(RIGHT(K141,6)="Estado",LEFT(TEXT(HEX2DEC(_xlfn.CONCAT((INDIRECT(ADDRESS(5,N141+1))),(INDIRECT(ADDRESS(5,N141+2))),(INDIRECT(ADDRESS(5,N141+3))),(INDIRECT(ADDRESS(5,N141+4))))),"0000000000"),6),$G$8) ->  | T141: =IF(RIGHT(K141,6)="Estado",TEXT(HEX2DEC(_xlfn.CONCAT((INDIRECT(ADDRESS(5,N141+1))),(INDIRECT(ADDRESS(5,N141+2))),(INDIRECT(ADDRESS(5,N141+3))),(INDIRECT(ADDRESS(5,N141+4))))),0),IF(K141="#N/D",#N/A,($I$8+U141/24/60))) ->  | U141: =IF(HEX2DEC(V141)>(127),HEX2DEC(V141)-256,HEX2DEC(V141)) ->  | V141: =(INDIRECT(ADDRESS(5,N141+1))) ->  | W141: =IF(RIGHT(K141,6)="Estado",1,0) -> 
A142: 121 | B142: =DEC2HEX(A142,2) -> 79 | D142: EMA Gill Estado | G142: 79 | J142: 10 | K142: =_xlfn.xlookup(L142,$G$133:$G$147,$D$133:$D$147) ->  | L142: =INDIRECT(M142) ->  | M142: =ADDRESS(5,P141) ->  | N142: =P141 ->  | O142: =_xlfn.xlookup(L142,$G$133:$G$147,$H$133:$H$147) ->  | P142: =O142+N142 ->  | Q142: =_xlfn.xlookup(L142,$G$133:$G$147,$I$133:$I$147) ->  | R142: =COUNTIF(L142:Q142,"#N/D") -> 0 | S142: =IF(RIGHT(K142,6)="Estado",LEFT(TEXT(HEX2DEC(_xlfn.CONCAT((INDIRECT(ADDRESS(5,N142+1))),(INDIRECT(ADDRESS(5,N142+2))),(INDIRECT(ADDRESS(5,N142+3))),(INDIRECT(ADDRESS(5,N142+4))))),"0000000000"),6),$G$8) ->  | T142: =IF(RIGHT(K142,6)="Estado",TEXT(HEX2DEC(_xlfn.CONCAT((INDIRECT(ADDRESS(5,N142+1))),(INDIRECT(ADDRESS(5,N142+2))),(INDIRECT(ADDRESS(5,N142+3))),(INDIRECT(ADDRESS(5,N142+4))))),0),IF(K142="#N/D",#N/A,($I$8+U142/24/60))) ->  | U142: =IF(HEX2DEC(V142)>(127),HEX2DEC(V142)-256,HEX2DEC(V142)) ->  | V142: =(INDIRECT(ADDRESS(5,N142+1))) -> 
A143: 122 | B143: =DEC2HEX(A143,2) -> 7A | C143: =EMA!D8 -> 14 | D143: EMA AIRMAR Datos | G143: 7A | H143: 14 | I143: B115 | J143: 11 | K143: =_xlfn.xlookup(L143,$G$133:$G$147,$D$133:$D$147) ->  | L143: =INDIRECT(M143) ->  | M143: =ADDRESS(5,P142) ->  | N143: =P142 ->  | O143: =_xlfn.xlookup(L143,$G$133:$G$147,$H$133:$H$147) ->  | P143: =O143+N143 ->  | Q143: =_xlfn.xlookup(L143,$G$133:$G$147,$I$133:$I$147) ->  | R143: =COUNTIF(L143:Q143,"#N/D") -> 0 | S143: =IF(RIGHT(K143,6)="Estado",LEFT(TEXT(HEX2DEC(_xlfn.CONCAT((INDIRECT(ADDRESS(5,N143+1))),(INDIRECT(ADDRESS(5,N143+2))),(INDIRECT(ADDRESS(5,N143+3))),(INDIRECT(ADDRESS(5,N143+4))))),"0000000000"),6),$G$8) ->  | T143: =IF(RIGHT(K143,6)="Estado",TEXT(HEX2DEC(_xlfn.CONCAT((INDIRECT(ADDRESS(5,N143+1))),(INDIRECT(ADDRESS(5,N143+2))),(INDIRECT(ADDRESS(5,N143+3))),(INDIRECT(ADDRESS(5,N143+4))))),0),IF(K143="#N/D",#N/A,($I$8+U143/24/60))) ->  | U143: =IF(HEX2DEC(V143)>(127),HEX2DEC(V143)-256,HEX2DEC(V143)) ->  | V143: =(INDIRECT(ADDRESS(5,N143+1))) -> 
A144: 123 | B144: =DEC2HEX(A144,2) -> 7B | C144: ='Edo.EMA'!D3 -> 15 | D144: EMA AIRMAR Estado | G144: 7B | H144: 15 | I144: B123 | J144: 12 | K144: =_xlfn.xlookup(L144,$G$133:$G$147,$D$133:$D$147) ->  | L144: =INDIRECT(M144) ->  | M144: =ADDRESS(5,P143) ->  | N144: =P143 ->  | O144: =_xlfn.xlookup(L144,$G$133:$G$147,$H$133:$H$147) ->  | P144: =O144+N144 ->  | Q144: =_xlfn.xlookup(L144,$G$133:$G$147,$I$133:$I$147) ->  | R144: =COUNTIF(L144:Q144,"#N/D") -> 0 | S144: =IF(RIGHT(K144,6)="Estado",LEFT(TEXT(HEX2DEC(_xlfn.CONCAT((INDIRECT(ADDRESS(5,N144+1))),(INDIRECT(ADDRESS(5,N144+2))),(INDIRECT(ADDRESS(5,N144+3))),(INDIRECT(ADDRESS(5,N144+4))))),"0000000000"),6),$G$8) ->  | T144: =IF(RIGHT(K144,6)="Estado",TEXT(HEX2DEC(_xlfn.CONCAT((INDIRECT(ADDRESS(5,N144+1))),(INDIRECT(ADDRESS(5,N144+2))),(INDIRECT(ADDRESS(5,N144+3))),(INDIRECT(ADDRESS(5,N144+4))))),0),IF(K144="#N/D",#N/A,($I$8+U144/24/60))) ->  | U144: =IF(HEX2DEC(V144)>(127),HEX2DEC(V144)-256,HEX2DEC(V144)) ->  | V144: =(INDIRECT(ADDRESS(5,N144+1))) -> 
A145: 160 | B145: =DEC2HEX(A145,2) -> A0 | C145: =Waves!D12 -> 28 | D145: MBW3 Datos | G145: A0 | H145: 28 | I145: B72 | J145: 13 | K145: =_xlfn.xlookup(L145,$G$133:$G$147,$D$133:$D$147) ->  | L145: =INDIRECT(M145) ->  | M145: =ADDRESS(5,P144) ->  | N145: =P144 ->  | O145: =_xlfn.xlookup(L145,$G$133:$G$147,$H$133:$H$147) ->  | P145: =O145+N145 ->  | Q145: =_xlfn.xlookup(L145,$G$133:$G$147,$I$133:$I$147) ->  | R145: =COUNTIF(L145:Q145,"#N/D") -> 0 | S145: =IF(RIGHT(K145,6)="Estado",LEFT(TEXT(HEX2DEC(_xlfn.CONCAT((INDIRECT(ADDRESS(5,N145+1))),(INDIRECT(ADDRESS(5,N145+2))),(INDIRECT(ADDRESS(5,N145+3))),(INDIRECT(ADDRESS(5,N145+4))))),"0000000000"),6),$G$8) ->  | T145: =IF(RIGHT(K145,6)="Estado",TEXT(HEX2DEC(_xlfn.CONCAT((INDIRECT(ADDRESS(5,N145+1))),(INDIRECT(ADDRESS(5,N145+2))),(INDIRECT(ADDRESS(5,N145+3))),(INDIRECT(ADDRESS(5,N145+4))))),0),IF(K145="#N/D",#N/A,($I$8+U145/24/60))) ->  | U145: =IF(HEX2DEC(V145)>(127),HEX2DEC(V145)-256,HEX2DEC(V145)) ->  | V145: =(INDIRECT(ADDRESS(5,N145+1))) -> 
A146: 161 | B146: =DEC2HEX(A146,2) -> A1 | C146: ='Edo.Wave'!D3 -> 8 | D146: MBW3 Estado | G146: A1 | H146: 8 | I146: B90 | J146: 14 | K146: =_xlfn.xlookup(L146,$G$133:$G$147,$D$133:$D$147) ->  | L146: =INDIRECT(M146) ->  | M146: =ADDRESS(5,P145) ->  | N146: =P145 ->  | O146: =_xlfn.xlookup(L146,$G$133:$G$147,$H$133:$H$147) ->  | P146: =O146+N146 ->  | Q146: =_xlfn.xlookup(L146,$G$133:$G$147,$I$133:$I$147) ->  | R146: =COUNTIF(L146:Q146,"#N/D") -> 0 | S146: =IF(RIGHT(K146,6)="Estado",LEFT(TEXT(HEX2DEC(_xlfn.CONCAT((INDIRECT(ADDRESS(5,N146+1))),(INDIRECT(ADDRESS(5,N146+2))),(INDIRECT(ADDRESS(5,N146+3))),(INDIRECT(ADDRESS(5,N146+4))))),"0000000000"),6),$G$8) ->  | T146: =IF(RIGHT(K146,6)="Estado",TEXT(HEX2DEC(_xlfn.CONCAT((INDIRECT(ADDRESS(5,N146+1))),(INDIRECT(ADDRESS(5,N146+2))),(INDIRECT(ADDRESS(5,N146+3))),(INDIRECT(ADDRESS(5,N146+4))))),0),IF(K146="#N/D",#N/A,($I$8+U146/24/60))) ->  | U146: =IF(HEX2DEC(V146)>(127),HEX2DEC(V146)-256,HEX2DEC(V146)) ->  | V146: =(INDIRECT(ADDRESS(5,N146+1))) -> 
A147: 162 | B147: =DEC2HEX(A147,2) -> A2 | C147: ='Edo.GPS-Wave'!D3 -> 15 | D147: MBW3 GPS Estado | G147: A2 | H147: 15 | I147: B99 | J147: 15 | K147: =_xlfn.xlookup(L147,$G$133:$G$147,$D$133:$D$147) ->  | L147: =INDIRECT(M147) ->  | M147: =ADDRESS(5,P146) ->  | N147: =P146 ->  | O147: =_xlfn.xlookup(L147,$G$133:$G$147,$H$133:$H$147) ->  | P147: =O147+N147 ->  | Q147: =_xlfn.xlookup(L147,$G$133:$G$147,$I$133:$I$147) ->  | R147: =COUNTIF(L147:Q147,"#N/D") -> 0 | S147: =IF(RIGHT(K147,6)="Estado",LEFT(TEXT(HEX2DEC(_xlfn.CONCAT((INDIRECT(ADDRESS(5,N147+1))),(INDIRECT(ADDRESS(5,N147+2))),(INDIRECT(ADDRESS(5,N147+3))),(INDIRECT(ADDRESS(5,N147+4))))),"0000000000"),6),$G$8) ->  | T147: =IF(RIGHT(K147,6)="Estado",TEXT(HEX2DEC(_xlfn.CONCAT((INDIRECT(ADDRESS(5,N147+1))),(INDIRECT(ADDRESS(5,N147+2))),(INDIRECT(ADDRESS(5,N147+3))),(INDIRECT(ADDRESS(5,N147+4))))),0),IF(K147="#N/D",#N/A,($I$8+U147/24/60))) ->  | U147: =IF(HEX2DEC(V147)>(127),HEX2DEC(V147)-256,HEX2DEC(V147)) ->  | V147: =(INDIRECT(ADDRESS(5,N147+1))) -> 
J148: 16 | K148: =_xlfn.xlookup(L148,$G$133:$G$147,$D$133:$D$147) ->  | L148: =INDIRECT(M148) ->  | M148: =ADDRESS(5,P147) ->  | N148: =P147 ->  | O148: =_xlfn.xlookup(L148,$G$133:$G$147,$H$133:$H$147) ->  | P148: =O148+N148 ->  | Q148: =_xlfn.xlookup(L148,$G$133:$G$147,$I$133:$I$147) ->  | R148: =COUNTIF(L148:Q148,"#N/D") -> 0 | S148: =IF(RIGHT(K148,6)="Estado",LEFT(TEXT(HEX2DEC(_xlfn.CONCAT((INDIRECT(ADDRESS(5,N148+1))),(INDIRECT(ADDRESS(5,N148+2))),(INDIRECT(ADDRESS(5,N148+3))),(INDIRECT(ADDRESS(5,N148+4))))),"0000000000"),6),$G$8) ->  | T148: =IF(RIGHT(K148,6)="Estado",TEXT(HEX2DEC(_xlfn.CONCAT((INDIRECT(ADDRESS(5,N148+1))),(INDIRECT(ADDRESS(5,N148+2))),(INDIRECT(ADDRESS(5,N148+3))),(INDIRECT(ADDRESS(5,N148+4))))),0),IF(K148="#N/D",#N/A,($I$8+U148/24/60))) ->  | U148: =IF(HEX2DEC(V148)>(127),HEX2DEC(V148)-256,HEX2DEC(V148)) ->  | V148: =(INDIRECT(ADDRESS(5,N148+1))) -> 
J149: 17 | K149: =_xlfn.xlookup(L149,$G$133:$G$147,$D$133:$D$147) ->  | L149: =INDIRECT(M149) ->  | M149: =ADDRESS(5,P148) ->  | N149: =P148 ->  | O149: =_xlfn.xlookup(L149,$G$133:$G$147,$H$133:$H$147) ->  | P149: =O149+N149 ->  | Q149: =_xlfn.xlookup(L149,$G$133:$G$147,$I$133:$I$147) ->  | R149: =COUNTIF(L149:Q149,"#N/D") -> 0 | S149: =IF(RIGHT(K149,6)="Estado",LEFT(TEXT(HEX2DEC(_xlfn.CONCAT((INDIRECT(ADDRESS(5,N149+1))),(INDIRECT(ADDRESS(5,N149+2))),(INDIRECT(ADDRESS(5,N149+3))),(INDIRECT(ADDRESS(5,N149+4))))),"0000000000"),6),$G$8) ->  | T149: =IF(RIGHT(K149,6)="Estado",TEXT(HEX2DEC(_xlfn.CONCAT((INDIRECT(ADDRESS(5,N149+1))),(INDIRECT(ADDRESS(5,N149+2))),(INDIRECT(ADDRESS(5,N149+3))),(INDIRECT(ADDRESS(5,N149+4))))),0),IF(K149="#N/D",#N/A,($I$8+U149/24/60))) ->  | U149: =IF(HEX2DEC(V149)>(127),HEX2DEC(V149)-256,HEX2DEC(V149)) ->  | V149: =(INDIRECT(ADDRESS(5,N149+1))) -> 
J150: 18 | K150: =_xlfn.xlookup(L150,$G$133:$G$147,$D$133:$D$147) ->  | L150: =INDIRECT(M150) ->  | M150: =ADDRESS(5,P149) ->  | N150: =P149 ->  | O150: =_xlfn.xlookup(L150,$G$133:$G$147,$H$133:$H$147) ->  | P150: =O150+N150 ->  | Q150: =_xlfn.xlookup(L150,$G$133:$G$147,$I$133:$I$147) ->  | R150: =COUNTIF(L150:Q150,"#N/D") -> 0 | S150: =IF(RIGHT(K150,6)="Estado",LEFT(TEXT(HEX2DEC(_xlfn.CONCAT((INDIRECT(ADDRESS(5,N150+1))),(INDIRECT(ADDRESS(5,N150+2))),(INDIRECT(ADDRESS(5,N150+3))),(INDIRECT(ADDRESS(5,N150+4))))),"0000000000"),6),$G$8) ->  | T150: =IF(RIGHT(K150,6)="Estado",TEXT(HEX2DEC(_xlfn.CONCAT((INDIRECT(ADDRESS(5,N150+1))),(INDIRECT(ADDRESS(5,N150+2))),(INDIRECT(ADDRESS(5,N150+3))),(INDIRECT(ADDRESS(5,N150+4))))),0),IF(K150="#N/D",#N/A,($I$8+U150/24/60))) ->  | U150: =IF(HEX2DEC(V150)>(127),HEX2DEC(V150)-256,HEX2DEC(V150)) ->  | V150: =(INDIRECT(ADDRESS(5,N150+1))) -> 
J151: 19 | K151: =_xlfn.xlookup(L151,$G$133:$G$147,$D$133:$D$147) ->  | L151: =INDIRECT(M151) ->  | M151: =ADDRESS(5,P150) ->  | N151: =P150 ->  | O151: =_xlfn.xlookup(L151,$G$133:$G$147,$H$133:$H$147) ->  | P151: =O151+N151 ->  | Q151: =_xlfn.xlookup(L151,$G$133:$G$147,$I$133:$I$147) ->  | R151: =COUNTIF(L151:Q151,"#N/D") -> 0 | S151: =IF(RIGHT(K151,6)="Estado",LEFT(TEXT(HEX2DEC(_xlfn.CONCAT((INDIRECT(ADDRESS(5,N151+1))),(INDIRECT(ADDRESS(5,N151+2))),(INDIRECT(ADDRESS(5,N151+3))),(INDIRECT(ADDRESS(5,N151+4))))),"0000000000"),6),$G$8) ->  | T151: =IF(RIGHT(K151,6)="Estado",TEXT(HEX2DEC(_xlfn.CONCAT((INDIRECT(ADDRESS(5,N151+1))),(INDIRECT(ADDRESS(5,N151+2))),(INDIRECT(ADDRESS(5,N151+3))),(INDIRECT(ADDRESS(5,N151+4))))),0),IF(K151="#N/D",#N/A,($I$8+U151/24/60))) ->  | U151: =IF(HEX2DEC(V151)>(127),HEX2DEC(V151)-256,HEX2DEC(V151)) ->  | V151: =(INDIRECT(ADDRESS(5,N151+1))) -> 
J152: 20 | K152: =_xlfn.xlookup(L152,$G$133:$G$147,$D$133:$D$147) ->  | L152: =INDIRECT(M152) ->  | M152: =ADDRESS(5,P151) ->  | N152: =P151 ->  | O152: =_xlfn.xlookup(L152,$G$133:$G$147,$H$133:$H$147) ->  | P152: =O152+N152 ->  | Q152: =_xlfn.xlookup(L152,$G$133:$G$147,$I$133:$I$147) ->  | R152: =COUNTIF(L152:Q152,"#N/D") -> 0 | S152: =IF(RIGHT(K152,6)="Estado",LEFT(TEXT(HEX2DEC(_xlfn.CONCAT((INDIRECT(ADDRESS(5,N152+1))),(INDIRECT(ADDRESS(5,N152+2))),(INDIRECT(ADDRESS(5,N152+3))),(INDIRECT(ADDRESS(5,N152+4))))),"0000000000"),6),$G$8) ->  | T152: =IF(RIGHT(K152,6)="Estado",TEXT(HEX2DEC(_xlfn.CONCAT((INDIRECT(ADDRESS(5,N152+1))),(INDIRECT(ADDRESS(5,N152+2))),(INDIRECT(ADDRESS(5,N152+3))),(INDIRECT(ADDRESS(5,N152+4))))),0),IF(K152="#N/D",#N/A,($I$8+U152/24/60))) ->  | U152: =IF(HEX2DEC(V152)>(127),HEX2DEC(V152)-256,HEX2DEC(V152)) ->  | V152: =(INDIRECT(ADDRESS(5,N152+1))) -> 
J153: 21 | K153: =_xlfn.xlookup(L153,$G$133:$G$147,$D$133:$D$147) ->  | L153: =INDIRECT(M153) ->  | M153: =ADDRESS(5,P152) ->  | N153: =P152 ->  | O153: =_xlfn.xlookup(L153,$G$133:$G$147,$H$133:$H$147) ->  | P153: =O153+N153 ->  | Q153: =_xlfn.xlookup(L153,$G$133:$G$147,$I$133:$I$147) ->  | R153: =COUNTIF(L153:Q153,"#N/D") -> 0 | S153: =IF(RIGHT(K153,6)="Estado",LEFT(TEXT(HEX2DEC(_xlfn.CONCAT((INDIRECT(ADDRESS(5,N153+1))),(INDIRECT(ADDRESS(5,N153+2))),(INDIRECT(ADDRESS(5,N153+3))),(INDIRECT(ADDRESS(5,N153+4))))),"0000000000"),6),$G$8) ->  | T153: =IF(RIGHT(K153,6)="Estado",TEXT(HEX2DEC(_xlfn.CONCAT((INDIRECT(ADDRESS(5,N153+1))),(INDIRECT(ADDRESS(5,N153+2))),(INDIRECT(ADDRESS(5,N153+3))),(INDIRECT(ADDRESS(5,N153+4))))),0),IF(K153="#N/D",#N/A,($I$8+U153/24/60))) ->  | U153: =IF(HEX2DEC(V153)>(127),HEX2DEC(V153)-256,HEX2DEC(V153)) ->  | V153: =(INDIRECT(ADDRESS(5,N153+1))) -> 
J154: 22 | K154: =_xlfn.xlookup(L154,$G$133:$G$147,$D$133:$D$147) ->  | L154: =INDIRECT(M154) ->  | M154: =ADDRESS(5,P153) ->  | N154: =P153 ->  | O154: =_xlfn.xlookup(L154,$G$133:$G$147,$H$133:$H$147) ->  | P154: =O154+N154 ->  | Q154: =_xlfn.xlookup(L154,$G$133:$G$147,$I$133:$I$147) ->  | R154: =COUNTIF(L154:Q154,"#N/D") -> 0 | S154: =IF(RIGHT(K154,6)="Estado",LEFT(TEXT(HEX2DEC(_xlfn.CONCAT((INDIRECT(ADDRESS(5,N154+1))),(INDIRECT(ADDRESS(5,N154+2))),(INDIRECT(ADDRESS(5,N154+3))),(INDIRECT(ADDRESS(5,N154+4))))),"0000000000"),6),$G$8) ->  | T154: =IF(RIGHT(K154,6)="Estado",TEXT(HEX2DEC(_xlfn.CONCAT((INDIRECT(ADDRESS(5,N154+1))),(INDIRECT(ADDRESS(5,N154+2))),(INDIRECT(ADDRESS(5,N154+3))),(INDIRECT(ADDRESS(5,N154+4))))),0),IF(K154="#N/D",#N/A,($I$8+U154/24/60))) ->  | U154: =IF(HEX2DEC(V154)>(127),HEX2DEC(V154)-256,HEX2DEC(V154)) ->  | V154: =(INDIRECT(ADDRESS(5,N154+1))) -> 
J155: 23 | K155: =_xlfn.xlookup(L155,$G$133:$G$147,$D$133:$D$147) ->  | L155: =INDIRECT(M155) ->  | M155: =ADDRESS(5,P154) ->  | N155: =P154 ->  | O155: =_xlfn.xlookup(L155,$G$133:$G$147,$H$133:$H$147) ->  | P155: =O155+N155 ->  | Q155: =_xlfn.xlookup(L155,$G$133:$G$147,$I$133:$I$147) ->  | R155: =COUNTIF(L155:Q155,"#N/D") -> 0 | S155: =IF(RIGHT(K155,6)="Estado",LEFT(TEXT(HEX2DEC(_xlfn.CONCAT((INDIRECT(ADDRESS(5,N155+1))),(INDIRECT(ADDRESS(5,N155+2))),(INDIRECT(ADDRESS(5,N155+3))),(INDIRECT(ADDRESS(5,N155+4))))),"0000000000"),6),$G$8) ->  | T155: =IF(RIGHT(K155,6)="Estado",TEXT(HEX2DEC(_xlfn.CONCAT((INDIRECT(ADDRESS(5,N155+1))),(INDIRECT(ADDRESS(5,N155+2))),(INDIRECT(ADDRESS(5,N155+3))),(INDIRECT(ADDRESS(5,N155+4))))),0),IF(K155="#N/D",#N/A,($I$8+U155/24/60))) ->  | U155: =IF(HEX2DEC(V155)>(127),HEX2DEC(V155)-256,HEX2DEC(V155)) ->  | V155: =(INDIRECT(ADDRESS(5,N155+1))) -> 
A156: 646 | B156: 01 00 01 02 86 12 12 EF D4 00 E1 0A 12 12 EF E5 04 C8 00 00 00 00 00 00 00 00 00 00 1E 00 00 00 01 00 00 3C 34 82 FF FF 54 BB 00 0D 50 7F FE 2E FA C8 0E A9 01 F3 0E 5F EB 8E F3 69 F5 DA 06 9A 0D C0 13 22 F4 68 F9 88 F3 46 FF 8F 08 F7 0F 14 00 62 0A 78 EE 94 F8 26 FC 85 0B 1E 0B 9F 12 63 EF 97 F4 E4 F7 C6 01 83 0D 54 12 C0 F8 7D 02 24 F0 A4 FB 23 FF D5 0C C5 06 35 11 44 ED 8F 07 85 51 12 12 EF E3 2E 96 00 16 0C 63 06 8E F9 7F 7A 80 00 D8 00 28 00 F4 00 3F 27 C5 00 F5 7B 12 12 EF E3 00 3C 34 82 FF FF 54 BB 0B 08 A0 7F 00 22 00 03 00 02 00 02 00 02 01 2B 00 AC 00 E2 00 AC 00 B8 09 9A 02 E3 64 64 A1 12 12 EF EF 0D 52 03 A2 12 12 F0 18 00 3C 34 90 FF FF 54 B4 04 04 54 9B | J156: 24 | K156: =_xlfn.xlookup(L156,$G$133:$G$147,$D$133:$D$147) ->  | L156: =INDIRECT(M156) ->  | M156: =ADDRESS(5,P155) ->  | N156: =P155 ->  | O156: =_xlfn.xlookup(L156,$G$133:$G$147,$H$133:$H$147) ->  | P156: =O156+N156 ->  | Q156: =_xlfn.xlookup(L156,$G$133:$G$147,$I$133:$I$147) ->  | R156: =COUNTIF(L156:Q156,"#N/D") -> 0 | S156: =IF(RIGHT(K156,6)="Estado",LEFT(TEXT(HEX2DEC(_xlfn.CONCAT((INDIRECT(ADDRESS(5,N156+1))),(INDIRECT(ADDRESS(5,N156+2))),(INDIRECT(ADDRESS(5,N156+3))),(INDIRECT(ADDRESS(5,N156+4))))),"0000000000"),6),$G$8) ->  | T156: =IF(RIGHT(K156,6)="Estado",TEXT(HEX2DEC(_xlfn.CONCAT((INDIRECT(ADDRESS(5,N156+1))),(INDIRECT(ADDRESS(5,N156+2))),(INDIRECT(ADDRESS(5,N156+3))),(INDIRECT(ADDRESS(5,N156+4))))),0),IF(K156="#N/D",#N/A,($I$8+U156/24/60))) ->  | U156: =IF(HEX2DEC(V156)>(127),HEX2DEC(V156)-256,HEX2DEC(V156)) ->  | V156: =(INDIRECT(ADDRESS(5,N156+1))) -> 
J157: 25 | K157: =_xlfn.xlookup(L157,$G$133:$G$147,$D$133:$D$147) ->  | L157: =INDIRECT(M157) ->  | M157: =ADDRESS(5,P156) ->  | N157: =P156 ->  | O157: =_xlfn.xlookup(L157,$G$133:$G$147,$H$133:$H$147) ->  | P157: =O157+N157 ->  | Q157: =_xlfn.xlookup(L157,$G$133:$G$147,$I$133:$I$147) ->  | R157: =COUNTIF(L157:Q157,"#N/D") -> 0 | S157: =IF(RIGHT(K157,6)="Estado",LEFT(TEXT(HEX2DEC(_xlfn.CONCAT((INDIRECT(ADDRESS(5,N157+1))),(INDIRECT(ADDRESS(5,N157+2))),(INDIRECT(ADDRESS(5,N157+3))),(INDIRECT(ADDRESS(5,N157+4))))),"0000000000"),6),$G$8) ->  | T157: =IF(RIGHT(K157,6)="Estado",TEXT(HEX2DEC(_xlfn.CONCAT((INDIRECT(ADDRESS(5,N157+1))),(INDIRECT(ADDRESS(5,N157+2))),(INDIRECT(ADDRESS(5,N157+3))),(INDIRECT(ADDRESS(5,N157+4))))),0),IF(K157="#N/D",#N/A,($I$8+U157/24/60))) ->  | U157: =IF(HEX2DEC(V157)>(127),HEX2DEC(V157)-256,HEX2DEC(V157)) ->  | V157: =(INDIRECT(ADDRESS(5,N157+1))) -> 
J158: 26 | K158: =_xlfn.xlookup(L158,$G$133:$G$147,$D$133:$D$147) ->  | L158: =INDIRECT(M158) ->  | M158: =ADDRESS(5,P157) ->  | N158: =P157 ->  | O158: =_xlfn.xlookup(L158,$G$133:$G$147,$H$133:$H$147) ->  | P158: =O158+N158 ->  | Q158: =_xlfn.xlookup(L158,$G$133:$G$147,$I$133:$I$147) ->  | R158: =COUNTIF(L158:Q158,"#N/D") -> 0 | S158: =IF(RIGHT(K158,6)="Estado",LEFT(TEXT(HEX2DEC(_xlfn.CONCAT((INDIRECT(ADDRESS(5,N158+1))),(INDIRECT(ADDRESS(5,N158+2))),(INDIRECT(ADDRESS(5,N158+3))),(INDIRECT(ADDRESS(5,N158+4))))),"0000000000"),6),$G$8) ->  | T158: =IF(RIGHT(K158,6)="Estado",TEXT(HEX2DEC(_xlfn.CONCAT((INDIRECT(ADDRESS(5,N158+1))),(INDIRECT(ADDRESS(5,N158+2))),(INDIRECT(ADDRESS(5,N158+3))),(INDIRECT(ADDRESS(5,N158+4))))),0),IF(K158="#N/D",#N/A,($I$8+U158/24/60))) ->  | U158: =IF(HEX2DEC(V158)>(127),HEX2DEC(V158)-256,HEX2DEC(V158)) ->  | V158: =(INDIRECT(ADDRESS(5,N158+1))) -> 
J159: 27 | K159: =_xlfn.xlookup(L159,$G$133:$G$147,$D$133:$D$147) ->  | L159: =INDIRECT(M159) ->  | M159: =ADDRESS(5,P158) ->  | N159: =P158 ->  | O159: =_xlfn.xlookup(L159,$G$133:$G$147,$H$133:$H$147) ->  | P159: =O159+N159 ->  | Q159: =_xlfn.xlookup(L159,$G$133:$G$147,$I$133:$I$147) ->  | R159: =COUNTIF(L159:Q159,"#N/D") -> 0 | S159: =IF(RIGHT(K159,6)="Estado",LEFT(TEXT(HEX2DEC(_xlfn.CONCAT((INDIRECT(ADDRESS(5,N159+1))),(INDIRECT(ADDRESS(5,N159+2))),(INDIRECT(ADDRESS(5,N159+3))),(INDIRECT(ADDRESS(5,N159+4))))),"0000000000"),6),$G$8) ->  | T159: =IF(RIGHT(K159,6)="Estado",TEXT(HEX2DEC(_xlfn.CONCAT((INDIRECT(ADDRESS(5,N159+1))),(INDIRECT(ADDRESS(5,N159+2))),(INDIRECT(ADDRESS(5,N159+3))),(INDIRECT(ADDRESS(5,N159+4))))),0),IF(K159="#N/D",#N/A,($I$8+U159/24/60))) ->  | U159: =IF(HEX2DEC(V159)>(127),HEX2DEC(V159)-256,HEX2DEC(V159)) ->  | V159: =(INDIRECT(ADDRESS(5,N159+1))) -> 
J160: 28 | K160: =_xlfn.xlookup(L160,$G$133:$G$147,$D$133:$D$147) ->  | L160: =INDIRECT(M160) ->  | M160: =ADDRESS(5,P159) ->  | N160: =P159 ->  | O160: =_xlfn.xlookup(L160,$G$133:$G$147,$H$133:$H$147) ->  | P160: =O160+N160 ->  | Q160: =_xlfn.xlookup(L160,$G$133:$G$147,$I$133:$I$147) ->  | R160: =COUNTIF(L160:Q160,"#N/D") -> 0 | S160: =IF(RIGHT(K160,6)="Estado",LEFT(TEXT(HEX2DEC(_xlfn.CONCAT((INDIRECT(ADDRESS(5,N160+1))),(INDIRECT(ADDRESS(5,N160+2))),(INDIRECT(ADDRESS(5,N160+3))),(INDIRECT(ADDRESS(5,N160+4))))),"0000000000"),6),$G$8) ->  | T160: =IF(RIGHT(K160,6)="Estado",TEXT(HEX2DEC(_xlfn.CONCAT((INDIRECT(ADDRESS(5,N160+1))),(INDIRECT(ADDRESS(5,N160+2))),(INDIRECT(ADDRESS(5,N160+3))),(INDIRECT(ADDRESS(5,N160+4))))),0),IF(K160="#N/D",#N/A,($I$8+U160/24/60))) ->  | U160: =IF(HEX2DEC(V160)>(127),HEX2DEC(V160)-256,HEX2DEC(V160)) ->  | V160: =(INDIRECT(ADDRESS(5,N160+1))) -> 
J161: 29 | K161: =_xlfn.xlookup(L161,$G$133:$G$147,$D$133:$D$147) ->  | L161: =INDIRECT(M161) ->  | M161: =ADDRESS(5,P160) ->  | N161: =P160 ->  | O161: =_xlfn.xlookup(L161,$G$133:$G$147,$H$133:$H$147) ->  | P161: =O161+N161 ->  | Q161: =_xlfn.xlookup(L161,$G$133:$G$147,$I$133:$I$147) ->  | R161: =COUNTIF(L161:Q161,"#N/D") -> 0 | S161: =IF(RIGHT(K161,6)="Estado",LEFT(TEXT(HEX2DEC(_xlfn.CONCAT((INDIRECT(ADDRESS(5,N161+1))),(INDIRECT(ADDRESS(5,N161+2))),(INDIRECT(ADDRESS(5,N161+3))),(INDIRECT(ADDRESS(5,N161+4))))),"0000000000"),6),$G$8) ->  | T161: =IF(RIGHT(K161,6)="Estado",TEXT(HEX2DEC(_xlfn.CONCAT((INDIRECT(ADDRESS(5,N161+1))),(INDIRECT(ADDRESS(5,N161+2))),(INDIRECT(ADDRESS(5,N161+3))),(INDIRECT(ADDRESS(5,N161+4))))),0),IF(K161="#N/D",#N/A,($I$8+U161/24/60))) ->  | U161: =IF(HEX2DEC(V161)>(127),HEX2DEC(V161)-256,HEX2DEC(V161)) ->  | V161: =(INDIRECT(ADDRESS(5,N161+1))) -> 
J162: 30 | K162: =_xlfn.xlookup(L162,$G$133:$G$147,$D$133:$D$147) ->  | L162: =INDIRECT(M162) ->  | M162: =ADDRESS(5,P161) ->  | N162: =P161 ->  | O162: =_xlfn.xlookup(L162,$G$133:$G$147,$H$133:$H$147) ->  | P162: =O162+N162 ->  | Q162: =_xlfn.xlookup(L162,$G$133:$G$147,$I$133:$I$147) ->  | R162: =COUNTIF(L162:Q162,"#N/D") -> 0 | S162: =IF(RIGHT(K162,6)="Estado",LEFT(TEXT(HEX2DEC(_xlfn.CONCAT((INDIRECT(ADDRESS(5,N162+1))),(INDIRECT(ADDRESS(5,N162+2))),(INDIRECT(ADDRESS(5,N162+3))),(INDIRECT(ADDRESS(5,N162+4))))),"0000000000"),6),$G$8) ->  | T162: =IF(RIGHT(K162,6)="Estado",TEXT(HEX2DEC(_xlfn.CONCAT((INDIRECT(ADDRESS(5,N162+1))),(INDIRECT(ADDRESS(5,N162+2))),(INDIRECT(ADDRESS(5,N162+3))),(INDIRECT(ADDRESS(5,N162+4))))),0),IF(K162="#N/D",#N/A,($I$8+U162/24/60))) ->  | U162: =IF(HEX2DEC(V162)>(127),HEX2DEC(V162)-256,HEX2DEC(V162)) ->  | V162: =(INDIRECT(ADDRESS(5,N162+1))) -> 
J163: 31 | K163: =_xlfn.xlookup(L163,$G$133:$G$147,$D$133:$D$147) ->  | L163: =INDIRECT(M163) ->  | M163: =ADDRESS(5,P162) ->  | N163: =P162 ->  | O163: =_xlfn.xlookup(L163,$G$133:$G$147,$H$133:$H$147) ->  | P163: =O163+N163 ->  | Q163: =_xlfn.xlookup(L163,$G$133:$G$147,$I$133:$I$147) ->  | R163: =COUNTIF(L163:Q163,"#N/D") -> 0 | S163: =IF(RIGHT(K163,6)="Estado",LEFT(TEXT(HEX2DEC(_xlfn.CONCAT((INDIRECT(ADDRESS(5,N163+1))),(INDIRECT(ADDRESS(5,N163+2))),(INDIRECT(ADDRESS(5,N163+3))),(INDIRECT(ADDRESS(5,N163+4))))),"0000000000"),6),$G$8) ->  | T163: =IF(RIGHT(K163,6)="Estado",TEXT(HEX2DEC(_xlfn.CONCAT((INDIRECT(ADDRESS(5,N163+1))),(INDIRECT(ADDRESS(5,N163+2))),(INDIRECT(ADDRESS(5,N163+3))),(INDIRECT(ADDRESS(5,N163+4))))),0),IF(K163="#N/D",#N/A,($I$8+U163/24/60))) ->  | U163: =IF(HEX2DEC(V163)>(127),HEX2DEC(V163)-256,HEX2DEC(V163)) ->  | V163: =(INDIRECT(ADDRESS(5,N163+1))) -> 
J164: 32 | K164: =_xlfn.xlookup(L164,$G$133:$G$147,$D$133:$D$147) ->  | L164: =INDIRECT(M164) ->  | M164: =ADDRESS(5,P163) ->  | N164: =P163 ->  | O164: =_xlfn.xlookup(L164,$G$133:$G$147,$H$133:$H$147) ->  | P164: =O164+N164 ->  | Q164: =_xlfn.xlookup(L164,$G$133:$G$147,$I$133:$I$147) ->  | R164: =COUNTIF(L164:Q164,"#N/D") -> 0 | S164: =IF(RIGHT(K164,6)="Estado",LEFT(TEXT(HEX2DEC(_xlfn.CONCAT((INDIRECT(ADDRESS(5,N164+1))),(INDIRECT(ADDRESS(5,N164+2))),(INDIRECT(ADDRESS(5,N164+3))),(INDIRECT(ADDRESS(5,N164+4))))),"0000000000"),6),$G$8) ->  | T164: =IF(RIGHT(K164,6)="Estado",TEXT(HEX2DEC(_xlfn.CONCAT((INDIRECT(ADDRESS(5,N164+1))),(INDIRECT(ADDRESS(5,N164+2))),(INDIRECT(ADDRESS(5,N164+3))),(INDIRECT(ADDRESS(5,N164+4))))),0),IF(K164="#N/D",#N/A,($I$8+U164/24/60))) ->  | U164: =IF(HEX2DEC(V164)>(127),HEX2DEC(V164)-256,HEX2DEC(V164)) ->  | V164: =(INDIRECT(ADDRESS(5,N164+1))) -> 

Sheet Lector DEF tramas
A2: TRAMA CONFIGURACIÓN DE LA ESTACIÓN ARICA
A3: Posición del Campo | B3: 1 | C3: 2 | D3: 3 | E3: 4 | F3: 5 | G3: 6 | H3: 7 | I3: 8 | J3: 9
A4: DESCRIPCIÓN | B4: TIPO DE TRAMA | C4: FECHA DEF TRAMA | D4: ID ESTACIÓN | E4: CANTIDAD EQUIPOS | F4: FRECUENCIA DE TRANSMISIÓN | G4: DELAY DE RESPUESTA A TELEMANDO | H4: DELAY PARA CERRAR PAQUETE DE DATOS | I4: PAQUETES DIARIOS MAXIMOS | J4: Checksum
A5: Unidad | B5: Id de la Trama | C5: Nombre del Equipo | D5: ID de la Estación | E5: Cantidad | F5: Segundos | G5: Segundos | H5: Segundos | I5: Cantidad | J5: Cantidad
A6: Valor Min. | B6: D0 | E6: 1 | F6: 1 | G6: 1 | H6: 1
A7: Valor Max. | B7: D9 | E7: 32 | F7: 3600 | G7: 99 | H7: 999
A8: bytes a tx | B8: 2 | C8: 6 | D8: 3 | E8: 1 | F8: 4 | G8: 2 | H8: 3 | I8: 3 | J8: 2
A9: Ejm. completo | B9: D1D | C9: 210522 | D9: 10 | E9: 2 | F9: 600 | G9: 15 | H9: 60 | I9: 300 | J9: 0F
A10: Trama Real
A13: MMB03 (Modelo 520)
A14: Posición del Campo | B14: 1 | C14: 2 | D14: 3 | E14: 4 | F14: 5 | G14: 6 | H14: 7 | I14: 8 | J14: 9 | K14: 10 | L14: 11 | M14: 12 | N14: 13 | O14: 14 | P14: 15 | Q14: 16 | R14: 17 | S14: 15 | T14: 16 | U14: 17 | V14: 18 | W14: 19 | X14: 20 | Y14: 21 | Z14: 22 | AA14: 23 | AB14: 18 | AC14: 19 | AD14: 20 | AE14: 24
A15: DESCRIPCIÓN | B15: TIPO DE TRAMA | C15: FECHA DEF TRAMA | D15: DEF.EQUIPO | E15: CANTIDAD VARIABLES | F15: NOMBRE VARIABLE 1 | G15: UNIDAD VARIABLE 1 | H15: TIPO DE BYTE VARIABLE 1 | I15: MASCARA VARIABLE 1 | J15: NOMBRE VARIABLE 2 | K15: UNIDAD VARIABLE 2 | L15: TIPO DE BYTE VARIABLE 2 | M15: NOMBRE VARIABLE 3 | N15: UNIDAD VARIABLE 3 | O15: TIPO DE BYTE VARIABLE 3 | P15: NOMBRE VARIABLE 4 | Q15: UNIDAD VARIABLE 4 | R15: TIPO DE BYTE VARIABLE 4 | S15: NOMBRE VARIABLE 5 | T15: UNIDAD VARIABLE 5 | U15: TIPO DE BYTE VARIABLE 5 | V15: NOMBRE VARIABLE 6 | W15: UNIDAD VARIABLE 6 | X15: TIPO DE BYTE VARIABLE 6 | Y15: NOMBRE VARIABLE 7 | Z15: UNIDAD VARIABLE 7 | AA15: TIPO DE BYTE VARIABLE 7 | AB15: NOMBRE VARIABLE 8 | AC15: UNIDAD VARIABLE 8 | AD15: TIPO DE BYTE VARIABLE 8 | AE15: Checksum
A16: Unidad | B16: Id de la Trama | C16: Nombre del Equipo | D16: Nombre del Equipo | E16: Cantidad | F16: Voltaje | G16: Voltios x10-2 | H16: Cant.en numero y Positivo, Negativo, Ambos, Float | J16: Corriente | K16: Amperios x10-2 | L16: Cant.en numero y Positivo, Negativo, Ambos, Float | M16: Alarma | N16: Unidad de la Variable | O16: Cant.en numero y Positivo, Negativo, Ambos, Float | P16: Estado de Entradas/ Salidas | Q16: Unidad de la Variable | R16: Cant.en numero y Positivo, Negativo, Ambos, Float | S16: Estado Sincronizacion | T16: Unidad de la Variable | U16: Cant.en numero y Positivo, Negativo, Ambos, Float | V16: Memoria | W16: Unidad de la Variable | X16: Cant.en numero y Positivo, Negativo, Ambos, Float | Y16: Posición | Z16: Unidad de la Variable | AA16: Cant.en numero y Positivo, Negativo, Ambos, Float | AB16: Distancia al centro del borneo | AC16: Unidad de la Variable | AD16: Cant.en numero y Positivo, Negativo, Ambos, Float | AE16: Cantidad
A17: Valor Min. | B17: D10E | E17: 1 | I17: 0
A18: Valor Max. | B18: D29E | E18: 32 | I18: 1111
A19: bytes a tx | B19: 4 | C19: 6 | D19: 2 | E19: 1 | F19: 2 | G19: 3 | H19: 2 | I19: 1 | J19: 2 | K19: 3 | L19: 2 | M19: 2 | N19: 3 | O19: 3 | P19: 2 | Q19: 3 | R19: 2 | S19: 2 | T19: 3 | U19: 2 | V19: 2 | W19: 3 | X19: 2 | Y19: 2 | Z19: 3 | AA19: 2 | AB19: 2 | AC19: 3 | AD19: 2 | AE19: 2
A20: Ejm. completo | B20: D10E | C20: 210522 | D20: M3 | E20: 8 | F20: V | G20: V2 | H20: 2P | I20: =BIN2HEX(I18) -> F | J20: C | K20: C2 | L20: 2P | M20: A | N20: 1 | O20: 3P | P20: E | Q20: 1 | R20: 2P | S20: S | T20: 1 | U20: 2P | V20: M | W20: M0 | X20: 1P | Y20: P | Z20: P8 | AA20: 4A | AB20: D | AC20: D0 | AD20: 2P | AE20: 4F
A21: Trama Real
A24: Posición del Campo | B24: 1 | C24: 2 | D24: 3 | E24: 4 | F24: 5 | G24: 6 | H24: 7 | I24: 8 | J24: 9 | K24: 10 | L24: 11 | M24: 12 | N24: 13 | O24: 14 | P24: 15 | Q24: 16 | R24: 17 | S24: 18 | T24: 19 | U24: 20 | V24: 21
A25: DESCRIPCIÓN | B25: TIPO DE TRAMA | C25: FECHA DEF TRAMA | D25: DEF.EQUIPO | E25: CANTIDAD VARIABLES | F25: VALOR MÍNIMO VARIABLE 1 | G25: VALOR MAXIMO VARIABLE 1 | H25: VALOR MÍNIMO VARIABLE 2 | I25: VALOR MAXIMO VARIABLE 2 | J25: VALOR MÍNIMO VARIABLE 3 | K25: VALOR MAXIMO VARIABLE 3 | L25: VALOR MÍNIMO VARIABLE 4 | M25: VALOR MAXIMO VARIABLE 4 | N25: VALOR MÍNIMO VARIABLE 5 | O25: VALOR MAXIMO VARIABLE 5 | P25: VALOR MÍNIMO VARIABLE 6 | Q25: VALOR MAXIMO VARIABLE 6 | R25: VALOR MÍNIMO VARIABLE 7 | S25: VALOR MAXIMO VARIABLE 7 | T25: VALOR MÍNIMO VARIABLE 8 | U25: VALOR MAXIMO VARIABLE 8 | V25: Checksum
A26: Unidad | B26: Id de la Trama | C26: Nombre del Equipo | D26: Nombre del Equipo | E26: Cantidad | F26: Voltaje V x10-2 | G26: Voltaje V x10-2 | H26: Corriente A x10-2 | I26: Corriente A x10-2 | J26: Alarma adimensional | K26: Alarma Adimensional | L26: Estado de Entradas/ Salidas | M26: Estado de Entradas/ Salidas | N26: Estado Sincronizacion Adimensional | O26: Estado Sincronizacion Adimensional | P26: Memoria % usado | Q26: Memoria % usado | R26: Posición Lat, Long | S26: Posición Lat, Long | T26: Distancia | U26: Distancia | V26: Cantidad
A27: Valor Min. | B27: D10U | E27: 1
A28: Valor Max. | B28: D29U | E28: 64
A29: bytes a tx | B29: 4 | C29: 6 | D29: 3 | E29: 1 | V29: 2
A30: Ejm. completo | B30: D10U | C30: 310322 | D30: M3 | E30: 8 | F30: 1200 | G30: 1400 | H30: 10 | I30: 100 | J30: 0 | K30: 65535 | L30: 0 | M30: 65535 | N30: 0 | O30: 263 | P30: 0 | Q30: 80 | R30: -1799999999 | S30: 1799999999 | T30: 0 | U30: 65534 | V30: 4F
A31: Trama Real
A34: Posición del Campo | B34: 1 | C34: 2 | D34: 3 | E34: 4 | F34: 5 | G34: 6
A35: DESCRIPCIÓN | B35: TIPO DE TRAMA | C35: FECHA DEF TRAMA | D35: DEF.EQUIPO | E35: CANTIDAD VARIABLES | F35: Frecuencia comprobación conexión al servidor o reset | G35: Checksum
A36: Unidad | B36: Id de la Trama | C36: Fecha del Equipo | D36: Nombre del Equipo | E36: Cantidad | F36: segundos | G36: Cantidad
A37: Valor Min. | B37: D10E | E37: 1 | F37: 0
A38: Valor Max. | B38: D29E | E38: 3 | F38: 65535
A39: bytes a tx | B39: 5 | C39: 6 | D39: 3 | E39: 2 | F39: 4 | G39: 2
A40: Ejm. completo | B40: D10C1 | C40: 210522 | D40: MT1 | E40: 1 | F40: 900 | G40: 4F
A41: Trama Real
A44: Posición del Campo | B44: 1 | C44: 2 | D44: 3 | E44: 4 | F44: 7 | G44: 8 | H44: 9 | I44: 10 | J44: 11 | K44: 12 | L44: 13 | M44: 14
A45: DESCRIPCIÓN | B45: TIPO DE TRAMA | C45: FECHA DEF TRAMA | D45: DEF.EQUIPO | E45: CANTIDAD VARIABLES | F45: MODO DE TRANSMISIÓN | G45: CONF. MODO 1: FREC.Tx MSG 1 (10) | H45: CONF. MODO 2: TIEMPO DE FALLO CANAL PPAL PARA ACTIVAR EL IRIDIUM | I45: CONF. MODO 3: FREC.TX MSG 1 (ESTADO TIPO 10 MMB03) | J45: CONF. MODO 4: FREC.TX MSG 1 (TODOS) | K45: MODIFICADOR MODOS 3 ó 4. (PARA TIPO TX PQTS EN CASO de: - FALLO CANAL PPAL. - MODO CONTÍNUO | L45: FRECUENCIA CHEQUEO DE CORREO (Aplicable a todos los modos) (En caso de ser 24h será a las 1200) | M45: Checksum
A46: Unidad | B46: Id de la Trama | C46: Fecha del Equipo | D46: Nombre del Equipo | E46: Cantidad | F46: 0: Iridium OFF total 1: TX MSG 1 (tipo 10) solo cuando se active la de alerta off-position 2: Tx datos Metoc y Edo según programación en caso fallo Cs canal Ppal. 3: Tx de Estado según programación. 4: Tx datos Metoc y Estado según programación | G46: Minutos | H46: Minutos | I46: 0: se envía solo en el cambio día/noche y viceversa nn: tx el mensaje 10 cada nn minutos | J46: Minutos | K46: T: Todos los paquetes L: Solo el último pqte | L46: Minutos | M46: Cantidad
A47: Valor Min. | B47: D10E | E47: 1 | F47: 0 | G47: 1 | H47: 1 | I47: 0 | J47: 0 | K47: 1 | L47: 0
A48: Valor Max. | B48: D29E | E48: 3 | F48: 5 | G48: 1440 | H48: 1440 | I48: 1440 | J48: 1440 | K48: 1 | L48: 1440
A49: bytes a tx | B49: 5 | C49: 6 | D49: 3 | E49: 2 | F49: 1 | G49: 4 | H49: 4 | I49: 4 | J49: 4 | K49: 1 | L49: 4 | M49: 2
A50: Ejm. completo | B50: D10C3 | C50: 210522 | D50: IR1 | E50: 7 | F50: 0 | G50: 60 | H50: 60 | I50: 60 | J50: 300 | K50: L | L50: 780 | M50: 4F
A51: Trama Real
A54: Posición del Campo | B54: 1 | C54: 2 | D54: 3 | E54: 4 | F54: 5 | G54: 6 | H54: 7 | I54: 8 | J54: 9 | K54: 10
A55: DESCRIPCIÓN | B55: TIPO DE TRAMA | C55: FECHA DEF TRAMA | D55: DEF.EQUIPO | E55: CANT. VARIABLES | F55: VARIABLE 1 Latitud Teórica Si se indica 91 entonces la MMB03 tomará una nueva posición como centro | G55: VARIABLE 2 Longitud Teórica Si se indica 181 entonces la MMB03 tomará una nueva posición como centro | H55: VARIABLE 3 Frecuencia comprobación posición en modo normal | I55: VARIABLE 4 Frecuencia comprobación posición en modo rotura de cadena | J55: VARIABLE 5 Máximo radio de borneo | K55: Checksum
A56: Unidad | B56: Id de la Trama | C56: Fecha del Equipo | D56: Nombre del Equipo | E56: Cant. Variables | F56: Grados | G56: Grados | H56: segundos | I56: segundos | J56: m | K56: Cantidad
A57: Valor Min. | B57: D10E | F57: -89.99999 | G57: -179.99999 | H57: 0 | I57: 0 | J57: 0
A58: Valor Max. | B58: D29E | F58: 89.99999 | G58: 179.99999 | H58: 65535 | I58: 65535 | J58: 99999
A59: bytes a tx | B59: 4 | C59: 6 | D59: 2 | F59: 9 | G59: 10 | H59: 4 | I59: 4 | J59: 5 | K59: 2
A60: Ejm. completo | B60: D10P | C60: 210522 | D60: M3 | E60: 5 | F60: -81.99999 | G60: -179.99999 | H60: 3600 | I60: 900 | J60: 10000 | K60: 4F
A61: Trama Real
A65: ADCP NORTEK 1Mhz 6 CAPAS 12 DATOS
A66: Posición del Campo | B66: 1 | C66: 2 | D66: 3 | E66: 4 | F66: 5 | G66: 6 | H66: 7 | I66: 8 | J66: 9 | K66: 10 | L66: 11 | M66: 12 | N66: 13 | O66: 14 | P66: 15 | Q66: 16 | R66: 17 | S66: 18 | T66: 19
A67: DESCRIPCIÓN | B67: TIPO DE TRAMA | C67: FECHA DEF TRAMA | D67: DEF.EQUIPO | E67: CANTIDAD VARIABLES | F67: CANTIDAD CELDAS | G67: ANCHO DE CELDAS | H67: BLANKING | I67: VELOCIDAD DE MUESTREO | J67: TIEMPO DE LA MEDIA | K67: FRECUENCIA DE MEDICIÓN | L67: NOMBRE VARIABLE 1 A TX | M67: UNIDAD DE LA VARIABLE 1 | N67: TIPO DE BYTE VARIABLE 1 | O67: MASCARA TIPO CELDAS | P67: MASCARA CELDAS A TX | Q67: NOMBRE VARIABLE 2 A TX | R67: UNIDAD VARIABLE 2 A TX | S67: TIPO DE BYTE VARIABLE 2 | T67: Checksum
A68: Unidad | B68: Id de la Trama | C68: Nombre del Equipo | D68: Nombre del Equipo | E68: Cantidad | F68: Cantidad | G68: metros | H68: metros | I68: Segundos | J68: Segundos | K68: Segundos | L68: Velocidad de la corriente:. - Este - Norte - Arriba | M68: m/s x10-3 (mm/s) | N68: Cant.en numero: P=Positivo, N=Negativo, A=Ambos, F=Float | O68: Celdas: Este-Norte-Arriba B0=Up B1=Norte B2=Este | P68: 0 ó 1 según la celda activada B0= capa 1 B1= capa 2 Bn= capa n | Q68: Temperatura del agua | R68: ºC x10-2 | S68: Cant.en numero: P=Positivo, N=Negativo, A=Ambos, F=Float | T68: Cantidad
A69: Valor Min. | B69: D80 | E69: 1 | F69: 1 | G69: 0.1 | H69: 0.1 | I69: 1 | J69: 1 | K69: 1 | O69: 000 | P69: 0
A70: Valor Max. | B70: D119 | E70: 32 | F70: 256 | G70: 20 | H70: 20 | I70: 3600 | J70: 3600 | K70: 3600 | O70: 111 | P70: 111111
A71: bytes a tx | B71: 4 | C71: 6 | D71: 2 | E71: 1 | F71: 3 | G71: 4 | H71: 4 | I71: 4 | J71: 4 | K71: 4 | L71: 2 | M71: 3 | N71: 2 | O71: 1 | P71: n | Q71: 2 | R71: 3 | S71: 2 | T71: 2
A72: Ejm. completo | B72: D80D | C72: 210522 | D72: N1 | E72: 2 | F72: 6 | G72: 2.0 | H72: 0.5 | I72: 1 | J72: 120 | K72: 600 | L72: 9 | M72: 93 | N72: 2A | O72: 6 | P72: =BIN2HEX(P70) -> 3F | Q72: 6 | R72: 62 | S72: 2A | T72: 4F
A73: Trama Real
D74: aunque sea 1Mhz funciona igual
A76: Posición del Campo | B76: 1 | C76: 2 | D76: 3 | E76: 4 | F76: 5 | G76: 6 | H76: 7 | I76: 8 | J76: 9
A77: DESCRIPCIÓN | B77: TIPO DE TRAMA | C77: FECHA DEF TRAMA | D77: DEF.EQUIPO | E77: CANTIDAD VARIABLES | F77: NOMBRE ESPECÍFICO VARIABLE 1.1 | G77: NOMBRE ESPECÍFICO VARIABLE 1.2 | H77: NOMBRE ESPECÍFICO VARIABLE 1.3 | I77: NOMBRE ESPECÍFICO VARIABLE 2 | J77: Checksum
A78: Unidad | B78: Id de la Trama | C78: Nombre del Equipo | D78: Nombre del Equipo | E78: Cantidad | F78: Vel. Este | G78: Vel. Norte | H78: Velocidad Arriba | I78: Temperatura | J78: Cantidad
A79: Valor Min. | B79: D80X | E79: 1 | F79: VQTY | G79: VMXL | H79: VH110 | I79: VH110
A80: Valor Max. | B80: D119X | E80: 32
A81: bytes a tx | B81: 4 | C81: 6 | D81: 3 | E81: 1 | F81: 4 | G81: 4 | H81: 4 | I81: 4 | J81: 2
A82: Ejm. completo | B82: D80X | C82: 310322 | D82: N1 | E82: 4 | F82: EWCT | G82: NSCT | H82: VCSP | I82: TEMP | J82: 4F
A83: Trama Real
A86: Posición del Campo | B86: 1 | C86: 2 | D86: 3 | E86: 4 | F86: 5 | G86: 6 | H86: 7 | I86: 8 | J86: 9
A87: DESCRIPCIÓN | B87: TIPO DE TRAMA | C87: FECHA DEF TRAMA | D87: DEF.EQUIPO | E87: CANTIDAD VARIABLES | F87: VALOR MÍNIMO VARIABLE 1 | G87: VALOR MAXIMO VARIABLE 1 | H87: VALOR MÍNIMO VARIABLE 2 | I87: VALOR MAXIMO VARIABLE 2 | J87: Checksum
A88: Unidad | B88: Id de la Trama | C88: Nombre del Equipo | D88: Nombre del Equipo | E88: Cantidad | F88: Velocidad (mm/s) | G88: Velocidad (mm/s) | H88: Temperatura (ºC) | I88: Temperatura (ºC) | J88: Cantidad
A89: Valor Min. | B89: D80U | E89: 1
A90: Valor Max. | B90: D119U | E90: 64
A91: bytes a tx | B91: 4 | C91: 6 | D91: 3 | E91: 1 | J91: 2
A92: Ejm. completo | B92: D80U | C92: 310322 | D92: N1 | E92: 2 | F92: -10000 | G92: 10000 | H92: 1 | I92: 6000 | J92: 4F
A93: Trama Real
A96: Posición del Campo | B96: 1 | C96: 2 | D96: 3 | E96: 4 | F96: 5 | G96: 6 | H96: 7 | I96: 8 | J96: 9 | K96: 10 | L96: 11 | M96: 12 | N96: 13 | O96: 14 | P96: 15 | Q96: 16
A97: DESCRIPCIÓN | B97: TIPO DE TRAMA | C97: FECHA DEF TRAMA | D97: DEF.EQUIPO | E97: CANTIDAD VARIABLES | F97: NOMBRE VARIABLE 1 | G97: UNIDAD VARIABLE 1 | H97: TIPO DE BYTE VARIABLE 1 | I97: MASCARA VARIABLE 2 | J97: UNIDAD VARIABLE 2 | K97: TIPO DE BYTE VARIABLE 2 | L97: TIPO DE BYTE VARIABLE 2 | M97: NOMBRE VARIABLE 3 | N97: UNIDAD VARIABLE 3 | O97: TIPO DE BYTE VARIABLE 3 | P97: MASCARA VARIABLE 3 | Q97: Checksum
A98: Unidad | B98: Id de la Trama | C98: Nombre del Equipo | D98: Nombre del Equipo | E98: Cantidad | F98: Voltaje | G98: mV | H98: Cant.en numero y Positivo, Negativo, Ambos, Float | J98: Profundidad | K98: cm | L98: Cant.en numero y Positivo, Negativo, Ambos, Float | M98: Angular (heading, pitch, roll) | N98: º x10-1 | O98: Cant.en numero y Positivo, Negativo, Ambos, Float | Q98: Cantidad
A99: Valor Min. | B99: D81E | E99: 1 | I99: 0 | P99: 0
A100: Valor Max. | B100: D81E | E100: 32 | I100: 1 | P100: 3
A101: bytes a tx | B101: 3 | C101: 6 | D101: 2 | E101: 1 | F101: 2 | G101: 3 | H101: 2 | I101: 1 | J101: 2 | K101: 3 | L101: 2 | M101: 2 | N101: 3 | O101: 2 | P101: 1 | Q101: 2
A102: Ejm. completo | B102: D81E | C102: 210522 | D102: N1 | E102: 3 | F102: V | G102: V3 | H102: 2P | I102: 1 | J102: 5 | K102: 52 | L102: 2P | M102: 4 | N102: 41 | O102: 2A | P102: 1 | Q102: 4F
A103: Trama Real
A107: EMA GILL GMX560 MARINA
A108: Posición del Campo | B108: 1 | C108: 2 | D108: 3 | E108: 4 | F108: 5 | G108: 6 | H108: 7 | I108: 8 | J108: 9 | K108: 10 | L108: 11 | M108: 12 | N108: 13 | O108: 14 | P108: 15 | Q108: 16 | R108: 17 | S108: 18 | T108: 19 | U108: 20 | V108: 21 | W108: 22 | X108: 23 | Y108: 24 | Z108: 25 | AA108: 23 | AB108: 24 | AC108: 25 | AD108: 17 | AE108: 18 | AF108: 19 | AG108: 29
A109: DESCRIPCIÓN | B109: TIPO DE TRAMA | C109: FECHA DEF TRAMA | D109: DEF.EQUIPO | E109: CANTIDAD VARIABLES | F109: VELOCIDAD DE MUESTREO | G109: TIEMPO DE LA MEDIA | H109: FRECUENCIA DE MEDICIÓN | I109: NOMBRE VARIABLE 1 | J109: UNIDAD VARIABLE 1 | K109: TIPO DE BYTE VARIABLE 1 | L109: NOMBRE VARIABLE 2 | M109: UNIDAD VARIABLE 2 | N109: TIPO DE BYTE VARIABLE 2 | O109: NOMBRE VARIABLE 3 | P109: UNIDAD VARIABLE 3 | Q109: TIPO DE BYTE VARIABLE 3 | R109: NOMBRE VARIABLE 4 | S109: UNIDAD VARIABLE 4 | T109: TIPO DE BYTE VARIABLE 4 | U109: NOMBRE VARIABLE 5 | V109: UNIDAD VARIABLE 5 | W109: TIPO DE BYTE VARIABLE 5 | X109: NOMBRE VARIABLE 6 | Y109: UNIDAD VARIABLE 6 | Z109: TIPO DE BYTE VARIABLE 6 | AA109: NOMBRE VARIABLE 7 | AB109: UNIDAD VARIABLE 7 | AC109: TIPO DE BYTE VARIABLE 7 | AD109: NOMBRE VARIABLE 8 | AE109: UNIDAD VARIABLE 8 | AF109: TIPO DE BYTE VARIABLE 8 | AG109: Checksum
A110: Unidad | B110: Id de la Trama | C110: Nombre del Equipo | D110: Nombre del Equipo | E110: Cantidad | F110: Segundos | G110: Segundos | H110: Segundos | I110: WDIR | J110: º | L110: WSPD | M110: m/s x 10-2 | O110: GDIR | P110: º | R110: GSPD | S110: m/s x 10-2 | U110: ATMS | V110: hPa x 10-1 | X110: RELH | Y110: % | AA110: DRYT (Temp.Aire) | AB110: ºC x 10-1 | AD110: DEWT (Pto. Rocio) | AE110: ºC x 10-1 | AG110: Cantidad
A111: Valor Min. | B111: D120D | E111: 1 | F111: 1 | G111: 1 | H111: 1
A112: Valor Max. | B112: D159D | E112: 32 | F112: 3600 | G112: 3600 | H112: 3600
A113: bytes a tx | B113: 3 | C113: 6 | D113: 2 | E113: 2 | F113: 4 | G113: 4 | H113: 4 | I113: 2 | K113: 2 | L113: 2 | M113: 3 | N113: 2 | O113: 2 | P113: 2 | Q113: 2 | R113: 2 | S113: 3 | T113: 2 | U113: 2 | V113: 2 | W113: 2 | X113: 2 | Y113: 2 | Z113: 2 | AA113: 2 | AB113: 2 | AC113: 2 | AD113: 2 | AE113: 3 | AF113: 2 | AG113: 2
A114: Ejm. completo | B114: D120D | C114: 210522 | D114: G1 | E114: 8 | F114: 1 | G114: 600 | H114: 600 | I114: 4 | J114: 40 | K114: 2P | L114: 13 | M114: 92 | N114: 2P | O114: 4 | P114: 40 | Q114: 2P | R114: 14 | S114: 92 | T114: 2P | U114: 11 | V114: 111 | W114: 2P | X114: 12 | Y114: M0 | Z114: 1P | AA114: 6 | AB114: 61 | AC114: 2A | AD114: 6 | AE114: 61 | AF114: 2A | AG114: 4F
A115: Trama Real
A118: Posición del Campo | B118: 1 | C118: 2 | D118: 3 | E118: 4 | F118: 5 | G118: 6 | H118: 7 | I118: 8 | J118: 9 | K118: 10 | L118: 11 | M118: 12 | N118: 10
A119: DESCRIPCIÓN | B119: TIPO DE TRAMA | C119: FECHA DEF TRAMA | D119: DEF.EQUIPO | E119: CANTIDAD VARIABLES | F119: NOMBRE ESPECÍFICO VARIABLE 1 | G119: NOMBRE ESPECÍFICO VARIABLE 2 | H119: NOMBRE ESPECÍFICO VARIABLE 3 | I119: NOMBRE ESPECÍFICO VARIABLE 4 | J119: NOMBRE ESPECÍFICO VARIABLE 5 | K119: NOMBRE ESPECÍFICO VARIABLE 6 | L119: NOMBRE ESPECÍFICO VARIABLE 7 | M119: NOMBRE ESPECÍFICO VARIABLE 8 | N119: Checksum
A120: Unidad | B120: Id de la Trama | C120: Nombre del Equipo | D120: Nombre del Equipo | E120: Cantidad | F120: Dirección del viento | G120: Velocidad del viento | H120: Dirección de ráfaga | I120: Velocidad de ráfaga | J120: Presión atmosférica | K120: Humedad relativa | L120: Temperatura del aire | M120: Punto de rocio | N120: Cantidad
A121: Valor Min. | B121: D120X | E121: 1
A122: Valor Max. | B122: D159X | E122: 64
A123: bytes a tx | B123: 4 | C123: 6 | D123: 3 | E123: 1 | F123: 4 | G123: 4 | H123: 4 | I123: 4 | J123: 4 | K123: 5 | L123: 6 | M123: 7 | N123: 2
A124: Ejm. completo | B124: D120X | C124: 310322 | D124: G1 | E124: 8 | F124: WDIR | G124: WSPD | H124: GDIR | I124: GSPD | J124: ATMS | K124: RELH | L124: DRYT | M124: DEWT | N124: 4F
A125: Trama Real
A128: Posición del Campo | B128: 1 | C128: 2 | D128: 3 | E128: 4 | F128: 5 | G128: 6 | H128: 7 | I128: 8 | J128: 9 | K128: 10 | L128: 11 | M128: 12 | N128: 13 | O128: 14 | P128: 15 | Q128: 16 | R128: 17 | S128: 18 | T128: 19 | U128: 20 | V128: 15
A129: DESCRIPCIÓN | B129: TIPO DE TRAMA | C129: FECHA DEF TRAMA | D129: DEF.EQUIPO | E129: CANTIDAD VARIABLES | F129: VALOR MÍNIMO VARIABLE 1 | G129: VALOR MAXIMO VARIABLE 1 | H129: VALOR MÍNIMO VARIABLE 2 | I129: VALOR MAXIMO VARIABLE 2 | J129: VALOR MÍNIMO VARIABLE 3 | K129: VALOR MAXIMO VARIABLE 3 | L129: VALOR MÍNIMO VARIABLE 4 | M129: VALOR MAXIMO VARIABLE 4 | N129: VALOR MÍNIMO VARIABLE 5 | O129: VALOR MAXIMO VARIABLE 5 | P129: VALOR MINIMO VARIABLE 6 | Q129: VALOR MAXIMO VARIABLE 6 | R129: VALOR MINIMO VARIABLE 7 | S129: VALOR MAXIMO VARIABLE 7 | T129: VALOR MINIMO VARIABLE 8 | U129: VALOR MAXIMO VARIABLE 8 | V129: Checksum
A130: Unidad | B130: Id de la Trama | C130: Nombre del Equipo | D130: Nombre del Equipo | E130: Cantidad | F130: WDIR (º) | G130: WDIR (º) | H130: WSPD (m/s x 10-2) | I130: WSPD (m/s x 10-2) | J130: GDIR (º) | K130: GDIR (º) | L130: GSPD (m/s x 10-2) | M130: GSPD (m/s x 10-2) | N130: ATMS (hPa x 10-1) | O130: ATMS (hPa x 10-1) | P130: RELH (%) | Q130: RELH (%) | R130: DRYT (ºC x 10-1) | S130: DRYT (ºC x 10-1) | T130: DEWT (ºC x 10-1) | U130: DEWT (ºC x 10-1) | V130: Cantidad
A131: Valor Min. | B131: D120U | E131: 1 | F131: 0 | G131: 359 | H131: 0.01 | I131: 60 | J131: 0 | K131: 359 | L131: 0.01 | M131: 60 | N131: 500 | O131: 1100 | P131: 0 | Q131: 100 | R131: -10 | S131: 50 | T131: -10 | U131: 50
A132: Valor Max. | B132: D159U | E132: 64
A133: bytes a tx | B133: 4 | C133: 6 | D133: 3 | E133: 1 | V133: 2
A134: Ejm. completo | B134: D120U | C134: 310322 | D134: G1 | E134: 8 | F134: 0 | G134: 359 | H134: 0.01 | I134: 60 | J134: 0 | K134: 359 | L134: 0.01 | M134: 60 | N134: 500 | O134: 1100 | P134: 0 | Q134: 100 | R134: -10 | S134: 50 | T134: -10 | U134: 50 | V134: 4F
A135: Trama Real
A138: WAVE
A139: Posición del Campo | B139: 1 | C139: 2 | D139: 3 | E139: 4 | F139: 5 | G139: 6 | H139: 7 | I139: 8 | J139: 9 | K139: 10 | L139: 11 | M139: 12 | N139: 13 | O139: 14 | P139: 15 | Q139: 16 | R139: 17 | S139: 18 | T139: 19 | U139: 20 | V139: 21 | W139: 22 | X139: 23 | Y139: 24 | Z139: 25 | AA139: 26 | AB139: 27
A140: DESCRIPCIÓN | B140: TIPO DE TRAMA | C140: FECHA DEF TRAMA | D140: DEF.EQUIPO | E140: CANTIDAD VARIABLES | F140: VELOCIDAD DE MUESTREO | G140: TIEMPO DE LA MEDIA | H140: FRECUENCIA DE MEDICIÓN | I140: NOMBRE VARIABLE 1 | J140: UNIDAD VARIABLE 1 | K140: TIPO DE BYTE VARIABLE 1 | L140: NOMBRE VARIABLE 2 | M140: UNIDAD VARIABLE 2 | N140: TIPO DE BYTE VARIABLE 2 | O140: MASCARA VARIABLE 2 | P140: NOMBRE VARIABLE 3 | Q140: UNIDAD VARIABLE 3 | R140: TIPO DE BYTE VARIABLE 3 | S140: MASCARA VARIABLE 3 | T140: NOMBRE VARIABLE 4 | U140: UNIDAD VARIABLE 4 | V140: TIPO DE BYTE VARIABLE 4 | W140: MASCARA VARIABLE 4 | X140: NOMBRE VARIABLE 5 | Y140: UNIDAD VARIABLE 5 | Z140: TIPO DE BYTE VARIABLE 5 | AA140: MASCARA VARIABLE 5 | AB140: Checksum
A141: Unidad | B141: Id de la Trama | C141: Nombre del Equipo | D141: Nombre del Equipo | E141: Cantidad | F141: Segundos | G141: Segundos | H141: Segundos | I141: Cantidad de Olas | J141: Unidad de la Variable | K141: Cant.en numero: P=Positivo, N=Negativo, A=Ambos, F=Float | L141: Altura de Ola | M141: Unidad de la Variable | N141: Cant.en numero: P=Positivo, N=Negativo, A=Ambos, F=Float | P141: Período de Ola | Q141: Unidad de la Variable | R141: Cant.en numero: P=Positivo, N=Negativo, A=Ambos, F=Float | T141: Dirección Angular del Oleaje | U141: Unidad de la Variable | V141: Cant.en numero: P=Positivo, N=Negativo, A=Ambos, F=Float | X141: Flag | Y141: Unidad de la Variable | Z141: Cant.en numero: P=Positivo, N=Negativo, A=Ambos, F=Float | AB141: Cantidad
A142: Valor Min. | B142: D160 | E142: 1 | F142: 0.1 | G142: 1 | H142: 1 | O142: 0 | S142: 0 | W142: 00 | AA142: 00
A143: Valor Max. | B143: D169 | E143: 32 | F143: 10 | G143: 3600 | H143: 3600 | O143: 1111 | S143: 11111 | W143: 11 | AA143: 11
A144: bytes a tx | B144: 4 | C144: 6 | D144: 3 | E144: 1 | F144: 4 | G144: 4 | H144: 4 | I144: 2 | J144: 3 | K144: 2 | L144: 2 | M144: 3 | N144: 2 | O144: 1 | P144: 2 | Q144: 3 | R144: 2 | S144: 1 | T144: 2 | U144: 3 | V144: 2 | W144: 1 | X144: 2 | Y144: 3 | Z144: 2 | AA144: 1 | AB144: 2
A145: Ejm. completo | B145: D160D | C145: 100522 | D145: M4 | E145: 5 | F145: 1 | G145: 600 | H145: 600 | I145: 1 | J145: 1 | K145: 2P | L145: 2 | M145: 22 | N145: 2P | O145: =BIN2HEX(O143) -> F | P145: 3 | Q145: 31 | R145: 2P | S145: =BIN2HEX(S143) -> 1F | T145: 4 | U145: 41 | V145: 2P | W145: =BIN2HEX(W143) -> 3 | X145: F | Y145: 1 | Z145: 1P | AA145: =BIN2HEX(AA143) -> 3 | AB145: 4F
A146: Trama Real
A149: Posición del Campo | B149: 1 | C149: 2 | D149: 3 | E149: 4 | F149: 5 | G149: 6 | H149: 7 | I149: 8 | J149: 9 | K149: 10 | L149: 11 | M149: 12 | N149: 13 | O149: 14 | P149: 15 | Q149: 16 | R149: 17 | S149: 18 | T149: 19
A150: DESCRIPCIÓN | B150: TIPO DE TRAMA | C150: FECHA DEF TRAMA | D150: DEF.EQUIPO | E150: CANTIDAD VARIABLES | F150: NOMBRE ESPECÍFICO VARIABLE 1 | G150: NOMBRE ESPECÍFICO VARIABLE 2.1 | H150: NOMBRE ESPECÍFICO VARIABLE 2.2 | I150: NOMBRE ESPECÍFICO VARIABLE 2.3 | J150: NOMBRE ESPECÍFICO VARIABLE 2.4 | K150: NOMBRE ESPECÍFICO VARIABLE 3.1 | L150: NOMBRE ESPECÍFICO VARIABLE 3.2 | M150: NOMBRE ESPECÍFICO VARIABLE 3.3 | N150: NOMBRE ESPECÍFICO VARIABLE 3.4 | O150: NOMBRE ESPECÍFICO VARIABLE 3.5 | P150: NOMBRE ESPECÍFICO VARIABLE 4.1 | Q150: NOMBRE ESPECÍFICO VARIABLE 4.2 | R150: NOMBRE ESPECÍFICO VARIABLE 5.1 | S150: NOMBRE ESPECÍFICO VARIABLE 5.2 | T150: Checksum
A151: Unidad | B151: Id de la Trama | C151: Nombre del Equipo | D151: Nombre del Equipo | E151: Cantidad | F151: NRO DE OLAS | G151: H.MAX. | H151: HSIG/10 | I151: HSIG/3 | J151: HMED | K151: TMAX | L151: TPICO | M151: TSIG/10 | N151: TSIG/3 | O151: TMED | P151: DIR | Q151: DESV | R151: FLAG1 | S151: FLAG2 | T151: Cantidad
A152: Valor Min. | B152: D160 | E152: 1 | F152: VQTY | G152: VMXL | H152: VH110 | I152: VAVH | J152: VHM0 | K152: VTMX | L152: VTPK | M152: VT110 | N152: VAVT | O152: VGTA | P152: VDIR | Q152: VPSP | R152: VFL1 | S152: VFL2
A153: Valor Max. | B153: D169 | E153: 64
A154: bytes a tx | B154: 4 | C154: 6 | D154: 3 | E154: 1 | F154: 4 | G154: 4 | H154: 4 | I154: 4 | J154: 4 | K154: 4 | L154: 4 | M154: 4 | N154: 4 | O154: 4 | P154: 4 | Q154: 4 | R154: 4 | S154: 4 | T154: 2
A155: Ejm. completo | B155: D160X | C155: 310322 | D155: M4 | E155: 14 | F155: VQTY | G155: VMXL | H155: VH110 | I155: VAVH | J155: VHM0 | K155: VTMX | L155: VTPK | M155: VT110 | N155: VAVT | O155: VGTA | P155: VDIR | Q155: VPSP | R155: VFL1 | S155: VFL2 | T155: 4F
A156: Trama Real
A159: Posición del Campo | B159: 1 | C159: 2 | D159: 3 | E159: 4 | F159: 5 | G159: 6 | H159: 7 | I159: 8 | J159: 9 | K159: 10 | L159: 11 | M159: 12 | N159: 13 | O159: 14 | P159: 15
A160: DESCRIPCIÓN | B160: TIPO DE TRAMA | C160: FECHA DEF TRAMA | D160: DEF.EQUIPO | E160: CANTIDAD VARIABLES | F160: VALOR MÍNIMO VARIABLE 1 | G160: VALOR MAXIMO VARIABLE 1 | H160: VALOR MÍNIMO VARIABLE 2 | I160: VALOR MAXIMO VARIABLE 2 | J160: VALOR MÍNIMO VARIABLE 3 | K160: VALOR MAXIMO VARIABLE 3 | L160: VALOR MÍNIMO VARIABLE 4 | M160: VALOR MAXIMO VARIABLE 4 | N160: VALOR MÍNIMO VARIABLE 5 | O160: VALOR MAXIMO VARIABLE 5 | P160: Checksum
A161: Unidad | B161: Id de la Trama | C161: Nombre del Equipo | D161: Nombre del Equipo | E161: Cantidad | F161: Cantidad de Olas | G161: Cantidad de Olas | H161: Altura de Olas (m x10-2) | I161: Altura de Olas (m x10-2) | J161: Período de Olas (seg x10-1) | K161: Período de Olas (seg x10-1) | L161: Dirección Angular de Olas (º x10-1) | M161: Dirección Angular de Olas (º x10-1) | N161: Flag | O161: Flag | P161: Cantidad
A162: Valor Min. | B162: D160U | E162: 1
A163: Valor Max. | B163: D169U | E163: 64
A164: bytes a tx | B164: 4 | C164: 6 | D164: 3 | E164: 1 | P164: 2
A165: Ejm. completo | B165: D160U | C165: 310322 | D165: M4 | E165: 5 | F165: 1 | G165: 1000 | H165: 1 | I165: 3000 | J165: 1 | K165: 1000 | L165: 0 | M165: 3599 | N165: 0 | O165: 100 | P165: 4F
A166: Trama Real
A169: Posición del Campo | B169: 1 | C169: 2 | D169: 3 | E169: 4 | F169: 5 | G169: 6 | H169: 7 | I169: 8 | J169: 9 | K169: 10 | L169: 11 | M169: 12 | N169: 13 | O169: 14
A170: DESCRIPCIÓN | B170: TIPO DE TRAMA | C170: FECHA DEF TRAMA | D170: DEF.EQUIPO | E170: CANTIDAD VARIABLES | F170: NOMBRE VARIABLE 1 | G170: UNIDAD VARIABLE 1 | H170: TIPO DE BYTE VARIABLE 1 | I170: NOMBRE VARIABLE 2 | J170: UNIDAD VARIABLE 2 | K170: TIPO DE BYTE VARIABLE 2 | L170: NOMBRE VARIABLE 3 | M170: UNIDAD VARIABLE 3 | N170: TIPO DE BYTE VARIABLE 3 | O170: Checksum
A171: Unidad | B171: Id de la Trama | C171: Nombre del Equipo | D171: Nombre del Equipo | E171: Cantidad | F171: Cantidad dememoria Ocupada % | G171: Unidad de la Variable | H171: Cant.en numero y Positivo, Negativo, Ambos, Float | I171: Nombre de la Variable | J171: Unidad de la Variable | K171: Cant.en numero y Positivo, Negativo, Ambos, Float | L171: Nombre de la Variable | M171: Unidad de la Variable | N171: Cant.en numero y Positivo, Negativo, Ambos, Float | O171: Cantidad
A172: Valor Min. | B172: D161E | E172: 1
A173: Valor Max. | B173: D161E | E173: 32
A174: bytes a tx | B174: 3 | C174: 6 | D174: 2 | E174: 1 | F174: 2 | G174: 3 | H174: 2 | I174: 2 | J174: 3 | K174: 2 | L174: 2 | M174: 3 | N174: 2 | O174: 2
A175: Ejm. completo | B175: D161E | C175: 210522 | D175: M4 | E175: 3 | F175: M | G175: M0 | H175: 1P | I175: R | J175: 1 | K175: 1P | L175: E | M175: 1 | N175: 1P | O175: 4F
A176: Trama Real
A179: Posición del Campo | B179: 1 | C179: 2 | D179: 3 | E179: 4 | F179: 5 | G179: 6 | H179: 7 | I179: 8 | J179: 9 | K179: 10 | L179: 11 | M179: 12 | N179: 13 | O179: 14
A180: DESCRIPCIÓN | B180: TIPO DE TRAMA | C180: FECHA DEF TRAMA | D180: DEF.EQUIPO | E180: CANTIDAD VARIABLES | F180: NOMBRE VARIABLE 1 | G180: UNIDAD VARIABLE 1 | H180: TIPO DE BYTE VARIABLE 1 | I180: NOMBRE VARIABLE 2 | J180: UNIDAD VARIABLE 2 | K180: TIPO DE BYTE VARIABLE 2 | L180: NOMBRE VARIABLE 3 | M180: UNIDAD VARIABLE 3 | N180: TIPO DE BYTE VARIABLE 3 | O180: Checksum
A181: Unidad | B181: Id de la Trama | C181: Nombre del Equipo | D181: Nombre del Equipo | E181: Cantidad | F181: Nombre de la Variable | G181: Unidad de la Variable | H181: Cant.en numero y Positivo, Negativo, Ambos, Float | I181: Nombre de la Variable | J181: Unidad de la Variable | K181: Cant.en numero y Positivo, Negativo, Ambos, Float | L181: Nombre de la Variable | M181: Unidad de la Variable | N181: Cant.en numero y Positivo, Negativo, Ambos, Float | O181: Cantidad
A182: Valor Min. | B182: D162E | E182: 1
A183: Valor Max. | B183: D162E | E183: 32
A184: bytes a tx | B184: 3 | C184: 6 | D184: 2 | E184: 1 | F184: 2 | G184: 3 | H184: 2 | I184: 2 | J184: 3 | K184: 2 | L184: 2 | M184: 3 | N184: 2 | O184: 2
A185: Ejm. completo | B185: D162E | C185: 210522 | D185: M4 | E185: 3 | F185: P | G185: P8 | H185: 4A | I185: PS | J185: 1 | K185: 1P | L185: PQ | M185: 1 | N185: 1P | O185: 4F
A186: Trama Real
A189: MCL360
A190: Posición del Campo | B190: 1 | C190: 2 | D190: 3 | E190: 4 | F190: 5 | G190: 6 | H190: 7 | I190: 8
A191: DESCRIPCIÓN | B191: TIPO DE TRAMA | C191: FECHA DEF TRAMA | D191: DEF.EQUIPO | E191: CANTIDAD VARIABLES | F191: FRECUENCIA MSG GLA | G191: MODO FOTOCELULA | H191: RITMO | I191: Checksum
A192: Unidad | B192: Id de la Trama | C192: Nombre del Equipo | D192: Nombre del Equipo | E192: Cantidad | F192: Cantidad | G192: 1: NOCHE fija 2: DIA fijo 3: AUTO | H192: Código del ritmo de destello | I192: Cantidad
A193: Valor Min. | B193: D80 | E193: 1 | F193: 1 | G193: 0.1
A194: Valor Max. | B194: D119 | E194: 32 | F194: 256 | G194: 20
A195: bytes a tx | B195: 4 | C195: 6 | D195: 2 | E195: 1 | F195: 3 | G195: 4 | I195: 2
A196: Ejm. completo | B196: D180D | C196: 210522 | D196: M5 | E196: 1 | F196: 600 | G196: 3 | H196: 1 | I196: 4F
A197: Trama Real

Sheet trama 2-3 Tlmdos
A2: 1. TRAMA SALIDA DE DATOS DEL DATALOGGER | E2: =SUM(B10:N10)+COUNT(B10:L10) -> 49
A3: En esta trama se transmiten los telemandos del servidor a la Estación. Esta separado por comas y se transmite en ASCII
B5: ID TRAMA | C5: ID Estación | E5: Nro de Paquete | G5: Fecha | I5: Telemando | K5: Modificador/ Detalle del telemando | M5: Checksum
A6: Unidad | B6: Id de la Trama | C6: Id de la Estación a quien va dirigido el telemando | E6: Contador | G6: DDMMAAhhmm | M6: Suma de todos los bytes
A7: Valor Min. | B7: 2 | C7: 0 | E7: 0 | G7: 0101200000 | I7: 0 | M7: 0 | Q7: 255 | S7: 1 byte
A8: Valor Max. | B8: 2 | C8: 65535 | E8: 65535 | G8: 3112992359 | I8: 65535 | M8: 65535 | Q8: 65535 | S8: 2 bytes
A9: Posición trama a tx | B9: 1 | C9: =B9+B10 -> 2 | E9: =C9+C10 -> 7 | G9: =E10+E9 -> 12 | I9: =G10+G9 -> 22 | K9: =I10+I9 -> 32 | M9: =K10+K9 -> 42 | Q9: 16777215 | S9: 3 bytes
A10: bytes a tx max. | B10: 1 | C10: 5 | E10: 5 | G10: 10 | I10: 10 | K10: 10 | M10: 2 | Q10: =4294967295 -> 4294967295 | S10: 4 bytes
A11: Ejm. completo | B11: 2 | C11: 15 | E11: 658 | G11: 3103221345 | M11: *AF
A14: 3. TRAMA CONFIGURACIÓN DE LA TRAMA | D14: =LEN(CONCATENATE(B23,C23,D23,E23))+E17 -> 16 | E14: =SUM(B22:E22)+E17 -> 17
A15: Esta trama define como está configurada la trama general, la cual se trata de que sea estandar. Está separado por comas y se transmite en ASCII (azul)
A17: Posición del Campo | B17: 1 | C17: 2 | D17: 3 | E17: 4
A18: DESCRIPCIÓN | B18: TIPO DE TRAMA | C18: FECHA DEF TRAMA | D18: DEF.ESTACIÓN | E18: Checksum
A19: Unidad | B19: Id de la Trama | C19: Nombre del Equipo | D19: ID de la Estación | E19: Cantidad
A20: Valor Min. | B20: D2
A21: Valor Max. | B21: D2
A22: bytes a tx | B22: 2 | C22: 6 | D22: 3 | E22: 2
A23: Ejm. completo | B23: D2 | C23: 210522 | D23: =C11 -> 15 | E23: 0F
A26: NOTAS DE INTERÉS:
A27: El ID de Estación 65535 se reserva como un comodín, el cual servirá para interrogar a cualquier equipo que no se sepa o haya perdido su ID, o sea, todos los equipos deben responder al ID 65535
A28: Diccionario de Telemandos (Trama 2): | Q28: Diccionario Respuestas de Telemandos (Trama 3):
A29: TELEMANDO ENVIADO DESDE EL SERVIDOR | Q29: RESPUESTA 1 INMEDIATA DESDE LA ESTACIÓN | V29: Modificadores/Detalles despues de la variable del Telemando | AA29: RESPUESTA 2 DESDE LA ESTACIÓN, LUEGO DE ENVIAR LA RESPUESTA 1
A30: Telemando | B30: Descripción | D30: Modificador (es) | F30: Ejemplo Telemando | J30: Ejemplo Trama Completa | Q30: Ejemplo | V30: Ejemplo | AA30: Ejemplo
A31: M$0 | B31: Reset | D31: ID del Equipo | F31: M$0,E1 = reset del Trimeter | J31: 2,2,658,3103221423,M$0,E1*3F | Q31: 3,2,658,3103221423,M$0,ACK*03 | AA31: no aplica la respuesta 2 con este telemando
A32: M$1 | B32: Solicitud de Estado | D32: ID del Equipo | F32: M$1,M3 = Solicitud de estado de la MMB03 | J32: 2,1,658,3103221423,M$1,M3*37 | Q32: 3,1,658,3103221423,M$1,NO REPLY*3B | U32: => | AA32: Responderá en bin con la trama que corresponde según el equipo
A33: M$2 | B33: Solicitud de lectura de definiciones de trama: - Def (configuración de trama) - eXtendida (nombre de var.) - def. Estado (del equipo) - def. Posición teorica de la estación para alarma off-position - def. Configuración particular de algunos equipos p.ej: ADCP y MTX | D33: ID del Equipo, Clase de Trama | F33: M$2,N1,D = Solicitud definición de trama del AQD600, o sea, D80 | J33: 2,5,658,3103221423,M$2,N1,D*31 | Q33: 3,5,658,3103221423,M$2,D,ACK*06 | U33: => | V33: RESPUESTAS ESTANDAR: ACK: Recibido/procesado/en proceso NO REPLY: No hay respuesta, no hay la info solicitada UNKNOWN: Telemando o modificador desconocido ERROR_CHK: Error en el checksum | AA33: Responderá en ASCII con la trama D que corresponde según el equipo
F34: M$2,N1,X = Solicitud de nombres de tramas del AQD600, o sea, D80X | J34: 2,5,658,3103221423,M$2,N1,X*31 | Q34: 3,5,658,3103221423,M$2,X,ACK*06 | U34: => | AA34: Responderá en ASCII con la trama DnnnE que corresponde según el equipo
F35: M$2,N1,E = Solicitud de Def.Estado del AQD600, o sea, D81 | J35: 2,5,658,3103221423,M$2,N1,E*31 | Q35: 3,5,658,3103221423,M$2,E,ACK*06 | U35: => | AA35: Responderá en ASCII con la trama DnnnE que corresponde según el equipo
F36: M$2,M3,P = Solicitud de conf. Alarma Off-Position, o sea, D10P | J36: 2,5,658,3103221423,M$2,M3,P*30 | Q36: 3,5,658,3103221423,M$2,D10P,ACK*05 | U36: => | AA36: Responderá en ASCII con la trama D10P que corresponde según el equipo
F37: M$2,N1,C = Solicitud de conf. HEX ADCP | J37: 2,5,658,3103221423,M$2,N1,C*30 | Q37: 3,5,658,3103221423,M$2,D80C,ACK*05 | AA37: Responderá en ASCII con la trama Hex de configuración del ADCP
F38: M$2,MT1,C = Solicitud de timeout (segundos) para chequeo de conectividad/reset del modem MTX | J38: 2,5,658,3103221423,M$2,MT1,C*31 | Q38: 3,5,658,3103221423,M$2,D80C,ACK*06 | U38: => | AA38: Responderá en ASCII con el tiempo límite establecido para chequear la conectividad y realizar el reset del modem MTX en caso de no tener comunicación
A39: M$3 | B39: Solicitud de escritura de trama: - Def (conf. trama/equipo), - eXtendida (nombre de var.) - Def. Estado (del equipo) - Def. Posición teorica de la estación para alarma off-position - def. Configuración particular de algunos equipos p.ej: ADCP y MTX | D39: Nueva trama Dnnn | F39: M$3,D160,310322,M4,5,1,600,600,1,1,2P,2,22,2P,0,3,... = Conf. de la trama MBW3 | J39: 2,3,658,3103221423,M$3,D160,310322,M4,5,1,600,600,1,1,2P,2,22,2P,0,3,… | Q39: 3,3,658,3103221423,M$3,D160,UNKNOW*01 | U39: => | V39: FAIL: Fallo/error al cargar un nueva DEF de trama | AA39: Responderá en ASCII con la trama D que corresponde según el equipo
F40: M$3,D30X,310322,E1,4,DEPH,TEMP,CNDC,PSAL = Conf. de nombres de variables del CTD | J40: 2,5,659,3103221423,M$3,D30X,310322,E1,4,DEPH,TEMP,CNDC,PSAL*35 | Q40: 3,5,659,3103221423,M$3,D30X,ACK*06 | U40: => | AA40: Responderá en ASCII con la trama DnnnE que corresponde según el equipo
F41: M$3,D31,310322,E1,5,V,V2,2P,3,E1,1,1P,M,M0,1P,E2,1,1P, = Conf. de Def. trama de Estado CTD | J41: 2,5,659,3103221423,M$3,D31,310322,E1,5,V,V2,2P,3,E1,1,1P,M,M0,1P,E2,1,1P*4F | Q41: 3,5,659,3103221423,M$3,D31,ACK*06 | AA41: Responderá en ASCII con la trama DnnnE que corresponde según el equipo
F42: M$3,D10P,310322,M3,5,-45.87645,-125.4323,4000,3600,900 = Conf. de Def. trama de Off-Position MMB03 | J42: 2,5,659,3103221423,M$3,D10P,310322,M3,5,-45.87645,-125.4323,4000,3600,900*4F | Q42: 3,5,659,3103221423,M$3,D10P,ACK*07 | AA42: Responderá en ASCII con la trama D10P que corresponde
F43: M$3,D80C,310322,N1,64,43,43,A5,00,00...,….*6G = Conf. de ADCP | J43: 2,5,659,3103221423M$3,D80C,310322,N1,64,43,43,A5,00,00...,….*6G | Q43: 3,5,659,3103221423,M$3,D80C,ACK*07 | AA43: FAIL de recibir NACK NACK del ADCP
F44: M$3,D10C,310322,MT1,1,900*6G | J44: 2,5,659,3103221423M$3,D10C,310322,MT1,1,900*6G | Q44: 3,5,659,3103221423,M$3,D80C,ACK*08 | U44: => | AA44: no aplica la respuesta 2 con este telemando
A45: M$4 | B45: Modo Transparente | D45: ID del Equipo, 1 para Activar y 0 para Desactivar, 2 para modo debug | F45: M$4,M4,1 = Pasar a modo transparente con el equipo MBW3 M$4,M4,0 = Desactiva el modo transparente con el equipo MBW3 M$4,M4,2 = Desactiva el modo transparente con debug del equipo MBW3 | J45: 2,1,658,3103221423,M$4,M4,1*35 | Q45: 3,1,658,3103221423,M$4,1,ACK*04 | AA45: no aplica la respuesta 2 con este telemando
A46: M$5 | B46: Forzar una medición inmediata | D46: ID del Equipo | F46: M$5,ALL = Ordena al equipo indicado (o a todos los equipos) realizar una medición inmediata (cumpliendo los tiempos de toma de muestras para la media) y envía el resultado por wifi | J46: 2,1,658,3103221423,M$5,ALL*0C | Q46: 3,1,658,3103221423,M$5,ACK*05 | AA46: En vía un mensaje tipo 1 con los datos medidos
A48: T$1 | B48: Solicitud de paquete de datos | D48: Nro del paquete inicial y final, de la fecha mas reciente | F48: T$1,175,175 = solicita el paquete 175 T$1,65530,3 = solicita el paquete desde al 65530 hasta el 3 | J48: 2,2,658,3103221423,T$1,175,175*7F | Q48: 3,2,658,3103221423,T$1,FAIL*50 | U48: => | AA48: Responderá en bin con la trama 1 que corresponde
A49: T$2 | B49: Solicitud de primer paquete no transmitido (el mas viejo) | D49: Ninguno | F49: T$2 = solicita el primer paquete no transmitido | J49: 2,3,988,3103221423,T$2*7F | Q49: 3,2,658,3103221423,T$2,ACK,768*51 ó 3,2,658,3103221423,T$2,NACK,768*51 | U49: => | V49: ACK: Recibido/procesado/en proceso, toca la trama NNN NACK: No hay trama sin transmitir, la última transmitida fue la NNN | AA49: Si hay mensaje y la respouesta anterior no es NACK, entonces enviará en bin la trama 1 que corresponde
A50: T$3 | B50: Solicitud de último paquete no transmitido (el mas reciente) | D50: Ninguno | F50: T$3 = solicita el último paquete no transmitido | J50: 2,3,988,3103221423,T$3*7F | Q50: 3,2,658,3103221423,T$3,ACK,768*51 ó 3,2,658,3103221423,T$3,NACK,768*51 | U50: => | V50: ACK: Recibido/procesado/en proceso, toca la trama NNN NACK: No hay trama sin transmitir, la última transmitida fue la NNN | AA50: Si hay mensaje y la respouesta anterior no es NACK, entonces enviará en bin la trama 1 que corresponde
A51: T$4 | B51: Redefinicón de puntero de lectura del T$2 | D51: Nro del nuevo puntero que define el próximo paquete a transmitir por wifi cuando se interrogue con el T$2 | F51: T$4,nnnnn = indica a la MMB03 cual es el próximo paquete por transmitir según el puntero del T$2 de paquetes pendientes por enviar | J51: 2,3,988,3103221423,T$4,1725*56 | Q51: 3,3,988,3103221423,T$4,ACK,1725*32 | U51: => | V51: ACK: Recibido/procesado/en proceso, toca la trama NNN | AA51: no aplica la respuesta 2 con este telemando
A52: T$5 | B52: Redefinicón de puntero de escritura de paquete T$2 (sobrescribe datos ya guardados) | D52: Redefinición de escritura del número de paquete a donde se grabará la próxima muestra, especificado en el telemando (nnnnn), acá se sobrescribirán las muestras que hayan sido grabadas en esos números de paquete previamente. | F52: T$5,nnnnn = indica a la MMB03 cual es el número en memoria donde se grabará el próximo paquete (cuidado, puede sobreescribir los datos grabados) | J52: 2,3,988,3103221423,T$5,1725*54 | Q52: 3,3,988,3103221423,T$5,ACK,1725*30 | U52: => | V52: ACK: Recibido/procesado/en proceso, toca la trama NNN | AA52: no aplica la respuesta 2 con este telemando
A53: T$6 | B53: Borrado de la memoria y redefine el puntero de escritura de paquete T$2 | D53: Borrado de toda la memoria y se inicia a escribir la próxima muestra partiendo del número de paquete especificado en el telemando (nnnnn). | F53: T$6,nnnnn = indica a la MMB03 cual es el próximo paquete por transmitir según el puntero del T$2 de paquetes pendientes por enviar | J53: 2,3,988,3103221423,T$6,1725*55 | Q53: 3,3,988,3103221423,T$6,ACK,1725*31 | U53: => | V53: ACK: Recibido/procesado/en proceso, toca la trama NNN | AA53: no aplica la respuesta 2 con este telemando
A54: T$7 | B54: Activación / Desactivación de envío de tramas de datos de forma automática | D54: Ninguno | F54: T$7,1 = activa el envío de tramas de datos de forma automática T$7,0 = deactiva el envío de tramas de datos de forma automática | J54: 2,3,988,3103221423,T$7,1*7F 2,3,988,3103221423,T$7,0*7F | Q54: 3,2,658,3103221423,T$7,ACK,768*51 ó 3,2,658,3103221423,T$7,NACK,768*51 | U54: => | V54: ACK: Recibido/procesado/en proceso, toca la trama NNN NACK: No hay trama sin transmitir, la última transmitida fue la NNN | AA54: no aplica la respuesta 2 con este telemando
A57: Librería de Telemandos:
B58: Lectura de Definiciones (M$2) | C58: MMB03
B59: lectura D1 Datos | C59: 2,65535,658,3103221423,M$2,M3,D*5D
B60: lectura D10 Estado | C60: 2,65535,658,3103221423,M$2,M3,E*5C
B61: lectura D10 Umbrales | C61: 2,65535,658,3103221423,M$2,M3,U*4C
B62: Lectura D10 conf. Off-Posición | C62: 2,65535,658,3103221423,M$2,M3,P*30
B63: Lectura de Definiciones (M$2) | C63: CTD
B64: Lectura D30 Datos | C64: 2,65535,658,3103221423,M$2,E1,D*57
B65: Lectura D30 eXtendida | C65: 2,65535,658,3103221423,M$2,E1,X*4B
B66: Lectura D30 Umbrales | C66: 2,65535,658,3103221423,M$2,E1,U*46
B67: Lectura D31 Estado | C67: 2,65535,658,3103221423,M$2,E1,E*56
B68: Lectura de Definiciones (M$2) | C68: ADCP
B69: Lectura D80 Datos | C69: 2,65535,658,3103221423,M$2,N1,D*5C
B70: Lectura D80 eXtendia | C70: 2,65535,658,3103221423,M$2,N1,X*40
B71: Lectura D80 Umbrales | C71: 2,65535,658,3103221423,M$2,N1,U*4D
B72: Lectura D81 Estado | C72: 2,65535,658,3103221423,M$2,N1,E*5D
B73: Lectura D80 Conf ADCP | C73: 3,65585,658,3103221423,M$2,D80C,ACK*06
B74: Lectura de Definiciones (M$2) | C74: MBW3
B75: Lectura D160 Datos | C75: 2,65535,658,3103221423,M$2,M4,D*5A
B76: Lectura D160 eXtendida | C76: 2,65535,658,3103221423,M$2,M4,X*46
B77: lectura D160 Umbrales | C77: 2,65535,658,3103221423,M$2,M4,U*4B
B78: Lectura D161 y D162 Estado | C78: 2,65535,658,3103221423,M$2,M4,E*5B
B79: Lectura de Definiciones (M$2) | C79: EMA
B80: Lectura D120 Datos | C80: 2,65535,658,3103221423,M$2,G1,D*54
B81: Lectura D120 eXtendida | C81: 2,65535,658,3103221423,M$2,G1,X*48
B82: lectura D120 Umbrales | C82: 2,65535,658,3103221423,M$2,G1,U*45
B83: Lectura D120 Estado | C83: 2,65535,658,3103221423,M$2,G1,E*55
B84: Escritura de Definiciones (M$3) | C84: MMB03
B85: Escritura D1 | C85: 2,65535,658,3103221423,M$3,D1D,010422,1,0,600*49
B86: Escritura D10 Estado | C86: 2,65535,658,3103221423,M$3,D10E,010422,M3,7,V,V2,2P,F,C,C2,2P,A,1,2P,E,1,2P,S,1,2P,M,M0,1P,P,P8,4A*74
B87: Escritura D10 Umbrales | C87: 2,65535,658,3103221423,M$3,D10U,020622,M3,7,1200,1400,100,1000,0,65535,0,65535,0,263,0,80,-1799999999,1799999999*1F
B88: Escritura D10 conf. Off-Posición | C88: 2,5,659,3103221423,M$3,D10P,310322,M3,5,-45.87645,-125.4323,4000,3600,900*4F
B89: Escritura de Definiciones (M$3) | C89: CTD
B90: Escritura D30 Datos | C90: 2,65535,658,3103221423,M$3,D30D,010422,E1,5,2,60,600,5,52,2P,6,62,2A,7,72,2P,7,73,2P,8,82,2P*63
B91: Escritura D30 eXtendida | C91: 2,65535,658,3103221423,M$3,D30X,010422,E1,4,DEPH,TEMP,CNDC,PSAL*2D
B92: Escritura D30 Umbrales | C92: 2,65535,658,2705221423,M$3,D30U,010422,E1,5,1,100,10,6000,1,10000,1,60000,2,5000*06
B93: Escritura D31 Estado | C93: 2,65535,658,3103221423,M$3,D31E,010422,E1,4,V,V2,2P,3,E1,1,1P,M,M0,1P,E2,1,1P*3D
B94: Escritura de Definiciones (M$3) | C94: ADCP
B95: Escritura D80 Datos | C95: 2,65535,658,3103221423,M$3,D80D,010422,N1,2,6,2.0,2.5,1,60,600,9,93,2A,7,3F,6,62,2A*57
B96: Escritura D80 eXtendida | C96: 2,65535,658,3103221423,M$3,D80X,010422,N1,4,EWCT,NSCT,VCSP,TEMP*29
B97: Escritura D80 Umbrales | C97: 2,65535,658,2705221423,M$3,D80U,010422,N1,2,-10000,10000,1,6000*2C
B98: Escritura D81 Estado | C98: 2,65535,658,3103221423,M$3,D81E,010422,N1,3,V,V3,2P,1,5,52,2P,4,41,2A,7*4E
B99: Escritura D80 Conf ADCP | C99: 2,5,659,3103221423M$3,D80C,310322,N1,64,43,43,A5,00,00...,….*6G
B100: Escritura de Definiciones (M$3) | C100: MBW3
B101: Escritura D160 Datos | C101: 2,65535,658,3103221423,M$3,D160D,010422,M4,5,1,600,600,1,1,2P,2,22,2P,F,3,31,2P,1F,4,41,2P,3,F,1,1P,3*3C
B102: Escritura D160 Extendida | C102: 2,65535,658,3103221423,M$3,D160X,100522,M4,14,VQTY,VMXL,VH110,VAVH,VHM0,VTMX,VTPK,VT110,VAVT,VGTA,VDIR,VPSP,VFL1,VFL
B103: Escritura D160 Umbrales | C103: 2,65535,658,2705221423,M$3,D160U,010422,M4,5,1,1000,1,3000,1,1000,0,3599,0,100*0D
B104: Escritura D161 Estado SBG | C104: 2,65535,658,3103221423,M$3,D161E,010422,M4,3,M,M0,1P,R,1,1P,E,1,1P*74
B105: Escritura D162 Estado GPS | C105: 2,65535,658,3103221423,M$3,D162E,010422,M4,3,P,P8,4A,PS,1,1P,PD,1,1P*6B
B106: Escritura de Definiciones (M$3) | C106: EMA
B107: Escritura D120 Datos | C107: 2,65535,658,3103221423,M$3,D120D,010422,G1,8,2,60,600,4,40,2P,13,92,2P,4,40,2P,14,92,2P,11,111,2P,12,M0,1P,6,61,2A,6,61,2A*4F
B108: Escritura D120 Extendida | C108: 2,65535,658,3103221423,M$3,D120X,310322,G1,8,WDIR,WSPD,GDIR,GSPD,ATMS,RELH,DRYT,DEWT*4F
B109: Escritura D120 Umbrales | C109: 2,65535,658,2705221423,M$3,D120U,310222,G1,8,0,359,0.01,60,0,359,0.01,60,500,1100,0,100,-10,50,-10,50*4F
B110: Escritura D120 Estado | C110: 2,65535,658,3103221423,M$3,D120E,210522,G1,2,V,1,1P,SE,1,2P*4F
B111: Lectura de Paquetes de Datos (T$)
B112: T$1 (grupo de datos) | C112: 2,65535,100,2103221423,T$1,2303,2303*76
B113: T$2 (1era trama sin Tx) | C113: 2,65535,100,1304221700,T$2*71
B114: T$3 (Última trama medida) | C114: 2,65535,100,1304221700,T$3*70
B115: T$4 (Reconf. índice T$2) | C115: 2,65535,100,2805221200,T$4,1500*53
B116: Reset de Equipos (M$0)
B117: Reset CTD Trimeter | C117: 2,65535,658,3103221423,M$0,E1*3D
B118: Reset ADCP | C118: 2,65535,658,3103221423,M$0,N1*36
B119: Reset Waves | C119: 2,65535,658,3103221423,M$0,M4*30
B120: Reset General | C120: 2,65535,658,3103221423,M$0,M3*37
B121: Lectura de Estado de Equipos (M$1)
B122: Lectura status MMB03 | C122: 2,65535,658,3103221423,M$1,M3*36
B123: Lectura status CTD | C123: 2,65535,658,3103221423,M$1,E1*3C
B124: Lectura status ADCP | C124: 2,65535,658,3103221423,M$1,N1*37
B125: Lectura status waves | C125: 2,65535,658,3103221423,M$1,M4*31
B126: Lectura status All | C126: 2,65535,658,3103221423,M$1,ALL*09
B127: Modo Transparente de Equipos (M$4)
B128: Transparente CTD TRIMETER | C128: 2,65535,658,3103221423,M$4,E1*39
B129: Transparente ADCP | C129: 2,65535,658,3103221423,M$4,N1*32
B130: Transparente Waves | C130: 2,65535,658,3103221423,M$4,M4*31
B131: Medición Inmediata por Equipo (M$5)
B132: Nuevo barrido CTD | C132: 2,65535,658,3103221423,M$5,E1*38
B133: Nuevo barrido ADCP | C133: 2,65535,658,3103221423,M$5,N1*33
B134: Nuevo barrido Waves | C134: 2,65535,658,3103221423,M$5,M4*35
B135: Nuevo barrido general | C135: 2,65535,658,3103221423,M$5,ALL*0D
B136: Otros varios
B137: Reset memoria | C137: RESET MEM
B138: Grabacion valores por defecto | C138: DEFECTO
B139: T$5 | C139: 2,65535,100,2805221200,T$5,2400*50
B140: T$6 | C140: 2,65535,100,2805221200,T$6,2400*53

Sheet trama 1 Tx datos
F1: Bytes de 8 bit | G1: Bits | H1: Bytes de 6 bit
A2: 1. TRAMA SALIDA DE DATOS DEL DATALOGGER | F2: =SUM(B10:N10) -> 104 | G2: =F2*8 -> 832 | H2: =ROUNDUP(G2/6,0) -> 139
A3: En esta trama se transmiten los datos identificadores de la boya, la fecha maestra de la trama y la trama de todos los sensores. NO están separados por comas, se identifican según su posición y se transmite en BIN
B5: ID TRAMA | C5: ID Estación | E5: Nro de Paquete | G5: Fecha | K5: Longitud Total de la Trama | M5: Grupo de tramas de cada Equipo | N5: Checksum
A6: Unidad | B6: Id de la Trama | C6: Id de la Estación | E6: Contador | G6: DDMMAAhhmm | K6: Longitud desde el byte 12 hasta antes del *del checksum | M6: Definido en la configuración de cada sensor | N6: Suma de todos los bytes
A7: Valor Min. | B7: 1 | C7: 0 | E7: 0 | G7: 0101200000 | K7: 0 | M7: 0 | N7: 0 | P7: 1 byte | Q7: 255
A8: Valor Max. | B8: 9 | C8: 65535 | E8: 65535 | G8: 3112992359 | K8: 65535 | M8: 65535 | N8: 65535 | P8: 2 bytes | Q8: 65535 | T8: dec | U8: 75
A9: Posición trama a tx | B9: 1 | C9: =B9+B10 -> 2 | E9: =C9+C10 -> 4 | G9: =E9+E10 -> 6 | K9: =G10+G9 -> 10 | M9: =K10+K9 -> 12 | N9: =M10+M9 -> 103 | P9: 3 bytes | Q9: 16777215 | T9: hex | U9: =DEC2HEX(U8) -> 4B
A10: bytes a tx | B10: 1 | C10: 2 | E10: 2 | G10: 4 | K10: 2 | M10: =Waves!D12+'CTD Trimeter'!D8+ADCP!D17+EMA!D8 -> 91 | N10: 2 | P10: 4 bytes | Q10: =4294967295 -> 4294967295 | T10: ascii | U10: =CHAR(U8) -> K
A11: Ejm. completo | B11: 1 | C11: 15 | E11: 658 | G11: 3103221345 | K11: =M10 -> 91 | M11: un verguero | N11: *AF
A13: EJEMPLO DE DESCODIFICACIÓN:
A14: Tx | B14: 2,65535,100,200422100,T$2*46<CR>
A15: Rx 1 | B15: 3,21587,100,200422100,T$2,ACK*2B<CR><LF>
A16: Rx 2 | B16: 01 54 53 03 5A 0C 3B 6D 14 00 29 A0 0A 00 04 00 02 00 02 00 02 00 02 01 14 00 7E 01 04 00 FC 00 E3 01 09 02 43 64 64 06 3A 01 54 53 03 5B 0C 3B 6D 1E 00 29 A0 0A 00 03 00 02 00 02 00 02 00 02 00 F9 00 F0 00 F9 00 F9 00 D8 0B B9 02 41 64 64 09 38 01 54 53 03 5C 0C 3B 6D 50 00 29 A0 0A 00 02 00 02 00 02 00 02 00 02 00 9D 00 9D 00 95 00 95 00 99 04 7E 02 0F 64 64 07 40 01 54 53 03 5D 0C 3B 6D 5A 00 29 A0 0A 00 04 00 02 00 02 00 02 00 02 00 F7 00 B9 00 59 00 A8 00 B8 03 89 03 32 64 64 07 E7
B17: 1 | C17: 2 | D17: 3 | E17: 4 | F17: 5 | G17: 6 | H17: 7 | I17: 8 | J17: 9 | K17: 10 | L17: 11 | M17: 12 | N17: 13 | O17: 14 | P17: 15 | Q17: 16 | R17: 17 | S17: 18 | T17: 19 | U17: 20 | V17: 21 | W17: 22 | X17: 23 | Y17: 24 | Z17: 25 | AA17: 26 | AB17: 27 | AC17: 28 | AD17: 29 | AE17: 30 | AF17: 31 | AG17: 32 | AH17: 33 | AI17: 34 | AJ17: 35 | AK17: 36 | AL17: 37 | AM17: 38 | AN17: 39 | AO17: 40 | AP17: 41 | AQ17: 42 | AR17: 43 | AS17: 44 | AT17: 45 | AU17: 46 | AV17: 47 | AW17: 48 | AX17: 49 | AY17: 50 | AZ17: 51 | BA17: 52 | BB17: 53 | BC17: 54 | BD17: 55 | BE17: 56 | BF17: 57 | BG17: 58 | BH17: 59 | BI17: 60 | BJ17: 61 | BK17: 62 | BL17: 63 | BM17: 64 | BN17: 65 | BO17: 66 | BP17: 67 | BQ17: 68 | BR17: 69 | BS17: 70 | BT17: 71 | BU17: 72 | BV17: 73 | BW17: 74 | BX17: 75 | BY17: 76 | BZ17: 77 | CA17: 78 | CB17: 79 | CC17: 80 | CD17: 81 | CE17: 82 | CF17: 83 | CG17: 84 | CH17: 85 | CI17: 86 | CJ17: 87 | CK17: 88 | CL17: 89 | CM17: 90 | CN17: 91 | CO17: 92 | CP17: 93 | CQ17: 94 | CR17: 95 | CS17: 96 | CT17: 97 | CU17: 98 | CV17: 99 | CW17: 100 | CX17: 101 | CY17: 102 | CZ17: 103 | DA17: 104 | DB17: 105 | DC17: 106 | DD17: 107 | DE17: 108 | DF17: 109 | DG17: 110 | DH17: 111 | DI17: 112 | DJ17: 113 | DK17: 114 | DL17: 115 | DM17: 116 | DN17: 117 | DO17: 118 | DP17: 119 | DQ17: 120 | DR17: 121 | DS17: 122 | DT17: 123 | DU17: 124 | DV17: 125 | DW17: 126 | DX17: 127 | DY17: 128 | DZ17: 129 | EA17: 130 | EB17: 131 | EC17: 132 | ED17: 133 | EE17: 134 | EF17: 135 | EG17: 136 | EH17: 137 | EI17: 138 | EJ17: 139 | EK17: 140 | EL17: 141 | EM17: 142 | EN17: 143 | EO17: 144 | EP17: 145 | EQ17: 146 | ER17: 147 | ES17: 148 | ET17: 149 | EU17: 150 | EV17: 151 | EW17: 152 | EX17: 153 | EY17: 154 | EZ17: 155 | FA17: 156 | FB17: 157 | FC17: 158 | FD17: 159 | FE17: 160 | FF17: 161 | FG17: 162 | FH17: 163 | FI17: 164 | FJ17: 165 | FK17: 166 | FL17: 167 | FM17: 168 | FN17: 169 | FO17: 170 | FP17: 171 | FQ17: 172 | FR17: 173 | FS17: 174 | FT17: 175 | FU17: 176 | FV17: 177 | FW17: 178 | FX17: 179 | FY17: 180 | FZ17: 181 | GA17: 182 | GB17: 183 | GC17: 184 | GD17: 185 | GE17: 186 | GF17: 187 | GG17: 188 | GH17: 189 | GI17: 190 | GJ17: 191 | GK17: 192 | GL17: 193 | GM17: 194 | GN17: 195 | GO17: 196 | GP17: 197 | GQ17: 198 | GR17: 199 | GS17: 200 | GT17: 201 | GU17: 202 | GV17: 203 | GW17: 204 | GX17: 205 | GY17: 206 | GZ17: 207 | HA17: 208 | HB17: 209 | HC17: 210 | HD17: 211 | HE17: 212 | HF17: 213 | HG17: 214 | HH17: 215 | HI17: 216 | HJ17: 217 | HK17: 218 | HL17: 219 | HM17: 220 | HN17: 221 | HO17: 222 | HP17: 223 | HQ17: 224 | HR17: 225 | HS17: 226 | HT17: 227 | HU17: 228 | HV17: 229 | HW17: 230 | HX17: 231 | HY17: 232 | HZ17: 233 | IA17: 234 | IB17: 235 | IC17: 236 | ID17: 237 | IE17: 238 | IF17: 239 | IG17: 240 | IH17: 241 | II17: 242 | IJ17: 243 | IK17: 244 | IL17: 245 | IM17: 246 | IN17: 247 | IO17: 248 | IP17: 249 | IQ17: 250 | IR17: 251 | IS17: 252 | IT17: 253 | IU17: 254 | IV17: 255 | IW17: 256 | IX17: 257 | IY17: 258 | IZ17: 259 | JA17: 260 | JB17: 261 | JC17: 262 | JD17: 263 | JE17: 264 | JF17: 265 | JG17: 266 | JH17: 267 | JI17: 268 | JJ17: 269 | JK17: 270 | JL17: 271 | JM17: 272 | JN17: 273 | JO17: 274 | JP17: 275 | JQ17: 276 | JR17: 277 | JS17: 278 | JT17: 279 | JU17: 280 | JV17: 281 | JW17: 282 | JX17: 283 | JY17: 284 | JZ17: 285 | KA17: 286 | KB17: 287 | KC17: 288 | KD17: 289 | KE17: 290 | KF17: 291 | KG17: 292 | KH17: 293 | KI17: 294 | KJ17: 295 | KK17: 296 | KL17: 297 | KM17: 298
A18: HEX | B18: 1 | C18: 0 | D18: 3 | E18: 0C | F18: 12 | G18: 83 | H18: 80 | I18: 42 | J18: 28 | K18: 1 | L18: 0D | M18: A0 | N18: 0 | O18: FF | P18: FF | Q18: FF | R18: FF | S18: FF | T18: FF | U18: FF | V18: FF | W18: FF | X18: FF | Y18: FF | Z18: FF | AA18: FF | AB18: FF | AC18: FF | AD18: FF | AE18: FF | AF18: FF | AG18: FF | AH18: FF | AI18: 0 | AJ18: 0 | AK18: 0 | AL18: 0 | AM18: 0 | AN18: 0 | AO18: 50 | AP18: 0 | AQ18: FA | AR18: 42 | AS18: FE | AT18: C0 | AU18: FC | AV18: 9A | AW18: 4 | AX18: 33 | AY18: FD | AZ18: 8C | BA18: F8 | BB18: 2D | BC18: 0 | BD18: 91 | BE18: FC | BF18: 43 | BG18: FC | BH18: 76 | BI18: 0 | BJ18: 65 | BK18: FD | BL18: 4B | BM18: F9 | BN18: F3 | BO18: 2 | BP18: 44 | BQ18: FE | BR18: 0B | BS18: F8 | BT18: 3D | BU18: 1 | BV18: 27 | BW18: FA | BX18: 50 | BY18: FA | BZ18: 41 | CA18: 9 | CB18: EE | CC18: 50 | CD18: 2 | CE18: FB | CF18: EB | CG18: FD | CH18: 27 | CI18: FE | CJ18: 41 | CK18: 3 | CL18: D7 | CM18: FC | CN18: 1D | CO18: F9 | CP18: E2 | CQ18: FF | CR18: DD | CS18: FD | CT18: 73 | CU18: FA | CV18: BD | CW18: FF | CX18: 12 | CY18: FF | CZ18: C0 | DA18: FA | DB18: D1 | DC18: 0 | DD18: 75 | DE18: FB | DF18: D6 | DG18: F8 | DH18: F5 | DI18: FE | DJ18: 26 | DK18: FA | DL18: E0 | DM18: F8 | DN18: C2 | DO18: 9 | DP18: ED | DQ18: 50 | DR18: 4 | DS18: F8 | DT18: E5 | DU18: FF | DV18: 5 | DW18: FC | DX18: AC | DY18: FE | DZ18: 9B | EA18: F8 | EB18: FE | EC18: FC | ED18: C4 | EE18: 4 | EF18: 7E | EG18: FB | EH18: 1D | EI18: FE | EJ18: 8 | EK18: 1 | EL18: 4E | EM18: FD | EN18: 33 | EO18: FE | EP18: 62 | EQ18: 3 | ER18: 6E | ES18: 0 | ET18: A6 | EU18: FB | EV18: E8 | EW18: FE | EX18: E8 | EY18: FD | EZ18: 3C | FA18: F8 | FB18: 31 | FC18: 9 | FD18: EB | FE18: 50 | FF18: 6 | FG18: F9 | FH18: 3D | FI18: FD | FJ18: C5 | FK18: FB | FL18: FD | FM18: FE | FN18: EF | FO18: FF | FP18: 37 | FQ18: F8 | FR18: 52 | FS18: 2 | FT18: 71 | FU18: 0 | FV18: 0 | FW18: FA | FX18: 9C | FY18: FD | FZ18: 74 | GA18: FD | GB18: F8 | GC18: FB | GD18: 17 | GE18: FA | GF18: 74 | GG18: FB | GH18: E8 | GI18: F7 | GJ18: 0E | GK18: FC | GL18: C7 | GM18: FC | GN18: D8 | GO18: F7 | GP18: A0 | GQ18: 9 | GR18: EA | GS18: 50 | GT18: 8 | GU18: FB | GV18: 58 | GW18: FA | GX18: 86 | GY18: FF | GZ18: 35 | HA18: 1 | HB18: 4E | HC18: FC | HD18: AE | HE18: F7 | HF18: CE | HG18: 0 | HH18: EB | HI18: FE | HJ18: 1C | HK18: F7 | HL18: 5A | HM18: 0 | HN18: 16 | HO18: FB | HP18: EE | HQ18: FB | HR18: 9 | HS18: FF | HT18: EF | HU18: FD | HV18: 37 | HW18: F9 | HX18: CE | HY18: FF | HZ18: 12 | IA18: F9 | IB18: B5 | IC18: F5 | ID18: 91 | IE18: 9 | IF18: E8 | IG18: A0 | IH18: 0A | II18: 0 | IJ18: 1 | IK18: 0 | IL18: 3 | IM18: 0 | IN18: 3 | IO18: 0 | IP18: 3 | IQ18: 0 | IR18: 3 | IS18: 0 | IT18: FB | IU18: 0 | IV18: FB | IW18: 0 | IX18: FB | IY18: 0 | IZ18: FB | JA18: 0 | JB18: FB | JC18: 1 | JD18: 0B | JE18: 0 | JF18: 0 | JG18: 64 | JH18: 64 | JI18: 98 | JJ18: 6C
A19: HEX | B19: =TEXT(B18,"00") -> 01 | C19: =CONCATENATE(TEXT(C18,"00"),TEXT(D18,"00")) -> 0003 | E19: =CONCATENATE(TEXT(E18,"00"),TEXT(F18,"00")) -> 0C12 | G19: =CONCATENATE(TEXT(G18,"00"),TEXT(H18,"00"),TEXT(I18,"00"),TEXT(J18,"00")) -> 83804228 | K19: =CONCATENATE(TEXT(K18,"00"),TEXT(L18,"00")) -> 010D | M19: =TEXT(M18,"00") -> A0 | N19: =TEXT(N18,"00") -> 00 | O19: =CONCATENATE(O18,P18) -> FFFF | Q19: =CONCATENATE(Q18,R18) -> FFFF | S19: =CONCATENATE(S18,T18) -> FFFF | U19: =CONCATENATE(U18,V18) -> FFFF | W19: =CONCATENATE(W18,X18) -> FFFF
A20: DEC | B20: =HEX2DEC(B19) -> 1 | C20: =HEX2DEC(C19) -> 3 | E20: =HEX2DEC(E19) -> 3090 | G20: =TEXT(HEX2DEC(G19),"0000000000") -> 2206220840 | K20: =HEX2DEC(K19) -> 269 | M20: =HEX2DEC(M19) -> 160 | N20: =HEX2DEC(N19) -> 0 | O20: =HEX2DEC(O19) -> 65535 | Q20: =HEX2DEC(Q19) -> 65535 | S20: =HEX2DEC(S19) -> 65535 | U20: =HEX2DEC(U19) -> 65535 | W20: =HEX2DEC(W19) -> 65535
B21: =B20 -> 1 | C21: =C20 -> 3 | E21: =E20 -> 3090 | H21: =DATE(MID(G20,5,2)+100,MID(G20,3,2),MID(G20,1,2)) -> 2022-06-22 | I21: =TIME(LEFT(RIGHT(G20,4),2),RIGHT(RIGHT(G20,4),2),) -> 08:40:00 | K21: =K20 -> 269 | M21: =M20 -> 160 | N21: =N20 -> 0 | O21: =O20 -> 65535 | Q21: =Q20 -> 65535 | S21: =S20 -> 65535 | U21: =U20 -> 65535 | W21: =W20 -> 65535
F22: 874
J23: Actual | K23: Max | O23: Cant.total de bytes por equipo
A24: 3. TRAMA CONFIGURACIÓN DE LA ESTACIÓN | D24: =LEN(CONCATENATE(B33,C33,D33,E33,F33,J33))+J27 -> 26 | E24: =SUM(B32:J32)+J27 -> 35 | I24: TOTAL DE BYTES EN TRAMAS DE CONFIGURACIÓN (DEF) | J24: =D24+Waves!D32+'CTD Trimeter'!D28+ADCP!D38 -> 211 | K24: =E24+Waves!E32+'CTD Trimeter'!E28+ADCP!E38 -> 256 | N24: Equipo | O24: ADCP | P24: CTD | Q24: MBW
A25: Esta trama define como está configurada la trama general, la cual se trata de que sea estandar. Está separado por comas y se transmite en ASCII (azul) | N25: Id (hex) | O25: 50 | P25: 1E | Q25: A0
N26: ID (dec) | O26: 80 | P26: 30 | Q26: 160 | W26: 51 | X26: 52 | Y26: 53 | Z26: 54 | AA26: 55 | AB26: 56 | AC26: 57 | AD26: 58 | AE26: 59 | AF26: 60
A27: Posición del Campo | B27: 1 | C27: 2 | D27: 3 | E27: 4 | F27: 5 | G27: 6 | H27: 7 | I27: 8 | J27: 9 | P27: Bytes | Q27: 40 | R27: 10 | S27: 28 | Y27: 0 | Z27: E8 | AA27: 0 | AB27: E8 | AC27: 0 | AD27: DB | AE27: 0 | AF27: DB | AG27: 0 | AH27: E2
A28: DESCRIPCIÓN | B28: TIPO DE TRAMA | C28: FECHA DEF TRAMA | D28: DEF.EQUIPO | E28: CANTIDAD EQUIPOS | F28: FRECUENCIA DE TRANSMISIÓN | G28: DELAY DE RESPUESTA A TELEMANDO | H28: DELAY PARA CERRAR PAQUETE DE DATOS | I28: PAQUETES DIARIOS MAXIMOS | J28: Checksum
A29: Unidad | B29: Id de la Trama | C29: Nombre del Equipo | D29: ID de la Estación | E29: Cantidad | F29: Segundos | G29: Segundos | H29: Segundos | I29: Cantidad | J29: Cantidad
A30: Valor Min. | B30: D0 | E30: 1 | F30: 1 | G30: 1 | H30: 1
A31: Valor Max. | B31: D9 | E31: 32 | F31: 3600 | G31: 99 | H31: 999
A32: bytes a tx | B32: 2 | C32: 6 | D32: 3 | E32: 1 | F32: 4 | G32: 2 | H32: 3 | I32: 3 | J32: 2
A33: Ejm. completo | B33: D1D | C33: 210522 | D33: 1 | E33: 4 | F33: 1800 | G33: 15 | H33: 60 | I33: 300 | J33: 0F
B34: D1D | C34: 10422 | D34: 1 | E34: 4 | F34: 1800 | G34: 10 | H34: 120 | I34: 300 | J34: 7
A36: NOTAS:
A37: Cabeceras para los ID de las tramas de los sensores: | G37: DEF.EQUIPO 3 CARACTERES MAX. | J37: NOMBRE TIPO DE VARIABLE 2 CARACTERES MAX | Q37: UNIDAD VARIABLE 3 CARACTERES MAX.
A38: ID Desde | B38: ID Hasta | C38: Equipo | D38: Cant. ID pervistos | G38: ID | H38: Equipo | J38: ID | K38: Nombre Genérico de la Variable | L38: Mask | M38: Variab. Detalle | N38: Abrev. | O38: Unidad DB | Q38: ID | R38: Equipo
A39: 1 | B39: =A39+D39-1 -> 9 | C39: Trama General | D39: 9 | G39: ALL | H39: Todos los equipos | J39: 1 | K39: NÚMERO DE OLAS | L39: N | N39: VQTY | O39: cantidad | Q39: 1 | R39: ADIMENSIONAL
A40: 10 | B40: =A40+D40-1 -> 29 | C40: MMB03 | D40: 20 | G40: A1 | H40: EMA Airmar 200WX | J40: 2 | K40: ALTURA DE OLAS | L40: S | M40: H.Max. | N40: VMXL | O40: m | Q40: V0 | R40: Voltios
A41: =B40+1 -> 30 | B41: =A41+D41-1 -> 79 | C41: CTDs | D41: 50 | G41: ATN | H41: CPU AtoN | M41: H.Sig.1/10 | N41: VH110 | O41: m | Q41: V1 | R41: V*10^-1
A42: =B41+1 -> 80 | B42: =A42+D42-1 -> 119 | C42: ADCP | D42: 40 | G42: E1 | H42: TRIMETER | M42: H.Sig.1/3 | N42: VAVH | O42: m | Q42: V2 | R42: V*10^-2
A43: =B42+1 -> 120 | B43: =A43+D43-1 -> 159 | C43: EMA | D43: 40 | G43: G1 | H43: EMA Gill GMX500 | M43: H.Med. | N43: VHM0 | O43: m | Q43: C0 | R43: Amperios
A44: =B43+1 -> 160 | B44: =A44+D44-1 -> 169 | C44: WAVE | D44: 10 | G44: N1 | H44: AQD600 | J44: 3 | K44: PERIODO | L44: S | M44: T.Max | N44: VTMX | O44: seg | Q44: C1 | R44: A*10^-1
A45: =B44+1 -> 170 | B45: =A45+D45-1 -> 179 | C45: MTW1 | D45: 10 | G45: M0 | H45: ESTACIÓN COMPLETA | M45: T.Pico | N45: VTPK | O45: seg | Q45: C2 | R45: A*10^-2
A46: =B45+1 -> 180 | B46: =A46+D46-1 -> 189 | C46: AtoN | D46: 10 | G46: M1 | H46: MTW1 | M46: T.Sig.1/10 | N46: VT110 | O46: seg | Q46: C3 | R46: A*10^-3
A47: =B46+1 -> 190 | B47: 255 | C47: Otros (disponible) | D47: =B47-A47 -> 65 | G47: M2 | H47: MMB02 | M47: T.Sig.1/3 | N47: VAVT | O47: seg | Q47: M0 | R47: Porcentaje
C48: TOTAL | D48: =SUM(D39:D46) -> 189 | G48: M3 | H48: MMB03 | M48: T.Med. | N48: VGTA | O48: seg | Q48: P0 | R48: Grados
G49: M4 | H49: MBW3 | J49: 4 | K49: ANGULAR | L49: S | M49: Dir.Oleaje | N49: VDIR | O49: º | Q49: FHG | R49: Fecha y hora DDMMYYhhmm
G50: M5 | H50: MCL360 | M50: Disper.Oleaje | N50: VPSP | O50: º | Q50: 20 | R50: Metros
A51: Diccionario de Tramas Implementadas | G51: MT1 | H51: Modem MTX | M51: Heading | N51: AHDG | O51: º | Q51: 21 | R51: dm
A52: Nro (Dec) | B52: Nro (Hex) | C52: Trama | G52: IR1 | H52: Modem IRIDIUM | M52: Pitch | N52: APIT | O52: º | Q52: 22 | R52: cm
A53: 1 | B53: =DEC2HEX(A53,2) -> 01 | C53: Tx de datos desde la estación | M53: Roll | N53: AROL | O53: º | Q53: 23 | R53: mm
A54: 2 | B54: =DEC2HEX(A54,2) -> 02 | C54: Telemando desde el Servidor | M54: Dir.Viento | N54: WDIR | O54: º
A55: 3 | B55: =DEC2HEX(A55,2) -> 03 | C55: Respuesta de telemando desde la Estación | G55: MARCA | H55: A: AIRMAR | M55: Dir.Ráfaga | N55: GDIR | O55: º
A56: 10 | B56: =DEC2HEX(A56,2) -> 0A | C56: Trama de Estado de la MMB03 | H56: E: EUREKA | J56: 5 | K56: PROFUNDIDAD | L56: N | N56: DEPH | O56: m | Q56: 30 | R56: Segundos
A57: 30 | B57: =DEC2HEX(A57,2) -> 1E | C57: Trama de datos del CTD Trimeter | H57: G: GILL | J57: 6 | K57: TEMPERATURA | L57: N | M57: Temp.agua | N57: TEMP | O57: ºC | Q57: 31 | R57: Seg*10^-1
A58: 31 | B58: =DEC2HEX(A58,2) -> 1F | C58: Trama de Estado del CTD | H58: N: NORTEK | M58: Temp.bulbo hum. | N58: WETT | O58: ºC
A59: 80 | B59: =DEC2HEX(A59,2) -> 50 | C59: Trama de datos ADCP AQD600 | H59: M: MSM | M59: Temp.bulbo seco | N59: DRYT | O59: ºC
A60: 81 | B60: =DEC2HEX(A60,2) -> 51 | C60: Trama de Estado del ADCP | H60: MT: Matrix | M60: Pto. De rocío | N60: DEWT | O60: ºC
A61: 120 | B61: =DEC2HEX(A61,2) -> 78 | C61: Trama de Datos de la EMA Gill | H61: R: RBR | J61: 7 | K61: CONDUCTIVIDAD | L61: N | N61: CNDC | O61: ms/cm | Q61: 32 | R61: Seg*10^-2
A62: 121 | B62: =DEC2HEX(A62,2) -> 79 | C62: Trama de Estado de la EMA Gill | H62: S: SBE | J62: 71 | K62: CONDUCTIVIDAD | L62: N | N62: CNDU | O62: ms/cm | Q62: 40 | R62: Grados
A63: 122 | B63: =DEC2HEX(A63,2) -> 7A | C63: Trama de Datos de la EMA AIRMAR | H63: SN: SONARDYNE | J63: 8 | K63: SALINIDAD | L63: N | N63: PSAL | O63: PSU | Q63: 41 | R63: Décimas de grado (ºC*10^-1)
A64: 123 | B64: =DEC2HEX(A64,2) -> 7B | C64: Trama de Estado de la EMA AIRMAR | H64: T: TELEDYNE | J64: 9 | K64: CORRIENTE SUBMARINA | L64: Sx2 | M64: Vel.Este | N64: EWCT | O64: m/s | Q64: 50 | R64: Metros
A65: 160 | B65: =DEC2HEX(A65,2) -> A0 | C65: Trama de datos de la MBW3 | H65: IR: IRIDIUM | L65: Sx2 | M65: Vel.Norte | N65: NSCT | O65: m/s | Q65: 51 | R65: dm
A66: 161 | B66: =DEC2HEX(A66,2) -> A1 | C66: Trama de Estado de la MBW3 | L66: Sx2 | M66: Vel.Arriba | N66: VCSP | O66: m/s | Q66: 52 | R66: cm
A67: 162 | B67: =DEC2HEX(A67,2) -> A2 | C67: Trama de Estado del GPS de la MBW3 | J67: 10 | K67: ODO | L67: N | Q67: 53 | R67: mm
J68: 11 | K68: PRESIÓN ATMOSFERICA | L68: N | O68: hPa | Q68: 60 | R68: ºC
J69: 12 | K69: HUMEDAD RELATIVA | L69: N | N69: RELH | O69: % | Q69: 61 | R69: ºC*10^-1
J70: 13 | K70: VELOCIDAD DEL VIENTO | L70: N | N70: WSPD | O70: m/s | Q70: 62 | R70: ºC*10^-2
J71: 14 | K71: VELOCIDAD DE RÁFAGA | L71: N | N71: GSPD | O71: m/s | Q71: 63 | R71: ºC*10^-3
J72: 15 | K72: TURBIDEZ | N72: TUR4 | O72: FNU | Q72: 70 | R72: mS/cm
J73: 16 | Q73: 71 | R73: mS/cm*10^-1
J74: 17 | Q74: 72 | R74: mS/cm*10^-2
Q75: 73 | R75: uS/cm
J76: A | K76: ALARMAS | L76: N | O76: binario | Q76: 80 | R76: PSU
J77: C | K77: CORRIENTE ELÉCTRICA | L77: N | O77: A | Q77: 81 | R77: PSU*10^-1
J78: E | K78: ESTADO ENTRADA/EQUIPO | L78: N | O78: binario | Q78: 82 | R78: PSU*10^-2
J79: E1 | K79: CANT.SENSORES | L79: N | O79: cantidad | Q79: 83 | R79: PSU*10^-3
J80: E2 | K80: CANT.ARCHIVOS | L80: N | O80: cantidad | Q80: 90 | R80: m/s
J81: F | K81: FLAG | L81: S | M81: Flag1 Wave | N81: VLF1 | O81: binario | Q81: 91 | R81: m/s*10^-1
M82: Flag2 Wave | N82: VLF2 | O82: binario | Q82: 92 | R82: m/s*10^-2
J83: F1 | K83: FECHA HORA UTC | L83: N | O83: GFH | Q83: 93 | R83: mm/s
J84: M | K84: MEMORIA | L84: N | O84: % | Q84: 110 | R84: hPa
J85: P | K85: POSICIÓN | L85: Nx2 | O85: º | Q85: 111 | R85: hPa x 10-1
J86: PS | K86: CANT.SATELITES | L86: N | O86: cantidad | Q86: 112 | R86: hPa x 10-2
J87: PQ | K87: PDOP | L87: N | O87: cantidad | Q87: 113 | R87: hPa x 10-3
J88: R | K88: REINICIOS | L88: N | O88: cantidad | Q88: 150 | R88: FNU
J89: S | K89: SINCRONIZACIÓN | L89: N | O89: binario | Q89: 151 | R89: FNU x 10-1
J90: V | K90: VOLTAJE | L90: S | O90: Voltios | Q90: 152 | R90: FNU x 10-2
J91: D | K91: DISTANCIA | L91: N | N91: DIST | O91: m | Q91: 153 | R91: FNU x 10-3
J92: SE | K92: SENSOR ESTATUS | Q92: D0 | R92: metros

Sheet ADCP
A2: 1. TRAMA SALIDA DE DATOS DEL SENSOR EN HEX Y SU INTREPETACIÓN
D3: 2022-01-31 | E3: 12:07:02
A4: Ejm: | B4: A5 21 6A 00 27 15 21 14 23 03 00 00 00 00 85 00 9F 3B AD 00 0E 00 D7 FF 00 31 87 00 85 08 38 FF 42 FD 9F FE 0E FF 4D 00 E1 00 8C 00 65 FD 0B 01 44 FF BA FD 3B FE 20 FE F3 00 96 00 E5 FE DD 01 56 00 87 01 FE FE 22 00 0A FF FA FB 93 FF D0 FC 45 FB E4 FF D3 FB A8 FD B2 FD FE F9 51 FE EF FE 47 FF EA FB 51 FE 37 FD 15 FD BC FB 11 FF 0E 01 38 06 2F 06 52 07 44 06 68 06 6E 06 19 06 5E 06 0A 07 13 06 C1 06 AA 06 71 06 CA 06 33 06 EA 06 C4 05 BC 06 64 06 19 06 06 06 06 06 06 06 06 06 06 06 06 06 06 06 06 06 06 06 22 06 06 06 06 06 06 06 06 06 06 06 06 06 06 06 06 06 06 06 13 06 06 06 06 06 06 06 06 06 06 06 06 06 06 06 06 06 06 06 5C 72
AF5: VELOCIDAD ESTE | BT5: VELOCIDAD NORTE | DH5: VELOCIDAD ARRIBA
A6: POS | B6: 0 | C6: 1 | D6: 2 | E6: 3 | F6: 4 | G6: 5 | H6: 6 | I6: 7 | J6: 8 | K6: 9 | L6: 10 | M6: 11 | N6: 12 | O6: 13 | P6: 14 | Q6: 15 | R6: 16 | S6: 17 | T6: 18 | U6: 19 | V6: 20 | W6: 21 | X6: 22 | Y6: 23 | Z6: 24 | AA6: 25 | AB6: 26 | AC6: 27 | AD6: 28 | AE6: 29 | AF6: 30 | AG6: 31 | AH6: 32 | AI6: 33 | AJ6: 34 | AK6: 35 | AL6: 36 | AM6: 37 | AN6: 38 | AO6: 39 | AP6: 40 | AQ6: 41 | AR6: 42 | AS6: 43 | AT6: 44 | AU6: 45 | AV6: 46 | AW6: 47 | AX6: 48 | AY6: 49 | AZ6: 50 | BA6: 51 | BB6: 52 | BC6: 53 | BD6: 54 | BE6: 55 | BF6: 56 | BG6: 57 | BH6: 58 | BI6: 59 | BJ6: 60 | BK6: 61 | BL6: 62 | BM6: 63 | BN6: 64 | BO6: 65 | BP6: 66 | BQ6: 67 | BR6: 68 | BS6: 69 | BT6: 70 | BU6: 71 | BV6: 72 | BW6: 73 | BX6: 74 | BY6: 75 | BZ6: 76 | CA6: 77 | CB6: 78 | CC6: 79 | CD6: 80 | CE6: 81 | CF6: 82 | CG6: 83 | CH6: 84 | CI6: 85 | CJ6: 86 | CK6: 87 | CL6: 88 | CM6: 89 | CN6: 90 | CO6: 91 | CP6: 92 | CQ6: 93 | CR6: 94 | CS6: 95 | CT6: 96 | CU6: 97 | CV6: 98 | CW6: 99 | CX6: 100 | CY6: 101 | CZ6: 102 | DA6: 103 | DB6: 104 | DC6: 105 | DD6: 106 | DE6: 107 | DF6: 108 | DG6: 109 | DH6: 110 | DI6: 111 | DJ6: 112 | DK6: 113 | DL6: 114 | DM6: 115 | DN6: 116 | DO6: 117 | DP6: 118 | DQ6: 119 | DR6: 120 | DS6: 121 | DT6: 122 | DU6: 123 | DV6: 124 | DW6: 125 | DX6: 126 | DY6: 127 | DZ6: 128 | EA6: 129 | EB6: 130 | EC6: 131 | ED6: 132 | EE6: 133 | EF6: 134 | EG6: 135 | EH6: 136 | EI6: 137 | EJ6: 138 | EK6: 139 | EL6: 140 | EM6: 141 | EN6: 142 | EO6: 143 | EP6: 144 | EQ6: 145 | ER6: 146 | ES6: 147 | ET6: 148 | EU6: 149 | EV6: 150 | EW6: 151 | EX6: 152 | EY6: 153 | EZ6: 154 | FA6: 155 | FB6: 156 | FC6: 157 | FD6: 158 | FE6: 159 | FF6: 160 | FG6: 161 | FH6: 162 | FI6: 163 | FJ6: 164 | FK6: 165 | FL6: 166 | FM6: 167 | FN6: 168 | FO6: 169 | FP6: 170 | FQ6: 171 | FR6: 172 | FS6: 173 | FT6: 174 | FU6: 175 | FV6: 176 | FW6: 177 | FX6: 178 | FY6: 179 | FZ6: 180 | GA6: 181 | GB6: 182 | GC6: 183 | GD6: 184 | GE6: 185 | GF6: 186 | GG6: 187 | GH6: 188 | GI6: 189 | GJ6: 190 | GK6: 191 | GL6: 192 | GM6: 193 | GN6: 194 | GO6: 195 | GP6: 196 | GQ6: 197 | GR6: 198 | GS6: 199 | GT6: 200 | GU6: 201 | GV6: 202 | GW6: 203 | GX6: 204 | GY6: 205 | GZ6: 206 | HA6: 207 | HB6: 208 | HC6: 209 | HD6: 210 | HE6: 211
B7: Sinc | C7: ID trama | D7: Size (nro de palabras) | F7: Minute | G7: Second | H7: Day | I7: hour | J7: year | K7: month | L7: Error | N7: Ana In 1 | P7: Battery | R7: Sound Speed | T7: Compass heading | V7: Compass Pitch | X7: Compass Roll | Z7: Presion (dBar x10-3) | AA7: Status Code | AB7: Presion (dBar x10-3) | AD7: Temperature (ºC) | AF7: Vel E 1 (mm/s) | AH7: Vel E 2 | AJ7: Vel E 3 | AL7: Vel E 4 | AN7: Vel E 5 | AP7: Vel E 6 | AR7: Vel E 7 | AT7: Vel E 8 | AV7: Vel E 9 | AX7: Vel E 10 | AZ7: Vel E 11 | BB7: Vel E 12 | BD7: Vel E 13 | BF7: Vel E 14 | BH7: Vel E 15 | BJ7: Vel E 16 | BL7: Vel E 17 | BN7: Vel E 18 | BP7: Vel E 19 | BR7: Vel E 20 | BT7: Vel N 1 | BV7: Vel N 2 | BX7: Vel N 3 | BZ7: Vel N 4 | CB7: Vel N 5 | CD7: Vel N 6 | CF7: Vel N 7 | CH7: Vel N 8 | CJ7: Vel N 9 | CL7: Vel N 10 | CN7: Vel N 11 | CP7: Vel N 12 | CR7: Vel N 13 | CT7: Vel N 14 | CV7: Vel N 15 | CX7: Vel N 16 | CZ7: Vel N 17 | DB7: Vel N 18 | DD7: Vel N 19 | DF7: Vel N 20 | DH7: Vel U 1 | DJ7: Vel U 2 | DL7: Vel U 3 | DN7: Vel U 4 | DP7: Vel U 5 | DR7: Vel U 6 | DT7: Vel U 7 | DV7: Vel U 8 | DX7: Vel U 9 | DZ7: Vel U 10 | EB7: Vel U 11 | ED7: Vel U 12 | EF7: Vel U 13 | EH7: Vel U 14 | EJ7: Vel U 15 | EL7: Vel U 16 | EN7: Vel U 17 | EP7: Vel U 18 | ER7: Vel U 19 | ET7: Vel U 20 | EV7: Ampl B1 1 | EW7: Ampl B1 2 | EX7: Ampl B1 3 | EY7: Ampl B1 4 | EZ7: Ampl B1 5 | FA7: Ampl B1 6 | FB7: Ampl B1 7 | FC7: Ampl B1 8 | FD7: Ampl B1 9 | FE7: Ampl B1 10 | FF7: Ampl B1 11 | FG7: Ampl B1 12 | FH7: Ampl B1 13 | FI7: Ampl B1 14 | FJ7: Ampl B1 15 | FK7: Ampl B1 16 | FL7: Ampl B1 17 | FM7: Ampl B1 18 | FN7: Ampl B1 19 | FO7: Ampl B1 20 | FP7: Ampl B2 1 | FQ7: Ampl B2 2 | FR7: Ampl B2 3 | FS7: Ampl B2 4 | FT7: Ampl B2 5 | FU7: Ampl B2 6 | FV7: Ampl B2 7 | FW7: Ampl B2 8 | FX7: Ampl B2 9 | FY7: Ampl B2 10 | FZ7: Ampl B2 11 | GA7: Ampl B2 12 | GB7: Ampl B2 13 | GC7: Ampl B2 14 | GD7: Ampl B2 15 | GE7: Ampl B2 16 | GF7: Ampl B2 17 | GG7: Ampl B2 18 | GH7: Ampl B2 19 | GI7: Ampl B2 20 | GJ7: Ampl B3 1 | GK7: Ampl B3 2 | GL7: Ampl B3 3 | GM7: Ampl B3 4 | GN7: Ampl B3 5 | GO7: Ampl B3 6 | GP7: Ampl B3 7 | GQ7: Ampl B3 8 | GR7: Ampl B3 9 | GS7: Ampl B3 10 | GT7: Ampl B3 11 | GU7: Ampl B3 12 | GV7: Ampl B3 13 | GW7: Ampl B3 14 | GX7: Ampl B3 15 | GY7: Ampl B3 16 | GZ7: Ampl B3 17 | HA7: Ampl B3 18 | HB7: Ampl B3 19 | HC7: Ampl B3 20 | HD7: CheckSumm
A8: hex | B8: A5 | C8: 21 | D8: 6A | E8: 0 | F8: 27 | G8: 15 | H8: 21 | I8: 14 | J8: 23 | K8: 3 | L8: 0 | M8: 0 | N8: 0 | O8: 0 | P8: 85 | Q8: 0 | R8: 9F | S8: 3B | T8: AD | U8: 0 | V8: 0E | W8: 0 | X8: D7 | Y8: FF | Z8: 0 | AA8: 31 | AB8: 87 | AC8: 0 | AD8: 85 | AE8: 8 | AF8: 38 | AG8: FF | AH8: 42 | AI8: FD | AJ8: 9F | AK8: FE | AL8: 0E | AM8: FF | AN8: 4D | AO8: 0 | AP8: E1 | AQ8: 0 | AR8: 8C | AS8: 0 | AT8: 65 | AU8: FD | AV8: 0B | AW8: 1 | AX8: 44 | AY8: FF | AZ8: BA | BA8: FD | BB8: 3B | BC8: FE | BD8: 20 | BE8: FE | BF8: F3 | BG8: 0 | BH8: 96 | BI8: 0 | BJ8: E5 | BK8: FE | BL8: DD | BM8: 1 | BN8: 56 | BO8: 0 | BP8: 87 | BQ8: 1 | BR8: FE | BS8: FE | BT8: 22 | BU8: 0 | BV8: 0A | BW8: FF | BX8: FA | BY8: FB | BZ8: 93 | CA8: FF | CB8: D0 | CC8: FC | CD8: 45 | CE8: FB | CF8: E4 | CG8: FF | CH8: D3 | CI8: FB | CJ8: A8 | CK8: FD | CL8: B2 | CM8: FD | CN8: FE | CO8: F9 | CP8: 51 | CQ8: FE | CR8: EF | CS8: FE | CT8: 47 | CU8: FF | CV8: EA | CW8: FB | CX8: 51 | CY8: FE | CZ8: 37 | DA8: FD | DB8: 15 | DC8: FD | DD8: BC | DE8: FB | DF8: 11 | DG8: FF | DH8: 0E | DI8: 1 | DJ8: 38 | DK8: 6 | DL8: 2F | DM8: 6 | DN8: 52 | DO8: 7 | DP8: 44 | DQ8: 6 | DR8: 68 | DS8: 6 | DT8: 6E | DU8: 6 | DV8: 19 | DW8: 6 | DX8: 5E | DY8: 6 | DZ8: 0A | EA8: 7 | EB8: 13 | EC8: 6 | ED8: C1 | EE8: 6 | EF8: AA | EG8: 6 | EH8: 71 | EI8: 6 | EJ8: CA | EK8: 6 | EL8: 33 | EM8: 6 | EN8: EA | EO8: 6 | EP8: C4 | EQ8: 5 | ER8: BC | ES8: 6 | ET8: 64 | EU8: 6 | EV8: 19 | EW8: 6 | EX8: 6 | EY8: 6 | EZ8: 6 | FA8: 6 | FB8: 6 | FC8: 6 | FD8: 6 | FE8: 6 | FF8: 6 | FG8: 6 | FH8: 6 | FI8: 6 | FJ8: 6 | FK8: 6 | FL8: 6 | FM8: 6 | FN8: 6 | FO8: 6 | FP8: 22 | FQ8: 6 | FR8: 6 | FS8: 6 | FT8: 6 | FU8: 6 | FV8: 6 | FW8: 6 | FX8: 6 | FY8: 6 | FZ8: 6 | GA8: 6 | GB8: 6 | GC8: 6 | GD8: 6 | GE8: 6 | GF8: 6 | GG8: 6 | GH8: 6 | GI8: 6 | GJ8: 13 | GK8: 6 | GL8: 6 | GM8: 6 | GN8: 6 | GO8: 6 | GP8: 6 | GQ8: 6 | GR8: 6 | GS8: 6 | GT8: 6 | GU8: 6 | GV8: 6 | GW8: 6 | GX8: 6 | GY8: 6 | GZ8: 6 | HA8: 6 | HB8: 6 | HC8: 6 | HD8: 5C | HE8: 72 | HQ8: 4 | HR8: B5 | HS8: 0 | HT8: F9 | HU8: FD | HV8: 2F | HW8: FF | HX8: 1B | HY8: 2 | HZ8: 0D | IA8: 0 | IB8: 11 | IC8: 0 | ID8: 21 | IE8: 0 | IF8: F9 | IG8: 2 | IH8: 8A | II8: 1 | IJ8: BD | IK8: 3 | IL8: C4 | IM8: 4 | IN8: D7 | IO8: 2 | IP8: 39 | IQ8: 3 | IR8: 58 | IS8: 4 | IT8: 92 | IU8: 2 | IV8: E9 | IW8: 2 | IX8: 78 | IY8: 3 | IZ8: 9A | JA8: 4 | JB8: 35 | JC8: 4 | JD8: E2 | JE8: 4 | JF8: 4 | JG8: 4 | JH8: 38 | JI8: 3 | JJ8: DA | JK8: 2 | JL8: 2E | JM8: 3 | JN8: BD | JO8: 3 | JP8: 91 | JQ8: 2 | JR8: 47 | JS8: 1D | JT8: 1C | JU8: 1D | JV8: 1E | JW8: 1C | JX8: 1B | JY8: 1D | JZ8: 1C | KA8: 1C | KB8: 1D | KC8: 1E | KD8: 1C | KE8: 1C | KF8: 1D | KG8: 1C | KH8: 1C | KI8: 1E | KJ8: 1E | KK8: 1C | KL8: 2B | KM8: 2C | KN8: 2C | KO8: 2A | KP8: 29 | KQ8: 2B | KR8: 29 | KS8: 2A | KT8: 2C | KU8: 2C | KV8: 29 | KW8: 29 | KX8: 2B | KY8: 29 | KZ8: 2A | LA8: 2D | LB8: 2C | LC8: 29 | LD8: 2A | LE8: 2A | LF8: 2D | LG8: 29 | LH8: 29 | LI8: 2A | LJ8: 29 | LK8: 2A | LL8: 2C | LM8: 2B | LN8: 28 | LO8: 2A | LP8: 2A | LQ8: 29 | LR8: 2B | LS8: 2C | LT8: 2A | LU8: 29 | LV8: 2A | LW8: 2A | LX8: 29 | LY8: 2B | LZ8: DB | MA8: EE
A9: tex | B9: =TEXT(B8,"00") -> A5 | C9: =TEXT(C8,"00") -> 21 | D9: =TEXT(D8,"00") -> 6A | E9: =TEXT(E8,"00") -> 00 | F9: =TEXT(F8,"00") -> 27 | G9: =TEXT(G8,"00") -> 15 | H9: =TEXT(H8,"00") -> 21 | I9: =TEXT(I8,"00") -> 14 | J9: =TEXT(J8,"00") -> 23 | K9: =TEXT(K8,"00") -> 03 | L9: =TEXT(L8,"00") -> 00 | M9: =TEXT(M8,"00") -> 00 | N9: =TEXT(N8,"00") -> 00 | O9: =TEXT(O8,"00") -> 00 | P9: =TEXT(P8,"00") -> 85 | Q9: =TEXT(Q8,"00") -> 00 | R9: =TEXT(R8,"00") -> 9F | S9: =TEXT(S8,"00") -> 3B | T9: =TEXT(T8,"00") -> AD | U9: =TEXT(U8,"00") -> 00 | V9: =TEXT(V8,"00") -> 0E | W9: =TEXT(W8,"00") -> 00 | X9: =TEXT(X8,"00") -> D7 | Y9: =TEXT(Y8,"00") -> FF | Z9: =TEXT(Z8,"00") -> 00 | AA9: =TEXT(AA8,"00") -> 31 | AB9: =TEXT(AB8,"00") -> 87 | AC9: =TEXT(AC8,"00") -> 00 | AD9: =TEXT(AD8,"00") -> 85 | AE9: =TEXT(AE8,"00") -> 08 | AF9: =TEXT(AF8,"00") -> 38 | AG9: =TEXT(AG8,"00") -> FF | AH9: =TEXT(AH8,"00") -> 42 | AI9: =TEXT(AI8,"00") -> FD | AJ9: =TEXT(AJ8,"00") -> 9F | AK9: =TEXT(AK8,"00") -> FE | AL9: =TEXT(AL8,"00") -> 0E | AM9: =TEXT(AM8,"00") -> FF | AN9: =TEXT(AN8,"00") -> 4D | AO9: =TEXT(AO8,"00") -> 00 | AP9: =TEXT(AP8,"00") -> E1 | AQ9: =TEXT(AQ8,"00") -> 00 | AR9: =TEXT(AR8,"00") -> 8C | AS9: =TEXT(AS8,"00") -> 00 | AT9: =TEXT(AT8,"00") -> 65 | AU9: =TEXT(AU8,"00") -> FD | AV9: =TEXT(AV8,"00") -> 0B | AW9: =TEXT(AW8,"00") -> 01 | AX9: =TEXT(AX8,"00") -> 44 | AY9: =TEXT(AY8,"00") -> FF | AZ9: =TEXT(AZ8,"00") -> BA | BA9: =TEXT(BA8,"00") -> FD | BB9: =TEXT(BB8,"00") -> 3B | BC9: =TEXT(BC8,"00") -> FE | BD9: =TEXT(BD8,"00") -> 20 | BE9: =TEXT(BE8,"00") -> FE | BF9: =TEXT(BF8,"00") -> F3 | BG9: =TEXT(BG8,"00") -> 00 | BH9: =TEXT(BH8,"00") -> 96 | BI9: =TEXT(BI8,"00") -> 00 | BJ9: =TEXT(BJ8,"00") -> E5 | BK9: =TEXT(BK8,"00") -> FE | BL9: =TEXT(BL8,"00") -> DD | BM9: =TEXT(BM8,"00") -> 01 | BN9: =TEXT(BN8,"00") -> 56 | BO9: =TEXT(BO8,"00") -> 00 | BP9: =TEXT(BP8,"00") -> 87 | BQ9: =TEXT(BQ8,"00") -> 01 | BR9: =TEXT(BR8,"00") -> FE | BS9: =TEXT(BS8,"00") -> FE | BT9: =TEXT(BT8,"00") -> 22 | BU9: =TEXT(BU8,"00") -> 00 | BV9: =TEXT(BV8,"00") -> 0A | BW9: =TEXT(BW8,"00") -> FF | BX9: =TEXT(BX8,"00") -> FA | BY9: =TEXT(BY8,"00") -> FB | BZ9: =TEXT(BZ8,"00") -> 93 | CA9: =TEXT(CA8,"00") -> FF | CB9: =TEXT(CB8,"00") -> D0 | CC9: =TEXT(CC8,"00") -> FC | CD9: =TEXT(CD8,"00") -> 45 | CE9: =TEXT(CE8,"00") -> FB | CF9: =TEXT(CF8,"00") -> E4 | CG9: =TEXT(CG8,"00") -> FF | CH9: =TEXT(CH8,"00") -> D3 | CI9: =TEXT(CI8,"00") -> FB | CJ9: =TEXT(CJ8,"00") -> A8 | CK9: =TEXT(CK8,"00") -> FD | CL9: =TEXT(CL8,"00") -> B2 | CM9: =TEXT(CM8,"00") -> FD | CN9: =TEXT(CN8,"00") -> FE | CO9: =TEXT(CO8,"00") -> F9 | CP9: =TEXT(CP8,"00") -> 51 | CQ9: =TEXT(CQ8,"00") -> FE | CR9: =TEXT(CR8,"00") -> EF | CS9: =TEXT(CS8,"00") -> FE | CT9: =TEXT(CT8,"00") -> 47 | CU9: =TEXT(CU8,"00") -> FF | CV9: =TEXT(CV8,"00") -> EA | CW9: =TEXT(CW8,"00") -> FB | CX9: =TEXT(CX8,"00") -> 51 | CY9: =TEXT(CY8,"00") -> FE | CZ9: =TEXT(CZ8,"00") -> 37 | DA9: =TEXT(DA8,"00") -> FD | DB9: =TEXT(DB8,"00") -> 15 | DC9: =TEXT(DC8,"00") -> FD | DD9: =TEXT(DD8,"00") -> BC | DE9: =TEXT(DE8,"00") -> FB | DF9: =TEXT(DF8,"00") -> 11 | DG9: =TEXT(DG8,"00") -> FF | DH9: =TEXT(DH8,"00") -> 0E | DI9: =TEXT(DI8,"00") -> 01 | DJ9: =TEXT(DJ8,"00") -> 38 | DK9: =TEXT(DK8,"00") -> 06 | DL9: =TEXT(DL8,"00") -> 2F | DM9: =TEXT(DM8,"00") -> 06 | DN9: =TEXT(DN8,"00") -> 52 | DO9: =TEXT(DO8,"00") -> 07 | DP9: =TEXT(DP8,"00") -> 44 | DQ9: =TEXT(DQ8,"00") -> 06 | DR9: =TEXT(DR8,"00") -> 68 | DS9: =TEXT(DS8,"00") -> 06 | DT9: =TEXT(DT8,"00") -> 6E | DU9: =TEXT(DU8,"00") -> 06 | DV9: =TEXT(DV8,"00") -> 19 | DW9: =TEXT(DW8,"00") -> 06 | DX9: =TEXT(DX8,"00") -> 5E | DY9: =TEXT(DY8,"00") -> 06 | DZ9: =TEXT(DZ8,"00") -> 0A | EA9: =TEXT(EA8,"00") -> 07 | EB9: =TEXT(EB8,"00") -> 13 | EC9: =TEXT(EC8,"00") -> 06 | ED9: =TEXT(ED8,"00") -> C1 | EE9: =TEXT(EE8,"00") -> 06 | EF9: =TEXT(EF8,"00") -> AA | EG9: =TEXT(EG8,"00") -> 06 | EH9: =TEXT(EH8,"00") -> 71 | EI9: =TEXT(EI8,"00") -> 06 | EJ9: =TEXT(EJ8,"00") -> CA | EK9: =TEXT(EK8,"00") -> 06 | EL9: =TEXT(EL8,"00") -> 33 | EM9: =TEXT(EM8,"00") -> 06 | EN9: =TEXT(EN8,"00") -> EA | EO9: =TEXT(EO8,"00") -> 06 | EP9: =TEXT(EP8,"00") -> C4 | EQ9: =TEXT(EQ8,"00") -> 05 | ER9: =TEXT(ER8,"00") -> BC | ES9: =TEXT(ES8,"00") -> 06 | ET9: =TEXT(ET8,"00") -> 64 | EU9: =TEXT(EU8,"00") -> 06 | EV9: =TEXT(EV8,"00") -> 19 | EW9: =TEXT(EW8,"00") -> 06 | EX9: =TEXT(EX8,"00") -> 06 | EY9: =TEXT(EY8,"00") -> 06 | EZ9: =TEXT(EZ8,"00") -> 06 | FA9: =TEXT(FA8,"00") -> 06 | FB9: =TEXT(FB8,"00") -> 06 | FC9: =TEXT(FC8,"00") -> 06 | FD9: =TEXT(FD8,"00") -> 06 | FE9: =TEXT(FE8,"00") -> 06 | FF9: =TEXT(FF8,"00") -> 06 | FG9: =TEXT(FG8,"00") -> 06 | FH9: =TEXT(FH8,"00") -> 06 | FI9: =TEXT(FI8,"00") -> 06 | FJ9: =TEXT(FJ8,"00") -> 06 | FK9: =TEXT(FK8,"00") -> 06 | FL9: =TEXT(FL8,"00") -> 06 | FM9: =TEXT(FM8,"00") -> 06 | FN9: =TEXT(FN8,"00") -> 06 | FO9: =TEXT(FO8,"00") -> 06 | FP9: =TEXT(FP8,"00") -> 22 | FQ9: =TEXT(FQ8,"00") -> 06 | FR9: =TEXT(FR8,"00") -> 06 | FS9: =TEXT(FS8,"00") -> 06 | FT9: =TEXT(FT8,"00") -> 06 | FU9: =TEXT(FU8,"00") -> 06 | FV9: =TEXT(FV8,"00") -> 06 | FW9: =TEXT(FW8,"00") -> 06 | FX9: =TEXT(FX8,"00") -> 06 | FY9: =TEXT(FY8,"00") -> 06 | FZ9: =TEXT(FZ8,"00") -> 06 | GA9: =TEXT(GA8,"00") -> 06 | GB9: =TEXT(GB8,"00") -> 06 | GC9: =TEXT(GC8,"00") -> 06 | GD9: =TEXT(GD8,"00") -> 06 | GE9: =TEXT(GE8,"00") -> 06 | GF9: =TEXT(GF8,"00") -> 06 | GG9: =TEXT(GG8,"00") -> 06 | GH9: =TEXT(GH8,"00") -> 06 | GI9: =TEXT(GI8,"00") -> 06 | GJ9: =TEXT(GJ8,"00") -> 13 | GK9: =TEXT(GK8,"00") -> 06 | GL9: =TEXT(GL8,"00") -> 06 | GM9: =TEXT(GM8,"00") -> 06 | GN9: =TEXT(GN8,"00") -> 06 | GO9: =TEXT(GO8,"00") -> 06 | GP9: =TEXT(GP8,"00") -> 06 | GQ9: =TEXT(GQ8,"00") -> 06 | GR9: =TEXT(GR8,"00") -> 06 | GS9: =TEXT(GS8,"00") -> 06 | GT9: =TEXT(GT8,"00") -> 06 | GU9: =TEXT(GU8,"00") -> 06 | GV9: =TEXT(GV8,"00") -> 06 | GW9: =TEXT(GW8,"00") -> 06 | GX9: =TEXT(GX8,"00") -> 06 | GY9: =TEXT(GY8,"00") -> 06 | GZ9: =TEXT(GZ8,"00") -> 06 | HA9: =TEXT(HA8,"00") -> 06 | HB9: =TEXT(HB8,"00") -> 06 | HC9: =TEXT(HC8,"00") -> 06 | HD9: =TEXT(HD8,"00") -> 5C | HE9: =TEXT(HE8,"00") -> 72
A10: dec | B10: =HEX2DEC(B8) -> 165 | C10: =HEX2DEC(C8) -> 33 | D10: =HEX2DEC(D8) -> 106 | E10: =HEX2DEC(E8) -> 0 | F10: =HEX2DEC(F8) -> 39 | G10: =HEX2DEC(G8) -> 21 | H10: =HEX2DEC(H8) -> 33 | I10: =HEX2DEC(I8) -> 20 | J10: =HEX2DEC(J8) -> 35 | K10: =HEX2DEC(K8) -> 3 | L10: =HEX2DEC(L8) -> 0 | M10: =HEX2DEC(M8) -> 0 | N10: =HEX2DEC(N8) -> 0 | O10: =HEX2DEC(O8) -> 0 | P10: =HEX2DEC(P8) -> 133 | Q10: =HEX2DEC(Q8) -> 0 | R10: =HEX2DEC(R8) -> 159 | S10: =HEX2DEC(S8) -> 59 | T10: =HEX2DEC(T8) -> 173 | U10: =HEX2DEC(U8) -> 0 | V10: =HEX2DEC(V8) -> 14 | W10: =HEX2DEC(W8) -> 0 | X10: =HEX2DEC(X8) -> 215 | Y10: =HEX2DEC(Y8) -> 255 | Z10: 0 | AA10: =HEX2DEC(AA8) -> 49 | AB10: =HEX2DEC(AB8) -> 135 | AC10: =HEX2DEC(AC8) -> 0 | AD10: =HEX2DEC(AD8) -> 133 | AE10: =HEX2DEC(AE8) -> 8 | AF10: =HEX2DEC(AF8) -> 56 | AG10: =HEX2DEC(AG8) -> 255 | AH10: =HEX2DEC(AH8) -> 66 | AI10: =HEX2DEC(AI8) -> 253 | AJ10: =HEX2DEC(AJ8) -> 159 | AK10: =HEX2DEC(AK8) -> 254 | AL10: =HEX2DEC(AL8) -> 14 | AM10: =HEX2DEC(AM8) -> 255 | AN10: =HEX2DEC(AN8) -> 77 | AO10: =HEX2DEC(AO8) -> 0 | AP10: =HEX2DEC(AP8) -> 225 | AQ10: =HEX2DEC(AQ8) -> 0 | AR10: =HEX2DEC(AR8) -> 140 | AS10: =HEX2DEC(AS8) -> 0 | AT10: =HEX2DEC(AT8) -> 101 | AU10: =HEX2DEC(AU8) -> 253 | AV10: =HEX2DEC(AV8) -> 11 | AW10: =HEX2DEC(AW8) -> 1 | AX10: =HEX2DEC(AX8) -> 68 | AY10: =HEX2DEC(AY8) -> 255 | AZ10: =HEX2DEC(AZ8) -> 186 | BA10: =HEX2DEC(BA8) -> 253 | BB10: =HEX2DEC(BB8) -> 59 | BC10: =HEX2DEC(BC8) -> 254 | BD10: =HEX2DEC(BD8) -> 32 | BE10: =HEX2DEC(BE8) -> 254 | BF10: =HEX2DEC(BF8) -> 243 | BG10: =HEX2DEC(BG8) -> 0 | BH10: =HEX2DEC(BH8) -> 150 | BI10: =HEX2DEC(BI8) -> 0 | BJ10: =HEX2DEC(BJ8) -> 229 | BK10: =HEX2DEC(BK8) -> 254 | BL10: =HEX2DEC(BL8) -> 221 | BM10: =HEX2DEC(BM8) -> 1 | BN10: =HEX2DEC(BN8) -> 86 | BO10: =HEX2DEC(BO8) -> 0 | BP10: =HEX2DEC(BP8) -> 135 | BQ10: =HEX2DEC(BQ8) -> 1 | BR10: =HEX2DEC(BR8) -> 254 | BS10: =HEX2DEC(BS8) -> 254 | BT10: =HEX2DEC(BT8) -> 34 | BU10: =HEX2DEC(BU8) -> 0 | BV10: =HEX2DEC(BV8) -> 10 | BW10: =HEX2DEC(BW8) -> 255 | BX10: =HEX2DEC(BX8) -> 250 | BY10: =HEX2DEC(BY8) -> 251 | BZ10: =HEX2DEC(BZ8) -> 147 | CA10: =HEX2DEC(CA8) -> 255 | CB10: =HEX2DEC(CB8) -> 208 | CC10: =HEX2DEC(CC8) -> 252 | CD10: =HEX2DEC(CD8) -> 69 | CE10: =HEX2DEC(CE8) -> 251 | CF10: =HEX2DEC(CF8) -> 228 | CG10: =HEX2DEC(CG8) -> 255 | CH10: =HEX2DEC(CH8) -> 211 | CI10: =HEX2DEC(CI8) -> 251 | CJ10: =HEX2DEC(CJ8) -> 168 | CK10: =HEX2DEC(CK8) -> 253 | CL10: =HEX2DEC(CL8) -> 178 | CM10: =HEX2DEC(CM8) -> 253 | CN10: =HEX2DEC(CN8) -> 254 | CO10: =HEX2DEC(CO8) -> 249 | CP10: =HEX2DEC(CP8) -> 81 | CQ10: =HEX2DEC(CQ8) -> 254 | CR10: =HEX2DEC(CR8) -> 239 | CS10: =HEX2DEC(CS8) -> 254 | CT10: =HEX2DEC(CT8) -> 71 | CU10: =HEX2DEC(CU8) -> 255 | CV10: =HEX2DEC(CV8) -> 234 | CW10: =HEX2DEC(CW8) -> 251 | CX10: =HEX2DEC(CX8) -> 81 | CY10: =HEX2DEC(CY8) -> 254 | CZ10: =HEX2DEC(CZ8) -> 55 | DA10: =HEX2DEC(DA8) -> 253 | DB10: =HEX2DEC(DB8) -> 21 | DC10: =HEX2DEC(DC8) -> 253 | DD10: =HEX2DEC(DD8) -> 188 | DE10: =HEX2DEC(DE8) -> 251 | DF10: =HEX2DEC(DF8) -> 17 | DG10: =HEX2DEC(DG8) -> 255 | DH10: =HEX2DEC(DH8) -> 14 | DI10: =HEX2DEC(DI8) -> 1 | DJ10: =HEX2DEC(DJ8) -> 56 | DK10: =HEX2DEC(DK8) -> 6 | DL10: =HEX2DEC(DL8) -> 47 | DM10: =HEX2DEC(DM8) -> 6 | DN10: =HEX2DEC(DN8) -> 82 | DO10: =HEX2DEC(DO8) -> 7 | DP10: =HEX2DEC(DP8) -> 68 | DQ10: =HEX2DEC(DQ8) -> 6 | DR10: =HEX2DEC(DR8) -> 104 | DS10: =HEX2DEC(DS8) -> 6 | DT10: =HEX2DEC(DT8) -> 110 | DU10: =HEX2DEC(DU8) -> 6 | DV10: =HEX2DEC(DV8) -> 25 | DW10: =HEX2DEC(DW8) -> 6 | DX10: =HEX2DEC(DX8) -> 94 | DY10: =HEX2DEC(DY8) -> 6 | DZ10: =HEX2DEC(DZ8) -> 10 | EA10: =HEX2DEC(EA8) -> 7 | EB10: =HEX2DEC(EB8) -> 19 | EC10: =HEX2DEC(EC8) -> 6 | ED10: =HEX2DEC(ED8) -> 193 | EE10: =HEX2DEC(EE8) -> 6 | EF10: =HEX2DEC(EF8) -> 170 | EG10: =HEX2DEC(EG8) -> 6 | EH10: =HEX2DEC(EH8) -> 113 | EI10: =HEX2DEC(EI8) -> 6 | EJ10: =HEX2DEC(EJ8) -> 202 | EK10: =HEX2DEC(EK8) -> 6 | EL10: =HEX2DEC(EL8) -> 51 | EM10: =HEX2DEC(EM8) -> 6 | EN10: =HEX2DEC(EN8) -> 234 | EO10: =HEX2DEC(EO8) -> 6 | EP10: =HEX2DEC(EP8) -> 196 | EQ10: =HEX2DEC(EQ8) -> 5 | ER10: =HEX2DEC(ER8) -> 188 | ES10: =HEX2DEC(ES8) -> 6 | ET10: =HEX2DEC(ET8) -> 100 | EU10: =HEX2DEC(EU8) -> 6 | EV10: =HEX2DEC(EV8) -> 25 | EW10: =HEX2DEC(EW8) -> 6 | EX10: =HEX2DEC(EX8) -> 6 | EY10: =HEX2DEC(EY8) -> 6 | EZ10: =HEX2DEC(EZ8) -> 6 | FA10: =HEX2DEC(FA8) -> 6 | FB10: =HEX2DEC(FB8) -> 6 | FC10: =HEX2DEC(FC8) -> 6 | FD10: =HEX2DEC(FD8) -> 6 | FE10: =HEX2DEC(FE8) -> 6 | FF10: =HEX2DEC(FF8) -> 6 | FG10: =HEX2DEC(FG8) -> 6 | FH10: =HEX2DEC(FH8) -> 6 | FI10: =HEX2DEC(FI8) -> 6 | FJ10: =HEX2DEC(FJ8) -> 6 | FK10: =HEX2DEC(FK8) -> 6 | FL10: =HEX2DEC(FL8) -> 6 | FM10: =HEX2DEC(FM8) -> 6 | FN10: =HEX2DEC(FN8) -> 6 | FO10: =HEX2DEC(FO8) -> 6 | FP10: =HEX2DEC(FP8) -> 34 | FQ10: =HEX2DEC(FQ8) -> 6 | FR10: =HEX2DEC(FR8) -> 6 | FS10: =HEX2DEC(FS8) -> 6 | FT10: =HEX2DEC(FT8) -> 6 | FU10: =HEX2DEC(FU8) -> 6 | FV10: =HEX2DEC(FV8) -> 6 | FW10: =HEX2DEC(FW8) -> 6 | FX10: =HEX2DEC(FX8) -> 6 | FY10: =HEX2DEC(FY8) -> 6 | FZ10: =HEX2DEC(FZ8) -> 6 | GA10: =HEX2DEC(GA8) -> 6 | GB10: =HEX2DEC(GB8) -> 6 | GC10: =HEX2DEC(GC8) -> 6 | GD10: =HEX2DEC(GD8) -> 6 | GE10: =HEX2DEC(GE8) -> 6 | GF10: =HEX2DEC(GF8) -> 6 | GG10: =HEX2DEC(GG8) -> 6 | GH10: =HEX2DEC(GH8) -> 6 | GI10: =HEX2DEC(GI8) -> 6 | GJ10: =HEX2DEC(GJ8) -> 19 | GK10: =HEX2DEC(GK8) -> 6 | GL10: =HEX2DEC(GL8) -> 6 | GM10: =HEX2DEC(GM8) -> 6 | GN10: =HEX2DEC(GN8) -> 6 | GO10: =HEX2DEC(GO8) -> 6 | GP10: =HEX2DEC(GP8) -> 6 | GQ10: =HEX2DEC(GQ8) -> 6 | GR10: =HEX2DEC(GR8) -> 6 | GS10: =HEX2DEC(GS8) -> 6 | GT10: =HEX2DEC(GT8) -> 6 | GU10: =HEX2DEC(GU8) -> 6 | GV10: =HEX2DEC(GV8) -> 6 | GW10: =HEX2DEC(GW8) -> 6 | GX10: =HEX2DEC(GX8) -> 6 | GY10: =HEX2DEC(GY8) -> 6 | GZ10: =HEX2DEC(GZ8) -> 6 | HA10: =HEX2DEC(HA8) -> 6 | HB10: =HEX2DEC(HB8) -> 6 | HC10: =HEX2DEC(HC8) -> 6 | HD10: =HEX2DEC(HD8) -> 92 | HE10: =HEX2DEC(HE8) -> 114
A11: conc | D11: =CONCATENATE(E9,D9) -> 006A | P11: =CONCATENATE(Q9,P9) -> 0085 | R11: =CONCATENATE(S9,R9) -> 3B9F | T11: =CONCATENATE(U9,T9) -> 00AD | V11: =CONCATENATE(W9,V9) -> 000E | X11: =CONCATENATE(Y9,X9) -> FFD7 | AB11: =CONCATENATE(AC9,AB9) -> 0087 | AD11: =CONCATENATE(AE9,AD9) -> 0885 | AF11: =CONCATENATE(AG9,AF9) -> FF38 | AH11: =CONCATENATE(AI9,AH9) -> FD42 | AJ11: =CONCATENATE(AK9,AJ9) -> FE9F | AL11: =CONCATENATE(AM9,AL9) -> FF0E | AN11: =CONCATENATE(AO9,AN9) -> 004D | AP11: =CONCATENATE(AQ9,AP9) -> 00E1 | AR11: =CONCATENATE(AS9,AR9) -> 008C | AT11: =CONCATENATE(AU9,AT9) -> FD65 | AV11: =CONCATENATE(AW9,AV9) -> 010B | AX11: =CONCATENATE(AY9,AX9) -> FF44 | AZ11: =CONCATENATE(BA9,AZ9) -> FDBA | BB11: =CONCATENATE(BC9,BB9) -> FE3B | BD11: =CONCATENATE(BE9,BD9) -> FE20 | BF11: =CONCATENATE(BG9,BF9) -> 00F3 | BH11: =CONCATENATE(BI9,BH9) -> 0096 | BJ11: =CONCATENATE(BK9,BJ9) -> FEE5 | BL11: =CONCATENATE(BM9,BL9) -> 01DD | BN11: =CONCATENATE(BO9,BN9) -> 0056 | BP11: =CONCATENATE(BQ9,BP9) -> 0187 | BR11: =CONCATENATE(BS9,BR9) -> FEFE | BT11: =CONCATENATE(BU9,BT9) -> 0022 | BV11: =CONCATENATE(BW9,BV9) -> FF0A | BX11: =CONCATENATE(BY9,BX9) -> FBFA | BZ11: =CONCATENATE(CA9,BZ9) -> FF93 | CB11: =CONCATENATE(CC9,CB9) -> FCD0 | CD11: =CONCATENATE(CE9,CD9) -> FB45 | CF11: =CONCATENATE(CG9,CF9) -> FFE4 | CH11: =CONCATENATE(CI9,CH9) -> FBD3 | CJ11: =CONCATENATE(CK9,CJ9) -> FDA8 | CL11: =CONCATENATE(CM9,CL9) -> FDB2 | CN11: =CONCATENATE(CO9,CN9) -> F9FE | CP11: =CONCATENATE(CQ9,CP9) -> FE51 | CR11: =CONCATENATE(CS9,CR9) -> FEEF | CT11: =CONCATENATE(CU9,CT9) -> FF47 | CV11: =CONCATENATE(CW9,CV9) -> FBEA | CX11: =CONCATENATE(CY9,CX9) -> FE51 | CZ11: =CONCATENATE(DA9,CZ9) -> FD37 | DB11: =CONCATENATE(DC9,DB9) -> FD15 | DD11: =CONCATENATE(DE9,DD9) -> FBBC | DF11: =CONCATENATE(DG9,DF9) -> FF11 | DH11: =CONCATENATE(DI9,DH9) -> 010E | DJ11: =CONCATENATE(DK9,DJ9) -> 0638 | DL11: =CONCATENATE(DM9,DL9) -> 062F | DN11: =CONCATENATE(DO9,DN9) -> 0752 | DP11: =CONCATENATE(DQ9,DP9) -> 0644 | DR11: =CONCATENATE(DS9,DR9) -> 0668 | DT11: =CONCATENATE(DU9,DT9) -> 066E | DV11: =CONCATENATE(DW9,DV9) -> 0619 | DX11: =CONCATENATE(DY9,DX9) -> 065E | DZ11: =CONCATENATE(EA9,DZ9) -> 070A | EB11: =CONCATENATE(EC9,EB9) -> 0613 | ED11: =CONCATENATE(EE9,ED9) -> 06C1 | EF11: =CONCATENATE(EG9,EF9) -> 06AA | EH11: =CONCATENATE(EI9,EH9) -> 0671 | EJ11: =CONCATENATE(EK9,EJ9) -> 06CA | EL11: =CONCATENATE(EM9,EL9) -> 0633 | EN11: =CONCATENATE(EO9,EN9) -> 06EA | EP11: =CONCATENATE(EQ9,EP9) -> 05C4 | ER11: =CONCATENATE(ES9,ER9) -> 06BC | ET11: =CONCATENATE(EU9,ET9) -> 0664 | HD11: =CONCATENATE(HD9,HE9) -> 5C72
B12: =B10 -> 165 | C12: =C10 -> 33 | D12: =HEX2DEC(D11) -> 106 | F12: =F10 -> 39 | G12: =G10 -> 21 | H12: =H10 -> 33 | I12: =I10 -> 20 | J12: =J10 -> 35 | K12: =K10 -> 3 | L12: =(IF(HEX2DEC(L11)>(32769),HEX2DEC(L11)-65536,HEX2DEC(L11)))/10 -> 0 | N12: =(IF(HEX2DEC(N11)>(32769),HEX2DEC(N11)-65536,HEX2DEC(N11)))/10 -> 0 | P12: =(IF(HEX2DEC(P11)>(32769),HEX2DEC(P11)-65536,HEX2DEC(P11)))/10 -> 13.3 | R12: =(IF(HEX2DEC(R11)>(32769),HEX2DEC(R11)-65536,HEX2DEC(R11)))/10 -> 1526.3 | T12: =(IF(HEX2DEC(T11)>(32769),HEX2DEC(T11)-65536,HEX2DEC(T11)))/10 -> 17.3 | V12: =(IF(HEX2DEC(V11)>(32769),HEX2DEC(V11)-65536,HEX2DEC(V11)))/10 -> 1.4 | X12: =(IF(HEX2DEC(X11)>(32769),HEX2DEC(X11)-65536,HEX2DEC(X11)))/10 -> -4.1 | Z12: =HEX2DEC(Z10) -> 0 | AA12: =AA10 -> 49 | AB12: =HEX2DEC(AB11)/1000+Z12*65536/1000 -> 0.135 | AD12: =(IF(HEX2DEC(AD11)>(32769),HEX2DEC(AD11)-65536,HEX2DEC(AD11)))/100 -> 21.81 | AF12: =IF(HEX2DEC(AF11)>(32769),HEX2DEC(AF11)-65536,HEX2DEC(AF11)) -> -200 | AH12: =IF(HEX2DEC(AH11)>(32769),HEX2DEC(AH11)-65536,HEX2DEC(AH11)) -> -702 | AJ12: =IF(HEX2DEC(AJ11)>(32769),HEX2DEC(AJ11)-65536,HEX2DEC(AJ11)) -> -353 | AL12: =IF(HEX2DEC(AL11)>(32769),HEX2DEC(AL11)-65536,HEX2DEC(AL11)) -> -242 | AN12: =IF(HEX2DEC(AN11)>(32769),HEX2DEC(AN11)-65536,HEX2DEC(AN11)) -> 77 | AP12: =IF(HEX2DEC(AP11)>(32769),HEX2DEC(AP11)-65536,HEX2DEC(AP11)) -> 225 | AR12: =IF(HEX2DEC(AR11)>(32769),HEX2DEC(AR11)-65536,HEX2DEC(AR11)) -> 140 | AT12: =IF(HEX2DEC(AT11)>(32769),HEX2DEC(AT11)-65536,HEX2DEC(AT11)) -> -667 | AV12: =IF(HEX2DEC(AV11)>(32769),HEX2DEC(AV11)-65536,HEX2DEC(AV11)) -> 267 | AX12: =IF(HEX2DEC(AX11)>(32769),HEX2DEC(AX11)-65536,HEX2DEC(AX11)) -> -188 | AZ12: =IF(HEX2DEC(AZ11)>(32769),HEX2DEC(AZ11)-65536,HEX2DEC(AZ11)) -> -582 | BB12: =IF(HEX2DEC(BB11)>(32769),HEX2DEC(BB11)-65536,HEX2DEC(BB11)) -> -453 | BD12: =IF(HEX2DEC(BD11)>(32769),HEX2DEC(BD11)-65536,HEX2DEC(BD11)) -> -480 | BF12: =IF(HEX2DEC(BF11)>(32769),HEX2DEC(BF11)-65536,HEX2DEC(BF11)) -> 243 | BH12: =IF(HEX2DEC(BH11)>(32769),HEX2DEC(BH11)-65536,HEX2DEC(BH11)) -> 150 | BJ12: =IF(HEX2DEC(BJ11)>(32769),HEX2DEC(BJ11)-65536,HEX2DEC(BJ11)) -> -283 | BL12: =IF(HEX2DEC(BL11)>(32769),HEX2DEC(BL11)-65536,HEX2DEC(BL11)) -> 477 | BN12: =IF(HEX2DEC(BN11)>(32769),HEX2DEC(BN11)-65536,HEX2DEC(BN11)) -> 86 | BP12: =IF(HEX2DEC(BP11)>(32769),HEX2DEC(BP11)-65536,HEX2DEC(BP11)) -> 391 | BR12: =IF(HEX2DEC(BR11)>(32769),HEX2DEC(BR11)-65536,HEX2DEC(BR11)) -> -258 | BT12: =IF(HEX2DEC(BT11)>(32769),HEX2DEC(BT11)-65536,HEX2DEC(BT11)) -> 34 | BV12: =IF(HEX2DEC(BV11)>(32769),HEX2DEC(BV11)-65536,HEX2DEC(BV11)) -> -246 | BX12: =IF(HEX2DEC(BX11)>(32769),HEX2DEC(BX11)-65536,HEX2DEC(BX11)) -> -1030 | BZ12: =IF(HEX2DEC(BZ11)>(32769),HEX2DEC(BZ11)-65536,HEX2DEC(BZ11)) -> -109 | CB12: =IF(HEX2DEC(CB11)>(32769),HEX2DEC(CB11)-65536,HEX2DEC(CB11)) -> -816 | CD12: =IF(HEX2DEC(CD11)>(32769),HEX2DEC(CD11)-65536,HEX2DEC(CD11)) -> -1211 | CF12: =IF(HEX2DEC(CF11)>(32769),HEX2DEC(CF11)-65536,HEX2DEC(CF11)) -> -28 | CH12: =IF(HEX2DEC(CH11)>(32769),HEX2DEC(CH11)-65536,HEX2DEC(CH11)) -> -1069 | CJ12: =IF(HEX2DEC(CJ11)>(32769),HEX2DEC(CJ11)-65536,HEX2DEC(CJ11)) -> -600 | CL12: =IF(HEX2DEC(CL11)>(32769),HEX2DEC(CL11)-65536,HEX2DEC(CL11)) -> -590 | CN12: =IF(HEX2DEC(CN11)>(32769),HEX2DEC(CN11)-65536,HEX2DEC(CN11)) -> -1538 | CP12: =IF(HEX2DEC(CP11)>(32769),HEX2DEC(CP11)-65536,HEX2DEC(CP11)) -> -431 | CR12: =IF(HEX2DEC(CR11)>(32769),HEX2DEC(CR11)-65536,HEX2DEC(CR11)) -> -273 | CT12: =IF(HEX2DEC(CT11)>(32769),HEX2DEC(CT11)-65536,HEX2DEC(CT11)) -> -185 | CV12: =IF(HEX2DEC(CV11)>(32769),HEX2DEC(CV11)-65536,HEX2DEC(CV11)) -> -1046 | CX12: =IF(HEX2DEC(CX11)>(32769),HEX2DEC(CX11)-65536,HEX2DEC(CX11)) -> -431 | CZ12: =IF(HEX2DEC(CZ11)>(32769),HEX2DEC(CZ11)-65536,HEX2DEC(CZ11)) -> -713 | DB12: =IF(HEX2DEC(DB11)>(32769),HEX2DEC(DB11)-65536,HEX2DEC(DB11)) -> -747 | DD12: =IF(HEX2DEC(DD11)>(32769),HEX2DEC(DD11)-65536,HEX2DEC(DD11)) -> -1092 | DF12: =IF(HEX2DEC(DF11)>(32769),HEX2DEC(DF11)-65536,HEX2DEC(DF11)) -> -239 | DH12: =IF(HEX2DEC(DH11)>(32769),HEX2DEC(DH11)-65536,HEX2DEC(DH11)) -> 270 | DJ12: =IF(HEX2DEC(DJ11)>(32769),HEX2DEC(DJ11)-65536,HEX2DEC(DJ11)) -> 1592 | DL12: =IF(HEX2DEC(DL11)>(32769),HEX2DEC(DL11)-65536,HEX2DEC(DL11)) -> 1583 | DN12: =IF(HEX2DEC(DN11)>(32769),HEX2DEC(DN11)-65536,HEX2DEC(DN11)) -> 1874 | DP12: =IF(HEX2DEC(DP11)>(32769),HEX2DEC(DP11)-65536,HEX2DEC(DP11)) -> 1604 | DR12: =IF(HEX2DEC(DR11)>(32769),HEX2DEC(DR11)-65536,HEX2DEC(DR11)) -> 1640 | DT12: =IF(HEX2DEC(DT11)>(32769),HEX2DEC(DT11)-65536,HEX2DEC(DT11)) -> 1646 | DV12: =IF(HEX2DEC(DV11)>(32769),HEX2DEC(DV11)-65536,HEX2DEC(DV11)) -> 1561 | DX12: =IF(HEX2DEC(DX11)>(32769),HEX2DEC(DX11)-65536,HEX2DEC(DX11)) -> 1630 | DZ12: =IF(HEX2DEC(DZ11)>(32769),HEX2DEC(DZ11)-65536,HEX2DEC(DZ11)) -> 1802 | EB12: =IF(HEX2DEC(EB11)>(32769),HEX2DEC(EB11)-65536,HEX2DEC(EB11)) -> 1555 | ED12: =IF(HEX2DEC(ED11)>(32769),HEX2DEC(ED11)-65536,HEX2DEC(ED11)) -> 1729 | EF12: =IF(HEX2DEC(EF11)>(32769),HEX2DEC(EF11)-65536,HEX2DEC(EF11)) -> 1706 | EH12: =IF(HEX2DEC(EH11)>(32769),HEX2DEC(EH11)-65536,HEX2DEC(EH11)) -> 1649 | EJ12: =IF(HEX2DEC(EJ11)>(32769),HEX2DEC(EJ11)-65536,HEX2DEC(EJ11)) -> 1738 | EL12: =IF(HEX2DEC(EL11)>(32769),HEX2DEC(EL11)-65536,HEX2DEC(EL11)) -> 1587 | EN12: =IF(HEX2DEC(EN11)>(32769),HEX2DEC(EN11)-65536,HEX2DEC(EN11)) -> 1770 | EP12: =IF(HEX2DEC(EP11)>(32769),HEX2DEC(EP11)-65536,HEX2DEC(EP11)) -> 1476 | ER12: =IF(HEX2DEC(ER11)>(32769),HEX2DEC(ER11)-65536,HEX2DEC(ER11)) -> 1724 | ET12: =IF(HEX2DEC(ET11)>(32769),HEX2DEC(ET11)-65536,HEX2DEC(ET11)) -> 1636 | EV12: =EV10 -> 25 | EW12: =EW10 -> 6 | EX12: =EX10 -> 6 | EY12: =EY10 -> 6 | EZ12: =EZ10 -> 6 | FA12: =FA10 -> 6 | FB12: =FB10 -> 6 | FC12: =FC10 -> 6 | FD12: =FD10 -> 6 | FE12: =FE10 -> 6 | FF12: =FF10 -> 6 | FG12: =FG10 -> 6 | FH12: =FH10 -> 6 | FI12: =FI10 -> 6 | FJ12: =FJ10 -> 6 | FK12: =FK10 -> 6 | FL12: =FL10 -> 6 | FM12: =FM10 -> 6 | FN12: =FN10 -> 6 | FO12: =FO10 -> 6 | FP12: =FP10 -> 34 | FQ12: =FQ10 -> 6 | FR12: =FR10 -> 6 | FS12: =FS10 -> 6 | FT12: =FT10 -> 6 | FU12: =FU10 -> 6 | FV12: =FV10 -> 6 | FW12: =FW10 -> 6 | FX12: =FX10 -> 6 | FY12: =FY10 -> 6 | FZ12: =FZ10 -> 6 | GA12: =GA10 -> 6 | GB12: =GB10 -> 6 | GC12: =GC10 -> 6 | GD12: =GD10 -> 6 | GE12: =GE10 -> 6 | GF12: =GF10 -> 6 | GG12: =GG10 -> 6 | GH12: =GH10 -> 6 | GI12: =GI10 -> 6 | GJ12: =GJ10 -> 19 | GK12: =GK10 -> 6 | GL12: =GL10 -> 6 | GM12: =GM10 -> 6 | GN12: =GN10 -> 6 | GO12: =GO10 -> 6 | GP12: =GP10 -> 6 | GQ12: =GQ10 -> 6 | GR12: =GR10 -> 6 | GS12: =GS10 -> 6 | GT12: =GT10 -> 6 | GU12: =GU10 -> 6 | GV12: =GV10 -> 6 | GW12: =GW10 -> 6 | GX12: =GX10 -> 6 | GY12: =GY10 -> 6 | GZ12: =GZ10 -> 6 | HA12: =HA10 -> 6 | HB12: =HB10 -> 6 | HC12: =HC10 -> 6 | HD12: =(IF(MID(HD11,1,1)="f",HEX2DEC(HD11)-65535,HEX2DEC(HD11))) -> 23666
C13: Comprobación | D13: =COUNT(B6:HE6)/2 -> 106 | F13: =DATE(J8,K8,H8)+TIME(I8,F8,G8) -> 1923-03-21T14:27:15
A17: 2. TRAMA SALIDA DE DATOS DEL DATALOGGER | D17: =SUM(B26:C26)+SUM(D26:G26)*F48+M26 -> 44 | E17: =D17*8 -> 352 | F17: =ROUNDUP(E17/6,0) -> 59 | BF17: Temperatura
BF18: 43 | BG18: 44
D19: EWCT | F19: NSCT | I19: EWCT | K19: NSCT | M19: TEMP | BF19: 9 | BG19: E8
B20: ID TRAMA | C20: DIF FECHA | D20: Vel. Este celda 1 | F20: Vel. Norte celda 1 | H20: …... | I20: Vel. Este celda 20 | K20: Vel. Norte celda 20 | M20: Temperatura | BF20: =CONCATENATE(TEXT(BF19,"00"),TEXT(BG19,"00")) -> 09E8
A21: Unidad | B21: Id de la Trama | C21: minutos (pos.y neg.) | D21: mm/s (pos.y neg.) | F21: mm/s (pos.y neg.) | H21: …... | I21: mm/s (pos.y neg.) | K21: mm/s (pos.y neg.) | M21: ºC x10-2 | BF21: =IF(HEX2DEC(BF20)>(32767),HEX2DEC(BF20)-65536,HEX2DEC(BF20)) -> 2536
A22: Valor Max. | B22: 119 | C22: 126 | D22: 32766 | F22: 32766 | H22: …... | I22: 32766 | K22: =INT(65535/2) -> 32767 | M22: =INT(65535/2) -> 32767
A23: Valor Min. | B23: 80 | C23: -127 | D23: -32767 | F23: -32767 | H23: …... | I23: -32767 | K23: =-K22 -> -32767 | M23: =-M22 -> -32767 | BF23: 0A | BG23: F2
A24: Valor nulo | C24: 127 (7Fh) y -128 (80h) | D24: 32767 (7FFFh) y -32768 (8000h) | F24: 32768 (7FFFh) y -32768 (8000h) | I24: 32769 (7FFFh) y -32768 (8000h) | K24: 32770 (7FFFh) y -32768 (8000h) | M24: 32772 (7FFFh) y -32768 (8000h) | BF24: 0A | BG24: F2
A25: Posición trama a tx | B25: 1 | C25: =B26+B25 -> 2 | D25: =C26+C25 -> 3 | F25: =D26+D25 -> 5 | H25: …... | I25: =D25+(RIGHT(I20,2)-1)*4 -> 79 | K25: =I26+I25 -> 81 | M25: =K25+K26 -> 83 | BF25: 0A | BG25: F2
A26: bytes a tx | B26: 1 | C26: 1 | D26: 2 | F26: 2 | H26: …... | I26: 2 | K26: 2 | M26: 2 | BF26: 0A | BG26: F2
A27: Ejm. completo | B27: 80 | C27: -1 | D27: -1870 | F27: 968 | H27: …... | I27: -1870 | K27: 968 | M27: 2572
A29: EJEMPLO: | B29: 40 | C29: 41 | D29: 42 | E29: 43 | F29: 44 | G29: 45 | H29: 48 | I29: 49 | J29: 50 | K29: 51 | L29: 54 | M29: 55 | N29: 56 | O29: 57 | P29: 60 | Q29: 61 | R29: 62 | S29: 63 | T29: 66 | U29: 67 | V29: 68 | W29: 69 | X29: 72 | Y29: 73 | Z29: 74 | AA29: 75 | AB29: 78 | AC29: 79
D30: Vel. Este celda 1 | F30: Vel. Norte celda 1 | H30: Vel. Este celda 2 | J30: Vel. Norte celda 2 | L30: Vel. Este celda 3 | N30: Vel. Norte celda 3 | P30: Vel. Este celda 4 | R30: Vel. Norte celda 4 | T30: Vel. Este celda 5 | V30: Vel. Norte celda 5 | X30: Vel. Este celda 6 | Z30: Vel. Norte celda 6 | AB30: Vel. Este celda 7 | AD30: Vel. Norte celda 7 | AF30: Vel. Este celda 8 | AH30: Vel. Norte celda 8 | AJ30: Vel. Este celda 9 | AL30: Vel. Norte celda 9 | AN30: Vel. Este celda 10 | AP30: Vel. Norte celda 10 | AR30: Vel. Este celda 10 | AT30: Vel. Norte celda 10 | AV30: Vel. Este celda 11 | AX30: Vel. Norte celda 11 | AZ30: Vel. Este celda 11 | BB30: Vel. Norte celda 11 | BD30: Vel. Este celda 12 | BF30: Vel. Norte celda 12 | BH30: Vel. Este celda 12 | BJ30: Vel. Norte celda 12 | BL30: Vel. Este celda 13 | BN30: Vel. Norte celda 13 | BP30: Vel. Este celda 13 | BR30: Vel. Norte celda 13 | BT30: Vel. Este celda 14 | BV30: Vel. Norte celda 14 | BX30: Vel. Este celda 14 | BZ30: Vel. Norte celda 14 | CB30: Vel. Este celda 15 | CD30: Vel. Norte celda 15 | CF30: Vel. Este celda 15 | CH30: Vel. Norte celda 15 | CJ30: Vel. Este celda 16 | CL30: Vel. Norte celda 16 | CN30: Vel. Este celda 16 | CP30: Vel. Norte celda 16 | CR30: Vel. Este celda 17 | CT30: Vel. Norte celda 17 | CV30: Vel. Este celda 17 | CX30: Vel. Norte celda 17 | CZ30: Vel. Este celda 18 | DB30: Vel. Norte celda 18 | DD30: Vel. Este celda 18 | DF30: Vel. Norte celda 18 | DH30: Vel. Este celda 19 | DJ30: Vel. Norte celda 19 | DL30: Vel. Este celda 19 | DN30: Vel. Norte celda 19 | DP30: Vel. Este celda 20 | DR30: Vel. Norte celda 20
A31: Posición byte | B31: 1 | C31: 2 | D31: 3 | E31: 4 | F31: 5 | G31: 6 | H31: 7 | I31: 8 | J31: 9 | K31: 10 | L31: 11 | M31: 12 | N31: 13 | O31: 14 | P31: 15 | Q31: 16 | R31: 17 | S31: 18 | T31: 19 | U31: 20 | V31: 21 | W31: 22 | X31: 23 | Y31: 24 | Z31: 25 | AA31: 26 | AB31: 27 | AC31: 28 | AD31: 29 | AE31: 30 | AF31: 31 | AG31: 32 | AH31: 33 | AI31: 34 | AJ31: 35 | AK31: 36 | AL31: 37 | AM31: 38 | AN31: 39 | AO31: 40 | AP31: 41 | AQ31: 42 | AR31: 43 | AS31: 44 | AT31: 45 | AU31: 46 | AV31: 47 | AW31: 48 | AX31: 49 | AY31: 50 | AZ31: 51 | BA31: 52 | BB31: 53 | BC31: 54 | BD31: 55 | BE31: 56 | BF31: 57 | BG31: 58 | BH31: 59 | BI31: 60 | BJ31: 61 | BK31: 62 | BL31: 63 | BM31: 64 | BN31: 65 | BO31: 66 | BP31: 67 | BQ31: 68 | BR31: 69 | BS31: 70 | BT31: 71 | BU31: 72 | BV31: 73 | BW31: 74 | BX31: 75 | BY31: 76 | BZ31: 77 | CA31: 78 | CB31: 79 | CC31: 80 | CD31: 81 | CE31: 82 | CF31: 83 | CG31: 84 | CH31: 85 | CI31: 86 | CJ31: 87 | CK31: 88 | CL31: 89 | CM31: 90 | CN31: 91 | CO31: 92 | CP31: 93 | CQ31: 94 | CR31: 95 | CS31: 96 | CT31: 97 | CU31: 98 | CV31: 99 | CW31: 100 | CX31: 101 | CY31: 102 | CZ31: 103 | DA31: 104 | DB31: 105 | DC31: 106 | DD31: 107 | DE31: 108 | DF31: 109 | DG31: 110 | DH31: 111 | DI31: 112 | DJ31: 113 | DK31: 114 | DL31: 115 | DM31: 116 | DN31: 117 | DO31: 118 | DP31: 119 | DQ31: 120 | DR31: 121 | DS31: 122
A32: HEX Rx 2 | B32: 50 | C32: 8 | D32: FB | E32: 58 | F32: FA | G32: 86 | H32: 1 | I32: 4E | J32: FC | K32: AE | L32: 0 | M32: EB | N32: FE | O32: 1C | P32: 0 | Q32: 16 | R32: FB | S32: EE | T32: FF | U32: EF | V32: FD | W32: 37 | X32: FF | Y32: 12 | Z32: F9 | AA32: B5 | AB32: 0 | AC32: EB | AD32: FE | AE32: 1C | AF32: 0 | AG32: 16 | AH32: FB | AI32: EE | AJ32: FF | AK32: EF | AL32: FD | AM32: 37 | AN32: FF | AO32: 12 | AP32: F9 | AQ32: B5 | AR32: FF | AS32: EF | AT32: FD | AU32: 37 | AV32: FF | AW32: 12 | AX32: F10 | AY32: B6 | AZ32: FF | BA32: EF | BB32: FD | BC32: 37 | BD32: FF | BE32: 12 | BF32: F11 | BG32: B7 | BH32: FF | BI32: EF | BJ32: FD | BK32: 37 | BL32: FF | BM32: 12 | BN32: F12 | BO32: B8 | BP32: FF | BQ32: EF | BR32: FD | BS32: 37 | BT32: FF | BU32: 12 | BV32: F13 | BW32: B9 | BX32: FF | BY32: EF | BZ32: FD | CA32: 37 | CB32: FF | CC32: 12 | CD32: F14 | CE32: B10 | CF32: FF | CG32: EF | CH32: FD | CI32: 37 | CJ32: FF | CK32: 12 | CL32: F15 | CM32: B11 | CN32: FF | CO32: EF | CP32: FD | CQ32: 37 | CR32: FF | CS32: 12 | CT32: F16 | CU32: B12 | CV32: FF | CW32: EF | CX32: FD | CY32: 37 | CZ32: FF | DA32: 12 | DB32: F17 | DC32: B13 | DD32: FF | DE32: EF | DF32: FD | DG32: 37 | DH32: FF | DI32: 12 | DJ32: F18 | DK32: B14 | DL32: FF | DM32: EF | DN32: FD | DO32: 37 | DP32: FF | DQ32: 12 | DR32: F19 | DS32: B15
A33: HEX | B33: =TEXT(B32,"00") -> 50 | C33: =TEXT(C32,"00") -> 08 | D33: =CONCATENATE(TEXT(D32,"00"),TEXT(E32,"00")) -> FB58 | F33: =CONCATENATE(TEXT(F32,"00"),TEXT(G32,"00")) -> FA86 | H33: =CONCATENATE(TEXT(H32,"00"),TEXT(I32,"00")) -> 014E | J33: =CONCATENATE(TEXT(J32,"00"),TEXT(K32,"00")) -> FCAE | L33: =CONCATENATE(TEXT(L32,"00"),TEXT(M32,"00")) -> 00EB | N33: =CONCATENATE(TEXT(N32,"00"),TEXT(O32,"00")) -> FE1C | P33: =CONCATENATE(TEXT(P32,"00"),TEXT(Q32,"00")) -> 0016 | R33: =CONCATENATE(TEXT(R32,"00"),TEXT(S32,"00")) -> FBEE | T33: =CONCATENATE(TEXT(T32,"00"),TEXT(U32,"00")) -> FFEF | V33: =CONCATENATE(TEXT(V32,"00"),TEXT(W32,"00")) -> FD37 | X33: =CONCATENATE(TEXT(X32,"00"),TEXT(Y32,"00")) -> FF12 | Z33: =CONCATENATE(TEXT(Z32,"00"),TEXT(AA32,"00")) -> F9B5 | AB33: =CONCATENATE(TEXT(AB32,"00"),TEXT(AC32,"00")) -> 00EB | AD33: =CONCATENATE(TEXT(AD32,"00"),TEXT(AE32,"00")) -> FE1C | AF33: =CONCATENATE(TEXT(AF32,"00"),TEXT(AG32,"00")) -> 0016 | AH33: =CONCATENATE(TEXT(AH32,"00"),TEXT(AI32,"00")) -> FBEE | AJ33: =CONCATENATE(TEXT(AJ32,"00"),TEXT(AK32,"00")) -> FFEF | AL33: =CONCATENATE(TEXT(AL32,"00"),TEXT(AM32,"00")) -> FD37 | AN33: =CONCATENATE(TEXT(AN32,"00"),TEXT(AO32,"00")) -> FF12 | AP33: =CONCATENATE(TEXT(AP32,"00"),TEXT(AQ32,"00")) -> F9B5 | AR33: =CONCATENATE(TEXT(AR32,"00"),TEXT(AS32,"00")) -> FFEF | AT33: =CONCATENATE(TEXT(AT32,"00"),TEXT(AU32,"00")) -> FD37 | AV33: =CONCATENATE(TEXT(AV32,"00"),TEXT(AW32,"00")) -> FF12 | AX33: =CONCATENATE(TEXT(AX32,"00"),TEXT(AY32,"00")) -> F10B6 | AZ33: =CONCATENATE(TEXT(AZ32,"00"),TEXT(BA32,"00")) -> FFEF | BB33: =CONCATENATE(TEXT(BB32,"00"),TEXT(BC32,"00")) -> FD37 | BD33: =CONCATENATE(TEXT(BD32,"00"),TEXT(BE32,"00")) -> FF12 | BF33: =CONCATENATE(TEXT(BF32,"00"),TEXT(BG32,"00")) -> F11B7 | BH33: =CONCATENATE(TEXT(BH32,"00"),TEXT(BI32,"00")) -> FFEF | BJ33: =CONCATENATE(TEXT(BJ32,"00"),TEXT(BK32,"00")) -> FD37 | BL33: =CONCATENATE(TEXT(BL32,"00"),TEXT(BM32,"00")) -> FF12 | BN33: =CONCATENATE(TEXT(BN32,"00"),TEXT(BO32,"00")) -> F12B8 | BP33: =CONCATENATE(TEXT(BP32,"00"),TEXT(BQ32,"00")) -> FFEF | BR33: =CONCATENATE(TEXT(BR32,"00"),TEXT(BS32,"00")) -> FD37 | BT33: =CONCATENATE(TEXT(BT32,"00"),TEXT(BU32,"00")) -> FF12 | BV33: =CONCATENATE(TEXT(BV32,"00"),TEXT(BW32,"00")) -> F13B9 | BX33: =CONCATENATE(TEXT(BX32,"00"),TEXT(BY32,"00")) -> FFEF | BZ33: =CONCATENATE(TEXT(BZ32,"00"),TEXT(CA32,"00")) -> FD37 | CB33: =CONCATENATE(TEXT(CB32,"00"),TEXT(CC32,"00")) -> FF12 | CD33: =CONCATENATE(TEXT(CD32,"00"),TEXT(CE32,"00")) -> F14B10 | CF33: =CONCATENATE(TEXT(CF32,"00"),TEXT(CG32,"00")) -> FFEF | CH33: =CONCATENATE(TEXT(CH32,"00"),TEXT(CI32,"00")) -> FD37 | CJ33: =CONCATENATE(TEXT(CJ32,"00"),TEXT(CK32,"00")) -> FF12 | CL33: =CONCATENATE(TEXT(CL32,"00"),TEXT(CM32,"00")) -> F15B11 | CN33: =CONCATENATE(TEXT(CN32,"00"),TEXT(CO32,"00")) -> FFEF | CP33: =CONCATENATE(TEXT(CP32,"00"),TEXT(CQ32,"00")) -> FD37 | CR33: =CONCATENATE(TEXT(CR32,"00"),TEXT(CS32,"00")) -> FF12 | CT33: =CONCATENATE(TEXT(CT32,"00"),TEXT(CU32,"00")) -> F16B12 | CV33: =CONCATENATE(TEXT(CV32,"00"),TEXT(CW32,"00")) -> FFEF | CX33: =CONCATENATE(TEXT(CX32,"00"),TEXT(CY32,"00")) -> FD37 | CZ33: =CONCATENATE(TEXT(CZ32,"00"),TEXT(DA32,"00")) -> FF12 | DB33: =CONCATENATE(TEXT(DB32,"00"),TEXT(DC32,"00")) -> F17B13 | DD33: =CONCATENATE(TEXT(DD32,"00"),TEXT(DE32,"00")) -> FFEF | DF33: =CONCATENATE(TEXT(DF32,"00"),TEXT(DG32,"00")) -> FD37 | DH33: =CONCATENATE(TEXT(DH32,"00"),TEXT(DI32,"00")) -> FF12 | DJ33: =CONCATENATE(TEXT(DJ32,"00"),TEXT(DK32,"00")) -> F18B14 | DL33: =CONCATENATE(TEXT(DL32,"00"),TEXT(DM32,"00")) -> FFEF | DN33: =CONCATENATE(TEXT(DN32,"00"),TEXT(DO32,"00")) -> FD37 | DP33: =CONCATENATE(TEXT(DP32,"00"),TEXT(DQ32,"00")) -> FF12 | DR33: =CONCATENATE(TEXT(DR32,"00"),TEXT(DS32,"00")) -> F19B15
A34: DEC | B34: =HEX2DEC(B33) -> 80 | C34: =IF(HEX2DEC(C33)>(127),HEX2DEC(C33)-256,HEX2DEC(C33)) -> 8 | D34: =IF(HEX2DEC(D33)>(32767),HEX2DEC(D33)-65536,HEX2DEC(D33)) -> -1192 | F34: =IF(HEX2DEC(F33)>(32767),HEX2DEC(F33)-65536,HEX2DEC(F33)) -> -1402 | H34: =IF(HEX2DEC(H33)>(32767),HEX2DEC(H33)-65536,HEX2DEC(H33)) -> 334 | J34: =IF(HEX2DEC(J33)>(32767),HEX2DEC(J33)-65536,HEX2DEC(J33)) -> -850 | L34: =IF(HEX2DEC(L33)>(32767),HEX2DEC(L33)-65536,HEX2DEC(L33)) -> 235 | N34: =IF(HEX2DEC(N33)>(32767),HEX2DEC(N33)-65536,HEX2DEC(N33)) -> -484 | P34: =IF(HEX2DEC(P33)>(32767),HEX2DEC(P33)-65536,HEX2DEC(P33)) -> 22 | R34: =IF(HEX2DEC(R33)>(32767),HEX2DEC(R33)-65536,HEX2DEC(R33)) -> -1042 | T34: =IF(HEX2DEC(T33)>(32767),HEX2DEC(T33)-65536,HEX2DEC(T33)) -> -17 | V34: =IF(HEX2DEC(V33)>(32767),HEX2DEC(V33)-65536,HEX2DEC(V33)) -> -713 | X34: =IF(HEX2DEC(X33)>(32767),HEX2DEC(X33)-65536,HEX2DEC(X33)) -> -238 | Z34: =IF(HEX2DEC(Z33)>(32767),HEX2DEC(Z33)-65536,HEX2DEC(Z33)) -> -1611 | AB34: =IF(HEX2DEC(AB33)>(32767),HEX2DEC(AB33)-65536,HEX2DEC(AB33)) -> 235 | AD34: =IF(HEX2DEC(AD33)>(32767),HEX2DEC(AD33)-65536,HEX2DEC(AD33)) -> -484 | AF34: =IF(HEX2DEC(AF33)>(32767),HEX2DEC(AF33)-65536,HEX2DEC(AF33)) -> 22 | AH34: =IF(HEX2DEC(AH33)>(32767),HEX2DEC(AH33)-65536,HEX2DEC(AH33)) -> -1042 | AJ34: =IF(HEX2DEC(AJ33)>(32767),HEX2DEC(AJ33)-65536,HEX2DEC(AJ33)) -> -17 | AL34: =IF(HEX2DEC(AL33)>(32767),HEX2DEC(AL33)-65536,HEX2DEC(AL33)) -> -713 | AN34: =IF(HEX2DEC(AN33)>(32767),HEX2DEC(AN33)-65536,HEX2DEC(AN33)) -> -238 | AP34: =IF(HEX2DEC(AP33)>(32767),HEX2DEC(AP33)-65536,HEX2DEC(AP33)) -> -1611 | AR34: =IF(HEX2DEC(AR33)>(32767),HEX2DEC(AR33)-65536,HEX2DEC(AR33)) -> -17 | AT34: =IF(HEX2DEC(AT33)>(32767),HEX2DEC(AT33)-65536,HEX2DEC(AT33)) -> -713 | AV34: =IF(HEX2DEC(AV33)>(32767),HEX2DEC(AV33)-65536,HEX2DEC(AV33)) -> -238 | AX34: =IF(HEX2DEC(AX33)>(32767),HEX2DEC(AX33)-65536,HEX2DEC(AX33)) -> 921782 | AZ34: =IF(HEX2DEC(AZ33)>(32767),HEX2DEC(AZ33)-65536,HEX2DEC(AZ33)) -> -17 | BB34: =IF(HEX2DEC(BB33)>(32767),HEX2DEC(BB33)-65536,HEX2DEC(BB33)) -> -713 | BD34: =IF(HEX2DEC(BD33)>(32767),HEX2DEC(BD33)-65536,HEX2DEC(BD33)) -> -238 | BF34: =IF(HEX2DEC(BF33)>(32767),HEX2DEC(BF33)-65536,HEX2DEC(BF33)) -> 922039 | BH34: =IF(HEX2DEC(BH33)>(32767),HEX2DEC(BH33)-65536,HEX2DEC(BH33)) -> -17 | BJ34: =IF(HEX2DEC(BJ33)>(32767),HEX2DEC(BJ33)-65536,HEX2DEC(BJ33)) -> -713 | BL34: =IF(HEX2DEC(BL33)>(32767),HEX2DEC(BL33)-65536,HEX2DEC(BL33)) -> -238 | BN34: =IF(HEX2DEC(BN33)>(32767),HEX2DEC(BN33)-65536,HEX2DEC(BN33)) -> 922296 | BP34: =IF(HEX2DEC(BP33)>(32767),HEX2DEC(BP33)-65536,HEX2DEC(BP33)) -> -17 | BR34: =IF(HEX2DEC(BR33)>(32767),HEX2DEC(BR33)-65536,HEX2DEC(BR33)) -> -713 | BT34: =IF(HEX2DEC(BT33)>(32767),HEX2DEC(BT33)-65536,HEX2DEC(BT33)) -> -238 | BV34: =IF(HEX2DEC(BV33)>(32767),HEX2DEC(BV33)-65536,HEX2DEC(BV33)) -> 922553 | BX34: =IF(HEX2DEC(BX33)>(32767),HEX2DEC(BX33)-65536,HEX2DEC(BX33)) -> -17 | BZ34: =IF(HEX2DEC(BZ33)>(32767),HEX2DEC(BZ33)-65536,HEX2DEC(BZ33)) -> -713 | CB34: =IF(HEX2DEC(CB33)>(32767),HEX2DEC(CB33)-65536,HEX2DEC(CB33)) -> -238 | CD34: =IF(HEX2DEC(CD33)>(32767),HEX2DEC(CD33)-65536,HEX2DEC(CD33)) -> 15747856 | CF34: =IF(HEX2DEC(CF33)>(32767),HEX2DEC(CF33)-65536,HEX2DEC(CF33)) -> -17 | CH34: =IF(HEX2DEC(CH33)>(32767),HEX2DEC(CH33)-65536,HEX2DEC(CH33)) -> -713 | CJ34: =IF(HEX2DEC(CJ33)>(32767),HEX2DEC(CJ33)-65536,HEX2DEC(CJ33)) -> -238 | CL34: =IF(HEX2DEC(CL33)>(32767),HEX2DEC(CL33)-65536,HEX2DEC(CL33)) -> 15751953 | CN34: =IF(HEX2DEC(CN33)>(32767),HEX2DEC(CN33)-65536,HEX2DEC(CN33)) -> -17 | CP34: =IF(HEX2DEC(CP33)>(32767),HEX2DEC(CP33)-65536,HEX2DEC(CP33)) -> -713 | CR34: =IF(HEX2DEC(CR33)>(32767),HEX2DEC(CR33)-65536,HEX2DEC(CR33)) -> -238 | CT34: =IF(HEX2DEC(CT33)>(32767),HEX2DEC(CT33)-65536,HEX2DEC(CT33)) -> 15756050 | CV34: =IF(HEX2DEC(CV33)>(32767),HEX2DEC(CV33)-65536,HEX2DEC(CV33)) -> -17 | CX34: =IF(HEX2DEC(CX33)>(32767),HEX2DEC(CX33)-65536,HEX2DEC(CX33)) -> -713 | CZ34: =IF(HEX2DEC(CZ33)>(32767),HEX2DEC(CZ33)-65536,HEX2DEC(CZ33)) -> -238 | DB34: =IF(HEX2DEC(DB33)>(32767),HEX2DEC(DB33)-65536,HEX2DEC(DB33)) -> 15760147 | DD34: =IF(HEX2DEC(DD33)>(32767),HEX2DEC(DD33)-65536,HEX2DEC(DD33)) -> -17 | DF34: =IF(HEX2DEC(DF33)>(32767),HEX2DEC(DF33)-65536,HEX2DEC(DF33)) -> -713 | DH34: =IF(HEX2DEC(DH33)>(32767),HEX2DEC(DH33)-65536,HEX2DEC(DH33)) -> -238 | DJ34: =IF(HEX2DEC(DJ33)>(32767),HEX2DEC(DJ33)-65536,HEX2DEC(DJ33)) -> 15764244 | DL34: =IF(HEX2DEC(DL33)>(32767),HEX2DEC(DL33)-65536,HEX2DEC(DL33)) -> -17 | DN34: =IF(HEX2DEC(DN33)>(32767),HEX2DEC(DN33)-65536,HEX2DEC(DN33)) -> -713 | DP34: =IF(HEX2DEC(DP33)>(32767),HEX2DEC(DP33)-65536,HEX2DEC(DP33)) -> -238 | DR34: =IF(HEX2DEC(DR33)>(32767),HEX2DEC(DR33)-65536,HEX2DEC(DR33)) -> 15768341
A35: ='trama 1 Tx datos '!H21 -> 2022-06-22 | B35: ='trama 1 Tx datos '!H21 -> 2022-06-22 | C35: =('trama 1 Tx datos '!I21)+C34/24/60 -> 08:48:00
B36: 50 | C36: 8A | D36: FC | E36: 8E | F36: 9 | G36: 0B | H36: FE | I36: 34 | J36: FD | K36: 1D | L36: FA | M36: 6A | N36: FC | O36: 6 | P36: FD | Q36: 24 | R36: FA | S36: E9 | T36: FF | U36: 22 | V36: FC | W36: 73 | X36: 0 | Y36: 50 | Z36: FE | AA36: 76 | AB36: FA | AC36: 6A | AD36: FC | AE36: 6 | AF36: FD | AG36: 24 | AH36: FA | AI36: E9 | AJ36: FF | AK36: 22 | AL36: FC | AM36: 73 | AN36: 0 | AO36: 50 | AP36: FE | AQ36: 76 | AR36: FF | AS36: 22 | AT36: FC | AU36: 18 | AV36: 6.5 | AW36: -5 | AX36: FE | AY36: 76 | AZ36: FF | BA36: 22 | BB36: FC | BC36: -16.5 | BD36: -28 | BE36: -39.5 | BF36: FE | BG36: 76 | BH36: FF | BI36: 22 | BJ36: FC | BK36: -51 | BL36: -62.5 | BM36: -74 | BN36: FE | BO36: 76 | BP36: FF | BQ36: 22 | BR36: FC | BS36: -85.5 | BT36: -97 | BU36: -108.5 | BV36: FE | BW36: 76 | BX36: FF | BY36: 22 | BZ36: FC | CA36: -120 | CB36: -131.5 | CC36: -143 | CD36: FE | CE36: 76 | CF36: FF | CG36: 22 | CH36: FC | CI36: -154.5 | CJ36: -166 | CK36: -177.5 | CL36: FE | CM36: 76 | CN36: FF | CO36: 22 | CP36: FC | CQ36: -189 | CR36: -200.5 | CS36: -212 | CT36: FE | CU36: 76 | CV36: FF | CW36: 22 | CX36: FC | CY36: -223.5 | CZ36: -235 | DA36: -246.5 | DB36: FE | DC36: 76 | DD36: FF | DE36: 22 | DF36: FC | DG36: -258 | DH36: -269.5 | DI36: -281 | DJ36: FE | DK36: 76 | DL36: FF | DM36: 22 | DN36: FC | DO36: -292.5 | DP36: -304 | DQ36: -315.5 | DR36: FE | DS36: 76
A38: 3. TRAMA CONFIGURACIÓN DEL EQUIPO | D38: =LEN(CONCATENATE(B48,C48,D48,E48,F48,G48,H48,I48,J48,K48,L48,M48,N48,O48,P48,Q48,R48,S48,T48))+T42 -> 64 | E38: =SUM(B47:T47)+T42 -> 72
A39: Esta trama define como está configurada la trama del ADCP, qué tramas, cuantas y cuales celdas se tranmiten, junto con su unidad. Está separado por comas y se transmite en ASCII (azul), las máscaras están en HEX se interpretan en binario (verde)
E41: INFO INHERENTE A LA CORRIENTE | P41: INFO DE OTROS SENSORES
A42: Posición del Campo | B42: 1 | C42: 2 | D42: 3 | E42: 4 | F42: 5 | G42: 6 | H42: 7 | I42: 8 | J42: 9 | K42: 10 | L42: 11 | M42: 12 | N42: 13 | O42: 14 | P42: 15 | Q42: 16 | R42: 17 | S42: 18 | T42: 19
A43: DESCRIPCIÓN | B43: TIPO DE TRAMA | C43: FECHA DEF TRAMA | D43: DEF.EQUIPO | E43: CANTIDAD VARIABLES | F43: CANTIDAD CELDAS | G43: ANCHO DE CELDAS | H43: BLANKING | I43: VELOCIDAD DE MUESTREO | J43: TIEMPO DE LA MEDIA | K43: FRECUENCIA DE MEDICIÓN | L43: NOMBRE VARIABLE 1 A TX | M43: UNIDAD DE LA VARIABLE 1 | N43: TIPO DE BYTE VARIABLE 1 | O43: MASCARA TIPO CELDAS | P43: MASCARA CELDAS A TX | Q43: NOMBRE VARIABLE 2 A TX | R43: UNIDAD VARIABLE 2 A TX | S43: TIPO DE BYTE VARIABLE 2 | T43: Checksum
A44: Unidad | B44: Id de la Trama | C44: Nombre del Equipo | D44: Nombre del Equipo | E44: Cantidad | F44: Cantidad | G44: metros | H44: metros | I44: Segundos | J44: Segundos | K44: Segundos | L44: Velocidad de la corriente:. - Este - Norte - Arriba | M44: m/s x10-3 (mm/s) | N44: Cant.en numero: P=Positivo, N=Negativo, A=Ambos, F=Float | O44: Celdas: Este-Norte-Arriba B0=Up B1=Norte B2=Este | P44: 0 ó 1 según la celda activada B0= capa 1 B1= capa 2 Bn= capa n | Q44: Temperatura del agua | R44: ºC x10-2 | S44: Cant.en numero: P=Positivo, N=Negativo, A=Ambos, F=Float | T44: Cantidad
A45: Valor Min. | B45: D80 | E45: 1 | F45: 1 | G45: 0.1 | H45: 0.1 | I45: 1 | J45: 1 | K45: 1 | O45: 000 | P45: 0
A46: Valor Max. | B46: D119 | E46: 32 | F46: 256 | G46: 20 | H46: 20 | I46: 3600 | J46: 3600 | K46: 3600 | O46: 110 | P46: 111111
A47: bytes a tx | B47: 4 | C47: 6 | D47: 2 | E47: 1 | F47: 3 | G47: 4 | H47: 4 | I47: 4 | J47: 4 | K47: 4 | L47: 2 | M47: 3 | N47: 2 | O47: 1 | P47: n | Q47: 2 | R47: 3 | S47: 2 | T47: 2
A48: Ejm. completo | B48: D80D | C48: 210522 | D48: N1 | E48: 2 | F48: 10 | G48: 2.0 | H48: 1 | I48: 1 | J48: 120 | K48: 1800 | L48: 9 | M48: 93 | N48: 2A | O48: =BIN2HEX(O46) -> 6 | P48: FFFFF | Q48: 6 | R48: 62 | S48: 2A | T48: 4F
A49: Trama Real
B50: D80D,010422,N1,2,20,1333,182,13,120,1800,9,93,2A,7,000FFFFF*42
A51: 4. TRAMA CONFIGURACIÓN DEL EQUIPO EXTENDIDA (NOMBRE ESPECÍFICO DE LAS VARIABLES)
A52: Esta trama define lon nombres específicos y el orden de cada variable del ADCP. Está separado por comas y se transmite en ASCII
A54: Posición del Campo | B54: 1 | C54: 2 | D54: 3 | E54: 4 | F54: 5 | G54: 6 | H54: 7 | I54: 8 | J54: 9
A55: DESCRIPCIÓN | B55: TIPO DE TRAMA | C55: FECHA DEF TRAMA | D55: DEF.EQUIPO | E55: CANTIDAD VARIABLES | F55: NOMBRE ESPECÍFICO VARIABLE 1.1 | G55: NOMBRE ESPECÍFICO VARIABLE 1.2 | H55: NOMBRE ESPECÍFICO VARIABLE 1.3 | I55: NOMBRE ESPECÍFICO VARIABLE 2 | J55: Checksum
A56: Unidad | B56: Id de la Trama | C56: Nombre del Equipo | D56: Nombre del Equipo | E56: Cantidad | F56: Vel. Este | G56: Vel. Norte | H56: Velocidad Arriba | I56: Temperatura | J56: Cantidad
A57: Valor Min. | B57: D80X | E57: 1 | F57: VQTY | G57: VMXL | H57: VH110 | I57: VH110
A58: Valor Max. | B58: D119X | E58: 32
A59: bytes a tx | B59: 4 | C59: 6 | D59: 3 | E59: 1 | F59: 4 | G59: 4 | H59: 4 | I59: 4 | J59: 2
A60: Ejm. completo | B60: D80X | C60: 310322 | D60: N1 | E60: 4 | F60: EWCT | G60: NSCT | H60: VCSP | I60: TEMP | J60: 4F
A61: Trama Real | B61: D80X | C61: 10422 | D61: N1 | E61: 4 | F61: EWCT | G61: NSCT | H61: VCSP | I61: TEMP | J61: *63
A64: 5. TRAMA DE LA CONFIGURACIÓN DE UMBRALES DE DATOS ADCP
A65: Esta trama define los valores máximos y mínimos de cada variable, los valores fuera de este rango serán desechados. Está separado por comas y se transmite en ASCII
A67: Posición del Campo | B67: 1 | C67: 2 | D67: 3 | E67: 4 | F67: 5 | G67: 6 | H67: 7 | I67: 8 | J67: 9
A68: DESCRIPCIÓN | B68: TIPO DE TRAMA | C68: FECHA DEF TRAMA | D68: DEF.EQUIPO | E68: CANTIDAD VARIABLES | F68: VALOR MÍNIMO VARIABLE 1 | G68: VALOR MAXIMO VARIABLE 1 | H68: VALOR MÍNIMO VARIABLE 2 | I68: VALOR MAXIMO VARIABLE 2 | J68: Checksum
A69: Unidad | B69: Id de la Trama | C69: Nombre del Equipo | D69: Nombre del Equipo | E69: Cantidad | F69: Velocidad (mm/s) | G69: Velocidad (mm/s) | H69: Temperatura (ºC) | I69: Temperatura (ºC) | J69: Cantidad
A70: Valor Min. | B70: D80U | E70: 1
A71: Valor Max. | B71: D119U | E71: 64
A72: bytes a tx | B72: 4 | C72: 6 | D72: 3 | E72: 1 | J72: 2
A73: Ejm. completo | B73: D80U | C73: 310322 | D73: N1 | E73: 2 | F73: -10000 | G73: 10000 | H73: 1 | I73: 6000 | J73: 4F
A74: Trama Real | B74: D80U | C74: 10422 | D74: N1 | E74: 2 | F74: -10000 | G74: 10000 | H74: 1 | I74: 6000 | J74: 2C
A78: 6. TRAMA CONFIGURACIÓN HEX DEL ADCP | D78: =LEN(CONCATENATE(B87,C87,D87,E87,F87,G87,H87,I87,K87,L87,M87,N87))+N81+(513-7) -> 550 | E78: =SUM(B86:N86)+N81 -> 48
A79: Esta trama (en ASCII) define como está configurado en Hex el ADCP con su trama propia del software AquaPro, cada byte estará separado por coma
A81: Posición del Campo | B81: 1 | C81: 2 | D81: 3 | E81: 4 | F81: 5 | G81: 6 | H81: 7 | I81: 8 | J81: …... | K81: 8 | L81: 8 | M81: 8 | N81: 19
A82: DESCRIPCIÓN | B82: TIPO DE TRAMA | C82: FECHA DEF TRAMA | D82: DEF.EQUIPO | E82: CANTIDAD BYTES (n) | F82: Byte 1 | G82: Byte 2 | H82: Byte 3 | I82: Byte 4 | J82: …... | K82: Byte n-2 | L82: Byte n-1 | M82: Byte n | N82: Checksum
A83: Unidad | B83: Id de la Trama | C83: Nombre del Equipo | D83: Nombre del Equipo | E83: Cantidad | F83: Byte hex | G83: Byte hex | H83: Byte hex | I83: Byte hex | J83: …... | K83: Byte hex | L83: Byte hex | M83: Byte hex | N83: Cantidad
A84: Valor Min. | B84: D80 | E84: 1 | F84: 0 | G84: 0 | H84: 0 | I84: 0 | J84: …... | K84: 0 | L84: 0 | M84: 0
A85: Valor Max. | B85: D119 | E85: 32 | F85: FF | G85: FF | H85: FF | I85: FF | K85: FF | L85: FF | M85: FF
A86: bytes a tx | B86: 4 | C86: 6 | D86: 2 | E86: 1 | F86: 2 | G86: 2 | H86: 2 | I86: 2 | J86: …... | K86: 2 | L86: 2 | M86: 2 | N86: 2
A87: Ejm. completo | B87: D80C | C87: 210522 | D87: N1 | E87: 2 | F87: A5 | G87: 0 | H87: 0 | I87: 1 | J87: …... | K87: A8 | L87: 6 | M87: 6 | N87: *6E
A88: Trama Real | B88: D80C | C88: 110422 | D88: N1 | E88: 64 | F88: A5 | G88: 0 | H88: 0 | I88: 1 | J88: …... | K88: A8 | L88: 6 | M88: 6 | N88: *6E

Sheet CTD Trimeter
A2: 1. TRAMA SALIDA DE DATOS DEL SENSOR EN ASCII Y SU INTREPETACIÓN
I3: 1 byte | J3: 255
A4: Trama actual del equipo: | B4: 03/03/23,01:27:00,0.28<CR><LF> | D4: Fecha | E4: hora | F4: Turb (FNU) | I4: 2 bytes | J4: 65535
B5: Fecha, hora, Turb | D5: 2023-03-03 | E5: 01:27:00 | F5: 0.28 | G5: <CR><LF> | I5: 3 bytes | J5: 16777215
I6: 4 bytes | J6: 4294967295
A8: 2. TRAMA SALIDA DE DATOS DEL DATALOGGER | D8: =SUM(B18:E18) -> 5 | E8: =D8*8 -> 40 | F8: =ROUNDUP(E8/6,0) -> 7
A9: En esta trama se transmiten los datos recibidos por los sensores del equipo CTD. NO están separados por comas, se identifican según su posición y se transmite en BIN
D11: TUR4
B12: ID TRAMA | C12: DIF FECHA | D12: Turbidez | G12: Checksum
A13: Unidad | B13: Id de la Trama | C13: minutos (pos.y neg.) | D13: FNU | G13: Cantidad
A14: Valor Max. | B14: 79 | C14: 126 | D14: 16777215
A15: Valor Min. | B15: 30 | C15: -127 | D15: 0
A16: Valor Nulo | C16: 127 (7Fh) y -128 (80h) | D16: =D14 -> 16777215 | G16: 2
A17: Posición trama a tx | B17: 1 | C17: =B18+B17 -> 2 | D17: =C17+C18 -> 3
A18: bytes a tx | B18: 1 | C18: 1 | D18: 3 | G18: 2
A19: Ejm. completo | B19: 30 | C19: -1 | D19: =F5*100 -> 28 | G19: 4F
A21: EJEMPLO:
A22: Posición byte | B22: 1 | C22: 2 | D22: 3 | E22: 4
A23: HEX Rx 2 | B23: 1E | C23: 80 | D23: 0 | E23: 5F
A24: HEX | B24: =TEXT(B23,"00") -> 1E | C24: =TEXT(C23,"00") -> 80 | D24: =CONCATENATE(TEXT(D23,"00"),TEXT(E23,"00")) -> 005F | F24: =TEXT(F23,"00") -> 00
A25: DEC | B25: =HEX2DEC(B24) -> 30 | C25: =IF(HEX2DEC(C24)>(127),HEX2DEC(C24)-256,HEX2DEC(C24)) -> -128 | D25: =HEX2DEC(D24) -> 95 | F25: =HEX2DEC(F24) -> 0
B26: ='trama 1 Tx datos '!H21 -> 2022-06-22 | C26: ='trama 1 Tx datos '!I21+C25/24/60 -> 06:32:00
A28: 3. TRAMA CONFIGURACIÓN DEL EQUIPO | D28: =LEN(CONCATENATE(B37,C37,D37,E37,F37,G37,H37,K37,L37,M37,N37))+N31 -> 41 | E28: =SUM(B36:N36)+N31 -> 55
A29: Esta trama define como está configurada la trama del CTD, qué tramas, cuantas y cuales celdas se tranmiten, junto con su unidad. Está separado por comas y se transmite en ASCII (azul), las máscaras se interpretan en binario (verde)
A31: Posición del Campo | B31: 1 | C31: 2 | D31: 3 | E31: 4 | F31: 5 | G31: 6 | H31: 7 | I31: 8 | J31: 9 | K31: 10 | L31: 11 | M31: 12 | N31: 13
A32: DESCRIPCIÓN | B32: TIPO DE TRAMA | C32: FECHA DEF TRAMA | D32: DEF.EQUIPO | E32: CANTIDAD VARIABLES | F32: VELOCIDAD DE MUESTREO | G32: TIEMPO DE LA MEDIA | H32: FRECUENCIA DE MEDICIÓN | I32: FRECUENCIA DE LIMPIADO | J32: CANTIDAD DE LIMPIADOS | K32: NOMBRE VARIABLE 1 | L32: UNIDAD VARIABLE 1 | M32: TIPO DE BYTE VARIABLE 1 | N32: Checksum
A33: Unidad | B33: Id de la Trama | C33: Nombre del Equipo | D33: Nombre del Equipo | E33: Cantidad | F33: Segundos | G33: Segundos | H33: Segundos | I33: Segundos | J33: Cantidad | K33: Turbidez | L33: Unidad de la Variable | M33: Cant.en numero: P=Positivo, N=Negativo, A=Ambos, F=Float | N33: Cantidad
A34: Valor Min. | B34: D30 | E34: 1 | F34: 1 | G34: 1 | H34: 1 | I34: 1 | J34: 1 | K34: 0
A35: Valor Max. | B35: D79 | E35: 32 | F35: 3600 | G35: 3600 | H35: 3600 | I35: 3600 | J35: 99 | K35: 100
A36: bytes a tx | B36: 3 | C36: 6 | D36: 2 | E36: 2 | F36: 4 | G36: 4 | H36: 4 | I36: 5 | J36: 2 | K36: 2 | L36: 3 | M36: 3 | N36: 2
A37: Ejm. completo | B37: D30D | C37: 210522 | D37: E1 | E37: 1 | F37: 2 | G37: 60 | H37: 1800 | I37: =60*10 -> 600 | J37: 1 | K37: 5 | L37: 152 | M37: 3P | N37: 4F
A38: Trama Real | B38: D30D | C38: 10422 | D38: E1 | E38: 1 | F38: 2 | G38: 60 | H38: 1800 | I38: 600 | J38: 1 | K38: 15 | L38: 150 | M38: 3P | N38: 28
A40: 4. TRAMA CONFIGURACIÓN DEL EQUIPO EXTENDIDA (NOMBRE ESPECÍFICO DE LAS VARIABLES)
A41: Esta trama define los nombres específicos y el orden de cada variable del CTD. Está separado por comas y se transmite en ASCII
A43: Posición del Campo | B43: 1 | C43: 2 | D43: 3 | E43: 4 | F43: 5 | G43: 10
A44: DESCRIPCIÓN | B44: TIPO DE TRAMA | C44: FECHA DEF TRAMA | D44: DEF.EQUIPO | E44: CANTIDAD VARIABLES | F44: NOMBRE ESPECÍFICO VARIABLE 1 | G44: Checksum
A45: Unidad | B45: Id de la Trama | C45: Nombre del Equipo | D45: Nombre del Equipo | E45: Cantidad | F45: Turbidez | G45: Cantidad
A46: Valor Min. | B46: D30X | E46: 1
A47: Valor Max. | B47: D79X | E47: 64
A48: bytes a tx | B48: 4 | C48: 6 | D48: 3 | E48: 1 | F48: 4 | G48: 2
A49: Ejm. completo | B49: D30X | C49: 310322 | D49: E1 | E49: 1 | F49: TUR4 | G49: 4F
A50: Trama Real | B50: D30X | C50: 10422 | D50: E1 | E50: 1 | F50: TUR4*38 | G50: 54
A53: 5. TRAMA DE LA CONFIGURACIÓN DE UMBRALES DE DATOS CTD
A54: Esta trama define los valores máximos y mínimos de cada variable, los valores fuera de este rango serán desechados. Está separado por comas y se transmite en ASCII
A56: Posición del Campo | B56: 1 | C56: 2 | D56: 3 | E56: 4 | F56: 5 | G56: 6 | H56: 15
A57: DESCRIPCIÓN | B57: TIPO DE TRAMA | C57: FECHA DEF TRAMA | D57: DEF.EQUIPO | E57: CANTIDAD VARIABLES | F57: VALOR MÍNIMO VARIABLE 1 | G57: VALOR MAXIMO VARIABLE 1 | H57: Checksum
A58: Unidad | B58: Id de la Trama | C58: Nombre del Equipo | D58: Nombre del Equipo | E58: Cantidad | F58: Turbidez | G58: Turbidez | H58: Cantidad
A59: Valor Min. | B59: D30U | E59: 1
A60: Valor Max. | B60: D79U | E60: 64
A61: bytes a tx | B61: 4 | C61: 6 | D61: 3 | E61: 1 | H61: 2
A62: Ejm. completo | B62: D30U | C62: 310322 | D62: E1 | E62: 1 | F62: 0 | G62: 4000 | H62: 4F
A63: Trama Real | B63: D30U | C63: 10422 | D63: E1 | E63: 1 | F63: 0 | G63: 4000 | H63: 4D
A66: DESCRIPCIÓN | B66: Enable | C66: Nivel reposo | D66: Reset xx.x (seg)
A67: Valor Min. | B67: 0 => NO | C67: 0 => N.O. | D67: 1
A68: Valor Max. | B68: 1 => SI | C68: 1 => N.C. | D68: 65535
A69: bytes a tx | B69: 1 | C69: 1 | D69: 2

Sheet Waves
A2: 1. TRAMA SALIDA DE DATOS DEL SENSOR EN ASCII Y SU INTREPETACIÓN
A4: Trama actual del equipo: | B4: $RES,07,12,19,13,00,00283,0231,0131,0163,0090,145,106,078,088,061,1460,0430,099,099*6A
B5: =('trama 1 Tx datos '!I21)+C29/24/60 -> 0.3333333333
B7: Cabecera | C7: Día | D7: Mes | E7: Año | F7: Hora | G7: Min | H7: Nº Olas | I7: Hmax | J7: H3 | K7: H10 | L7: Hmed | M7: Tmax | N7: Tpico | O7: T3 | P7: T10 | Q7: Tmed | R7: Dir | S7: Des | T7: Flag1 | U7: Flag2 | V7: CHKSUMM
B8: $RES | C8: dd | D8: mm | E8: aa | F8: hh | G8: mm | H8: cant | I8: m | J8: m | K8: m | L8: m | M8: seg | N8: seg | O8: seg | P8: seg | Q8: seg | R8: º | S8: º | T8: % | U8: %
B9: $RES | C9: 7 | D9: 12 | E9: 19 | F9: 13 | G9: 0 | H9: 283 | I9: 231 | J9: 131 | K9: 163 | L9: 90 | M9: 14.5 | N9: 10.6 | O9: 7.8 | P9: 8.8 | Q9: 6.1 | R9: 146 | S9: 43 | T9: 99 | U9: 99 | V9: *6A
A12: 2. TRAMA SALIDA DE DATOS DEL DATALOGGER | D12: =SUM(B22:AC22) -> 28 | F12: =D12*8 -> 224 | G12: =ROUNDUP(F12/6,0) -> 38
A13: En esta trama se transmiten los datos recibidos por la MBW3 NO están separados por comas, se identifican según su posición y se transmite en BIN
D15: VQTY | F15: VMXL | H15: VH110 | J15: VAVH | L15: VHM0 | N15: VTMX | P15: VTPK | R15: VT110 | T15: VAVT | V15: VGTA | X15: VDIR | Z15: VPSP | AB15: VFL1 | AC15: VFL2
B16: ID TRAMA | C16: DIF FECHA | D16: NRO DE OLAS | F16: H.MAX. | H16: HSIG/10 | J16: HSIG/3 | L16: HMED | N16: TMAX | P16: TPICO | R16: TSIG/10 | T16: TSIG/3 | V16: TMED | X16: DIR | Z16: DESV | AB16: FLAG1 | AC16: FLAG2
A17: Unidad | B17: Id de la Trama | C17: minutos (pos.y neg.) | D17: Definido en la configuración | F17: Altura Máxima cm | H17: Altura Significativa H/10 cm | J17: Altura Significativa H/3 cm | L17: Altura Media cm | N17: Período Máximo seg x 10-1 | P17: Período Pico seg x 10-1 | R17: Período Significativo H/10 seg x 10-1 | T17: Período Significativo H/3 seg x 10-1 | V17: Período Medio seg x 10-1 | X17: Dirección grados x 10-1 | Z17: Disperción grados x 10-2 | AB17: Definido en la configuración | AC17: Definido en la configuración
A18: Valor Max. | B18: 169 | C18: 126 | D18: 65534 | F18: 65534 | H18: 65534 | J18: 65534 | L18: 65534 | N18: 65534 | P18: 65534 | R18: 65534 | T18: 65534 | V18: 65534 | X18: 3599 | Z18: 3599 | AB18: 100 | AC18: 100
A19: Valor Min. | B19: 160 | C19: -127 | D19: 0 | F19: 0 | H19: 0 | J19: 0 | L19: 0 | N19: 0 | P19: 0 | R19: 0 | T19: 0 | V19: 0 | X19: 0 | Z19: 0 | AB19: 0 | AC19: 0
A20: Valor nulo | C20: 127 (7Fh) y -128 (80h) | D20: 65535 | F20: 65535 | H20: 65535 | J20: 65535 | L20: 65535 | N20: 65535 | P20: 65535 | R20: 65535 | T20: 65535 | V20: 65535 | X20: 32767 (7FFFh) y -32768 (8000h) | Z20: 32767 (7FFFh) y -32768 (8000h) | AB20: 255 | AC20: 255
A21: Posición trama a tx | B21: 1 | C21: =B22+B21 -> 2 | D21: =C21+C22 -> 3 | F21: =D22+D21 -> 5 | H21: =J22+J21 -> 9 | J21: =F22+F21 -> 7 | L21: =H22+H21 -> 11 | N21: =L22+L21 -> 13 | P21: =N22+N21 -> 15 | R21: =T22+T21 -> 19 | T21: =P22+P21 -> 17 | V21: =R22+R21 -> 21 | X21: =V22+V21 -> 23 | Z21: =X22+X21 -> 25 | AB21: =Z22+Z21 -> 27 | AC21: =AB22+AB21 -> 28
A22: bytes a tx | B22: 1 | C22: 1 | D22: 2 | F22: 2 | H22: 2 | J22: 2 | L22: 2 | N22: 2 | P22: 2 | R22: 2 | T22: 2 | V22: 2 | X22: 2 | Z22: 2 | AB22: 1 | AC22: 1
A23: Ejm. completo | B23: 160 | C23: -5 | D23: 283 | F23: 231 | H23: 163 | J23: 131 | L23: 90 | N23: 145 | P23: 106 | R23: 88 | T23: 78 | V23: 61 | X23: 1460 | Z23: 430 | AB23: 99 | AC23: 99
A25: EJEMPLO: | B25: 12 | C25: 13 | D25: 14 | E25: 15 | F25: 16 | G25: 17 | H25: 18 | I25: 19 | J25: 20 | K25: 21 | L25: 22 | M25: 23 | N25: 24 | O25: 25 | P25: 26 | Q25: 27 | R25: 28 | S25: 29 | T25: 30 | U25: 31 | V25: 32 | W25: 33 | X25: 34 | Y25: 35 | Z25: 36 | AA25: 37 | AB25: 38 | AC25: 39 | AD25: 40 | AE25: 41 | AF25: 42 | AG25: 43 | AH25: 44 | AI25: 45 | AJ25: 46 | AK25: 47 | AL25: 48 | AM25: 49 | AN25: 50 | AO25: 51 | AP25: 52 | AQ25: 53 | AR25: 54 | AS25: 55 | AT25: 56 | AU25: 57 | AV25: 58 | AW25: 59 | AX25: 60 | AY25: 61 | AZ25: 62 | BA25: 63 | BB25: 64 | BC25: 65 | BD25: 66 | BE25: 67 | BF25: 68 | BG25: 69 | BH25: 70 | BI25: 71 | BJ25: 72 | BK25: 73 | BL25: 74 | BM25: 75 | BN25: 76 | BO25: 77 | BP25: 78 | BQ25: 79 | BR25: 80 | BS25: 81 | BT25: 82 | BU25: 83 | BV25: 84 | BW25: 85 | BX25: 86 | BY25: 87 | BZ25: 88 | CA25: 89 | CB25: 90 | CC25: 91 | CD25: 92 | CE25: 93 | CF25: 94 | CG25: 95 | CH25: 96 | CI25: 97 | CJ25: 98 | CK25: 99 | CL25: 100 | CM25: 101 | CN25: 102 | CO25: 103 | CP25: 104 | CQ25: 105 | CR25: 106 | CS25: 107 | CT25: 108 | CU25: 109 | CV25: 110 | CW25: 111 | CX25: 112 | CY25: 113 | CZ25: 114 | DA25: 115 | DB25: 116 | DC25: 117 | DD25: 118 | DE25: 119 | DF25: 120 | DG25: 121 | DH25: 122 | DI25: 123 | DJ25: 124 | DK25: 125 | DL25: 126 | DM25: 127 | DN25: 128 | DO25: 129 | DP25: 130 | DQ25: 131 | DR25: 132 | DS25: 133 | DT25: 134 | DU25: 135 | DV25: 136 | DW25: 137 | DX25: 138 | DY25: 139 | DZ25: 140 | EA25: 141 | EB25: 142 | EC25: 143 | ED25: 144 | EE25: 145 | EF25: 146 | EG25: 147 | EH25: 148 | EI25: 149 | EJ25: 150 | EK25: 151 | EL25: 152 | EM25: 153 | EN25: 154 | EO25: 155 | EP25: 156 | EQ25: 157 | ER25: 158 | ES25: 159 | ET25: 160 | EU25: 161 | EV25: 162 | EW25: 163 | EX25: 164 | EY25: 165 | EZ25: 166
A26: Posición byte | B26: 1 | C26: 2 | D26: 3 | E26: 4 | F26: 5 | G26: 6 | H26: 7 | I26: 8 | J26: 9 | K26: 10 | L26: 11 | M26: 12 | N26: 13 | O26: 14 | P26: 15 | Q26: 16 | R26: 17 | S26: 18 | T26: 19 | U26: 20 | V26: 21 | W26: 22 | X26: 23 | Y26: 24 | Z26: 25 | AA26: 26 | AB26: 27 | AC26: 28
A27: HEX Rx 2 | B27: A0 | C27: D8 | D27: 0 | E27: 1 | F27: 0 | G27: 2 | H27: 0 | I27: 2 | J27: 0 | K27: 2 | L27: 0 | M27: 2 | N27: 0 | O27: A6 | P27: 0 | Q27: A6 | R27: 0 | S27: A6 | T27: 0 | U27: A6 | V27: 0 | W27: A6 | X27: 3 | Y27: DE | Z27: 0 | AA27: 0 | AB27: 64 | AC27: 64 | AD27: A2 | AE27: A7 | AF27: 34 | AG27: 42 | AH27: A9 | AI27: 1 | AJ27: 69 | AK27: 3B | AL27: 14 | AM27: FF | AN27: FB | AO27: FC | AP27: BC | AQ27: 5 | AR27: 1A | AS27: A1 | AT27: A7 | AU27: 34 | AV27: 42 | AW27: A2 | AX27: 70 | AY27: 6F | AZ27: 2 | BA27: A0 | BB27: 0A | BC27: 0 | BD27: 1 | BE27: 0 | BF27: 2 | BG27: 0 | BH27: 2 | BI27: 0 | BJ27: 2 | BK27: 0 | BL27: 2 | BM27: 0 | BN27: C8 | BO27: 0 | BP27: C8 | BQ27: 0 | BR27: C8 | BS27: 0 | BT27: C8 | BU27: 0 | BV27: C8 | BW27: 0A | BX27: 5E | BY27: 0 | BZ27: 0 | CA27: 64 | CB27: 64 | CC27: 1D | CD27: D9
A28: HEX | B28: =TEXT(B27,"00") -> A0 | C28: =TEXT(C27,"00") -> D8 | D28: =CONCATENATE(TEXT(D27,"00"),TEXT(E27,"00")) -> 0001 | F28: =CONCATENATE(TEXT(F27,"00"),TEXT(G27,"00")) -> 0002 | H28: =CONCATENATE(TEXT(H27,"00"),TEXT(I27,"00")) -> 0002 | J28: =CONCATENATE(TEXT(J27,"00"),TEXT(K27,"00")) -> 0002 | L28: =CONCATENATE(TEXT(L27,"00"),TEXT(M27,"00")) -> 0002 | N28: =CONCATENATE(TEXT(N27,"00"),TEXT(O27,"00")) -> 00A6 | P28: =CONCATENATE(TEXT(P27,"00"),TEXT(Q27,"00")) -> 00A6 | R28: =CONCATENATE(TEXT(R27,"00"),TEXT(S27,"00")) -> 00A6 | T28: =CONCATENATE(TEXT(T27,"00"),TEXT(U27,"00")) -> 00A6 | V28: =CONCATENATE(TEXT(V27,"00"),TEXT(W27,"00")) -> 00A6 | X28: =CONCATENATE(TEXT(X27,"00"),TEXT(Y27,"00")) -> 03DE | Z28: =CONCATENATE(TEXT(Z27,"00"),TEXT(AA27,"00")) -> 0000 | AB28: =TEXT(AB27,"00") -> 64 | AC28: =TEXT(AC27,"00") -> 64
A29: DEC | B29: =HEX2DEC(B28) -> 160 | C29: =IF(HEX2DEC(C28)>(127),HEX2DEC(C28)-256,HEX2DEC(C28)) -> -40 | D29: =HEX2DEC(D28) -> 1 | F29: =HEX2DEC(F28) -> 2 | H29: =HEX2DEC(H28) -> 2 | J29: =HEX2DEC(J28) -> 2 | L29: =HEX2DEC(L28) -> 2 | N29: =HEX2DEC(N28) -> 166 | P29: =HEX2DEC(P28) -> 166 | R29: =HEX2DEC(R28) -> 166 | T29: =HEX2DEC(T28) -> 166 | V29: =HEX2DEC(V28) -> 166 | X29: =IF(HEX2DEC(X28)>(32767),HEX2DEC(X28)-65536,HEX2DEC(X28)) -> 990 | Z29: =IF(HEX2DEC(Z28)>(32767),HEX2DEC(Z28)-65536,HEX2DEC(Z28)) -> 0 | AB29: =HEX2DEC(AB28) -> 100 | AC29: =HEX2DEC(AC28) -> 100
B30: ='trama 1 Tx datos '!H21 -> 2022-06-22 | C30: =('trama 1 Tx datos '!I21)+C29/24/60 -> 08:00:00
A32: 3. TRAMA CONFIGURACIÓN DEL EQUIPO | D32: =LEN(CONCATENATE(B41,C41,D41,E41,F41,G41,H41,I41,J41,K41,L41,M41,N41,O41,P41,Q41,R41,S41,T41,U41,V41,W41,X41,Y41,Z41,AA41,AB41))+AB35 -> 80 | E32: =SUM(B40:AB40)+AB35 -> 94
A33: Esta trama define como está configurada la trama del MBW3, qué tramas, cuantas y cuales se tranmiten, junto con su unidad. Está separado por comas y se transmite en ASCII (azul), las máscaras se transmiten en HEX pero interpretan en binario (verde)
A35: Posición del Campo | B35: 1 | C35: 2 | D35: 3 | E35: 4 | F35: 5 | G35: 6 | H35: 7 | I35: 8 | J35: 9 | K35: 10 | L35: 11 | M35: 12 | N35: 13 | O35: 14 | P35: 15 | Q35: 16 | R35: 17 | S35: 18 | T35: 19 | U35: 20 | V35: 21 | W35: 22 | X35: 23 | Y35: 24 | Z35: 25 | AA35: 26 | AB35: 27
A36: DESCRIPCIÓN | B36: TIPO DE TRAMA | C36: FECHA DEF TRAMA | D36: DEF.EQUIPO | E36: CANTIDAD VARIABLES | F36: VELOCIDAD DE MUESTREO | G36: TIEMPO DE LA MEDIA | H36: FRECUENCIA DE MEDICIÓN | I36: NOMBRE VARIABLE 1 | J36: UNIDAD VARIABLE 1 | K36: TIPO DE BYTE VARIABLE 1 | L36: NOMBRE VARIABLE 2 | M36: UNIDAD VARIABLE 2 | N36: TIPO DE BYTE VARIABLE 2 | O36: MASCARA VARIABLE 2 | P36: NOMBRE VARIABLE 3 | Q36: UNIDAD VARIABLE 3 | R36: TIPO DE BYTE VARIABLE 3 | S36: MASCARA VARIABLE 3 | T36: NOMBRE VARIABLE 4 | U36: UNIDAD VARIABLE 4 | V36: TIPO DE BYTE VARIABLE 4 | W36: MASCARA VARIABLE 4 | X36: NOMBRE VARIABLE 5 | Y36: UNIDAD VARIABLE 5 | Z36: TIPO DE BYTE VARIABLE 5 | AA36: MASCARA VARIABLE 5 | AB36: Checksum
A37: Unidad | B37: Id de la Trama | C37: Nombre del Equipo | D37: Nombre del Equipo | E37: Cantidad | F37: Segundos | G37: Segundos | H37: Segundos | I37: Cantidad de Olas | J37: Unidad de la Variable | K37: Cant.en numero: P=Positivo, N=Negativo, A=Ambos, F=Float | L37: Altura de Ola | M37: Unidad de la Variable | N37: Cant.en numero: P=Positivo, N=Negativo, A=Ambos, F=Float | P37: Período de Ola | Q37: Unidad de la Variable | R37: Cant.en numero: P=Positivo, N=Negativo, A=Ambos, F=Float | T37: Dirección Angular del Oleaje | U37: Unidad de la Variable | V37: Cant.en numero: P=Positivo, N=Negativo, A=Ambos, F=Float | X37: Flag | Y37: Unidad de la Variable | Z37: Cant.en numero: P=Positivo, N=Negativo, A=Ambos, F=Float | AB37: Cantidad
A38: Valor Min. | B38: D160 | E38: 1 | F38: 0.1 | G38: 1 | H38: 1 | O38: 0 | S38: 0 | W38: 00 | AA38: 00
A39: Valor Max. | B39: D169 | E39: 32 | F39: 10 | G39: 3600 | H39: 3600 | O39: 1111 | S39: 11111 | W39: 11 | AA39: 11
A40: bytes a tx | B40: 4 | C40: 6 | D40: 3 | E40: 1 | F40: 4 | G40: 4 | H40: 4 | I40: 2 | J40: 3 | K40: 2 | L40: 2 | M40: 3 | N40: 2 | O40: 1 | P40: 2 | Q40: 3 | R40: 2 | S40: 1 | T40: 2 | U40: 3 | V40: 2 | W40: 1 | X40: 2 | Y40: 3 | Z40: 2 | AA40: 1 | AB40: 2
A41: Ejm. completo | B41: D160D | C41: 100522 | D41: M4 | E41: 5 | F41: 1 | G41: 1800 | H41: 1800 | I41: 1 | J41: 1 | K41: 2P | L41: 2 | M41: 22 | N41: 2P | O41: =BIN2HEX(O39) -> F | P41: 3 | Q41: 31 | R41: 2P | S41: =BIN2HEX(S39) -> 1F | T41: 4 | U41: 41 | V41: 2P | W41: =BIN2HEX(W39) -> 3 | X41: F | Y41: 1 | Z41: 1P | AA41: =BIN2HEX(AA39) -> 3 | AB41: 4F
B42: D160D | C42: 10422 | D42: M4 | E42: 5 | F42: 1 | G42: 1800 | H42: 1800 | I42: 1 | J42: 1 | K42: 2P | L42: 2 | M42: 22 | N42: 2P | O42: F | P42: 3 | Q42: 31 | R42: 2P | S42: 1F | T42: 4 | U42: 41 | V42: 2P | W42: 3 | X42: F | Y42: 1 | Z42: 1P | AA42: 3
A44: 4. TRAMA CONFIGURACIÓN DEL EQUIPO EXTENDIDA (NOMBRE ESPECÍFICO DE LAS VARIABLES)
A45: Esta trama define lon nombres específicos y el orden de cada variable de la MBW3. Está separado por comas y se transmite en ASCII
A47: Posición del Campo | B47: 1 | C47: 2 | D47: 3 | E47: 4 | F47: 5 | G47: 6 | H47: 7 | I47: 8 | J47: 9 | K47: 10 | L47: 11 | M47: 12 | N47: 13 | O47: 14 | P47: 15 | Q47: 16 | R47: 17 | S47: 18 | T47: 19
A48: DESCRIPCIÓN | B48: TIPO DE TRAMA | C48: FECHA DEF TRAMA | D48: DEF.EQUIPO | E48: CANTIDAD VARIABLES | F48: NOMBRE ESPECÍFICO VARIABLE 1 | G48: NOMBRE ESPECÍFICO VARIABLE 2.1 | H48: NOMBRE ESPECÍFICO VARIABLE 2.2 | I48: NOMBRE ESPECÍFICO VARIABLE 2.3 | J48: NOMBRE ESPECÍFICO VARIABLE 2.4 | K48: NOMBRE ESPECÍFICO VARIABLE 3.1 | L48: NOMBRE ESPECÍFICO VARIABLE 3.2 | M48: NOMBRE ESPECÍFICO VARIABLE 3.3 | N48: NOMBRE ESPECÍFICO VARIABLE 3.4 | O48: NOMBRE ESPECÍFICO VARIABLE 3.5 | P48: NOMBRE ESPECÍFICO VARIABLE 4.1 | Q48: NOMBRE ESPECÍFICO VARIABLE 4.2 | R48: NOMBRE ESPECÍFICO VARIABLE 5.1 | S48: NOMBRE ESPECÍFICO VARIABLE 5.2 | T48: Checksum
A49: Unidad | B49: Id de la Trama | C49: Nombre del Equipo | D49: Nombre del Equipo | E49: Cantidad | F49: NRO DE OLAS | G49: H.MAX. | H49: HSIG/10 | I49: HSIG/3 | J49: HMED | K49: TMAX | L49: TPICO | M49: TSIG/10 | N49: TSIG/3 | O49: TMED | P49: DIR | Q49: DESV | R49: FLAG1 | S49: FLAG2 | T49: Cantidad
A50: Valor Min. | B50: D160 | E50: 1 | F50: VQTY | G50: VMXL | H50: VH110 | I50: VAVH | J50: VHM0 | K50: VTMX | L50: VTPK | M50: VT110 | N50: VAVT | O50: VGTA | P50: VDIR | Q50: VPSP | R50: VFL1 | S50: VFL2
A51: Valor Max. | B51: D169 | E51: 64
A52: bytes a tx | B52: 4 | C52: 6 | D52: 3 | E52: 1 | F52: 4 | G52: 4 | H52: 4 | I52: 4 | J52: 4 | K52: 4 | L52: 4 | M52: 4 | N52: 4 | O52: 4 | P52: 4 | Q52: 4 | R52: 4 | S52: 4 | T52: 2
A53: Ejm. completo | B53: D160X | C53: 310322 | D53: M4 | E53: 14 | F53: VQTY | G53: VMXL | H53: VH110 | I53: VAVH | J53: VHM0 | K53: VTMX | L53: VTPK | M53: VT110 | N53: VAVT | O53: VGTA | P53: VDIR | Q53: VPSP | R53: VFL1 | S53: VFL2 | T53: 4F
A57: 5. TRAMA DE LA CONFIGURACIÓN DE UMBRALES DE DATOS MBW3
A58: Esta trama define los valores máximos y mínimos de cada variable, los valores fuera de este rango serán desechados. Está separado por comas y se transmite en ASCII
A60: Posición del Campo | B60: 1 | C60: 2 | D60: 3 | E60: 4 | F60: 5 | G60: 6 | H60: 7 | I60: 8 | J60: 9 | K60: 10 | L60: 11 | M60: 12 | N60: 13 | O60: 14 | P60: 15
A61: DESCRIPCIÓN | B61: TIPO DE TRAMA | C61: FECHA DEF TRAMA | D61: DEF.EQUIPO | E61: CANTIDAD VARIABLES | F61: VALOR MÍNIMO VARIABLE 1 | G61: VALOR MAXIMO VARIABLE 1 | H61: VALOR MÍNIMO VARIABLE 2 | I61: VALOR MAXIMO VARIABLE 2 | J61: VALOR MÍNIMO VARIABLE 3 | K61: VALOR MAXIMO VARIABLE 3 | L61: VALOR MÍNIMO VARIABLE 4 | M61: VALOR MAXIMO VARIABLE 4 | N61: VALOR MÍNIMO VARIABLE 5 | O61: VALOR MAXIMO VARIABLE 5 | P61: Checksum
A62: Unidad | B62: Id de la Trama | C62: Nombre del Equipo | D62: Nombre del Equipo | E62: Cantidad | F62: Cantidad de Olas | G62: Cantidad de Olas | H62: Altura de Olas (m x10-2) | I62: Altura de Olas (m x10-2) | J62: Período de Olas (seg x10-1) | K62: Período de Olas (seg x10-1) | L62: Dirección Angular de Olas (º x10-1) | M62: Dirección Angular de Olas (º x10-1) | N62: Flag | O62: Flag | P62: Cantidad
A63: Valor Min. | B63: D160U | E63: 1
A64: Valor Max. | B64: D169U | E64: 64
A65: bytes a tx | B65: 4 | C65: 6 | D65: 3 | E65: 1 | P65: 2
A66: Ejm. completo | B66: D160U | C66: 310322 | D66: M4 | E66: 5 | F66: 1 | G66: 1000 | H66: 1 | I66: 3000 | J66: 1 | K66: 1000 | L66: 0 | M66: 3599 | N66: 0 | O66: 100 | P66: 4F
A67: Trama Real | B67: D160U | C67: 10422 | D67: M4 | E67: 5 | F67: 1 | G67: 1000 | H67: 1 | I67: 3000 | J67: 1 | K67: 1000 | L67: 0 | M67: 3599 | N67: 0 | O67: 100*46
A71: DESCRIPCIÓN | B71: Enable | C71: Nivel reposo reset | D71: Reset xx.x (seg) | E71: Sincronización Automática Fecha | F71: Factor Corrección Dirección | G71: Método Cálculo Direción | H71: Altura Mínima | I71: Altura Máxima | J71: Período Mínimo | K71: Período Máximo | L71: Intervalo Promedio
A72: Valor Min. | B72: 0 => NO | C72: 0 => N.O. | D72: 1
A73: Valor Max. | B73: 1 => SI | C73: 1 => N.C. | D73: 65535
A74: bytes a tx | B74: 1 | C74: 1 | D74: 2 | E74: 1 | F74: 1 | G74: 1 | H74: 2 | I74: 2 | J74: 1 | K74: 1 | L74: 1
L75: Definido en la Trama 160

Sheet EMA
A2: 1. TRAMA SALIDA DE DATOS DEL SENSOR EN ASCII Y SU INTREPETACIÓN
A4: Trama actual del equipo: | B4: $WIMDA,30.0143,I,1.0164,B,24.3,C,,,56.4,,15.0,C,132.9,T,131.3,M,11.6,N,6.0,M*51
A8: 2. TRAMA SALIDA DE DATOS DE LA EMA | D8: =SUM(B16:Q16) -> 14 | F8: =D8*8 -> 112 | G8: =ROUNDUP(F8/6,0) -> 19
D9: WDIR | F9: WSPD | H9: GDIR | J9: GSPD | L9: ATMS | N9: DRYT
B10: ID TRAMA | C10: DIF FECHA | D10: Dirección del Viento | F10: Velocidad del Viento | H10: Dirección del Viento Ráfaga | J10: Velocidad del Viento Ráfaga | L10: Presión Atmosférica | N10: Temperatura
A11: Unidad | B11: Id de la Trama | C11: minutos (pos.y neg.) | D11: º (pos) | F11: m/s x 10-2 (pos) | H11: º (pos) | J11: m/s x 10-2 (pos) | L11: hPa x 10-1 (pos) | N11: ºC x 10-1 (pos.y neg.)
A12: Valor Min. | B12: 120 | C12: 126 | D12: 0 | F12: 0 | H12: 0 | J12: 0 | L12: 300 | N12: -10
A13: Valor Max. | B13: 159 | C13: -127 | D13: 359 | F13: 100.99 | H13: 359 | J13: 100.99 | L13: 1200 | N13: 50
A14: Valor Max. | C14: 127 (7Fh) y -128 (80h) | D14: 65535 | F14: 65535 | H14: 65535 | J14: 65535 | L14: 65535 | N14: 32770 (7FFFh) y -32768 (8000h)
A15: Posición trama a tx | B15: 1 | C15: =B16+B15 -> 2 | D15: =C15+C16 -> 3 | F15: =D15+D16 -> 5 | H15: =F15+F16 -> 7 | J15: =H15+H16 -> 9 | L15: =J15+J16 -> 11 | N15: =L15+L16 -> 13
A16: bytes a tx | B16: 1 | C16: 1 | D16: 2 | F16: 2 | H16: 2 | J16: 2 | L16: 2 | N16: 2
A17: Ejm. completo | B17: 122 | C17: -1 | D17: 56 | F17: 19 | H17: 0 | J17: 19 | L17: 10156 | N17: 217
G18: 8 bits | H18: 6 bits
F19: 1 byte | G19: 255 | H19: 63
F20: 2 bytes | G20: 65535 | H20: 4095
F21: 3 bytes | G21: 16777215 | H21: 262143
F22: 4 bytes | G22: =4294967295 -> 4294967295 | H22: 16777215
A23: 3. TRAMA CONFIGURACIÓN DEL EQUIPO | D23: =SUM(B29:AA29) -> 63
A24: Posición del Campo | B24: 1 | C24: 2 | D24: 3 | E24: 4 | F24: 5 | G24: 6 | H24: 7 | I24: 8 | J24: 9 | K24: 10 | L24: 11 | M24: 12 | N24: 13 | O24: 14 | P24: 15 | Q24: 16 | R24: 17 | S24: 18 | T24: 19 | U24: 20 | V24: 21 | W24: 22 | X24: 23 | Y24: 24 | Z24: 25 | AA24: 26
A25: DESCRIPCIÓN | B25: TIPO DE TRAMA | C25: FECHA DEF TRAMA | D25: DEF.EQUIPO | E25: CANTIDAD VARIABLES | F25: VELOCIDAD DE MUESTREO | G25: TIEMPO DE LA MEDIA | H25: FRECUENCIA DE MEDICIÓN | I25: NOMBRE VARIABLE 1 | J25: UNIDAD VARIABLE 1 | K25: TIPO DE BYTE VARIABLE 1 | L25: NOMBRE VARIABLE 2 | M25: UNIDAD VARIABLE 2 | N25: TIPO DE BYTE VARIABLE 2 | O25: NOMBRE VARIABLE 3 | P25: UNIDAD VARIABLE 3 | Q25: TIPO DE BYTE VARIABLE 3 | R25: NOMBRE VARIABLE 4 | S25: UNIDAD VARIABLE 4 | T25: TIPO DE BYTE VARIABLE 4 | U25: NOMBRE VARIABLE 5 | V25: UNIDAD VARIABLE 5 | W25: TIPO DE BYTE VARIABLE 5 | X25: NOMBRE VARIABLE 6 | Y25: UNIDAD VARIABLE 6 | Z25: TIPO DE BYTE VARIABLE 6 | AA25: Checksum
